Workbook

Sheet Start
G2: Risk Dashboard Interactive Tool
G3: =+'Reference Dates'!$C$4 -> Q42021 Data
E4: Please enable macros to ensure the correct functioning of the tool
O5: List showing in Dropdown menu | P5: RI number | Q5: RI Code | R5: Name for tables - change if needs to be different from dropdown names | T5: Tables name for dropdown
O6: Tier 1 capital ratio | P6: 1 | Q6: SVC_1 | R6: Tier 1 capital ratio | T6: RU Exposures
B7: Choose a Risk Indicator: | E7: RI Number (*) | G7: RI Code | O7: Total capital ratio | P7: 2 | Q7: SVC_2 | R7: Total capital ratio | T7: UA Exposures
B8: Tier 1 capital ratio | E8: =IFERROR(VLOOKUP(B8,$O$6:$Q$26,2,0),"") -> 1 | G8: =IFERROR(VLOOKUP(B8,$O$6:$Q$26,3,0),"") -> SVC_1 | O8: CET1 ratio | P8: 3 | Q8: SVC_3 | R8: CET1 ratio | T8: BY Exposures
O9: CET1 ratio (fully loaded) | P9: 4 | Q9: SVC_29 | R9: CET1 ratio (fully loaded) | T9: Assets
B10: Choose a set of Tables from the statistical Annex: | O10: Leverage ratio | P10: 5 | Q10: SVC_13 | R10: Leverage ratio (transitional definition of Tier 1) | T10: Loans Composition
B11: RU Exposures | I11: =IFERROR((LEFT($B$11,FIND(" ",$B$11)-1)),$B$11) -> RU | O11: Leverage ratio (fully phased-in definition of Tier 1) | P11: 6 | Q11: SVC_12 | R11: Leverage ratio (fully phased-in definition of Tier 1) | T11: Loans NPL and coverage ratio
O12: Ratio of non-performing loans and advances (NPL ratio) | P12: 7 | Q12: AQT_3.2 | R12: Ratio of non-performing loans and advances (NPL ratio) | T12: NACE composition
O13: Coverage ratio of non-performing loans and advances | P13: 8 | Q13: AQT_41.2 | R13: Coverage ratio of non-performing loans and advances | T13: NPL ratio by NACE
O14: Forbearance ratio for loans and advances | P14: 9 | Q14: AQT_42.2 | R14: Forbearance ratio for loans and advances | T14: RE and Construction Exposures
B15: (*) In order of appearance in the Risk Dashboard | O15: Ratio of non-performing exposures (NPE ratio) | P15: 10 | Q15: AQT_3.1 | R15: Ratio of non-performing exposures (NPE ratio) | T15: IFRS9
O16: Return on equity | P16: 11 | Q16: PFT_21 | R16: Return on equity | T16: Sovereigns
O17: Return on assets | P17: 12 | Q17: PFT_24 | R17: Return on assets | T17: Liabilities
O18: Cost to income ratio | P18: 13 | Q18: PFT_23 | R18: Cost to income ratio | T18: Own funds and RWA
O19: Net interest income to total net operating income | P19: 14 | Q19: PFT_25 | R19: Net interest income to total net operating income | T19: Profitability
O20: Net fee and commission income to total net operating income | P20: 15 | Q20: PFT_26 | R20: Net fee and commission income to total net operating income | T20: Moratoria
O21: Net trading income to total net operating income | P21: 16 | Q21: PFT_29 | R21: Net trading income to total net operating income | T21: Public guarantee schemes
O22: Net interest margin | P22: 17 | Q22: PFT_41 | R22: Net interest margin
O23: Cost of Risk | P23: 18 | Q23: PFT_43 | R23: Cost of Risk
O24: Loan-to-deposit ratio for households and non-financial corporations | P24: 19 | Q24: FND_32 | R24: Loan-to-deposit ratio for households and non-financial corporations
O25: Asset encumbrance ratio | P25: 20 | Q25: FND_33 | R25: Asset encumbrance ratio
O26: Liquidity coverage ratio (%) | P26: 21 | Q26: LIQ_17 | R26: Liquidity coverage ratio (%)

Sheet Charts
B2: =$AR$21 -> Solvency
B3: =AM21&" - "&$AO$20 -> 1 - Tier 1 capital ratio
B4: Due to the automation of this file, charts axis are not scaled as in the booklet version. User may need to manually adjust it.
B5: Dispersion | J5: Numerator and denominator: trends
B7: 5th and 95th pct, interquartile range and median. | J7: =IF(AK21="PFT_43","Total numerator and denominator. 2018Q1=100.","Total numerator and denominator. "& IF(NOT(ISNA($AS$25)), YEAR($AM$25), IF(NOT(ISNA($AS$26)), YEAR($AM$26), IF(NOT(ISNA($AS$27)), YEAR($AM$27), IF(NOT(ISNA($AS$28)), YEAR($AM$28), IF(NOT(ISNA(#REF!)), YEAR($AM$29),IF(NOT(ISNA($AS$30)), YEAR($AM$30),IF(NOT(ISNA($AS$31)), YEAR($AM$31),IF(NOT(ISNA($AS$32)), YEAR($AM$32),IF(NOT(ISNA($AS$33)), YEAR($AM$33),IF(NOT(ISNA($AS$34)), YEAR($AM$34),IF(NOT(ISNA($AS$35)), YEAR($AM$35),YEAR($AM$36)))))))))))) &"Q"& IF(NOT(ISNA($AS$25)),ROUNDUP(MONTH($AM$25)/3,0), IF(NOT(ISNA($AS$26)),ROUNDUP(MONTH($AM$26)/3,0), IF(NOT(ISNA($AS$27)), ROUNDUP(MONTH($AM$27)/3,0), IF(NOT(ISNA($AS$28)), ROUNDUP(MONTH($AM$28)/3,0),NOT(ISNA($AS$29)))))) &" = 100.") -> Total numerator and denominator. 2019Q1 = 100.
B9: ="Country dispersion (as of "& YEAR(MAX(AM25:AM45))&" Q"&(ROUNDUP((MONTH(MAX(AM25:AM45))/3),0))&")" -> Country dispersion (as of 2021 Q4) | J9: KRI by size class
B11: ( * ) Not reported. Weighted Averages by country. Norwegian banks have not implemented yet the reporting framework based on CRR2/CRD5. Therefore, Norwegian figures are included in the EBA Risk dashboard only until March 2021. | J11: ="Weighted average. Banks are classified in the size class according to the their average total assets between 2014Q4 and "&YEAR(MAX(AM25:AM45))&"Q"&(ROUNDUP(MONTH(MAX(AM25:AM45))/3,0))&IF(AN48="Y",". Non-FINREP banks are assigned to the bucket of small banks.",". ") -> Weighted average. Banks are classified in the size class according to the their average total assets between 2014Q4 and 2021Q4.
B14: Period | E14: Weighted average | H14: 25th percentile | K14: 50th percentile | N14: 75th percentile
C16: =AM25 -> 2019-03-01 | F16: =IF(AND(YEAR(C16)<2018,$AK$21="PFT_43"),"",IFERROR(VLOOKUP($C16,$AM$25:$BB$42,8,FALSE), "")) -> 0.1613771813 | I16: =IF(AND(YEAR(C16)<2018,$AK$21="PFT_43"),"",IFERROR(VLOOKUP($C16,$AM$25:$BB$42,5,FALSE), "")) -> 0.1450424878 | L16: =IF(AND(YEAR(C16)<2018,$AK$21="PFT_43"),"",IFERROR(VLOOKUP($C16,$AM$25:$BB$42,6,FALSE), "")) -> 0.1659485756 | O16: =IF(AND(YEAR(C16)<2018,$AK$21="PFT_43"),"",IFERROR(VLOOKUP($C16,$AM$25:$BB$42,9,FALSE), "")) -> 0.2001838872
C17: =AM26 -> 2019-06-01 | F17: =IF(AND(YEAR(C17)<2018,$AK$21="PFT_43"),"",IFERROR(VLOOKUP($C17,$AM$25:$BB$42,8,FALSE), "")) -> 0.1617222784 | I17: =IF(AND(YEAR(C17)<2018,$AK$21="PFT_43"),"",IFERROR(VLOOKUP($C17,$AM$25:$BB$42,5,FALSE), "")) -> 0.1464257216 | L17: =IF(AND(YEAR(C17)<2018,$AK$21="PFT_43"),"",IFERROR(VLOOKUP($C17,$AM$25:$BB$42,6,FALSE), "")) -> 0.165238908 | O17: =IF(AND(YEAR(C17)<2018,$AK$21="PFT_43"),"",IFERROR(VLOOKUP($C17,$AM$25:$BB$42,9,FALSE), "")) -> 0.1975077077
C18: =AM27 -> 2019-09-01 | F18: 0.1613677389 | I18: 0.147537046 | L18: 0.1638160644 | O18: 0.1945912543
C19: =AM28 -> 2019-12-01 | F19: 0.1678534559 | I19: 0.152002714 | L19: 0.1717275433 | O19: 0.2041354545
C20: 2020-03-01 | F20: 0.1581940407 | I20: 0.1427134004 | L20: 0.162881694 | O20: 0.1989703886 | AN20: dashboard name | AO20: =VLOOKUP($AM$21*1,List!$A$3:$M$23,8,FALSE) -> Tier 1 capital ratio
C21: 2020-06-01 | F21: 0.1630563226 | I21: 0.1479937941 | L21: 0.1696146986 | O21: 0.2011049692 | AK21: =VLOOKUP($AM$21*1,List!$A$3:$F$23,6,0) -> SVC_1 | AM21: =Start!E8 -> 1 | AN21: =VLOOKUP($AM$21*1,List!$A$3:$F$23,4,0) -> 1 | AO21: =VLOOKUP($AM$21*1,List!$A$3:$E$23,5,0) -> Tier 1 capital ratio | AP21: =VLOOKUP($AM$21*1,List!$A$3:$K$23,11,FALSE) -> 0 | AR21: =VLOOKUP($AM$21*1,List!$A$3:$M$23,13,FALSE) -> Solvency
C22: 2020-09-01 | F22: 0.1671962406 | I22: 0.1529035899 | L22: 0.172888396 | O22: 0.2052266468 | AT22: WA
C23: 2020-12-01 | F23: =IF(AND(YEAR(C23)<2018,$AK$21="PFT_43"),"",IFERROR(VLOOKUP($C23,$AM$25:$BB$42,8,FALSE), "")) -> 0.1719736519 | I23: 0.1583604907 | L23: 0.1803584264 | O23: 0.212919732 | AP23: 5 | AQ23: 6 | AR23: 7 | AS23: 8 | AT23: 9 | AU23: 10 | AV23: 11 | AW23: 14 | AX23: 15 | AY23: Dispersion chart | BD23: 12 | BE23: 13 | BJ23: 16
C24: 2021-03-01 | F24: 0.1704994544 | I24: 0.1574664782 | L24: 0.180153556 | O24: 0.2109595522 | AL24: =+'Reference Dates'!$C$6 -> 2021-12-31 | AP24: 5^ pct | AQ24: First quartile | AR24: Median | AS24: Average | AT24: All banks | AU24: Third quartile | AV24: 95^ pct | AW24: Small | AX24: Medium | AY24: Q1 | AZ24: Q1 Neg | BA24: Q2 | BB24: Q3 | BC24: 5pct | BD24: 95 pct | BE24: Numeratir | BF24: Denominator | BG24: =VLOOKUP($AN$21,List!$D:$L,6,0) -> Tier 1 capital | BH24: =VLOOKUP($AN$21,List!$D:$L,7,0) -> Total risk exposure amount | BI24: Quarter | BJ24: Large
C25: 2021-06-01 | F25: 0.1708406054 | I25: 0.1559383138 | L25: 0.1760116964 | O25: 0.2125969098 | AK25: 1 | AL25: =(+AN25)*1 -> 201903 | AM25: =+'Reference Dates'!$C$7 -> 2019-03-01 | AN25: =+IF(MONTH(AM25)=12,YEAR(AM25)&MONTH(AM25),YEAR(AM25)&0&MONTH(AM25)) -> 201903 | AO25: =CONCATENATE($AO$21,AN25) -> Tier 1 capital ratio201903 | AP25: =VLOOKUP($AO25,Data!$A$1:$P$688,Charts!AP$23,FALSE) -> 0.1258831946 | AQ25: =VLOOKUP($AO25,Data!$A$1:$P$688,Charts!AQ$23,FALSE) -> 0.1450424878 | AR25: =VLOOKUP($AO25,Data!$A$1:$P$688,Charts!AR$23,FALSE) -> 0.1659485756 | AS25: =VLOOKUP($AO25,Data!$A$1:$P$688,Charts!AS$23,FALSE) -> 0.2025804793 | AT25: =VLOOKUP($AO25,Data!$A$1:$P$688,Charts!AT$23,FALSE) -> 0.1613771813 | AU25: =VLOOKUP($AO25,Data!$A$1:$P$688,Charts!AU$23,FALSE) -> 0.2001838872 | AV25: =VLOOKUP($AO25,Data!$A$1:$P$688,Charts!AV$23,FALSE) -> 0.3818776056 | AW25: =VLOOKUP($AO25,Data!$A$1:$P$688,Charts!AW$23,FALSE) -> 0.1808655688 | AX25: =VLOOKUP($AO25,Data!$A$1:$P$688,Charts!AX$23,FALSE) -> 0.1691249705 | AY25: =IF(AQ25<0,0,AQ25) -> 0.1450424878 | AZ25: =IF(AQ25<0,AQ25,0) -> 0 | BA25: =AR25-AY25 -> 0.02090608783 | BB25: =AU25-AR25 -> 0.03423531163 | BC25: =AQ25-AP25 -> 0.01915929313 | BD25: =AV25-AU25 -> 0.1816937184 | BE25: =VLOOKUP($AO25,Data!$A$1:$P$688,BD$23,FALSE) -> 1.266651423e+12 | BF25: =VLOOKUP($AO25,Data!$A$1:$P$688,BE$23,FALSE) -> 8.189497594e+12 | BG25: =IFERROR(IF($AP$21=0,BE25/BE$25*100,(100*(BE25*12/$BI25)/BE$25)),IFERROR(IF($AP$21=0, BE25/BE$26*100, 100*(BE25*12/$BI25)/BE$26), IFERROR(IF($AP$21=0, BE25/BE$27*100, 100*(BE25*12/$BI25)/BE$27),IFERROR(IF($AP$21=0, BE25/BE$28*100, 100*(BE25*12/$BI25)/BE$28), IFERROR(IF($AP$21=0, BE25/BE$29*100, 100*(BE25*12/$BI25)/BE$29),IFERROR(IF($AP$21=0, BE25/BE$30*100, 100*(BE25*12/$BI25)/#REF!),IFERROR(IF($AP$21=0, BE25/BE$31*100, 100*(BE25*12/$BI25)/BE$31),IFERROR(IF($AP$21=0, BE25/BE$31*100, 100*(BE25*12/$BI25)/BE$31),IFERROR(IF($AP$21=0, BE25/BE$32*100, 100*(BE25*12/$BI25)/BE$32),IFERROR(IF($AP$21=0, BE25/BE$33*100, 100*(BE25*12/$BI25)/BE$33),IF($AP$21=0, BE25/BE$34*100, 100*(BE25*12/$BI25)/BE$34))))))))))) -> 100 | BH25: =IFERROR(IF($AP$21=0,BF25/BF$25*100,(100*(BF25*12/$BI25)/BF$25)),IFERROR(IF($AP$21=0, BF25/BF$26*100, 100*(BF25*12/$BI25)/BF$26), IFERROR(IF($AP$21=0, BF25/BF$27*100, 100*(BF25*12/$BI25)/BF$27),IFERROR(IF($AP$21=0, BF25/BF$28*100, 100*(BF25*12/$BI25)/BF$28), IFERROR(IF($AP$21=0, BF25/BF$29*100, 100*(BF25*12/$BI25)/BF$29),IFERROR(IF($AP$21=0, BF25/BF$30*100, 100*(BF25*12/$BI25)/#REF!),IFERROR(IF($AP$21=0, BF25/BF$31*100, 100*(BF25*12/$BI25)/BF$31),IFERROR(IF($AP$21=0, BF25/BF$31*100, 100*(BF25*12/$BI25)/BF$31),IFERROR(IF($AP$21=0, BF25/BF$32*100, 100*(BF25*12/$BI25)/BF$32),IFERROR(IF($AP$21=0, BF25/BF$33*100, 100*(BF25*12/$BI25)/BF$33),IF($AP$21=0, BF25/BF$34*100, 100*(BF25*12/$BI25)/BF$34))))))))))) -> 100 | BI25: =MONTH(AM25) -> 3 | BJ25: =VLOOKUP($AO25,Data!$A$1:$P$688,Charts!BJ$23,FALSE) -> 0.1575302388
C26: =AM35 -> 2021-09-01 | F26: 0.1700138669 | I26: 0.1555425443 | L26: 0.1754100082 | O26: 0.2129016755 | AL26: 201906 | AM26: =IF(AM25<$AL$24,+DATE(YEAR(AM25),MONTH(AM25)+3,DAY(AM25)),"") -> 2019-06-01 | AN26: =+IF(MONTH(AM26)=12,YEAR(AM26)&MONTH(AM26),YEAR(AM26)&0&MONTH(AM26)) -> 201906 | AO26: =CONCATENATE($AO$21,AN26) -> Tier 1 capital ratio201906 | AP26: =VLOOKUP($AO26,Data!$A$1:$P$688,Charts!AP$23,FALSE) -> 0.1286853066 | AQ26: =VLOOKUP($AO26,Data!$A$1:$P$688,Charts!AQ$23,FALSE) -> 0.1464257216 | AR26: =VLOOKUP($AO26,Data!$A$1:$P$688,Charts!AR$23,FALSE) -> 0.165238908 | AS26: =VLOOKUP($AO26,Data!$A$1:$P$688,Charts!AS$23,FALSE) -> 0.2029240713 | AT26: =VLOOKUP($AO26,Data!$A$1:$P$688,Charts!AT$23,FALSE) -> 0.1617222784 | AU26: =VLOOKUP($AO26,Data!$A$1:$P$688,Charts!AU$23,FALSE) -> 0.1975077077 | AV26: =VLOOKUP($AO26,Data!$A$1:$P$688,Charts!AV$23,FALSE) -> 0.4361673222 | AW26: =VLOOKUP($AO26,Data!$A$1:$P$688,Charts!AW$23,FALSE) -> 0.1821048056 | AX26: =VLOOKUP($AO26,Data!$A$1:$P$688,Charts!AX$23,FALSE) -> 0.1701416522 | AY26: =IF(AQ26<0,0,AQ26) -> 0.1464257216 | AZ26: =IF(AQ26<0,AQ26,0) -> 0 | BA26: =AR26-AY26 -> 0.01881318643 | BB26: =AU26-AR26 -> 0.03226879974 | BC26: =AQ26-AP26 -> 0.01774041494 | BD26: =AV26-AU26 -> 0.2386596144 | BE26: =VLOOKUP($AO26,Data!$A$1:$P$688,BD$23,FALSE) -> 1.280659078e+12 | BF26: =VLOOKUP($AO26,Data!$A$1:$P$688,BE$23,FALSE) -> 8.231761349e+12 | BG26: =IFERROR(IF($AP$21=0,BE26/BE$25*100,(100*(BE26*12/$BI26)/BE$25)),IFERROR(IF($AP$21=0, BE26/BE$26*100, 100*(BE26*12/$BI26)/BE$26), IFERROR(IF($AP$21=0, BE26/BE$27*100, 100*(BE26*12/$BI26)/BE$27),IFERROR(IF($AP$21=0, BE26/BE$28*100, 100*(BE26*12/$BI26)/BE$28), IFERROR(IF($AP$21=0, BE26/BE$29*100, 100*(BE26*12/$BI26)/BE$29),IFERROR(IF($AP$21=0, BE26/BE$30*100, 100*(BE26*12/$BI26)/#REF!),IFERROR(IF($AP$21=0, BE26/BE$31*100, 100*(BE26*12/$BI26)/BE$31),IFERROR(IF($AP$21=0, BE26/BE$31*100, 100*(BE26*12/$BI26)/BE$31),IFERROR(IF($AP$21=0, BE26/BE$32*100, 100*(BE26*12/$BI26)/BE$32),IFERROR(IF($AP$21=0, BE26/BE$33*100, 100*(BE26*12/$BI26)/BE$33),IF($AP$21=0, BE26/BE$34*100, 100*(BE26*12/$BI26)/BE$34))))))))))) -> 101.1058809 | BH26: =IFERROR(IF($AP$21=0,BF26/BF$25*100,(100*(BF26*12/$BI26)/BF$25)),IFERROR(IF($AP$21=0, BF26/BF$26*100, 100*(BF26*12/$BI26)/BF$26), IFERROR(IF($AP$21=0, BF26/BF$27*100, 100*(BF26*12/$BI26)/BF$27),IFERROR(IF($AP$21=0, BF26/BF$28*100, 100*(BF26*12/$BI26)/BF$28), IFERROR(IF($AP$21=0, BF26/BF$29*100, 100*(BF26*12/$BI26)/BF$29),IFERROR(IF($AP$21=0, BF26/BF$30*100, 100*(BF26*12/$BI26)/#REF!),IFERROR(IF($AP$21=0, BF26/BF$31*100, 100*(BF26*12/$BI26)/BF$31),IFERROR(IF($AP$21=0, BF26/BF$31*100, 100*(BF26*12/$BI26)/BF$31),IFERROR(IF($AP$21=0, BF26/BF$32*100, 100*(BF26*12/$BI26)/BF$32),IFERROR(IF($AP$21=0, BF26/BF$33*100, 100*(BF26*12/$BI26)/BF$33),IF($AP$21=0, BF26/BF$34*100, 100*(BF26*12/$BI26)/BF$34))))))))))) -> 100.5160726 | BI26: 6 | BJ26: =VLOOKUP($AO26,Data!$A$1:$P$688,Charts!BJ$23,FALSE) -> 0.1577054917
C27: =AM36 -> 2021-12-01 | F27: 0.1701195759 | I27: 0.1552580965 | L27: 0.1770531763 | O27: 0.2132876528 | AL27: 201909 | AM27: =IF(AM26<$AL$24,+DATE(YEAR(AM26),MONTH(AM26)+3,DAY(AM26)),"") -> 2019-09-01 | AN27: 201909 | AO27: Tier 1 capital ratio201909 | AP27: =VLOOKUP($AO27,Data!$A$1:$P$688,Charts!AP$23,FALSE) -> 0.1301158391 | AQ27: =VLOOKUP($AO27,Data!$A$1:$P$688,Charts!AQ$23,FALSE) -> 0.147537046 | AR27: =VLOOKUP($AO27,Data!$A$1:$P$688,Charts!AR$23,FALSE) -> 0.1638160644 | AS27: =VLOOKUP($AO27,Data!$A$1:$P$688,Charts!AS$23,FALSE) -> 0.2011495804 | AT27: =VLOOKUP($AO27,Data!$A$1:$P$688,Charts!AT$23,FALSE) -> 0.1613677389 | AU27: =VLOOKUP($AO27,Data!$A$1:$P$688,Charts!AU$23,FALSE) -> 0.1945912543 | AV27: =VLOOKUP($AO27,Data!$A$1:$P$688,Charts!AV$23,FALSE) -> 0.4122195248 | AW27: =VLOOKUP($AO27,Data!$A$1:$P$688,Charts!AW$23,FALSE) -> 0.1790053384 | AX27: =VLOOKUP($AO27,Data!$A$1:$P$688,Charts!AX$23,FALSE) -> 0.1694406973 | AY27: 0.147537046 | AZ27: 0 | BA27: 0.0162790184 | BB27: 0.03077518984 | BC27: 0.01742120696 | BD27: 0.2176282706 | BE27: =VLOOKUP($AO27,Data!$A$1:$P$688,BD$23,FALSE) -> 1.29494156e+12 | BF27: =VLOOKUP($AO27,Data!$A$1:$P$688,BE$23,FALSE) -> 8.320476891e+12 | BG27: =IFERROR(IF($AP$21=0,BE27/BE$25*100,(100*(BE27*12/$BI27)/BE$25)),IFERROR(IF($AP$21=0, BE27/BE$26*100, 100*(BE27*12/$BI27)/BE$26), IFERROR(IF($AP$21=0, BE27/BE$27*100, 100*(BE27*12/$BI27)/BE$27),IFERROR(IF($AP$21=0, BE27/BE$28*100, 100*(BE27*12/$BI27)/BE$28), IFERROR(IF($AP$21=0, BE27/BE$29*100, 100*(BE27*12/$BI27)/BE$29),IFERROR(IF($AP$21=0, BE27/BE$30*100, 100*(BE27*12/$BI27)/#REF!),IFERROR(IF($AP$21=0, BE27/BE$31*100, 100*(BE27*12/$BI27)/BE$31),IFERROR(IF($AP$21=0, BE27/BE$31*100, 100*(BE27*12/$BI27)/BE$31),IFERROR(IF($AP$21=0, BE27/BE$32*100, 100*(BE27*12/$BI27)/BE$32),IFERROR(IF($AP$21=0, BE27/BE$33*100, 100*(BE27*12/$BI27)/BE$33),IF($AP$21=0, BE27/BE$34*100, 100*(BE27*12/$BI27)/BE$34))))))))))) -> 102.2334588 | BH27: =IFERROR(IF($AP$21=0,BF27/BF$25*100,(100*(BF27*12/$BI27)/BF$25)),IFERROR(IF($AP$21=0, BF27/BF$26*100, 100*(BF27*12/$BI27)/BF$26), IFERROR(IF($AP$21=0, BF27/BF$27*100, 100*(BF27*12/$BI27)/BF$27),IFERROR(IF($AP$21=0, BF27/BF$28*100, 100*(BF27*12/$BI27)/BF$28), IFERROR(IF($AP$21=0, BF27/BF$29*100, 100*(BF27*12/$BI27)/BF$29),IFERROR(IF($AP$21=0, BF27/BF$30*100, 100*(BF27*12/$BI27)/#REF!),IFERROR(IF($AP$21=0, BF27/BF$31*100, 100*(BF27*12/$BI27)/BF$31),IFERROR(IF($AP$21=0, BF27/BF$31*100, 100*(BF27*12/$BI27)/BF$31),IFERROR(IF($AP$21=0, BF27/BF$32*100, 100*(BF27*12/$BI27)/BF$32),IFERROR(IF($AP$21=0, BF27/BF$33*100, 100*(BF27*12/$BI27)/BF$33),IF($AP$21=0, BF27/BF$34*100, 100*(BF27*12/$BI27)/BF$34))))))))))) -> 101.5993569 | BI27: 9 | BJ27: =VLOOKUP($AO27,Data!$A$1:$P$688,Charts!BJ$23,FALSE) -> 0.1576366462
B28: =IF($AK$21="PFT_43","Data for Cost of Risk are shown here as a positive value, even though they are commonly expenses.","") ->  | AL28: 201912 | AM28: 2019-12-01 | AN28: 201912 | AO28: Tier 1 capital ratio201912 | AP28: =VLOOKUP($AO28,Data!$A$1:$P$688,Charts!AP$23,FALSE) -> 0.132043229 | AQ28: =VLOOKUP($AO28,Data!$A$1:$P$688,Charts!AQ$23,FALSE) -> 0.152002714 | AR28: =VLOOKUP($AO28,Data!$A$1:$P$688,Charts!AR$23,FALSE) -> 0.1717275433 | AS28: =VLOOKUP($AO28,Data!$A$1:$P$688,Charts!AS$23,FALSE) -> 0.2063098402 | AT28: =VLOOKUP($AO28,Data!$A$1:$P$688,Charts!AT$23,FALSE) -> 0.1678534559 | AU28: =VLOOKUP($AO28,Data!$A$1:$P$688,Charts!AU$23,FALSE) -> 0.2041354545 | AV28: =VLOOKUP($AO28,Data!$A$1:$P$688,Charts!AV$23,FALSE) -> 0.388349476 | AW28: =VLOOKUP($AO28,Data!$A$1:$P$688,Charts!AW$23,FALSE) -> 0.1938528918 | AX28: =VLOOKUP($AO28,Data!$A$1:$P$688,Charts!AX$23,FALSE) -> 0.1749168562 | AY28: 0.152002714 | AZ28: 0 | BA28: 0.01972482922 | BB28: 0.0324079112 | BC28: 0.01995948503 | BD28: 0.1842140215 | BE28: =VLOOKUP($AO28,Data!$A$1:$P$688,BD$23,FALSE) -> 1.329921968e+12 | BF28: =VLOOKUP($AO28,Data!$A$1:$P$688,BE$23,FALSE) -> 8.247194813e+12 | BG28: =IFERROR(IF($AP$21=0,BE28/BE$25*100,(100*(BE28*12/$BI28)/BE$25)),IFERROR(IF($AP$21=0, BE28/BE$26*100, 100*(BE28*12/$BI28)/BE$26), IFERROR(IF($AP$21=0, BE28/BE$27*100, 100*(BE28*12/$BI28)/BE$27),IFERROR(IF($AP$21=0, BE28/BE$28*100, 100*(BE28*12/$BI28)/BE$28), IFERROR(IF($AP$21=0, BE28/BE$29*100, 100*(BE28*12/$BI28)/BE$29),IFERROR(IF($AP$21=0, BE28/BE$30*100, 100*(BE28*12/$BI28)/#REF!),IFERROR(IF($AP$21=0, BE28/BE$31*100, 100*(BE28*12/$BI28)/BE$31),IFERROR(IF($AP$21=0, BE28/BE$31*100, 100*(BE28*12/$BI28)/BE$31),IFERROR(IF($AP$21=0, BE28/BE$32*100, 100*(BE28*12/$BI28)/BE$32),IFERROR(IF($AP$21=0, BE28/BE$33*100, 100*(BE28*12/$BI28)/BE$33),IF($AP$21=0, BE28/BE$34*100, 100*(BE28*12/$BI28)/BE$34))))))))))) -> 104.9951031 | BH28: =IFERROR(IF($AP$21=0,BF28/BF$25*100,(100*(BF28*12/$BI28)/BF$25)),IFERROR(IF($AP$21=0, BF28/BF$26*100, 100*(BF28*12/$BI28)/BF$26), IFERROR(IF($AP$21=0, BF28/BF$27*100, 100*(BF28*12/$BI28)/BF$27),IFERROR(IF($AP$21=0, BF28/BF$28*100, 100*(BF28*12/$BI28)/BF$28), IFERROR(IF($AP$21=0, BF28/BF$29*100, 100*(BF28*12/$BI28)/BF$29),IFERROR(IF($AP$21=0, BF28/BF$30*100, 100*(BF28*12/$BI28)/#REF!),IFERROR(IF($AP$21=0, BF28/BF$31*100, 100*(BF28*12/$BI28)/BF$31),IFERROR(IF($AP$21=0, BF28/BF$31*100, 100*(BF28*12/$BI28)/BF$31),IFERROR(IF($AP$21=0, BF28/BF$32*100, 100*(BF28*12/$BI28)/BF$32),IFERROR(IF($AP$21=0, BF28/BF$33*100, 100*(BF28*12/$BI28)/BF$33),IF($AP$21=0, BF28/BF$34*100, 100*(BF28*12/$BI28)/BF$34))))))))))) -> 100.704527 | BI28: 12 | BJ28: =VLOOKUP($AO28,Data!$A$1:$P$688,Charts!BJ$23,FALSE) -> 0.1634109893
AL29: 202003 | AM29: 2020-03-01 | AN29: 202003 | AO29: Tier 1 capital ratio202003 | AP29: =VLOOKUP($AO29,Data!$A$1:$P$688,Charts!AP$23,FALSE) -> 0.1310134759 | AQ29: =VLOOKUP($AO29,Data!$A$1:$P$688,Charts!AQ$23,FALSE) -> 0.1427134004 | AR29: =VLOOKUP($AO29,Data!$A$1:$P$688,Charts!AR$23,FALSE) -> 0.162881694 | AS29: =VLOOKUP($AO29,Data!$A$1:$P$688,Charts!AS$23,FALSE) -> 0.1985415454 | AT29: =VLOOKUP($AO29,Data!$A$1:$P$688,Charts!AT$23,FALSE) -> 0.1581940407 | AU29: =VLOOKUP($AO29,Data!$A$1:$P$688,Charts!AU$23,FALSE) -> 0.1989703886 | AV29: =VLOOKUP($AO29,Data!$A$1:$P$688,Charts!AV$23,FALSE) -> 0.3691135761 | AW29: =VLOOKUP($AO29,Data!$A$1:$P$688,Charts!AW$23,FALSE) -> 0.2011248002 | AX29: =VLOOKUP($AO29,Data!$A$1:$P$688,Charts!AX$23,FALSE) -> 0.1684993154 | AY29: =IF(AQ29<0,0,AQ29) -> 0.1427134004 | AZ29: =IF(AQ29<0,AQ29,0) -> 0 | BA29: =AR29-AY29 -> 0.02016829364 | BB29: =AU29-AR29 -> 0.03608869459 | BC29: =AQ29-AP29 -> 0.01169992444 | BD29: =AV29-AU29 -> 0.1701431875 | BE29: =VLOOKUP($AO29,Data!$A$1:$P$688,BD$23,FALSE) -> 1.313026307e+12 | BF29: =VLOOKUP($AO29,Data!$A$1:$P$688,BE$23,FALSE) -> 8.407796919e+12 | BG29: =IFERROR(IF($AP$21=0,BE29/BE$25*100,(100*(BE29*12/$BI29)/BE$25)),IFERROR(IF($AP$21=0, BE29/BE$26*100, 100*(BE29*12/$BI29)/BE$26), IFERROR(IF($AP$21=0, BE29/BE$27*100, 100*(BE29*12/$BI29)/BE$27),IFERROR(IF($AP$21=0, BE29/BE$28*100, 100*(BE29*12/$BI29)/BE$28), IFERROR(IF($AP$21=0, BE29/BE$29*100, 100*(BE29*12/$BI29)/BE$29),IFERROR(IF($AP$21=0, BE29/BE$30*100, 100*(BE29*12/$BI29)/#REF!),IFERROR(IF($AP$21=0, BE29/BE$31*100, 100*(BE29*12/$BI29)/BE$31),IFERROR(IF($AP$21=0, BE29/BE$31*100, 100*(BE29*12/$BI29)/BE$31),IFERROR(IF($AP$21=0, BE29/BE$32*100, 100*(BE29*12/$BI29)/BE$32),IFERROR(IF($AP$21=0, BE29/BE$33*100, 100*(BE29*12/$BI29)/BE$33),IF($AP$21=0, BE29/BE$34*100, 100*(BE29*12/$BI29)/BE$34))))))))))) -> 103.6612191 | BH29: =IFERROR(IF($AP$21=0,BF29/BF$25*100,(100*(BF29*12/$BI29)/BF$25)),IFERROR(IF($AP$21=0, BF29/BF$26*100, 100*(BF29*12/$BI29)/BF$26), IFERROR(IF($AP$21=0, BF29/BF$27*100, 100*(BF29*12/$BI29)/BF$27),IFERROR(IF($AP$21=0, BF29/BF$28*100, 100*(BF29*12/$BI29)/BF$28), IFERROR(IF($AP$21=0, BF29/BF$29*100, 100*(BF29*12/$BI29)/BF$29),IFERROR(IF($AP$21=0, BF29/BF$30*100, 100*(BF29*12/$BI29)/#REF!),IFERROR(IF($AP$21=0, BF29/BF$31*100, 100*(BF29*12/$BI29)/BF$31),IFERROR(IF($AP$21=0, BF29/BF$31*100, 100*(BF29*12/$BI29)/BF$31),IFERROR(IF($AP$21=0, BF29/BF$32*100, 100*(BF29*12/$BI29)/BF$32),IFERROR(IF($AP$21=0, BF29/BF$33*100, 100*(BF29*12/$BI29)/BF$33),IF($AP$21=0, BF29/BF$34*100, 100*(BF29*12/$BI29)/BF$34))))))))))) -> 102.6656009 | BI29: 3 | BJ29: =VLOOKUP($AO29,Data!$A$1:$P$688,Charts!BJ$23,FALSE) -> 0.1540963595
AL30: 202006 | AM30: 2020-06-01 | AN30: 202006 | AO30: Tier 1 capital ratio202006 | AP30: =VLOOKUP($AO30,Data!$A$1:$P$688,Charts!AP$23,FALSE) -> 0.1330936645 | AQ30: =VLOOKUP($AO30,Data!$A$1:$P$688,Charts!AQ$23,FALSE) -> 0.1479937941 | AR30: =VLOOKUP($AO30,Data!$A$1:$P$688,Charts!AR$23,FALSE) -> 0.1696146986 | AS30: =VLOOKUP($AO30,Data!$A$1:$P$688,Charts!AS$23,FALSE) -> 0.2065639391 | AT30: =VLOOKUP($AO30,Data!$A$1:$P$688,Charts!AT$23,FALSE) -> 0.1630563226 | AU30: =VLOOKUP($AO30,Data!$A$1:$P$688,Charts!AU$23,FALSE) -> 0.2011049692 | AV30: =VLOOKUP($AO30,Data!$A$1:$P$688,Charts!AV$23,FALSE) -> 0.3597325392 | AW30: =VLOOKUP($AO30,Data!$A$1:$P$688,Charts!AW$23,FALSE) -> 0.2077145219 | AX30: =VLOOKUP($AO30,Data!$A$1:$P$688,Charts!AX$23,FALSE) -> 0.1730901202 | AY30: 0.1479937941 | AZ30: 0 | BA30: 0.02162090451 | BB30: 0.0314902706 | BC30: 0.01490012965 | BD30: 0.1586275699 | BE30: =VLOOKUP($AO30,Data!$A$1:$P$688,BD$23,FALSE) -> 1.344669785e+12 | BF30: =VLOOKUP($AO30,Data!$A$1:$P$688,BE$23,FALSE) -> 8.356277344e+12 | BG30: =IFERROR(IF($AP$21=0,BE30/BE$25*100,(100*(BE30*12/$BI30)/BE$25)),IFERROR(IF($AP$21=0, BE30/BE$26*100, 100*(BE30*12/$BI30)/BE$26), IFERROR(IF($AP$21=0, BE30/BE$27*100, 100*(BE30*12/$BI30)/BE$27),IFERROR(IF($AP$21=0, BE30/BE$28*100, 100*(BE30*12/$BI30)/BE$28), IFERROR(IF($AP$21=0, BE30/BE$29*100, 100*(BE30*12/$BI30)/BE$29),IFERROR(IF($AP$21=0, BE30/BE$30*100, 100*(BE30*12/$BI30)/#REF!),IFERROR(IF($AP$21=0, BE30/BE$31*100, 100*(BE30*12/$BI30)/BE$31),IFERROR(IF($AP$21=0, BE30/BE$31*100, 100*(BE30*12/$BI30)/BE$31),IFERROR(IF($AP$21=0, BE30/BE$32*100, 100*(BE30*12/$BI30)/BE$32),IFERROR(IF($AP$21=0, BE30/BE$33*100, 100*(BE30*12/$BI30)/BE$33),IF($AP$21=0, BE30/BE$34*100, 100*(BE30*12/$BI30)/BE$34))))))))))) -> 106.1594185 | BH30: =IFERROR(IF($AP$21=0,BF30/BF$25*100,(100*(BF30*12/$BI30)/BF$25)),IFERROR(IF($AP$21=0, BF30/BF$26*100, 100*(BF30*12/$BI30)/BF$26), IFERROR(IF($AP$21=0, BF30/BF$27*100, 100*(BF30*12/$BI30)/BF$27),IFERROR(IF($AP$21=0, BF30/BF$28*100, 100*(BF30*12/$BI30)/BF$28), IFERROR(IF($AP$21=0, BF30/BF$29*100, 100*(BF30*12/$BI30)/BF$29),IFERROR(IF($AP$21=0, BF30/BF$30*100, 100*(BF30*12/$BI30)/#REF!),IFERROR(IF($AP$21=0, BF30/BF$31*100, 100*(BF30*12/$BI30)/BF$31),IFERROR(IF($AP$21=0, BF30/BF$31*100, 100*(BF30*12/$BI30)/BF$31),IFERROR(IF($AP$21=0, BF30/BF$32*100, 100*(BF30*12/$BI30)/BF$32),IFERROR(IF($AP$21=0, BF30/BF$33*100, 100*(BF30*12/$BI30)/BF$33),IF($AP$21=0, BF30/BF$34*100, 100*(BF30*12/$BI30)/BF$34))))))))))) -> 102.0365077 | BI30: 6 | BJ30: =VLOOKUP($AO30,Data!$A$1:$P$688,Charts!BJ$23,FALSE) -> 0.1589869672
AL31: 202009 | AM31: 2020-09-01 | AN31: 202009 | AO31: =CONCATENATE($AO$21,AN31) -> Tier 1 capital ratio202009 | AP31: =VLOOKUP($AO31,Data!$A$1:$P$688,Charts!AP$23,FALSE) -> 0.1338801773 | AQ31: =VLOOKUP($AO31,Data!$A$1:$P$688,Charts!AQ$23,FALSE) -> 0.1529035899 | AR31: =VLOOKUP($AO31,Data!$A$1:$P$688,Charts!AR$23,FALSE) -> 0.172888396 | AS31: =VLOOKUP($AO31,Data!$A$1:$P$688,Charts!AS$23,FALSE) -> 0.2147456218 | AT31: =VLOOKUP($AO31,Data!$A$1:$P$688,Charts!AT$23,FALSE) -> 0.1671962406 | AU31: =VLOOKUP($AO31,Data!$A$1:$P$688,Charts!AU$23,FALSE) -> 0.2052266468 | AV31: =VLOOKUP($AO31,Data!$A$1:$P$688,Charts!AV$23,FALSE) -> 0.4015620238 | AW31: =VLOOKUP($AO31,Data!$A$1:$P$688,Charts!AW$23,FALSE) -> 0.2221660828 | AX31: =VLOOKUP($AO31,Data!$A$1:$P$688,Charts!AX$23,FALSE) -> 0.1773664726 | AY31: =IF(AQ31<0,0,AQ31) -> 0.1529035899 | AZ31: =IF(AQ31<0,AQ31,0) -> 0 | BA31: =AR31-AY31 -> 0.01998480614 | BB31: =AU31-AR31 -> 0.0323382508 | BC31: =AQ31-AP31 -> 0.01902341254 | BD31: =AV31-AU31 -> 0.196335377 | BE31: =VLOOKUP($AO31,Data!$A$1:$P$688,BD$23,FALSE) -> 1.355042937e+12 | BF31: =VLOOKUP($AO31,Data!$A$1:$P$688,BE$23,FALSE) -> 8.238455662e+12 | BG31: =IFERROR(IF($AP$21=0,BE31/BE$25*100,(100*(BE31*12/$BI31)/BE$25)),IFERROR(IF($AP$21=0, BE31/BE$26*100, 100*(BE31*12/$BI31)/BE$26), IFERROR(IF($AP$21=0, BE31/BE$27*100, 100*(BE31*12/$BI31)/BE$27),IFERROR(IF($AP$21=0, BE31/BE$28*100, 100*(BE31*12/$BI31)/BE$28), IFERROR(IF($AP$21=0, BE31/BE$29*100, 100*(BE31*12/$BI31)/BE$29),IFERROR(IF($AP$21=0, BE31/BE$30*100, 100*(BE31*12/$BI31)/#REF!),IFERROR(IF($AP$21=0, BE31/BE$31*100, 100*(BE31*12/$BI31)/BE$31),IFERROR(IF($AP$21=0, BE31/BE$31*100, 100*(BE31*12/$BI31)/BE$31),IFERROR(IF($AP$21=0, BE31/BE$32*100, 100*(BE31*12/$BI31)/BE$32),IFERROR(IF($AP$21=0, BE31/BE$33*100, 100*(BE31*12/$BI31)/BE$33),IF($AP$21=0, BE31/BE$34*100, 100*(BE31*12/$BI31)/BE$34))))))))))) -> 106.9783615 | BH31: =IFERROR(IF($AP$21=0,BF31/BF$25*100,(100*(BF31*12/$BI31)/BF$25)),IFERROR(IF($AP$21=0, BF31/BF$26*100, 100*(BF31*12/$BI31)/BF$26), IFERROR(IF($AP$21=0, BF31/BF$27*100, 100*(BF31*12/$BI31)/BF$27),IFERROR(IF($AP$21=0, BF31/BF$28*100, 100*(BF31*12/$BI31)/BF$28), IFERROR(IF($AP$21=0, BF31/BF$29*100, 100*(BF31*12/$BI31)/BF$29),IFERROR(IF($AP$21=0, BF31/BF$30*100, 100*(BF31*12/$BI31)/#REF!),IFERROR(IF($AP$21=0, BF31/BF$31*100, 100*(BF31*12/$BI31)/BF$31),IFERROR(IF($AP$21=0, BF31/BF$31*100, 100*(BF31*12/$BI31)/BF$31),IFERROR(IF($AP$21=0, BF31/BF$32*100, 100*(BF31*12/$BI31)/BF$32),IFERROR(IF($AP$21=0, BF31/BF$33*100, 100*(BF31*12/$BI31)/BF$33),IF($AP$21=0, BF31/BF$34*100, 100*(BF31*12/$BI31)/BF$34))))))))))) -> 100.5978153 | BI31: =MONTH(AM31) -> 9 | BJ31: =VLOOKUP($AO31,Data!$A$1:$P$688,Charts!BJ$23,FALSE) -> 0.1627480842
AL32: 202012 | AM32: =IF(AM31<$AL$24,+DATE(YEAR(AM31),MONTH(AM31)+3,DAY(AM31)),"") -> 2020-12-01 | AN32: 202012 | AO32: Tier 1 capital ratio202012 | AP32: =VLOOKUP($AO32,Data!$A$1:$P$688,Charts!AP$23,FALSE) -> 0.1378822295 | AQ32: =VLOOKUP($AO32,Data!$A$1:$P$688,Charts!AQ$23,FALSE) -> 0.1583604907 | AR32: =VLOOKUP($AO32,Data!$A$1:$P$688,Charts!AR$23,FALSE) -> 0.1803584264 | AS32: =VLOOKUP($AO32,Data!$A$1:$P$688,Charts!AS$23,FALSE) -> 0.2340988525 | AT32: =VLOOKUP($AO32,Data!$A$1:$P$688,Charts!AT$23,FALSE) -> 0.1719736519 | AU32: =VLOOKUP($AO32,Data!$A$1:$P$688,Charts!AU$23,FALSE) -> 0.212919732 | AV32: =VLOOKUP($AO32,Data!$A$1:$P$688,Charts!AV$23,FALSE) -> 0.3869305403 | AW32: =VLOOKUP($AO32,Data!$A$1:$P$688,Charts!AW$23,FALSE) -> 0.2205130943 | AX32: =VLOOKUP($AO32,Data!$A$1:$P$688,Charts!AX$23,FALSE) -> 0.182970957 | AY32: 0.1583604907 | AZ32: 0 | BA32: 0.02199793567 | BB32: 0.03256130555 | BC32: 0.0204782612 | BD32: 0.1740108083 | BE32: =VLOOKUP($AO32,Data!$A$1:$P$688,BD$23,FALSE) -> 1.404788983e+12 | BF32: =VLOOKUP($AO32,Data!$A$1:$P$688,BE$23,FALSE) -> 8.301940551e+12 | BG32: =IFERROR(IF($AP$21=0,BE32/BE$25*100,(100*(BE32*12/$BI32)/BE$25)),IFERROR(IF($AP$21=0, BE32/BE$26*100, 100*(BE32*12/$BI32)/BE$26), IFERROR(IF($AP$21=0, BE32/BE$27*100, 100*(BE32*12/$BI32)/BE$27),IFERROR(IF($AP$21=0, BE32/BE$28*100, 100*(BE32*12/$BI32)/BE$28), IFERROR(IF($AP$21=0, BE32/BE$29*100, 100*(BE32*12/$BI32)/BE$29),IFERROR(IF($AP$21=0, BE32/BE$30*100, 100*(BE32*12/$BI32)/#REF!),IFERROR(IF($AP$21=0, BE32/BE$31*100, 100*(BE32*12/$BI32)/BE$31),IFERROR(IF($AP$21=0, BE32/BE$31*100, 100*(BE32*12/$BI32)/BE$31),IFERROR(IF($AP$21=0, BE32/BE$32*100, 100*(BE32*12/$BI32)/BE$32),IFERROR(IF($AP$21=0, BE32/BE$33*100, 100*(BE32*12/$BI32)/BE$33),IF($AP$21=0, BE32/BE$34*100, 100*(BE32*12/$BI32)/BE$34))))))))))) -> 110.9057282 | BH32: =IFERROR(IF($AP$21=0,BF32/BF$25*100,(100*(BF32*12/$BI32)/BF$25)),IFERROR(IF($AP$21=0, BF32/BF$26*100, 100*(BF32*12/$BI32)/BF$26), IFERROR(IF($AP$21=0, BF32/BF$27*100, 100*(BF32*12/$BI32)/BF$27),IFERROR(IF($AP$21=0, BF32/BF$28*100, 100*(BF32*12/$BI32)/BF$28), IFERROR(IF($AP$21=0, BF32/BF$29*100, 100*(BF32*12/$BI32)/BF$29),IFERROR(IF($AP$21=0, BF32/BF$30*100, 100*(BF32*12/$BI32)/#REF!),IFERROR(IF($AP$21=0, BF32/BF$31*100, 100*(BF32*12/$BI32)/BF$31),IFERROR(IF($AP$21=0, BF32/BF$31*100, 100*(BF32*12/$BI32)/BF$31),IFERROR(IF($AP$21=0, BF32/BF$32*100, 100*(BF32*12/$BI32)/BF$32),IFERROR(IF($AP$21=0, BF32/BF$33*100, 100*(BF32*12/$BI32)/BF$33),IF($AP$21=0, BF32/BF$34*100, 100*(BF32*12/$BI32)/BF$34))))))))))) -> 101.3730141 | BI32: 12 | BJ32: =VLOOKUP($AO32,Data!$A$1:$P$688,Charts!BJ$23,FALSE) -> 0.167425761
AL33: 202103 | AM33: =IF(AM32<$AL$24,+DATE(YEAR(AM32),MONTH(AM32)+3,DAY(AM32)),"") -> 2021-03-01 | AN33: 202103 | AO33: Tier 1 capital ratio202103 | AP33: =VLOOKUP($AO33,Data!$A$1:$P$688,Charts!AP$23,FALSE) -> 0.1374039246 | AQ33: =VLOOKUP($AO33,Data!$A$1:$P$688,Charts!AQ$23,FALSE) -> 0.1574664782 | AR33: =VLOOKUP($AO33,Data!$A$1:$P$688,Charts!AR$23,FALSE) -> 0.180153556 | AS33: =VLOOKUP($AO33,Data!$A$1:$P$688,Charts!AS$23,FALSE) -> 0.230005102 | AT33: =VLOOKUP($AO33,Data!$A$1:$P$688,Charts!AT$23,FALSE) -> 0.1704994544 | AU33: =VLOOKUP($AO33,Data!$A$1:$P$688,Charts!AU$23,FALSE) -> 0.2109595522 | AV33: =VLOOKUP($AO33,Data!$A$1:$P$688,Charts!AV$23,FALSE) -> 0.3839600054 | AW33: =VLOOKUP($AO33,Data!$A$1:$P$688,Charts!AW$23,FALSE) -> 0.208626849 | AX33: =VLOOKUP($AO33,Data!$A$1:$P$688,Charts!AX$23,FALSE) -> 0.1809098639 | AY33: 0.1574664782 | AZ33: 0 | BA33: 0.02268707781 | BB33: 0.03080599612 | BC33: 0.02006255361 | BD33: 0.1730004533 | BE33: =VLOOKUP($AO33,Data!$A$1:$P$688,BD$23,FALSE) -> 1.412480163e+12 | BF33: =VLOOKUP($AO33,Data!$A$1:$P$688,BE$23,FALSE) -> 8.422521084e+12 | BG33: =IFERROR(IF($AP$21=0,BE33/BE$25*100,(100*(BE33*12/$BI33)/BE$25)),IFERROR(IF($AP$21=0, BE33/BE$26*100, 100*(BE33*12/$BI33)/BE$26), IFERROR(IF($AP$21=0, BE33/BE$27*100, 100*(BE33*12/$BI33)/BE$27),IFERROR(IF($AP$21=0, BE33/BE$28*100, 100*(BE33*12/$BI33)/BE$28), IFERROR(IF($AP$21=0, BE33/BE$29*100, 100*(BE33*12/$BI33)/BE$29),IFERROR(IF($AP$21=0, BE33/BE$30*100, 100*(BE33*12/$BI33)/#REF!),IFERROR(IF($AP$21=0, BE33/BE$31*100, 100*(BE33*12/$BI33)/BE$31),IFERROR(IF($AP$21=0, BE33/BE$31*100, 100*(BE33*12/$BI33)/BE$31),IFERROR(IF($AP$21=0, BE33/BE$32*100, 100*(BE33*12/$BI33)/BE$32),IFERROR(IF($AP$21=0, BE33/BE$33*100, 100*(BE33*12/$BI33)/BE$33),IF($AP$21=0, BE33/BE$34*100, 100*(BE33*12/$BI33)/BE$34))))))))))) -> 111.5129338 | BH33: =IFERROR(IF($AP$21=0,BF33/BF$25*100,(100*(BF33*12/$BI33)/BF$25)),IFERROR(IF($AP$21=0, BF33/BF$26*100, 100*(BF33*12/$BI33)/BF$26), IFERROR(IF($AP$21=0, BF33/BF$27*100, 100*(BF33*12/$BI33)/BF$27),IFERROR(IF($AP$21=0, BF33/BF$28*100, 100*(BF33*12/$BI33)/BF$28), IFERROR(IF($AP$21=0, BF33/BF$29*100, 100*(BF33*12/$BI33)/BF$29),IFERROR(IF($AP$21=0, BF33/BF$30*100, 100*(BF33*12/$BI33)/#REF!),IFERROR(IF($AP$21=0, BF33/BF$31*100, 100*(BF33*12/$BI33)/BF$31),IFERROR(IF($AP$21=0, BF33/BF$31*100, 100*(BF33*12/$BI33)/BF$31),IFERROR(IF($AP$21=0, BF33/BF$32*100, 100*(BF33*12/$BI33)/BF$32),IFERROR(IF($AP$21=0, BF33/BF$33*100, 100*(BF33*12/$BI33)/BF$33),IF($AP$21=0, BF33/BF$34*100, 100*(BF33*12/$BI33)/BF$34))))))))))) -> 102.8453942 | BI33: 3 | BJ33: =VLOOKUP($AO33,Data!$A$1:$P$688,Charts!BJ$23,FALSE) -> 0.1663661722
AL34: 202106 | AM34: 2021-06-01 | AN34: 202106 | AO34: Tier 1 capital ratio202106 | AP34: =VLOOKUP($AO34,Data!$A$1:$P$688,Charts!AP$23,FALSE) -> 0.1321016093 | AQ34: =VLOOKUP($AO34,Data!$A$1:$P$688,Charts!AQ$23,FALSE) -> 0.1559383138 | AR34: =VLOOKUP($AO34,Data!$A$1:$P$688,Charts!AR$23,FALSE) -> 0.1760116964 | AS34: =VLOOKUP($AO34,Data!$A$1:$P$688,Charts!AS$23,FALSE) -> 0.2268622813 | AT34: =VLOOKUP($AO34,Data!$A$1:$P$688,Charts!AT$23,FALSE) -> 0.1708406054 | AU34: =VLOOKUP($AO34,Data!$A$1:$P$688,Charts!AU$23,FALSE) -> 0.2125969098 | AV34: =VLOOKUP($AO34,Data!$A$1:$P$688,Charts!AV$23,FALSE) -> 0.3374986853 | AW34: =VLOOKUP($AO34,Data!$A$1:$P$688,Charts!AW$23,FALSE) -> 0.2136942702 | AX34: =VLOOKUP($AO34,Data!$A$1:$P$688,Charts!AX$23,FALSE) -> 0.181144904 | AY34: 0.1559383138 | AZ34: 0 | BA34: 0.02007338259 | BB34: 0.03658521341 | BC34: 0.02383670454 | BD34: 0.1249017754 | BE34: =VLOOKUP($AO34,Data!$A$1:$P$688,BD$23,FALSE) -> 1.426150617e+12 | BF34: =VLOOKUP($AO34,Data!$A$1:$P$688,BE$23,FALSE) -> 8.45884144e+12 | BG34: =IFERROR(IF($AP$21=0,BE34/BE$25*100,(100*(BE34*12/$BI34)/BE$25)),IFERROR(IF($AP$21=0, BE34/BE$26*100, 100*(BE34*12/$BI34)/BE$26), IFERROR(IF($AP$21=0, BE34/BE$27*100, 100*(BE34*12/$BI34)/BE$27),IFERROR(IF($AP$21=0, BE34/BE$28*100, 100*(BE34*12/$BI34)/BE$28), IFERROR(IF($AP$21=0, BE34/BE$29*100, 100*(BE34*12/$BI34)/BE$29),IFERROR(IF($AP$21=0, BE34/BE$30*100, 100*(BE34*12/$BI34)/#REF!),IFERROR(IF($AP$21=0, BE34/BE$31*100, 100*(BE34*12/$BI34)/BE$31),IFERROR(IF($AP$21=0, BE34/BE$31*100, 100*(BE34*12/$BI34)/BE$31),IFERROR(IF($AP$21=0, BE34/BE$32*100, 100*(BE34*12/$BI34)/BE$32),IFERROR(IF($AP$21=0, BE34/BE$33*100, 100*(BE34*12/$BI34)/BE$33),IF($AP$21=0, BE34/BE$34*100, 100*(BE34*12/$BI34)/BE$34))))))))))) -> 112.5921932 | BH34: =IFERROR(IF($AP$21=0,BF34/BF$25*100,(100*(BF34*12/$BI34)/BF$25)),IFERROR(IF($AP$21=0, BF34/BF$26*100, 100*(BF34*12/$BI34)/BF$26), IFERROR(IF($AP$21=0, BF34/BF$27*100, 100*(BF34*12/$BI34)/BF$27),IFERROR(IF($AP$21=0, BF34/BF$28*100, 100*(BF34*12/$BI34)/BF$28), IFERROR(IF($AP$21=0, BF34/BF$29*100, 100*(BF34*12/$BI34)/BF$29),IFERROR(IF($AP$21=0, BF34/BF$30*100, 100*(BF34*12/$BI34)/#REF!),IFERROR(IF($AP$21=0, BF34/BF$31*100, 100*(BF34*12/$BI34)/BF$31),IFERROR(IF($AP$21=0, BF34/BF$31*100, 100*(BF34*12/$BI34)/BF$31),IFERROR(IF($AP$21=0, BF34/BF$32*100, 100*(BF34*12/$BI34)/BF$32),IFERROR(IF($AP$21=0, BF34/BF$33*100, 100*(BF34*12/$BI34)/BF$33),IF($AP$21=0, BF34/BF$34*100, 100*(BF34*12/$BI34)/BF$34))))))))))) -> 103.2888934 | BI34: 6 | BJ34: =VLOOKUP($AO34,Data!$A$1:$P$688,Charts!BJ$23,FALSE) -> 0.1665353111
AL35: 202109 | AM35: 2021-09-01 | AN35: 202109 | AO35: Tier 1 capital ratio202109 | AP35: =VLOOKUP($AO35,Data!$A$1:$P$688,Charts!AP$23,FALSE) -> 0.1313591355 | AQ35: =VLOOKUP($AO35,Data!$A$1:$P$688,Charts!AQ$23,FALSE) -> 0.1555425443 | AR35: =VLOOKUP($AO35,Data!$A$1:$P$688,Charts!AR$23,FALSE) -> 0.1754100082 | AS35: =VLOOKUP($AO35,Data!$A$1:$P$688,Charts!AS$23,FALSE) -> 0.2242166557 | AT35: =VLOOKUP($AO35,Data!$A$1:$P$688,Charts!AT$23,FALSE) -> 0.1700138669 | AU35: =VLOOKUP($AO35,Data!$A$1:$P$688,Charts!AU$23,FALSE) -> 0.2129016755 | AV35: =VLOOKUP($AO35,Data!$A$1:$P$688,Charts!AV$23,FALSE) -> 0.3315302694 | AW35: =VLOOKUP($AO35,Data!$A$1:$P$688,Charts!AW$23,FALSE) -> 0.209400348 | AX35: =VLOOKUP($AO35,Data!$A$1:$P$688,Charts!AX$23,FALSE) -> 0.1788133521 | AY35: 0.1555425443 | AZ35: 0 | BA35: 0.01986746389 | BB35: 0.03749166729 | BC35: 0.02418340879 | BD35: 0.1186285939 | BE35: =VLOOKUP($AO35,Data!$A$1:$P$688,BD$23,FALSE) -> 1.423594501e+12 | BF35: =VLOOKUP($AO35,Data!$A$1:$P$688,BE$23,FALSE) -> 8.480876669e+12 | BG35: =IFERROR(IF($AP$21=0,BE35/BE$25*100,(100*(BE35*12/$BI35)/BE$25)),IFERROR(IF($AP$21=0, BE35/BE$26*100, 100*(BE35*12/$BI35)/BE$26), IFERROR(IF($AP$21=0, BE35/BE$27*100, 100*(BE35*12/$BI35)/BE$27),IFERROR(IF($AP$21=0, BE35/BE$28*100, 100*(BE35*12/$BI35)/BE$28), IFERROR(IF($AP$21=0, BE35/BE$29*100, 100*(BE35*12/$BI35)/BE$29),IFERROR(IF($AP$21=0, BE35/BE$30*100, 100*(BE35*12/$BI35)/#REF!),IFERROR(IF($AP$21=0, BE35/BE$31*100, 100*(BE35*12/$BI35)/BE$31),IFERROR(IF($AP$21=0, BE35/BE$31*100, 100*(BE35*12/$BI35)/BE$31),IFERROR(IF($AP$21=0, BE35/BE$32*100, 100*(BE35*12/$BI35)/BE$32),IFERROR(IF($AP$21=0, BE35/BE$33*100, 100*(BE35*12/$BI35)/BE$33),IF($AP$21=0, BE35/BE$34*100, 100*(BE35*12/$BI35)/BE$34))))))))))) -> 112.3903921 | BH35: =IFERROR(IF($AP$21=0,BF35/BF$25*100,(100*(BF35*12/$BI35)/BF$25)),IFERROR(IF($AP$21=0, BF35/BF$26*100, 100*(BF35*12/$BI35)/BF$26), IFERROR(IF($AP$21=0, BF35/BF$27*100, 100*(BF35*12/$BI35)/BF$27),IFERROR(IF($AP$21=0, BF35/BF$28*100, 100*(BF35*12/$BI35)/BF$28), IFERROR(IF($AP$21=0, BF35/BF$29*100, 100*(BF35*12/$BI35)/BF$29),IFERROR(IF($AP$21=0, BF35/BF$30*100, 100*(BF35*12/$BI35)/#REF!),IFERROR(IF($AP$21=0, BF35/BF$31*100, 100*(BF35*12/$BI35)/BF$31),IFERROR(IF($AP$21=0, BF35/BF$31*100, 100*(BF35*12/$BI35)/BF$31),IFERROR(IF($AP$21=0, BF35/BF$32*100, 100*(BF35*12/$BI35)/BF$32),IFERROR(IF($AP$21=0, BF35/BF$33*100, 100*(BF35*12/$BI35)/BF$33),IF($AP$21=0, BF35/BF$34*100, 100*(BF35*12/$BI35)/BF$34))))))))))) -> 103.5579603 | BI35: 9 | BJ35: =VLOOKUP($AO35,Data!$A$1:$P$688,Charts!BJ$23,FALSE) -> 0.1661591638
AL36: 202112 | AM36: =IF(AM35<$AL$24,+DATE(YEAR(AM35),MONTH(AM35)+3,DAY(AM35)),"") -> 2021-12-01 | AN36: =+IF(MONTH(AM36)=12,YEAR(AM36)&MONTH(AM36),YEAR(AM36)&0&MONTH(AM36)) -> 202112 | AO36: Tier 1 capital ratio202112 | AP36: =VLOOKUP($AO36,Data!$A$1:$P$688,Charts!AP$23,FALSE) -> 0.130419147 | AQ36: =VLOOKUP($AO36,Data!$A$1:$P$688,Charts!AQ$23,FALSE) -> 0.1552580965 | AR36: =VLOOKUP($AO36,Data!$A$1:$P$688,Charts!AR$23,FALSE) -> 0.1770531763 | AS36: =VLOOKUP($AO36,Data!$A$1:$P$688,Charts!AS$23,FALSE) -> 0.2306245452 | AT36: =VLOOKUP($AO36,Data!$A$1:$P$688,Charts!AT$23,FALSE) -> 0.1701195759 | AU36: =VLOOKUP($AO36,Data!$A$1:$P$688,Charts!AU$23,FALSE) -> 0.2132876528 | AV36: =VLOOKUP($AO36,Data!$A$1:$P$688,Charts!AV$23,FALSE) -> 0.3393697998 | AW36: =VLOOKUP($AO36,Data!$A$1:$P$688,Charts!AW$23,FALSE) -> 0.1967364913 | AX36: =VLOOKUP($AO36,Data!$A$1:$P$688,Charts!AX$23,FALSE) -> 0.1790479747 | AY36: 0.1552580965 | AZ36: 0 | BA36: 0.02179507983 | BB36: 0.03623447647 | BC36: 0.02483894947 | BD36: 0.126082147 | BE36: =VLOOKUP($AO36,Data!$A$1:$P$688,BD$23,FALSE) -> 1.432740042e+12 | BF36: =VLOOKUP($AO36,Data!$A$1:$P$688,BE$23,FALSE) -> 8.505397738e+12 | BG36: =IFERROR(IF($AP$21=0,BE36/BE$25*100,(100*(BE36*12/$BI36)/BE$25)),IFERROR(IF($AP$21=0, BE36/BE$26*100, 100*(BE36*12/$BI36)/BE$26), IFERROR(IF($AP$21=0, BE36/BE$27*100, 100*(BE36*12/$BI36)/BE$27),IFERROR(IF($AP$21=0, BE36/BE$28*100, 100*(BE36*12/$BI36)/BE$28), IFERROR(IF($AP$21=0, BE36/BE$29*100, 100*(BE36*12/$BI36)/BE$29),IFERROR(IF($AP$21=0, BE36/BE$30*100, 100*(BE36*12/$BI36)/#REF!),IFERROR(IF($AP$21=0, BE36/BE$31*100, 100*(BE36*12/$BI36)/BE$31),IFERROR(IF($AP$21=0, BE36/BE$31*100, 100*(BE36*12/$BI36)/BE$31),IFERROR(IF($AP$21=0, BE36/BE$32*100, 100*(BE36*12/$BI36)/BE$32),IFERROR(IF($AP$21=0, BE36/BE$33*100, 100*(BE36*12/$BI36)/BE$33),IF($AP$21=0, BE36/BE$34*100, 100*(BE36*12/$BI36)/BE$34))))))))))) -> 113.1124172 | BH36: =IFERROR(IF($AP$21=0,BF36/BF$25*100,(100*(BF36*12/$BI36)/BF$25)),IFERROR(IF($AP$21=0, BF36/BF$26*100, 100*(BF36*12/$BI36)/BF$26), IFERROR(IF($AP$21=0, BF36/BF$27*100, 100*(BF36*12/$BI36)/BF$27),IFERROR(IF($AP$21=0, BF36/BF$28*100, 100*(BF36*12/$BI36)/BF$28), IFERROR(IF($AP$21=0, BF36/BF$29*100, 100*(BF36*12/$BI36)/BF$29),IFERROR(IF($AP$21=0, BF36/BF$30*100, 100*(BF36*12/$BI36)/#REF!),IFERROR(IF($AP$21=0, BF36/BF$31*100, 100*(BF36*12/$BI36)/BF$31),IFERROR(IF($AP$21=0, BF36/BF$31*100, 100*(BF36*12/$BI36)/BF$31),IFERROR(IF($AP$21=0, BF36/BF$32*100, 100*(BF36*12/$BI36)/BF$32),IFERROR(IF($AP$21=0, BF36/BF$33*100, 100*(BF36*12/$BI36)/BF$33),IF($AP$21=0, BF36/BF$34*100, 100*(BF36*12/$BI36)/BF$34))))))))))) -> 103.8573812 | BI36: 12 | BJ36: =VLOOKUP($AO36,Data!$A$1:$P$688,Charts!BJ$23,FALSE) -> 0.1667673022
AN48: =VLOOKUP(AM21*1,List!$A$1:$I$100,9,FALSE) -> 9 | AO48: Indicator | AP48: Country | AQ48: Country name | AR48: Value | AS48: EU value
AO49: 2 | AQ49: 5 | AR49: 8
AN50: =MAX($AL$25:$AL$45) -> 202112 | AO50: =CONCATENATE(VLOOKUP($AN$21*1,Data!$W$1:$AB$688,AO$49,FALSE),AP50) -> Tier 1 Capital Ratio1 | AP50: 1 | AQ50: =VLOOKUP($AO50,Data!$U$1:$AC$688,AQ$49,FALSE)&IF(AR50="","*","") -> LV | AR50: =VLOOKUP($AO50,Data!$U$1:$AC$688,AR$49,FALSE) -> 0.3036213516 | AS50: =VLOOKUP($AO$79,Data!$U$1:$AC$688,$AR$49,FALSE) -> 0.1701195759
AN51: =MAX($AL$25:$AL$45) -> 202112 | AO51: =CONCATENATE(VLOOKUP($AN$21*1,Data!$W$1:$AB$688,AO$49,FALSE),AP51) -> Tier 1 Capital Ratio2 | AP51: 2 | AQ51: =VLOOKUP($AO51,Data!$U$1:$AC$688,AQ$49,FALSE)&IF(AR51="","*","") -> EE | AR51: =VLOOKUP($AO51,Data!$U$1:$AC$688,AR$49,FALSE) -> 0.2590623717 | AS51: =VLOOKUP($AO$79,Data!$U$1:$AC$688,$AR$49,FALSE) -> 0.1701195759
AN52: 202112 | AO52: =CONCATENATE(VLOOKUP($AN$21*1,Data!$W$1:$AB$688,AO$49,FALSE),AP52) -> Tier 1 Capital Ratio3 | AP52: 3 | AQ52: =VLOOKUP($AO52,Data!$U$1:$AC$688,AQ$49,FALSE)&IF(AR52="","*","") -> HR | AR52: =VLOOKUP($AO52,Data!$U$1:$AC$688,AR$49,FALSE) -> 0.2487169458 | AS52: =VLOOKUP($AO$79,Data!$U$1:$AC$688,$AR$49,FALSE) -> 0.1701195759
AN53: 202112 | AO53: =CONCATENATE(VLOOKUP($AN$21*1,Data!$W$1:$AB$688,AO$49,FALSE),AP53) -> Tier 1 Capital Ratio4 | AP53: 4 | AQ53: =VLOOKUP($AO53,Data!$U$1:$AC$688,AQ$49,FALSE)&IF(AR53="","*","") -> BG | AR53: =VLOOKUP($AO53,Data!$U$1:$AC$688,AR$49,FALSE) -> 0.2401102271 | AS53: =VLOOKUP($AO$79,Data!$U$1:$AC$688,$AR$49,FALSE) -> 0.1701195759
AN54: 202112 | AO54: =CONCATENATE(VLOOKUP($AN$21*1,Data!$W$1:$AB$688,AO$49,FALSE),AP54) -> Tier 1 Capital Ratio5 | AP54: 5 | AQ54: =VLOOKUP($AO54,Data!$U$1:$AC$688,AQ$49,FALSE)&IF(AR54="","*","") -> IS | AR54: =VLOOKUP($AO54,Data!$U$1:$AC$688,AR$49,FALSE) -> 0.2305325252 | AS54: =VLOOKUP($AO$79,Data!$U$1:$AC$688,$AR$49,FALSE) -> 0.1701195759
AN55: 202112 | AO55: =CONCATENATE(VLOOKUP($AN$21*1,Data!$W$1:$AB$688,AO$49,FALSE),AP55) -> Tier 1 Capital Ratio6 | AP55: 6 | AQ55: =VLOOKUP($AO55,Data!$U$1:$AC$688,AQ$49,FALSE)&IF(AR55="","*","") -> CZ | AR55: =VLOOKUP($AO55,Data!$U$1:$AC$688,AR$49,FALSE) -> 0.2225677936 | AS55: =VLOOKUP($AO$79,Data!$U$1:$AC$688,$AR$49,FALSE) -> 0.1701195759
AN56: 202112 | AO56: =CONCATENATE(VLOOKUP($AN$21*1,Data!$W$1:$AB$688,AO$49,FALSE),AP56) -> Tier 1 Capital Ratio7 | AP56: 7 | AQ56: =VLOOKUP($AO56,Data!$U$1:$AC$688,AQ$49,FALSE)&IF(AR56="","*","") -> LT | AR56: =VLOOKUP($AO56,Data!$U$1:$AC$688,AR$49,FALSE) -> 0.2171916804 | AS56: =VLOOKUP($AO$79,Data!$U$1:$AC$688,$AR$49,FALSE) -> 0.1701195759
AN57: 202112 | AO57: =CONCATENATE(VLOOKUP($AN$21*1,Data!$W$1:$AB$688,AO$49,FALSE),AP57) -> Tier 1 Capital Ratio8 | AP57: 8 | AQ57: =VLOOKUP($AO57,Data!$U$1:$AC$688,AQ$49,FALSE)&IF(AR57="","*","") -> SE | AR57: =VLOOKUP($AO57,Data!$U$1:$AC$688,AR$49,FALSE) -> 0.2089401074 | AS57: =VLOOKUP($AO$79,Data!$U$1:$AC$688,$AR$49,FALSE) -> 0.1701195759
AN58: 202112 | AO58: =CONCATENATE(VLOOKUP($AN$21*1,Data!$W$1:$AB$688,AO$49,FALSE),AP58) -> Tier 1 Capital Ratio9 | AP58: 9 | AQ58: =VLOOKUP($AO58,Data!$U$1:$AC$688,AQ$49,FALSE)&IF(AR58="","*","") -> IE | AR58: =VLOOKUP($AO58,Data!$U$1:$AC$688,AR$49,FALSE) -> 0.2078670185 | AS58: =VLOOKUP($AO$79,Data!$U$1:$AC$688,$AR$49,FALSE) -> 0.1701195759
AN59: 202112 | AO59: =CONCATENATE(VLOOKUP($AN$21*1,Data!$W$1:$AB$688,AO$49,FALSE),AP59) -> Tier 1 Capital Ratio10 | AP59: 10 | AQ59: =VLOOKUP($AO59,Data!$U$1:$AC$688,AQ$49,FALSE)&IF(AR59="","*","") -> LU | AR59: =VLOOKUP($AO59,Data!$U$1:$AC$688,AR$49,FALSE) -> 0.205493737 | AS59: =VLOOKUP($AO$79,Data!$U$1:$AC$688,$AR$49,FALSE) -> 0.1701195759
AN60: 202112 | AO60: =CONCATENATE(VLOOKUP($AN$21*1,Data!$W$1:$AB$688,AO$49,FALSE),AP60) -> Tier 1 Capital Ratio11 | AP60: 11 | AQ60: =VLOOKUP($AO60,Data!$U$1:$AC$688,AQ$49,FALSE)&IF(AR60="","*","") -> DK | AR60: =VLOOKUP($AO60,Data!$U$1:$AC$688,AR$49,FALSE) -> 0.203772861 | AS60: =VLOOKUP($AO$79,Data!$U$1:$AC$688,$AR$49,FALSE) -> 0.1701195759
AN61: 202112 | AO61: =CONCATENATE(VLOOKUP($AN$21*1,Data!$W$1:$AB$688,AO$49,FALSE),AP61) -> Tier 1 Capital Ratio12 | AP61: 12 | AQ61: =VLOOKUP($AO61,Data!$U$1:$AC$688,AQ$49,FALSE)&IF(AR61="","*","") -> MT | AR61: =VLOOKUP($AO61,Data!$U$1:$AC$688,AR$49,FALSE) -> 0.1971511657 | AS61: =VLOOKUP($AO$79,Data!$U$1:$AC$688,$AR$49,FALSE) -> 0.1701195759
AN62: 202112 | AO62: =CONCATENATE(VLOOKUP($AN$21*1,Data!$W$1:$AB$688,AO$49,FALSE),AP62) -> Tier 1 Capital Ratio13 | AP62: 13 | AQ62: =VLOOKUP($AO62,Data!$U$1:$AC$688,AQ$49,FALSE)&IF(AR62="","*","") -> BE | AR62: =VLOOKUP($AO62,Data!$U$1:$AC$688,AR$49,FALSE) -> 0.196752562 | AS62: =VLOOKUP($AO$79,Data!$U$1:$AC$688,$AR$49,FALSE) -> 0.1701195759
AN63: 202112 | AO63: =CONCATENATE(VLOOKUP($AN$21*1,Data!$W$1:$AB$688,AO$49,FALSE),AP63) -> Tier 1 Capital Ratio14 | AP63: 14 | AQ63: =VLOOKUP($AO63,Data!$U$1:$AC$688,AQ$49,FALSE)&IF(AR63="","*","") -> RO | AR63: =VLOOKUP($AO63,Data!$U$1:$AC$688,AR$49,FALSE) -> 0.1961906976 | AS63: =VLOOKUP($AO$79,Data!$U$1:$AC$688,$AR$49,FALSE) -> 0.1701195759
AN64: 202112 | AO64: =CONCATENATE(VLOOKUP($AN$21*1,Data!$W$1:$AB$688,AO$49,FALSE),AP64) -> Tier 1 Capital Ratio15 | AP64: 15 | AQ64: =VLOOKUP($AO64,Data!$U$1:$AC$688,AQ$49,FALSE)&IF(AR64="","*","") -> FI | AR64: =VLOOKUP($AO64,Data!$U$1:$AC$688,AR$49,FALSE) -> 0.1950189782 | AS64: =VLOOKUP($AO$79,Data!$U$1:$AC$688,$AR$49,FALSE) -> 0.1701195759
AN65: 202112 | AO65: =CONCATENATE(VLOOKUP($AN$21*1,Data!$W$1:$AB$688,AO$49,FALSE),AP65) -> Tier 1 Capital Ratio16 | AP65: 16 | AQ65: =VLOOKUP($AO65,Data!$U$1:$AC$688,AQ$49,FALSE)&IF(AR65="","*","") -> NL | AR65: =VLOOKUP($AO65,Data!$U$1:$AC$688,AR$49,FALSE) -> 0.1899384587 | AS65: =VLOOKUP($AO$79,Data!$U$1:$AC$688,$AR$49,FALSE) -> 0.1701195759
AN66: 202112 | AO66: =CONCATENATE(VLOOKUP($AN$21*1,Data!$W$1:$AB$688,AO$49,FALSE),AP66) -> Tier 1 Capital Ratio17 | AP66: 17 | AQ66: =VLOOKUP($AO66,Data!$U$1:$AC$688,AQ$49,FALSE)&IF(AR66="","*","") -> CY | AR66: =VLOOKUP($AO66,Data!$U$1:$AC$688,AR$49,FALSE) -> 0.1880660502 | AS66: =VLOOKUP($AO$79,Data!$U$1:$AC$688,$AR$49,FALSE) -> 0.1701195759
AN67: 202112 | AO67: =CONCATENATE(VLOOKUP($AN$21*1,Data!$W$1:$AB$688,AO$49,FALSE),AP67) -> Tier 1 Capital Ratio18 | AP67: 18 | AQ67: =VLOOKUP($AO67,Data!$U$1:$AC$688,AQ$49,FALSE)&IF(AR67="","*","") -> SK | AR67: =VLOOKUP($AO67,Data!$U$1:$AC$688,AR$49,FALSE) -> 0.1772303507 | AS67: =VLOOKUP($AO$79,Data!$U$1:$AC$688,$AR$49,FALSE) -> 0.1701195759
AN68: 202112 | AO68: =CONCATENATE(VLOOKUP($AN$21*1,Data!$W$1:$AB$688,AO$49,FALSE),AP68) -> Tier 1 Capital Ratio19 | AP68: 19 | AQ68: =VLOOKUP($AO68,Data!$U$1:$AC$688,AQ$49,FALSE)&IF(AR68="","*","") -> IT | AR68: =VLOOKUP($AO68,Data!$U$1:$AC$688,AR$49,FALSE) -> 0.1692877543 | AS68: =VLOOKUP($AO$79,Data!$U$1:$AC$688,$AR$49,FALSE) -> 0.1701195759
AN69: 202112 | AO69: =CONCATENATE(VLOOKUP($AN$21*1,Data!$W$1:$AB$688,AO$49,FALSE),AP69) -> Tier 1 Capital Ratio20 | AP69: 20 | AQ69: =VLOOKUP($AO69,Data!$U$1:$AC$688,AQ$49,FALSE)&IF(AR69="","*","") -> FR | AR69: =VLOOKUP($AO69,Data!$U$1:$AC$688,AR$49,FALSE) -> 0.1683375471 | AS69: =VLOOKUP($AO$79,Data!$U$1:$AC$688,$AR$49,FALSE) -> 0.1701195759
AN70: 202112 | AO70: =CONCATENATE(VLOOKUP($AN$21*1,Data!$W$1:$AB$688,AO$49,FALSE),AP70) -> Tier 1 Capital Ratio21 | AP70: 21 | AQ70: =VLOOKUP($AO70,Data!$U$1:$AC$688,AQ$49,FALSE)&IF(AR70="","*","") -> HU | AR70: =VLOOKUP($AO70,Data!$U$1:$AC$688,AR$49,FALSE) -> 0.166592742 | AS70: =VLOOKUP($AO$79,Data!$U$1:$AC$688,$AR$49,FALSE) -> 0.1701195759
AN71: 202112 | AO71: =CONCATENATE(VLOOKUP($AN$21*1,Data!$W$1:$AB$688,AO$49,FALSE),AP71) -> Tier 1 Capital Ratio22 | AP71: 22 | AQ71: =VLOOKUP($AO71,Data!$U$1:$AC$688,AQ$49,FALSE)&IF(AR71="","*","") -> DE | AR71: =VLOOKUP($AO71,Data!$U$1:$AC$688,AR$49,FALSE) -> 0.1664903447 | AS71: =VLOOKUP($AO$79,Data!$U$1:$AC$688,$AR$49,FALSE) -> 0.1701195759
AN72: 202112 | AO72: =CONCATENATE(VLOOKUP($AN$21*1,Data!$W$1:$AB$688,AO$49,FALSE),AP72) -> Tier 1 Capital Ratio23 | AP72: 23 | AQ72: =VLOOKUP($AO72,Data!$U$1:$AC$688,AQ$49,FALSE)&IF(AR72="","*","") -> PL | AR72: =VLOOKUP($AO72,Data!$U$1:$AC$688,AR$49,FALSE) -> 0.1637603941 | AS72: =VLOOKUP($AO$79,Data!$U$1:$AC$688,$AR$49,FALSE) -> 0.1701195759
AN73: 202112 | AO73: =CONCATENATE(VLOOKUP($AN$21*1,Data!$W$1:$AB$688,AO$49,FALSE),AP73) -> Tier 1 Capital Ratio24 | AP73: 24 | AQ73: =VLOOKUP($AO73,Data!$U$1:$AC$688,AQ$49,FALSE)&IF(AR73="","*","") -> AT | AR73: =VLOOKUP($AO73,Data!$U$1:$AC$688,AR$49,FALSE) -> 0.1594140317 | AS73: =VLOOKUP($AO$79,Data!$U$1:$AC$688,$AR$49,FALSE) -> 0.1701195759
AN74: 202112 | AO74: =CONCATENATE(VLOOKUP($AN$21*1,Data!$W$1:$AB$688,AO$49,FALSE),AP74) -> Tier 1 Capital Ratio25 | AP74: 25 | AQ74: =VLOOKUP($AO74,Data!$U$1:$AC$688,AQ$49,FALSE)&IF(AR74="","*","") -> PT | AR74: =VLOOKUP($AO74,Data!$U$1:$AC$688,AR$49,FALSE) -> 0.158700406 | AS74: =VLOOKUP($AO$79,Data!$U$1:$AC$688,$AR$49,FALSE) -> 0.1701195759
AN75: 202112 | AO75: =CONCATENATE(VLOOKUP($AN$21*1,Data!$W$1:$AB$688,AO$49,FALSE),AP75) -> Tier 1 Capital Ratio26 | AP75: 26 | AQ75: =VLOOKUP($AO75,Data!$U$1:$AC$688,AQ$49,FALSE)&IF(AR75="","*","") -> SI | AR75: =VLOOKUP($AO75,Data!$U$1:$AC$688,AR$49,FALSE) -> 0.1572544804 | AS75: =VLOOKUP($AO$79,Data!$U$1:$AC$688,$AR$49,FALSE) -> 0.1701195759
AN76: 202112 | AO76: =CONCATENATE(VLOOKUP($AN$21*1,Data!$W$1:$AB$688,AO$49,FALSE),AP76) -> Tier 1 Capital Ratio27 | AP76: 27 | AQ76: =VLOOKUP($AO76,Data!$U$1:$AC$688,AQ$49,FALSE)&IF(AR76="","*","") -> ES | AR76: =VLOOKUP($AO76,Data!$U$1:$AC$688,AR$49,FALSE) -> 0.1464298844 | AS76: =VLOOKUP($AO$79,Data!$U$1:$AC$688,$AR$49,FALSE) -> 0.1701195759
AN77: 202112 | AO77: =CONCATENATE(VLOOKUP($AN$21*1,Data!$W$1:$AB$688,AO$49,FALSE),AP77) -> Tier 1 Capital Ratio28 | AP77: 28 | AQ77: =VLOOKUP($AO77,Data!$U$1:$AC$688,AQ$49,FALSE)&IF(AR77="","*","") -> GR | AR77: =VLOOKUP($AO77,Data!$U$1:$AC$688,AR$49,FALSE) -> 0.1322893987 | AS77: =VLOOKUP($AO$79,Data!$U$1:$AC$688,$AR$49,FALSE) -> 0.1701195759
AN78: 202112 | AO78: =CONCATENATE(VLOOKUP($AN$21*1,Data!$W$1:$AB$688,AO$49,FALSE),AP78) -> Tier 1 Capital Ratio29 | AP78: 29 | AQ78: =VLOOKUP($AO78,Data!$U$1:$AC$688,AQ$49,FALSE)&IF(AR78="","*","") -> NO | AR78: =VLOOKUP($AO78,Data!$U$1:$AC$688,AR$49,FALSE) -> 0 | AS78: =VLOOKUP($AO$79,Data!$U$1:$AC$688,$AR$49,FALSE) -> 0.1701195759
AN79: =MAX($AL$25:$AL$45) -> 202112 | AO79: =CONCATENATE(VLOOKUP($AN$21*1,Data!$W$1:$AB$688,AO$49,FALSE),AP79) -> Tier 1 Capital Ratio99 | AP79: 99 | AQ79: =VLOOKUP($AO79,Data!$U$1:$AC$688,AQ$49,FALSE)&IF(AR79="","*","") -> EU | AR79: =VLOOKUP($AO79,Data!$U$1:$AC$688,AR$49,FALSE) -> 0.1701195759 | AS79: =VLOOKUP($AO$79,Data!$U$1:$AC$688,$AR$49,FALSE) -> 0.1701195759

Sheet RU Exposures
F1: T50_1 | G1: T50_1 | H1: T50_2 | I1: T50_2 | J1: T50_3 | K1: T50_3 | L1: T50_4 | M1: T50_4 | N1: T50_5 | O1: T50_5 | P1: T50_6 | Q1: T50_6 | R1: T50_7 | S1: T50_7 | T1: T50_8 | U1: T50_8
A2: ='Reference Dates'!$C$8 -> 202112 | F2: =TEXT(F11,"YYYYMM")+0 -> 202106 | G2: 202112 | H2: 202106 | I2: 202112 | J2: 202106 | K2: 202112 | L2: =TEXT(J11,"YYYYMM")+0 -> 202106 | M2: =TEXT(K11,"YYYYMM")+0 -> 202112 | N2: =TEXT(J11,"YYYYMM")+0 -> 202106 | O2: =TEXT(K11,"YYYYMM")+0 -> 202112 | P2: =TEXT(L11,"YYYYMM")+0 -> 202106 | Q2: 202112 | R2: 202106 | S2: 202112 | T2: 202106 | U2: 202112
A3: =DATE(LEFT(A2,4),RIGHT(A2,2),1) -> 2021-12-01 | D3: Statistical Annex
D4: Exposures to Russian counterparts
B7: CH_1 | D7: Breakdown of exposures towards Russian counterparts
D9: (million EUR) | F9: Exposures towards Russian counterparts | H9: Cash balances at central banks and other demand deposits | J9: Debt securities | L9: of which: | N9: Loans and advances | P9: of which:
L10: Central banks and general governments | P10: Credit institutions and other financial corporations | R10: Non-financial corporations | T10: Households
F11: =IF(OR(MONTH($A$3)=9,MONTH($A$3)=3),EOMONTH($A$3,-9),EOMONTH($A$3,-6)) -> 2021-06-30 | G11: =EOMONTH(F$11,6) -> 2021-12-31 | H11: =IF(OR(MONTH($A$3)=9,MONTH($A$3)=3),EOMONTH($A$3,-9),EOMONTH($A$3,-6)) -> 2021-06-30 | I11: =EOMONTH(H$11,6) -> 2021-12-31 | J11: =IF(OR(MONTH($A$3)=9,MONTH($A$3)=3),EOMONTH($A$3,-9),EOMONTH($A$3,-6)) -> 2021-06-30 | K11: =EOMONTH(J$11,6) -> 2021-12-31 | L11: =IF(OR(MONTH($A$3)=9,MONTH($A$3)=3),EOMONTH($A$3,-9),EOMONTH($A$3,-6)) -> 2021-06-30 | M11: =EOMONTH(L$11,6) -> 2021-12-31 | N11: =IF(OR(MONTH($A$3)=9,MONTH($A$3)=3),EOMONTH($A$3,-9),EOMONTH($A$3,-6)) -> 2021-06-30 | O11: =EOMONTH(N$11,6) -> 2021-12-31 | P11: =IF(OR(MONTH($A$3)=9,MONTH($A$3)=3),EOMONTH($A$3,-9),EOMONTH($A$3,-6)) -> 2021-06-30 | Q11: =EOMONTH(P$11,6) -> 2021-12-31 | R11: =IF(OR(MONTH($A$3)=9,MONTH($A$3)=3),EOMONTH($A$3,-9),EOMONTH($A$3,-6)) -> 2021-06-30 | S11: =EOMONTH(R$11,6) -> 2021-12-31 | T11: =IF(OR(MONTH($A$3)=9,MONTH($A$3)=3),EOMONTH($A$3,-9),EOMONTH($A$3,-6)) -> 2021-06-30 | U11: =EOMONTH(T$11,6) -> 2021-12-31
A12: 1 | B12: AT | D12: =B12 -> AT | F12: =IFERROR(INDEX('Data Annex'!$K$1:$AS$6264,MATCH(F$1&"|"&$B12,'Data Annex'!$K$1:$K$6264,0),MATCH(F$2,'Data Annex'!$K$1:$AS$1,0)),"") -> 14488.17564 | G12: =IFERROR(INDEX('Data Annex'!$K$1:$AS$6264,MATCH(G$1&"|"&$B12,'Data Annex'!$K$1:$K$6264,0),MATCH(G$2,'Data Annex'!$K$1:$AS$1,0)),"") -> 16693.21192 | H12: =IFERROR(INDEX('Data Annex'!$K$1:$AS$6264,MATCH(H$1&"|"&$B12,'Data Annex'!$K$1:$K$6264,0),MATCH(H$2,'Data Annex'!$K$1:$AS$1,0)),"") -> 1034.304055 | I12: =IFERROR(INDEX('Data Annex'!$K$1:$AS$6264,MATCH(I$1&"|"&$B12,'Data Annex'!$K$1:$K$6264,0),MATCH(I$2,'Data Annex'!$K$1:$AS$1,0)),"") -> 532.8663319 | J12: =IFERROR(INDEX('Data Annex'!$K$1:$AS$6264,MATCH(J$1&"|"&$B12,'Data Annex'!$K$1:$K$6264,0),MATCH(J$2,'Data Annex'!$K$1:$AS$1,0)),"") -> 1424.159787 | K12: =IFERROR(INDEX('Data Annex'!$K$1:$AS$6264,MATCH(K$1&"|"&$B12,'Data Annex'!$K$1:$K$6264,0),MATCH(K$2,'Data Annex'!$K$1:$AS$1,0)),"") -> 1005.894581 | L12: =IFERROR(INDEX('Data Annex'!$K$1:$AS$6264,MATCH(L$1&"|"&$B12,'Data Annex'!$K$1:$K$6264,0),MATCH(L$2,'Data Annex'!$K$1:$AS$1,0)),"") -> 1275.478729 | M12: =IFERROR(INDEX('Data Annex'!$K$1:$AS$6264,MATCH(M$1&"|"&$B12,'Data Annex'!$K$1:$K$6264,0),MATCH(M$2,'Data Annex'!$K$1:$AS$1,0)),"") -> 882.9099577 | N12: =IFERROR(INDEX('Data Annex'!$K$1:$AS$6264,MATCH(N$1&"|"&$B12,'Data Annex'!$K$1:$K$6264,0),MATCH(N$2,'Data Annex'!$K$1:$AS$1,0)),"") -> 12013.18436 | O12: =IFERROR(INDEX('Data Annex'!$K$1:$AS$6264,MATCH(O$1&"|"&$B12,'Data Annex'!$K$1:$K$6264,0),MATCH(O$2,'Data Annex'!$K$1:$AS$1,0)),"") -> 15137.80535 | P12: =IFERROR(INDEX('Data Annex'!$K$1:$AS$6264,MATCH(P$1&"|"&$B12,'Data Annex'!$K$1:$K$6264,0),MATCH(P$2,'Data Annex'!$K$1:$AS$1,0)),"") -> 965.6983169 | Q12: =IFERROR(INDEX('Data Annex'!$K$1:$AS$6264,MATCH(Q$1&"|"&$B12,'Data Annex'!$K$1:$K$6264,0),MATCH(Q$2,'Data Annex'!$K$1:$AS$1,0)),"") -> 1612.866414 | R12: =IFERROR(INDEX('Data Annex'!$K$1:$AS$6264,MATCH(R$1&"|"&$B12,'Data Annex'!$K$1:$K$6264,0),MATCH(R$2,'Data Annex'!$K$1:$AS$1,0)),"") -> 6712.68076 | S12: =IFERROR(INDEX('Data Annex'!$K$1:$AS$6264,MATCH(S$1&"|"&$B12,'Data Annex'!$K$1:$K$6264,0),MATCH(S$2,'Data Annex'!$K$1:$AS$1,0)),"") -> 7778.679453 | T12: =IFERROR(INDEX('Data Annex'!$K$1:$AS$6264,MATCH(T$1&"|"&$B12,'Data Annex'!$K$1:$K$6264,0),MATCH(T$2,'Data Annex'!$K$1:$AS$1,0)),"") -> 3999.966538 | U12: =IFERROR(INDEX('Data Annex'!$K$1:$AS$6264,MATCH(U$1&"|"&$B12,'Data Annex'!$K$1:$K$6264,0),MATCH(U$2,'Data Annex'!$K$1:$AS$1,0)),"") -> 4295.153535
A13: 2 | B13: BE | D13: =B13 -> BE | F13: =IFERROR(INDEX('Data Annex'!$K$1:$AS$6264,MATCH(F$1&"|"&$B13,'Data Annex'!$K$1:$K$6264,0),MATCH(F$2,'Data Annex'!$K$1:$AS$1,0)),"") -> 369.7647686 | G13: =IFERROR(INDEX('Data Annex'!$K$1:$AS$6264,MATCH(G$1&"|"&$B13,'Data Annex'!$K$1:$K$6264,0),MATCH(G$2,'Data Annex'!$K$1:$AS$1,0)),"") -> 640.750247 | H13: =IFERROR(INDEX('Data Annex'!$K$1:$AS$6264,MATCH(H$1&"|"&$B13,'Data Annex'!$K$1:$K$6264,0),MATCH(H$2,'Data Annex'!$K$1:$AS$1,0)),"") -> 14.45509148 | I13: =IFERROR(INDEX('Data Annex'!$K$1:$AS$6264,MATCH(I$1&"|"&$B13,'Data Annex'!$K$1:$K$6264,0),MATCH(I$2,'Data Annex'!$K$1:$AS$1,0)),"") -> 16.5222235 | J13: =IFERROR(INDEX('Data Annex'!$K$1:$AS$6264,MATCH(J$1&"|"&$B13,'Data Annex'!$K$1:$K$6264,0),MATCH(J$2,'Data Annex'!$K$1:$AS$1,0)),"") ->  | K13: =IFERROR(INDEX('Data Annex'!$K$1:$AS$6264,MATCH(K$1&"|"&$B13,'Data Annex'!$K$1:$K$6264,0),MATCH(K$2,'Data Annex'!$K$1:$AS$1,0)),"") ->  | L13: =IFERROR(INDEX('Data Annex'!$K$1:$AS$6264,MATCH(L$1&"|"&$B13,'Data Annex'!$K$1:$K$6264,0),MATCH(L$2,'Data Annex'!$K$1:$AS$1,0)),"") ->  | M13: =IFERROR(INDEX('Data Annex'!$K$1:$AS$6264,MATCH(M$1&"|"&$B13,'Data Annex'!$K$1:$K$6264,0),MATCH(M$2,'Data Annex'!$K$1:$AS$1,0)),"") ->  | N13: =IFERROR(INDEX('Data Annex'!$K$1:$AS$6264,MATCH(N$1&"|"&$B13,'Data Annex'!$K$1:$K$6264,0),MATCH(N$2,'Data Annex'!$K$1:$AS$1,0)),"") -> 355.3096771 | O13: =IFERROR(INDEX('Data Annex'!$K$1:$AS$6264,MATCH(O$1&"|"&$B13,'Data Annex'!$K$1:$K$6264,0),MATCH(O$2,'Data Annex'!$K$1:$AS$1,0)),"") -> 624.2280235 | P13: =IFERROR(INDEX('Data Annex'!$K$1:$AS$6264,MATCH(P$1&"|"&$B13,'Data Annex'!$K$1:$K$6264,0),MATCH(P$2,'Data Annex'!$K$1:$AS$1,0)),"") -> 11.504424 | Q13: =IFERROR(INDEX('Data Annex'!$K$1:$AS$6264,MATCH(Q$1&"|"&$B13,'Data Annex'!$K$1:$K$6264,0),MATCH(Q$2,'Data Annex'!$K$1:$AS$1,0)),"") -> 12.648601 | R13: =IFERROR(INDEX('Data Annex'!$K$1:$AS$6264,MATCH(R$1&"|"&$B13,'Data Annex'!$K$1:$K$6264,0),MATCH(R$2,'Data Annex'!$K$1:$AS$1,0)),"") -> 324.168503 | S13: =IFERROR(INDEX('Data Annex'!$K$1:$AS$6264,MATCH(S$1&"|"&$B13,'Data Annex'!$K$1:$K$6264,0),MATCH(S$2,'Data Annex'!$K$1:$AS$1,0)),"") -> 592.315838 | T13: =IFERROR(INDEX('Data Annex'!$K$1:$AS$6264,MATCH(T$1&"|"&$B13,'Data Annex'!$K$1:$K$6264,0),MATCH(T$2,'Data Annex'!$K$1:$AS$1,0)),"") -> 19.6278461 | U13: =IFERROR(INDEX('Data Annex'!$K$1:$AS$6264,MATCH(U$1&"|"&$B13,'Data Annex'!$K$1:$K$6264,0),MATCH(U$2,'Data Annex'!$K$1:$AS$1,0)),"") -> 19.25464351
A14: 3 | B14: BG | D14: BG | F14: =IFERROR(INDEX('Data Annex'!$K$1:$AS$6264,MATCH(F$1&"|"&$B14,'Data Annex'!$K$1:$K$6264,0),MATCH(F$2,'Data Annex'!$K$1:$AS$1,0)),"") -> 114.6835055 | G14: =IFERROR(INDEX('Data Annex'!$K$1:$AS$6264,MATCH(G$1&"|"&$B14,'Data Annex'!$K$1:$K$6264,0),MATCH(G$2,'Data Annex'!$K$1:$AS$1,0)),"") -> 104.0556294 | H14: =IFERROR(INDEX('Data Annex'!$K$1:$AS$6264,MATCH(H$1&"|"&$B14,'Data Annex'!$K$1:$K$6264,0),MATCH(H$2,'Data Annex'!$K$1:$AS$1,0)),"") -> 2.146436241 | I14: =IFERROR(INDEX('Data Annex'!$K$1:$AS$6264,MATCH(I$1&"|"&$B14,'Data Annex'!$K$1:$K$6264,0),MATCH(I$2,'Data Annex'!$K$1:$AS$1,0)),"") -> 0.6498619491 | J14: =IFERROR(INDEX('Data Annex'!$K$1:$AS$6264,MATCH(J$1&"|"&$B14,'Data Annex'!$K$1:$K$6264,0),MATCH(J$2,'Data Annex'!$K$1:$AS$1,0)),"") -> 102.0850803 | K14: =IFERROR(INDEX('Data Annex'!$K$1:$AS$6264,MATCH(K$1&"|"&$B14,'Data Annex'!$K$1:$K$6264,0),MATCH(K$2,'Data Annex'!$K$1:$AS$1,0)),"") -> 93.8899683 | L14: =IFERROR(INDEX('Data Annex'!$K$1:$AS$6264,MATCH(L$1&"|"&$B14,'Data Annex'!$K$1:$K$6264,0),MATCH(L$2,'Data Annex'!$K$1:$AS$1,0)),"") -> 91.93220166 | M14: =IFERROR(INDEX('Data Annex'!$K$1:$AS$6264,MATCH(M$1&"|"&$B14,'Data Annex'!$K$1:$K$6264,0),MATCH(M$2,'Data Annex'!$K$1:$AS$1,0)),"") -> 93.8899683 | N14: =IFERROR(INDEX('Data Annex'!$K$1:$AS$6264,MATCH(N$1&"|"&$B14,'Data Annex'!$K$1:$K$6264,0),MATCH(N$2,'Data Annex'!$K$1:$AS$1,0)),"") -> 10.45198896 | O14: =IFERROR(INDEX('Data Annex'!$K$1:$AS$6264,MATCH(O$1&"|"&$B14,'Data Annex'!$K$1:$K$6264,0),MATCH(O$2,'Data Annex'!$K$1:$AS$1,0)),"") -> 9.515799161 | P14: =IFERROR(INDEX('Data Annex'!$K$1:$AS$6264,MATCH(P$1&"|"&$B14,'Data Annex'!$K$1:$K$6264,0),MATCH(P$2,'Data Annex'!$K$1:$AS$1,0)),"") -> 0.0005112997239 | Q14: =IFERROR(INDEX('Data Annex'!$K$1:$AS$6264,MATCH(Q$1&"|"&$B14,'Data Annex'!$K$1:$K$6264,0),MATCH(Q$2,'Data Annex'!$K$1:$AS$1,0)),"") -> 0.0005112997239 | R14: =IFERROR(INDEX('Data Annex'!$K$1:$AS$6264,MATCH(R$1&"|"&$B14,'Data Annex'!$K$1:$K$6264,0),MATCH(R$2,'Data Annex'!$K$1:$AS$1,0)),"") -> 0 | S14: =IFERROR(INDEX('Data Annex'!$K$1:$AS$6264,MATCH(S$1&"|"&$B14,'Data Annex'!$K$1:$K$6264,0),MATCH(S$2,'Data Annex'!$K$1:$AS$1,0)),"") -> 0 | T14: =IFERROR(INDEX('Data Annex'!$K$1:$AS$6264,MATCH(T$1&"|"&$B14,'Data Annex'!$K$1:$K$6264,0),MATCH(T$2,'Data Annex'!$K$1:$AS$1,0)),"") -> 10.45147766 | U14: =IFERROR(INDEX('Data Annex'!$K$1:$AS$6264,MATCH(U$1&"|"&$B14,'Data Annex'!$K$1:$K$6264,0),MATCH(U$2,'Data Annex'!$K$1:$AS$1,0)),"") -> 9.515287862
A15: 4 | B15: CY | D15: CY | F15: =IFERROR(INDEX('Data Annex'!$K$1:$AS$6264,MATCH(F$1&"|"&$B15,'Data Annex'!$K$1:$K$6264,0),MATCH(F$2,'Data Annex'!$K$1:$AS$1,0)),"") -> 114.981277 | G15: =IFERROR(INDEX('Data Annex'!$K$1:$AS$6264,MATCH(G$1&"|"&$B15,'Data Annex'!$K$1:$K$6264,0),MATCH(G$2,'Data Annex'!$K$1:$AS$1,0)),"") -> 95.508257 | H15: =IFERROR(INDEX('Data Annex'!$K$1:$AS$6264,MATCH(H$1&"|"&$B15,'Data Annex'!$K$1:$K$6264,0),MATCH(H$2,'Data Annex'!$K$1:$AS$1,0)),"") -> 32.939615 | I15: =IFERROR(INDEX('Data Annex'!$K$1:$AS$6264,MATCH(I$1&"|"&$B15,'Data Annex'!$K$1:$K$6264,0),MATCH(I$2,'Data Annex'!$K$1:$AS$1,0)),"") -> 16.362685 | J15: =IFERROR(INDEX('Data Annex'!$K$1:$AS$6264,MATCH(J$1&"|"&$B15,'Data Annex'!$K$1:$K$6264,0),MATCH(J$2,'Data Annex'!$K$1:$AS$1,0)),"") -> 0 | K15: =IFERROR(INDEX('Data Annex'!$K$1:$AS$6264,MATCH(K$1&"|"&$B15,'Data Annex'!$K$1:$K$6264,0),MATCH(K$2,'Data Annex'!$K$1:$AS$1,0)),"") -> 0 | L15: =IFERROR(INDEX('Data Annex'!$K$1:$AS$6264,MATCH(L$1&"|"&$B15,'Data Annex'!$K$1:$K$6264,0),MATCH(L$2,'Data Annex'!$K$1:$AS$1,0)),"") -> 0 | M15: =IFERROR(INDEX('Data Annex'!$K$1:$AS$6264,MATCH(M$1&"|"&$B15,'Data Annex'!$K$1:$K$6264,0),MATCH(M$2,'Data Annex'!$K$1:$AS$1,0)),"") -> 0 | N15: =IFERROR(INDEX('Data Annex'!$K$1:$AS$6264,MATCH(N$1&"|"&$B15,'Data Annex'!$K$1:$K$6264,0),MATCH(N$2,'Data Annex'!$K$1:$AS$1,0)),"") -> 82.041662 | O15: =IFERROR(INDEX('Data Annex'!$K$1:$AS$6264,MATCH(O$1&"|"&$B15,'Data Annex'!$K$1:$K$6264,0),MATCH(O$2,'Data Annex'!$K$1:$AS$1,0)),"") -> 79.145572 | P15: =IFERROR(INDEX('Data Annex'!$K$1:$AS$6264,MATCH(P$1&"|"&$B15,'Data Annex'!$K$1:$K$6264,0),MATCH(P$2,'Data Annex'!$K$1:$AS$1,0)),"") -> 1.191321 | Q15: =IFERROR(INDEX('Data Annex'!$K$1:$AS$6264,MATCH(Q$1&"|"&$B15,'Data Annex'!$K$1:$K$6264,0),MATCH(Q$2,'Data Annex'!$K$1:$AS$1,0)),"") -> 11.961716 | R15: =IFERROR(INDEX('Data Annex'!$K$1:$AS$6264,MATCH(R$1&"|"&$B15,'Data Annex'!$K$1:$K$6264,0),MATCH(R$2,'Data Annex'!$K$1:$AS$1,0)),"") -> 20.060824 | S15: =IFERROR(INDEX('Data Annex'!$K$1:$AS$6264,MATCH(S$1&"|"&$B15,'Data Annex'!$K$1:$K$6264,0),MATCH(S$2,'Data Annex'!$K$1:$AS$1,0)),"") -> 20.479735 | T15: =IFERROR(INDEX('Data Annex'!$K$1:$AS$6264,MATCH(T$1&"|"&$B15,'Data Annex'!$K$1:$K$6264,0),MATCH(T$2,'Data Annex'!$K$1:$AS$1,0)),"") -> 60.789517 | U15: =IFERROR(INDEX('Data Annex'!$K$1:$AS$6264,MATCH(U$1&"|"&$B15,'Data Annex'!$K$1:$K$6264,0),MATCH(U$2,'Data Annex'!$K$1:$AS$1,0)),"") -> 46.704121
A16: 5 | B16: CZ | D16: CZ | F16: =IFERROR(INDEX('Data Annex'!$K$1:$AS$6264,MATCH(F$1&"|"&$B16,'Data Annex'!$K$1:$K$6264,0),MATCH(F$2,'Data Annex'!$K$1:$AS$1,0)),"") -> 88.93928692 | G16: =IFERROR(INDEX('Data Annex'!$K$1:$AS$6264,MATCH(G$1&"|"&$B16,'Data Annex'!$K$1:$K$6264,0),MATCH(G$2,'Data Annex'!$K$1:$AS$1,0)),"") -> 81.46753138 | H16: =IFERROR(INDEX('Data Annex'!$K$1:$AS$6264,MATCH(H$1&"|"&$B16,'Data Annex'!$K$1:$K$6264,0),MATCH(H$2,'Data Annex'!$K$1:$AS$1,0)),"") -> 1.312172983 | I16: =IFERROR(INDEX('Data Annex'!$K$1:$AS$6264,MATCH(I$1&"|"&$B16,'Data Annex'!$K$1:$K$6264,0),MATCH(I$2,'Data Annex'!$K$1:$AS$1,0)),"") -> 1.663239279 | J16: =IFERROR(INDEX('Data Annex'!$K$1:$AS$6264,MATCH(J$1&"|"&$B16,'Data Annex'!$K$1:$K$6264,0),MATCH(J$2,'Data Annex'!$K$1:$AS$1,0)),"") -> 0 | K16: =IFERROR(INDEX('Data Annex'!$K$1:$AS$6264,MATCH(K$1&"|"&$B16,'Data Annex'!$K$1:$K$6264,0),MATCH(K$2,'Data Annex'!$K$1:$AS$1,0)),"") -> 0 | L16: =IFERROR(INDEX('Data Annex'!$K$1:$AS$6264,MATCH(L$1&"|"&$B16,'Data Annex'!$K$1:$K$6264,0),MATCH(L$2,'Data Annex'!$K$1:$AS$1,0)),"") -> 0 | M16: =IFERROR(INDEX('Data Annex'!$K$1:$AS$6264,MATCH(M$1&"|"&$B16,'Data Annex'!$K$1:$K$6264,0),MATCH(M$2,'Data Annex'!$K$1:$AS$1,0)),"") -> 0 | N16: =IFERROR(INDEX('Data Annex'!$K$1:$AS$6264,MATCH(N$1&"|"&$B16,'Data Annex'!$K$1:$K$6264,0),MATCH(N$2,'Data Annex'!$K$1:$AS$1,0)),"") -> 87.62711394 | O16: =IFERROR(INDEX('Data Annex'!$K$1:$AS$6264,MATCH(O$1&"|"&$B16,'Data Annex'!$K$1:$K$6264,0),MATCH(O$2,'Data Annex'!$K$1:$AS$1,0)),"") -> 79.8042921 | P16: =IFERROR(INDEX('Data Annex'!$K$1:$AS$6264,MATCH(P$1&"|"&$B16,'Data Annex'!$K$1:$K$6264,0),MATCH(P$2,'Data Annex'!$K$1:$AS$1,0)),"") -> 20.29387139 | Q16: =IFERROR(INDEX('Data Annex'!$K$1:$AS$6264,MATCH(Q$1&"|"&$B16,'Data Annex'!$K$1:$K$6264,0),MATCH(Q$2,'Data Annex'!$K$1:$AS$1,0)),"") -> 22.42688555 | R16: =IFERROR(INDEX('Data Annex'!$K$1:$AS$6264,MATCH(R$1&"|"&$B16,'Data Annex'!$K$1:$K$6264,0),MATCH(R$2,'Data Annex'!$K$1:$AS$1,0)),"") -> 29.4482901 | S16: =IFERROR(INDEX('Data Annex'!$K$1:$AS$6264,MATCH(S$1&"|"&$B16,'Data Annex'!$K$1:$K$6264,0),MATCH(S$2,'Data Annex'!$K$1:$AS$1,0)),"") -> 18.78375465 | T16: =IFERROR(INDEX('Data Annex'!$K$1:$AS$6264,MATCH(T$1&"|"&$B16,'Data Annex'!$K$1:$K$6264,0),MATCH(T$2,'Data Annex'!$K$1:$AS$1,0)),"") -> 37.88495249 | U16: =IFERROR(INDEX('Data Annex'!$K$1:$AS$6264,MATCH(U$1&"|"&$B16,'Data Annex'!$K$1:$K$6264,0),MATCH(U$2,'Data Annex'!$K$1:$AS$1,0)),"") -> 38.5936519
A17: 6 | B17: DE | D17: DE | F17: =IFERROR(INDEX('Data Annex'!$K$1:$AS$6264,MATCH(F$1&"|"&$B17,'Data Annex'!$K$1:$K$6264,0),MATCH(F$2,'Data Annex'!$K$1:$AS$1,0)),"") -> 5042.935956 | G17: =IFERROR(INDEX('Data Annex'!$K$1:$AS$6264,MATCH(G$1&"|"&$B17,'Data Annex'!$K$1:$K$6264,0),MATCH(G$2,'Data Annex'!$K$1:$AS$1,0)),"") -> 4494.684316 | H17: =IFERROR(INDEX('Data Annex'!$K$1:$AS$6264,MATCH(H$1&"|"&$B17,'Data Annex'!$K$1:$K$6264,0),MATCH(H$2,'Data Annex'!$K$1:$AS$1,0)),"") -> 518.1042922 | I17: =IFERROR(INDEX('Data Annex'!$K$1:$AS$6264,MATCH(I$1&"|"&$B17,'Data Annex'!$K$1:$K$6264,0),MATCH(I$2,'Data Annex'!$K$1:$AS$1,0)),"") -> 570.9041951 | J17: =IFERROR(INDEX('Data Annex'!$K$1:$AS$6264,MATCH(J$1&"|"&$B17,'Data Annex'!$K$1:$K$6264,0),MATCH(J$2,'Data Annex'!$K$1:$AS$1,0)),"") -> 211.3702972 | K17: =IFERROR(INDEX('Data Annex'!$K$1:$AS$6264,MATCH(K$1&"|"&$B17,'Data Annex'!$K$1:$K$6264,0),MATCH(K$2,'Data Annex'!$K$1:$AS$1,0)),"") -> 136.777536 | L17: =IFERROR(INDEX('Data Annex'!$K$1:$AS$6264,MATCH(L$1&"|"&$B17,'Data Annex'!$K$1:$K$6264,0),MATCH(L$2,'Data Annex'!$K$1:$AS$1,0)),"") -> 152.7788868 | M17: =IFERROR(INDEX('Data Annex'!$K$1:$AS$6264,MATCH(M$1&"|"&$B17,'Data Annex'!$K$1:$K$6264,0),MATCH(M$2,'Data Annex'!$K$1:$AS$1,0)),"") -> 47.19917284 | N17: =IFERROR(INDEX('Data Annex'!$K$1:$AS$6264,MATCH(N$1&"|"&$B17,'Data Annex'!$K$1:$K$6264,0),MATCH(N$2,'Data Annex'!$K$1:$AS$1,0)),"") -> 4251.903878 | O17: =IFERROR(INDEX('Data Annex'!$K$1:$AS$6264,MATCH(O$1&"|"&$B17,'Data Annex'!$K$1:$K$6264,0),MATCH(O$2,'Data Annex'!$K$1:$AS$1,0)),"") -> 3781.102696 | P17: =IFERROR(INDEX('Data Annex'!$K$1:$AS$6264,MATCH(P$1&"|"&$B17,'Data Annex'!$K$1:$K$6264,0),MATCH(P$2,'Data Annex'!$K$1:$AS$1,0)),"") -> 980.0925088 | Q17: =IFERROR(INDEX('Data Annex'!$K$1:$AS$6264,MATCH(Q$1&"|"&$B17,'Data Annex'!$K$1:$K$6264,0),MATCH(Q$2,'Data Annex'!$K$1:$AS$1,0)),"") -> 917.1205864 | R17: =IFERROR(INDEX('Data Annex'!$K$1:$AS$6264,MATCH(R$1&"|"&$B17,'Data Annex'!$K$1:$K$6264,0),MATCH(R$2,'Data Annex'!$K$1:$AS$1,0)),"") -> 2907.091081 | S17: =IFERROR(INDEX('Data Annex'!$K$1:$AS$6264,MATCH(S$1&"|"&$B17,'Data Annex'!$K$1:$K$6264,0),MATCH(S$2,'Data Annex'!$K$1:$AS$1,0)),"") -> 2799.61762 | T17: =IFERROR(INDEX('Data Annex'!$K$1:$AS$6264,MATCH(T$1&"|"&$B17,'Data Annex'!$K$1:$K$6264,0),MATCH(T$2,'Data Annex'!$K$1:$AS$1,0)),"") -> 56.10624776 | U17: =IFERROR(INDEX('Data Annex'!$K$1:$AS$6264,MATCH(U$1&"|"&$B17,'Data Annex'!$K$1:$K$6264,0),MATCH(U$2,'Data Annex'!$K$1:$AS$1,0)),"") -> 64.36383657
A18: 7 | B18: DK | D18: DK | F18: =IFERROR(INDEX('Data Annex'!$K$1:$AS$6264,MATCH(F$1&"|"&$B18,'Data Annex'!$K$1:$K$6264,0),MATCH(F$2,'Data Annex'!$K$1:$AS$1,0)),"") -> 3.297108253 | G18: =IFERROR(INDEX('Data Annex'!$K$1:$AS$6264,MATCH(G$1&"|"&$B18,'Data Annex'!$K$1:$K$6264,0),MATCH(G$2,'Data Annex'!$K$1:$AS$1,0)),"") -> 3.2648566 | H18: =IFERROR(INDEX('Data Annex'!$K$1:$AS$6264,MATCH(H$1&"|"&$B18,'Data Annex'!$K$1:$K$6264,0),MATCH(H$2,'Data Annex'!$K$1:$AS$1,0)),"") -> 0.1571132205 | I18: =IFERROR(INDEX('Data Annex'!$K$1:$AS$6264,MATCH(I$1&"|"&$B18,'Data Annex'!$K$1:$K$6264,0),MATCH(I$2,'Data Annex'!$K$1:$AS$1,0)),"") -> 0.7985717323 | J18: =IFERROR(INDEX('Data Annex'!$K$1:$AS$6264,MATCH(J$1&"|"&$B18,'Data Annex'!$K$1:$K$6264,0),MATCH(J$2,'Data Annex'!$K$1:$AS$1,0)),"") -> 1.414505553 | K18: =IFERROR(INDEX('Data Annex'!$K$1:$AS$6264,MATCH(K$1&"|"&$B18,'Data Annex'!$K$1:$K$6264,0),MATCH(K$2,'Data Annex'!$K$1:$AS$1,0)),"") -> 1.404645379 | L18: =IFERROR(INDEX('Data Annex'!$K$1:$AS$6264,MATCH(L$1&"|"&$B18,'Data Annex'!$K$1:$K$6264,0),MATCH(L$2,'Data Annex'!$K$1:$AS$1,0)),"") -> 1.414505553 | M18: =IFERROR(INDEX('Data Annex'!$K$1:$AS$6264,MATCH(M$1&"|"&$B18,'Data Annex'!$K$1:$K$6264,0),MATCH(M$2,'Data Annex'!$K$1:$AS$1,0)),"") -> 1.404645379 | N18: =IFERROR(INDEX('Data Annex'!$K$1:$AS$6264,MATCH(N$1&"|"&$B18,'Data Annex'!$K$1:$K$6264,0),MATCH(N$2,'Data Annex'!$K$1:$AS$1,0)),"") -> 1.724584604 | O18: =IFERROR(INDEX('Data Annex'!$K$1:$AS$6264,MATCH(O$1&"|"&$B18,'Data Annex'!$K$1:$K$6264,0),MATCH(O$2,'Data Annex'!$K$1:$AS$1,0)),"") -> 1.060847783 | P18: =IFERROR(INDEX('Data Annex'!$K$1:$AS$6264,MATCH(P$1&"|"&$B18,'Data Annex'!$K$1:$K$6264,0),MATCH(P$2,'Data Annex'!$K$1:$AS$1,0)),"") -> 0.0385462185 | Q18: =IFERROR(INDEX('Data Annex'!$K$1:$AS$6264,MATCH(Q$1&"|"&$B18,'Data Annex'!$K$1:$K$6264,0),MATCH(Q$2,'Data Annex'!$K$1:$AS$1,0)),"") -> 0 | R18: =IFERROR(INDEX('Data Annex'!$K$1:$AS$6264,MATCH(R$1&"|"&$B18,'Data Annex'!$K$1:$K$6264,0),MATCH(R$2,'Data Annex'!$K$1:$AS$1,0)),"") -> 0.24388973 | S18: =IFERROR(INDEX('Data Annex'!$K$1:$AS$6264,MATCH(S$1&"|"&$B18,'Data Annex'!$K$1:$K$6264,0),MATCH(S$2,'Data Annex'!$K$1:$AS$1,0)),"") -> 0.1026283 | T18: =IFERROR(INDEX('Data Annex'!$K$1:$AS$6264,MATCH(T$1&"|"&$B18,'Data Annex'!$K$1:$K$6264,0),MATCH(T$2,'Data Annex'!$K$1:$AS$1,0)),"") -> 1.442010133 | U18: =IFERROR(INDEX('Data Annex'!$K$1:$AS$6264,MATCH(U$1&"|"&$B18,'Data Annex'!$K$1:$K$6264,0),MATCH(U$2,'Data Annex'!$K$1:$AS$1,0)),"") -> 0.9579812208
A19: 8 | B19: EE | D19: EE | F19: =IFERROR(INDEX('Data Annex'!$K$1:$AS$6264,MATCH(F$1&"|"&$B19,'Data Annex'!$K$1:$K$6264,0),MATCH(F$2,'Data Annex'!$K$1:$AS$1,0)),"") -> 7.59958756 | G19: =IFERROR(INDEX('Data Annex'!$K$1:$AS$6264,MATCH(G$1&"|"&$B19,'Data Annex'!$K$1:$K$6264,0),MATCH(G$2,'Data Annex'!$K$1:$AS$1,0)),"") -> 6.283914068 | H19: =IFERROR(INDEX('Data Annex'!$K$1:$AS$6264,MATCH(H$1&"|"&$B19,'Data Annex'!$K$1:$K$6264,0),MATCH(H$2,'Data Annex'!$K$1:$AS$1,0)),"") -> 2.90300806 | I19: =IFERROR(INDEX('Data Annex'!$K$1:$AS$6264,MATCH(I$1&"|"&$B19,'Data Annex'!$K$1:$K$6264,0),MATCH(I$2,'Data Annex'!$K$1:$AS$1,0)),"") -> 2.90165911 | J19: =IFERROR(INDEX('Data Annex'!$K$1:$AS$6264,MATCH(J$1&"|"&$B19,'Data Annex'!$K$1:$K$6264,0),MATCH(J$2,'Data Annex'!$K$1:$AS$1,0)),"") -> 0 | K19: =IFERROR(INDEX('Data Annex'!$K$1:$AS$6264,MATCH(K$1&"|"&$B19,'Data Annex'!$K$1:$K$6264,0),MATCH(K$2,'Data Annex'!$K$1:$AS$1,0)),"") -> 0 | L19: =IFERROR(INDEX('Data Annex'!$K$1:$AS$6264,MATCH(L$1&"|"&$B19,'Data Annex'!$K$1:$K$6264,0),MATCH(L$2,'Data Annex'!$K$1:$AS$1,0)),"") -> 0 | M19: =IFERROR(INDEX('Data Annex'!$K$1:$AS$6264,MATCH(M$1&"|"&$B19,'Data Annex'!$K$1:$K$6264,0),MATCH(M$2,'Data Annex'!$K$1:$AS$1,0)),"") -> 0 | N19: =IFERROR(INDEX('Data Annex'!$K$1:$AS$6264,MATCH(N$1&"|"&$B19,'Data Annex'!$K$1:$K$6264,0),MATCH(N$2,'Data Annex'!$K$1:$AS$1,0)),"") -> 4.6965795 | O19: =IFERROR(INDEX('Data Annex'!$K$1:$AS$6264,MATCH(O$1&"|"&$B19,'Data Annex'!$K$1:$K$6264,0),MATCH(O$2,'Data Annex'!$K$1:$AS$1,0)),"") -> 3.382254958 | P19: =IFERROR(INDEX('Data Annex'!$K$1:$AS$6264,MATCH(P$1&"|"&$B19,'Data Annex'!$K$1:$K$6264,0),MATCH(P$2,'Data Annex'!$K$1:$AS$1,0)),"") -> 0 | Q19: =IFERROR(INDEX('Data Annex'!$K$1:$AS$6264,MATCH(Q$1&"|"&$B19,'Data Annex'!$K$1:$K$6264,0),MATCH(Q$2,'Data Annex'!$K$1:$AS$1,0)),"") -> 0 | R19: =IFERROR(INDEX('Data Annex'!$K$1:$AS$6264,MATCH(R$1&"|"&$B19,'Data Annex'!$K$1:$K$6264,0),MATCH(R$2,'Data Annex'!$K$1:$AS$1,0)),"") -> 0 | S19: =IFERROR(INDEX('Data Annex'!$K$1:$AS$6264,MATCH(S$1&"|"&$B19,'Data Annex'!$K$1:$K$6264,0),MATCH(S$2,'Data Annex'!$K$1:$AS$1,0)),"") -> 0 | T19: =IFERROR(INDEX('Data Annex'!$K$1:$AS$6264,MATCH(T$1&"|"&$B19,'Data Annex'!$K$1:$K$6264,0),MATCH(T$2,'Data Annex'!$K$1:$AS$1,0)),"") -> 4.6965795 | U19: =IFERROR(INDEX('Data Annex'!$K$1:$AS$6264,MATCH(U$1&"|"&$B19,'Data Annex'!$K$1:$K$6264,0),MATCH(U$2,'Data Annex'!$K$1:$AS$1,0)),"") -> 3.382254958
A20: 9 | B20: ES | D20: ES | F20: =IFERROR(INDEX('Data Annex'!$K$1:$AS$6264,MATCH(F$1&"|"&$B20,'Data Annex'!$K$1:$K$6264,0),MATCH(F$2,'Data Annex'!$K$1:$AS$1,0)),"") -> 682.220182 | G20: =IFERROR(INDEX('Data Annex'!$K$1:$AS$6264,MATCH(G$1&"|"&$B20,'Data Annex'!$K$1:$K$6264,0),MATCH(G$2,'Data Annex'!$K$1:$AS$1,0)),"") -> 671.603912 | H20: =IFERROR(INDEX('Data Annex'!$K$1:$AS$6264,MATCH(H$1&"|"&$B20,'Data Annex'!$K$1:$K$6264,0),MATCH(H$2,'Data Annex'!$K$1:$AS$1,0)),"") -> 18.488 | I20: =IFERROR(INDEX('Data Annex'!$K$1:$AS$6264,MATCH(I$1&"|"&$B20,'Data Annex'!$K$1:$K$6264,0),MATCH(I$2,'Data Annex'!$K$1:$AS$1,0)),"") -> 14.88 | J20: =IFERROR(INDEX('Data Annex'!$K$1:$AS$6264,MATCH(J$1&"|"&$B20,'Data Annex'!$K$1:$K$6264,0),MATCH(J$2,'Data Annex'!$K$1:$AS$1,0)),"") ->  | K20: =IFERROR(INDEX('Data Annex'!$K$1:$AS$6264,MATCH(K$1&"|"&$B20,'Data Annex'!$K$1:$K$6264,0),MATCH(K$2,'Data Annex'!$K$1:$AS$1,0)),"") ->  | L20: =IFERROR(INDEX('Data Annex'!$K$1:$AS$6264,MATCH(L$1&"|"&$B20,'Data Annex'!$K$1:$K$6264,0),MATCH(L$2,'Data Annex'!$K$1:$AS$1,0)),"") ->  | M20: =IFERROR(INDEX('Data Annex'!$K$1:$AS$6264,MATCH(M$1&"|"&$B20,'Data Annex'!$K$1:$K$6264,0),MATCH(M$2,'Data Annex'!$K$1:$AS$1,0)),"") ->  | N20: =IFERROR(INDEX('Data Annex'!$K$1:$AS$6264,MATCH(N$1&"|"&$B20,'Data Annex'!$K$1:$K$6264,0),MATCH(N$2,'Data Annex'!$K$1:$AS$1,0)),"") -> 663.732182 | O20: =IFERROR(INDEX('Data Annex'!$K$1:$AS$6264,MATCH(O$1&"|"&$B20,'Data Annex'!$K$1:$K$6264,0),MATCH(O$2,'Data Annex'!$K$1:$AS$1,0)),"") -> 656.723912 | P20: =IFERROR(INDEX('Data Annex'!$K$1:$AS$6264,MATCH(P$1&"|"&$B20,'Data Annex'!$K$1:$K$6264,0),MATCH(P$2,'Data Annex'!$K$1:$AS$1,0)),"") -> 7.98 | Q20: =IFERROR(INDEX('Data Annex'!$K$1:$AS$6264,MATCH(Q$1&"|"&$B20,'Data Annex'!$K$1:$K$6264,0),MATCH(Q$2,'Data Annex'!$K$1:$AS$1,0)),"") -> 2.859 | R20: =IFERROR(INDEX('Data Annex'!$K$1:$AS$6264,MATCH(R$1&"|"&$B20,'Data Annex'!$K$1:$K$6264,0),MATCH(R$2,'Data Annex'!$K$1:$AS$1,0)),"") -> 9.154562 | S20: =IFERROR(INDEX('Data Annex'!$K$1:$AS$6264,MATCH(S$1&"|"&$B20,'Data Annex'!$K$1:$K$6264,0),MATCH(S$2,'Data Annex'!$K$1:$AS$1,0)),"") -> 15.098105 | T20: =IFERROR(INDEX('Data Annex'!$K$1:$AS$6264,MATCH(T$1&"|"&$B20,'Data Annex'!$K$1:$K$6264,0),MATCH(T$2,'Data Annex'!$K$1:$AS$1,0)),"") -> 646.59762 | U20: =IFERROR(INDEX('Data Annex'!$K$1:$AS$6264,MATCH(U$1&"|"&$B20,'Data Annex'!$K$1:$K$6264,0),MATCH(U$2,'Data Annex'!$K$1:$AS$1,0)),"") -> 638.766807
A21: 10 | B21: FI | D21: FI | F21: =IFERROR(INDEX('Data Annex'!$K$1:$AS$6264,MATCH(F$1&"|"&$B21,'Data Annex'!$K$1:$K$6264,0),MATCH(F$2,'Data Annex'!$K$1:$AS$1,0)),"") -> 675.2788059 | G21: =IFERROR(INDEX('Data Annex'!$K$1:$AS$6264,MATCH(G$1&"|"&$B21,'Data Annex'!$K$1:$K$6264,0),MATCH(G$2,'Data Annex'!$K$1:$AS$1,0)),"") -> 361.2545999 | H21: =IFERROR(INDEX('Data Annex'!$K$1:$AS$6264,MATCH(H$1&"|"&$B21,'Data Annex'!$K$1:$K$6264,0),MATCH(H$2,'Data Annex'!$K$1:$AS$1,0)),"") -> 127.0944211 | I21: =IFERROR(INDEX('Data Annex'!$K$1:$AS$6264,MATCH(I$1&"|"&$B21,'Data Annex'!$K$1:$K$6264,0),MATCH(I$2,'Data Annex'!$K$1:$AS$1,0)),"") -> 207.1799793 | J21: =IFERROR(INDEX('Data Annex'!$K$1:$AS$6264,MATCH(J$1&"|"&$B21,'Data Annex'!$K$1:$K$6264,0),MATCH(J$2,'Data Annex'!$K$1:$AS$1,0)),"") -> 107.446478 | K21: =IFERROR(INDEX('Data Annex'!$K$1:$AS$6264,MATCH(K$1&"|"&$B21,'Data Annex'!$K$1:$K$6264,0),MATCH(K$2,'Data Annex'!$K$1:$AS$1,0)),"") -> 0 | L21: =IFERROR(INDEX('Data Annex'!$K$1:$AS$6264,MATCH(L$1&"|"&$B21,'Data Annex'!$K$1:$K$6264,0),MATCH(L$2,'Data Annex'!$K$1:$AS$1,0)),"") -> 107.446478 | M21: =IFERROR(INDEX('Data Annex'!$K$1:$AS$6264,MATCH(M$1&"|"&$B21,'Data Annex'!$K$1:$K$6264,0),MATCH(M$2,'Data Annex'!$K$1:$AS$1,0)),"") -> 0 | N21: =IFERROR(INDEX('Data Annex'!$K$1:$AS$6264,MATCH(N$1&"|"&$B21,'Data Annex'!$K$1:$K$6264,0),MATCH(N$2,'Data Annex'!$K$1:$AS$1,0)),"") -> 206.0904158 | O21: =IFERROR(INDEX('Data Annex'!$K$1:$AS$6264,MATCH(O$1&"|"&$B21,'Data Annex'!$K$1:$K$6264,0),MATCH(O$2,'Data Annex'!$K$1:$AS$1,0)),"") -> 141.3522776 | P21: =IFERROR(INDEX('Data Annex'!$K$1:$AS$6264,MATCH(P$1&"|"&$B21,'Data Annex'!$K$1:$K$6264,0),MATCH(P$2,'Data Annex'!$K$1:$AS$1,0)),"") -> 10.2863344 | Q21: =IFERROR(INDEX('Data Annex'!$K$1:$AS$6264,MATCH(Q$1&"|"&$B21,'Data Annex'!$K$1:$K$6264,0),MATCH(Q$2,'Data Annex'!$K$1:$AS$1,0)),"") -> 35.71470767 | R21: =IFERROR(INDEX('Data Annex'!$K$1:$AS$6264,MATCH(R$1&"|"&$B21,'Data Annex'!$K$1:$K$6264,0),MATCH(R$2,'Data Annex'!$K$1:$AS$1,0)),"") -> 173.271638 | S21: =IFERROR(INDEX('Data Annex'!$K$1:$AS$6264,MATCH(S$1&"|"&$B21,'Data Annex'!$K$1:$K$6264,0),MATCH(S$2,'Data Annex'!$K$1:$AS$1,0)),"") -> 88.180737 | T21: =IFERROR(INDEX('Data Annex'!$K$1:$AS$6264,MATCH(T$1&"|"&$B21,'Data Annex'!$K$1:$K$6264,0),MATCH(T$2,'Data Annex'!$K$1:$AS$1,0)),"") -> 20.86185936 | U21: =IFERROR(INDEX('Data Annex'!$K$1:$AS$6264,MATCH(U$1&"|"&$B21,'Data Annex'!$K$1:$K$6264,0),MATCH(U$2,'Data Annex'!$K$1:$AS$1,0)),"") -> 17.45322095
A22: 11 | B22: FR | D22: FR | F22: =IFERROR(INDEX('Data Annex'!$K$1:$AS$6264,MATCH(F$1&"|"&$B22,'Data Annex'!$K$1:$K$6264,0),MATCH(F$2,'Data Annex'!$K$1:$AS$1,0)),"") -> 20912.09936 | G22: =IFERROR(INDEX('Data Annex'!$K$1:$AS$6264,MATCH(G$1&"|"&$B22,'Data Annex'!$K$1:$K$6264,0),MATCH(G$2,'Data Annex'!$K$1:$AS$1,0)),"") -> 24233.93354 | H22: =IFERROR(INDEX('Data Annex'!$K$1:$AS$6264,MATCH(H$1&"|"&$B22,'Data Annex'!$K$1:$K$6264,0),MATCH(H$2,'Data Annex'!$K$1:$AS$1,0)),"") -> 811.794152 | I22: =IFERROR(INDEX('Data Annex'!$K$1:$AS$6264,MATCH(I$1&"|"&$B22,'Data Annex'!$K$1:$K$6264,0),MATCH(I$2,'Data Annex'!$K$1:$AS$1,0)),"") -> 3054.081644 | J22: =IFERROR(INDEX('Data Annex'!$K$1:$AS$6264,MATCH(J$1&"|"&$B22,'Data Annex'!$K$1:$K$6264,0),MATCH(J$2,'Data Annex'!$K$1:$AS$1,0)),"") -> 2224.816437 | K22: =IFERROR(INDEX('Data Annex'!$K$1:$AS$6264,MATCH(K$1&"|"&$B22,'Data Annex'!$K$1:$K$6264,0),MATCH(K$2,'Data Annex'!$K$1:$AS$1,0)),"") -> 1368.226738 | L22: =IFERROR(INDEX('Data Annex'!$K$1:$AS$6264,MATCH(L$1&"|"&$B22,'Data Annex'!$K$1:$K$6264,0),MATCH(L$2,'Data Annex'!$K$1:$AS$1,0)),"") -> 2167.749964 | M22: =IFERROR(INDEX('Data Annex'!$K$1:$AS$6264,MATCH(M$1&"|"&$B22,'Data Annex'!$K$1:$K$6264,0),MATCH(M$2,'Data Annex'!$K$1:$AS$1,0)),"") -> 1314.793146 | N22: =IFERROR(INDEX('Data Annex'!$K$1:$AS$6264,MATCH(N$1&"|"&$B22,'Data Annex'!$K$1:$K$6264,0),MATCH(N$2,'Data Annex'!$K$1:$AS$1,0)),"") -> 17294.79433 | O22: =IFERROR(INDEX('Data Annex'!$K$1:$AS$6264,MATCH(O$1&"|"&$B22,'Data Annex'!$K$1:$K$6264,0),MATCH(O$2,'Data Annex'!$K$1:$AS$1,0)),"") -> 19162.04163 | P22: =IFERROR(INDEX('Data Annex'!$K$1:$AS$6264,MATCH(P$1&"|"&$B22,'Data Annex'!$K$1:$K$6264,0),MATCH(P$2,'Data Annex'!$K$1:$AS$1,0)),"") -> 1423.024008 | Q22: =IFERROR(INDEX('Data Annex'!$K$1:$AS$6264,MATCH(Q$1&"|"&$B22,'Data Annex'!$K$1:$K$6264,0),MATCH(Q$2,'Data Annex'!$K$1:$AS$1,0)),"") -> 1182.152747 | R22: =IFERROR(INDEX('Data Annex'!$K$1:$AS$6264,MATCH(R$1&"|"&$B22,'Data Annex'!$K$1:$K$6264,0),MATCH(R$2,'Data Annex'!$K$1:$AS$1,0)),"") -> 8626.788547 | S22: =IFERROR(INDEX('Data Annex'!$K$1:$AS$6264,MATCH(S$1&"|"&$B22,'Data Annex'!$K$1:$K$6264,0),MATCH(S$2,'Data Annex'!$K$1:$AS$1,0)),"") -> 10066.155 | T22: =IFERROR(INDEX('Data Annex'!$K$1:$AS$6264,MATCH(T$1&"|"&$B22,'Data Annex'!$K$1:$K$6264,0),MATCH(T$2,'Data Annex'!$K$1:$AS$1,0)),"") -> 6786.897356 | U22: =IFERROR(INDEX('Data Annex'!$K$1:$AS$6264,MATCH(U$1&"|"&$B22,'Data Annex'!$K$1:$K$6264,0),MATCH(U$2,'Data Annex'!$K$1:$AS$1,0)),"") -> 6963.161903
A23: 12 | B23: GR | D23: GR | F23: =IFERROR(INDEX('Data Annex'!$K$1:$AS$6264,MATCH(F$1&"|"&$B23,'Data Annex'!$K$1:$K$6264,0),MATCH(F$2,'Data Annex'!$K$1:$AS$1,0)),"") ->  | G23: =IFERROR(INDEX('Data Annex'!$K$1:$AS$6264,MATCH(G$1&"|"&$B23,'Data Annex'!$K$1:$K$6264,0),MATCH(G$2,'Data Annex'!$K$1:$AS$1,0)),"") ->  | H23: =IFERROR(INDEX('Data Annex'!$K$1:$AS$6264,MATCH(H$1&"|"&$B23,'Data Annex'!$K$1:$K$6264,0),MATCH(H$2,'Data Annex'!$K$1:$AS$1,0)),"") ->  | I23: =IFERROR(INDEX('Data Annex'!$K$1:$AS$6264,MATCH(I$1&"|"&$B23,'Data Annex'!$K$1:$K$6264,0),MATCH(I$2,'Data Annex'!$K$1:$AS$1,0)),"") ->  | J23: =IFERROR(INDEX('Data Annex'!$K$1:$AS$6264,MATCH(J$1&"|"&$B23,'Data Annex'!$K$1:$K$6264,0),MATCH(J$2,'Data Annex'!$K$1:$AS$1,0)),"") ->  | K23: =IFERROR(INDEX('Data Annex'!$K$1:$AS$6264,MATCH(K$1&"|"&$B23,'Data Annex'!$K$1:$K$6264,0),MATCH(K$2,'Data Annex'!$K$1:$AS$1,0)),"") ->  | L23: =IFERROR(INDEX('Data Annex'!$K$1:$AS$6264,MATCH(L$1&"|"&$B23,'Data Annex'!$K$1:$K$6264,0),MATCH(L$2,'Data Annex'!$K$1:$AS$1,0)),"") ->  | M23: =IFERROR(INDEX('Data Annex'!$K$1:$AS$6264,MATCH(M$1&"|"&$B23,'Data Annex'!$K$1:$K$6264,0),MATCH(M$2,'Data Annex'!$K$1:$AS$1,0)),"") ->  | N23: =IFERROR(INDEX('Data Annex'!$K$1:$AS$6264,MATCH(N$1&"|"&$B23,'Data Annex'!$K$1:$K$6264,0),MATCH(N$2,'Data Annex'!$K$1:$AS$1,0)),"") ->  | O23: =IFERROR(INDEX('Data Annex'!$K$1:$AS$6264,MATCH(O$1&"|"&$B23,'Data Annex'!$K$1:$K$6264,0),MATCH(O$2,'Data Annex'!$K$1:$AS$1,0)),"") ->  | P23: =IFERROR(INDEX('Data Annex'!$K$1:$AS$6264,MATCH(P$1&"|"&$B23,'Data Annex'!$K$1:$K$6264,0),MATCH(P$2,'Data Annex'!$K$1:$AS$1,0)),"") ->  | Q23: =IFERROR(INDEX('Data Annex'!$K$1:$AS$6264,MATCH(Q$1&"|"&$B23,'Data Annex'!$K$1:$K$6264,0),MATCH(Q$2,'Data Annex'!$K$1:$AS$1,0)),"") ->  | R23: =IFERROR(INDEX('Data Annex'!$K$1:$AS$6264,MATCH(R$1&"|"&$B23,'Data Annex'!$K$1:$K$6264,0),MATCH(R$2,'Data Annex'!$K$1:$AS$1,0)),"") ->  | S23: =IFERROR(INDEX('Data Annex'!$K$1:$AS$6264,MATCH(S$1&"|"&$B23,'Data Annex'!$K$1:$K$6264,0),MATCH(S$2,'Data Annex'!$K$1:$AS$1,0)),"") ->  | T23: =IFERROR(INDEX('Data Annex'!$K$1:$AS$6264,MATCH(T$1&"|"&$B23,'Data Annex'!$K$1:$K$6264,0),MATCH(T$2,'Data Annex'!$K$1:$AS$1,0)),"") ->  | U23: =IFERROR(INDEX('Data Annex'!$K$1:$AS$6264,MATCH(U$1&"|"&$B23,'Data Annex'!$K$1:$K$6264,0),MATCH(U$2,'Data Annex'!$K$1:$AS$1,0)),"") -> 
A24: 13 | B24: HR | D24: HR | F24: =IFERROR(INDEX('Data Annex'!$K$1:$AS$6264,MATCH(F$1&"|"&$B24,'Data Annex'!$K$1:$K$6264,0),MATCH(F$2,'Data Annex'!$K$1:$AS$1,0)),"") -> 9.815966695 | G24: =IFERROR(INDEX('Data Annex'!$K$1:$AS$6264,MATCH(G$1&"|"&$B24,'Data Annex'!$K$1:$K$6264,0),MATCH(G$2,'Data Annex'!$K$1:$AS$1,0)),"") -> 8.45609848 | H24: =IFERROR(INDEX('Data Annex'!$K$1:$AS$6264,MATCH(H$1&"|"&$B24,'Data Annex'!$K$1:$K$6264,0),MATCH(H$2,'Data Annex'!$K$1:$AS$1,0)),"") -> 0.000618542843 | I24: =IFERROR(INDEX('Data Annex'!$K$1:$AS$6264,MATCH(I$1&"|"&$B24,'Data Annex'!$K$1:$K$6264,0),MATCH(I$2,'Data Annex'!$K$1:$AS$1,0)),"") -> 0.02064859758 | J24: =IFERROR(INDEX('Data Annex'!$K$1:$AS$6264,MATCH(J$1&"|"&$B24,'Data Annex'!$K$1:$K$6264,0),MATCH(J$2,'Data Annex'!$K$1:$AS$1,0)),"") ->  | K24: =IFERROR(INDEX('Data Annex'!$K$1:$AS$6264,MATCH(K$1&"|"&$B24,'Data Annex'!$K$1:$K$6264,0),MATCH(K$2,'Data Annex'!$K$1:$AS$1,0)),"") ->  | L24: =IFERROR(INDEX('Data Annex'!$K$1:$AS$6264,MATCH(L$1&"|"&$B24,'Data Annex'!$K$1:$K$6264,0),MATCH(L$2,'Data Annex'!$K$1:$AS$1,0)),"") ->  | M24: =IFERROR(INDEX('Data Annex'!$K$1:$AS$6264,MATCH(M$1&"|"&$B24,'Data Annex'!$K$1:$K$6264,0),MATCH(M$2,'Data Annex'!$K$1:$AS$1,0)),"") ->  | N24: =IFERROR(INDEX('Data Annex'!$K$1:$AS$6264,MATCH(N$1&"|"&$B24,'Data Annex'!$K$1:$K$6264,0),MATCH(N$2,'Data Annex'!$K$1:$AS$1,0)),"") -> 9.815348152 | O24: =IFERROR(INDEX('Data Annex'!$K$1:$AS$6264,MATCH(O$1&"|"&$B24,'Data Annex'!$K$1:$K$6264,0),MATCH(O$2,'Data Annex'!$K$1:$AS$1,0)),"") -> 8.435449883 | P24: =IFERROR(INDEX('Data Annex'!$K$1:$AS$6264,MATCH(P$1&"|"&$B24,'Data Annex'!$K$1:$K$6264,0),MATCH(P$2,'Data Annex'!$K$1:$AS$1,0)),"") -> 0 | Q24: =IFERROR(INDEX('Data Annex'!$K$1:$AS$6264,MATCH(Q$1&"|"&$B24,'Data Annex'!$K$1:$K$6264,0),MATCH(Q$2,'Data Annex'!$K$1:$AS$1,0)),"") -> 0 | R24: =IFERROR(INDEX('Data Annex'!$K$1:$AS$6264,MATCH(R$1&"|"&$B24,'Data Annex'!$K$1:$K$6264,0),MATCH(R$2,'Data Annex'!$K$1:$AS$1,0)),"") -> 9.5693043 | S24: =IFERROR(INDEX('Data Annex'!$K$1:$AS$6264,MATCH(S$1&"|"&$B24,'Data Annex'!$K$1:$K$6264,0),MATCH(S$2,'Data Annex'!$K$1:$AS$1,0)),"") -> 8.160871604 | T24: =IFERROR(INDEX('Data Annex'!$K$1:$AS$6264,MATCH(T$1&"|"&$B24,'Data Annex'!$K$1:$K$6264,0),MATCH(T$2,'Data Annex'!$K$1:$AS$1,0)),"") -> 0.2460254015 | U24: =IFERROR(INDEX('Data Annex'!$K$1:$AS$6264,MATCH(U$1&"|"&$B24,'Data Annex'!$K$1:$K$6264,0),MATCH(U$2,'Data Annex'!$K$1:$AS$1,0)),"") -> 0.2745636955
A25: 14 | B25: HU | D25: HU | F25: =IFERROR(INDEX('Data Annex'!$K$1:$AS$6264,MATCH(F$1&"|"&$B25,'Data Annex'!$K$1:$K$6264,0),MATCH(F$2,'Data Annex'!$K$1:$AS$1,0)),"") -> 2241.058488 | G25: =IFERROR(INDEX('Data Annex'!$K$1:$AS$6264,MATCH(G$1&"|"&$B25,'Data Annex'!$K$1:$K$6264,0),MATCH(G$2,'Data Annex'!$K$1:$AS$1,0)),"") -> 2741.867599 | H25: =IFERROR(INDEX('Data Annex'!$K$1:$AS$6264,MATCH(H$1&"|"&$B25,'Data Annex'!$K$1:$K$6264,0),MATCH(H$2,'Data Annex'!$K$1:$AS$1,0)),"") -> 20.75158338 | I25: =IFERROR(INDEX('Data Annex'!$K$1:$AS$6264,MATCH(I$1&"|"&$B25,'Data Annex'!$K$1:$K$6264,0),MATCH(I$2,'Data Annex'!$K$1:$AS$1,0)),"") -> 43.49091453 | J25: =IFERROR(INDEX('Data Annex'!$K$1:$AS$6264,MATCH(J$1&"|"&$B25,'Data Annex'!$K$1:$K$6264,0),MATCH(J$2,'Data Annex'!$K$1:$AS$1,0)),"") -> 411.1525796 | K25: =IFERROR(INDEX('Data Annex'!$K$1:$AS$6264,MATCH(K$1&"|"&$B25,'Data Annex'!$K$1:$K$6264,0),MATCH(K$2,'Data Annex'!$K$1:$AS$1,0)),"") -> 459.5454059 | L25: =IFERROR(INDEX('Data Annex'!$K$1:$AS$6264,MATCH(L$1&"|"&$B25,'Data Annex'!$K$1:$K$6264,0),MATCH(L$2,'Data Annex'!$K$1:$AS$1,0)),"") -> 380.8583437 | M25: =IFERROR(INDEX('Data Annex'!$K$1:$AS$6264,MATCH(M$1&"|"&$B25,'Data Annex'!$K$1:$K$6264,0),MATCH(M$2,'Data Annex'!$K$1:$AS$1,0)),"") -> 450.3662475 | N25: =IFERROR(INDEX('Data Annex'!$K$1:$AS$6264,MATCH(N$1&"|"&$B25,'Data Annex'!$K$1:$K$6264,0),MATCH(N$2,'Data Annex'!$K$1:$AS$1,0)),"") -> 1809.154325 | O25: =IFERROR(INDEX('Data Annex'!$K$1:$AS$6264,MATCH(O$1&"|"&$B25,'Data Annex'!$K$1:$K$6264,0),MATCH(O$2,'Data Annex'!$K$1:$AS$1,0)),"") -> 2238.831278 | P25: =IFERROR(INDEX('Data Annex'!$K$1:$AS$6264,MATCH(P$1&"|"&$B25,'Data Annex'!$K$1:$K$6264,0),MATCH(P$2,'Data Annex'!$K$1:$AS$1,0)),"") -> 55.85265833 | Q25: =IFERROR(INDEX('Data Annex'!$K$1:$AS$6264,MATCH(Q$1&"|"&$B25,'Data Annex'!$K$1:$K$6264,0),MATCH(Q$2,'Data Annex'!$K$1:$AS$1,0)),"") -> 118.2490109 | R25: =IFERROR(INDEX('Data Annex'!$K$1:$AS$6264,MATCH(R$1&"|"&$B25,'Data Annex'!$K$1:$K$6264,0),MATCH(R$2,'Data Annex'!$K$1:$AS$1,0)),"") -> 238.6113909 | S25: =IFERROR(INDEX('Data Annex'!$K$1:$AS$6264,MATCH(S$1&"|"&$B25,'Data Annex'!$K$1:$K$6264,0),MATCH(S$2,'Data Annex'!$K$1:$AS$1,0)),"") -> 411.2952759 | T25: =IFERROR(INDEX('Data Annex'!$K$1:$AS$6264,MATCH(T$1&"|"&$B25,'Data Annex'!$K$1:$K$6264,0),MATCH(T$2,'Data Annex'!$K$1:$AS$1,0)),"") -> 1514.690276 | U25: =IFERROR(INDEX('Data Annex'!$K$1:$AS$6264,MATCH(U$1&"|"&$B25,'Data Annex'!$K$1:$K$6264,0),MATCH(U$2,'Data Annex'!$K$1:$AS$1,0)),"") -> 1708.800403
A26: 15 | B26: IE | D26: IE | F26: =IFERROR(INDEX('Data Annex'!$K$1:$AS$6264,MATCH(F$1&"|"&$B26,'Data Annex'!$K$1:$K$6264,0),MATCH(F$2,'Data Annex'!$K$1:$AS$1,0)),"") -> 80.1089625 | G26: =IFERROR(INDEX('Data Annex'!$K$1:$AS$6264,MATCH(G$1&"|"&$B26,'Data Annex'!$K$1:$K$6264,0),MATCH(G$2,'Data Annex'!$K$1:$AS$1,0)),"") -> 101.3280698 | H26: =IFERROR(INDEX('Data Annex'!$K$1:$AS$6264,MATCH(H$1&"|"&$B26,'Data Annex'!$K$1:$K$6264,0),MATCH(H$2,'Data Annex'!$K$1:$AS$1,0)),"") -> 1.76209821 | I26: =IFERROR(INDEX('Data Annex'!$K$1:$AS$6264,MATCH(I$1&"|"&$B26,'Data Annex'!$K$1:$K$6264,0),MATCH(I$2,'Data Annex'!$K$1:$AS$1,0)),"") -> 4.235007394 | J26: =IFERROR(INDEX('Data Annex'!$K$1:$AS$6264,MATCH(J$1&"|"&$B26,'Data Annex'!$K$1:$K$6264,0),MATCH(J$2,'Data Annex'!$K$1:$AS$1,0)),"") -> 3e-08 | K26: =IFERROR(INDEX('Data Annex'!$K$1:$AS$6264,MATCH(K$1&"|"&$B26,'Data Annex'!$K$1:$K$6264,0),MATCH(K$2,'Data Annex'!$K$1:$AS$1,0)),"") -> 4e-08 | L26: =IFERROR(INDEX('Data Annex'!$K$1:$AS$6264,MATCH(L$1&"|"&$B26,'Data Annex'!$K$1:$K$6264,0),MATCH(L$2,'Data Annex'!$K$1:$AS$1,0)),"") ->  | M26: =IFERROR(INDEX('Data Annex'!$K$1:$AS$6264,MATCH(M$1&"|"&$B26,'Data Annex'!$K$1:$K$6264,0),MATCH(M$2,'Data Annex'!$K$1:$AS$1,0)),"") ->  | N26: =IFERROR(INDEX('Data Annex'!$K$1:$AS$6264,MATCH(N$1&"|"&$B26,'Data Annex'!$K$1:$K$6264,0),MATCH(N$2,'Data Annex'!$K$1:$AS$1,0)),"") -> 78.34686426 | O26: =IFERROR(INDEX('Data Annex'!$K$1:$AS$6264,MATCH(O$1&"|"&$B26,'Data Annex'!$K$1:$K$6264,0),MATCH(O$2,'Data Annex'!$K$1:$AS$1,0)),"") -> 97.0930624 | P26: =IFERROR(INDEX('Data Annex'!$K$1:$AS$6264,MATCH(P$1&"|"&$B26,'Data Annex'!$K$1:$K$6264,0),MATCH(P$2,'Data Annex'!$K$1:$AS$1,0)),"") -> 0.65077186 | Q26: =IFERROR(INDEX('Data Annex'!$K$1:$AS$6264,MATCH(Q$1&"|"&$B26,'Data Annex'!$K$1:$K$6264,0),MATCH(Q$2,'Data Annex'!$K$1:$AS$1,0)),"") -> 1.77270055 | R26: =IFERROR(INDEX('Data Annex'!$K$1:$AS$6264,MATCH(R$1&"|"&$B26,'Data Annex'!$K$1:$K$6264,0),MATCH(R$2,'Data Annex'!$K$1:$AS$1,0)),"") -> 35.60845186 | S26: =IFERROR(INDEX('Data Annex'!$K$1:$AS$6264,MATCH(S$1&"|"&$B26,'Data Annex'!$K$1:$K$6264,0),MATCH(S$2,'Data Annex'!$K$1:$AS$1,0)),"") -> 52.73682193 | T26: =IFERROR(INDEX('Data Annex'!$K$1:$AS$6264,MATCH(T$1&"|"&$B26,'Data Annex'!$K$1:$K$6264,0),MATCH(T$2,'Data Annex'!$K$1:$AS$1,0)),"") -> 42.08764054 | U26: =IFERROR(INDEX('Data Annex'!$K$1:$AS$6264,MATCH(U$1&"|"&$B26,'Data Annex'!$K$1:$K$6264,0),MATCH(U$2,'Data Annex'!$K$1:$AS$1,0)),"") -> 42.58353992
A27: 16 | B27: IS | D27: IS | F27: =IFERROR(INDEX('Data Annex'!$K$1:$AS$6264,MATCH(F$1&"|"&$B27,'Data Annex'!$K$1:$K$6264,0),MATCH(F$2,'Data Annex'!$K$1:$AS$1,0)),"") -> 0.003894047782 | G27: =IFERROR(INDEX('Data Annex'!$K$1:$AS$6264,MATCH(G$1&"|"&$B27,'Data Annex'!$K$1:$K$6264,0),MATCH(G$2,'Data Annex'!$K$1:$AS$1,0)),"") -> 0.009127086721 | H27: =IFERROR(INDEX('Data Annex'!$K$1:$AS$6264,MATCH(H$1&"|"&$B27,'Data Annex'!$K$1:$K$6264,0),MATCH(H$2,'Data Annex'!$K$1:$AS$1,0)),"") ->  | I27: =IFERROR(INDEX('Data Annex'!$K$1:$AS$6264,MATCH(I$1&"|"&$B27,'Data Annex'!$K$1:$K$6264,0),MATCH(I$2,'Data Annex'!$K$1:$AS$1,0)),"") ->  | J27: =IFERROR(INDEX('Data Annex'!$K$1:$AS$6264,MATCH(J$1&"|"&$B27,'Data Annex'!$K$1:$K$6264,0),MATCH(J$2,'Data Annex'!$K$1:$AS$1,0)),"") ->  | K27: =IFERROR(INDEX('Data Annex'!$K$1:$AS$6264,MATCH(K$1&"|"&$B27,'Data Annex'!$K$1:$K$6264,0),MATCH(K$2,'Data Annex'!$K$1:$AS$1,0)),"") ->  | L27: =IFERROR(INDEX('Data Annex'!$K$1:$AS$6264,MATCH(L$1&"|"&$B27,'Data Annex'!$K$1:$K$6264,0),MATCH(L$2,'Data Annex'!$K$1:$AS$1,0)),"") ->  | M27: =IFERROR(INDEX('Data Annex'!$K$1:$AS$6264,MATCH(M$1&"|"&$B27,'Data Annex'!$K$1:$K$6264,0),MATCH(M$2,'Data Annex'!$K$1:$AS$1,0)),"") ->  | N27: =IFERROR(INDEX('Data Annex'!$K$1:$AS$6264,MATCH(N$1&"|"&$B27,'Data Annex'!$K$1:$K$6264,0),MATCH(N$2,'Data Annex'!$K$1:$AS$1,0)),"") -> 0.003894047782 | O27: =IFERROR(INDEX('Data Annex'!$K$1:$AS$6264,MATCH(O$1&"|"&$B27,'Data Annex'!$K$1:$K$6264,0),MATCH(O$2,'Data Annex'!$K$1:$AS$1,0)),"") -> 0.009127086721 | P27: =IFERROR(INDEX('Data Annex'!$K$1:$AS$6264,MATCH(P$1&"|"&$B27,'Data Annex'!$K$1:$K$6264,0),MATCH(P$2,'Data Annex'!$K$1:$AS$1,0)),"") -> 0 | Q27: =IFERROR(INDEX('Data Annex'!$K$1:$AS$6264,MATCH(Q$1&"|"&$B27,'Data Annex'!$K$1:$K$6264,0),MATCH(Q$2,'Data Annex'!$K$1:$AS$1,0)),"") -> 0 | R27: =IFERROR(INDEX('Data Annex'!$K$1:$AS$6264,MATCH(R$1&"|"&$B27,'Data Annex'!$K$1:$K$6264,0),MATCH(R$2,'Data Annex'!$K$1:$AS$1,0)),"") -> 0 | S27: =IFERROR(INDEX('Data Annex'!$K$1:$AS$6264,MATCH(S$1&"|"&$B27,'Data Annex'!$K$1:$K$6264,0),MATCH(S$2,'Data Annex'!$K$1:$AS$1,0)),"") -> 0 | T27: =IFERROR(INDEX('Data Annex'!$K$1:$AS$6264,MATCH(T$1&"|"&$B27,'Data Annex'!$K$1:$K$6264,0),MATCH(T$2,'Data Annex'!$K$1:$AS$1,0)),"") -> 0.003894047782 | U27: =IFERROR(INDEX('Data Annex'!$K$1:$AS$6264,MATCH(U$1&"|"&$B27,'Data Annex'!$K$1:$K$6264,0),MATCH(U$2,'Data Annex'!$K$1:$AS$1,0)),"") -> 0.009127086721
A28: 17 | B28: IT | D28: IT | F28: =IFERROR(INDEX('Data Annex'!$K$1:$AS$6264,MATCH(F$1&"|"&$B28,'Data Annex'!$K$1:$K$6264,0),MATCH(F$2,'Data Annex'!$K$1:$AS$1,0)),"") -> 21296.50816 | G28: =IFERROR(INDEX('Data Annex'!$K$1:$AS$6264,MATCH(G$1&"|"&$B28,'Data Annex'!$K$1:$K$6264,0),MATCH(G$2,'Data Annex'!$K$1:$AS$1,0)),"") -> 21799.83411 | H28: =IFERROR(INDEX('Data Annex'!$K$1:$AS$6264,MATCH(H$1&"|"&$B28,'Data Annex'!$K$1:$K$6264,0),MATCH(H$2,'Data Annex'!$K$1:$AS$1,0)),"") -> 434.155401 | I28: =IFERROR(INDEX('Data Annex'!$K$1:$AS$6264,MATCH(I$1&"|"&$B28,'Data Annex'!$K$1:$K$6264,0),MATCH(I$2,'Data Annex'!$K$1:$AS$1,0)),"") -> 406.53146 | J28: =IFERROR(INDEX('Data Annex'!$K$1:$AS$6264,MATCH(J$1&"|"&$B28,'Data Annex'!$K$1:$K$6264,0),MATCH(J$2,'Data Annex'!$K$1:$AS$1,0)),"") -> 1572.594824 | K28: =IFERROR(INDEX('Data Annex'!$K$1:$AS$6264,MATCH(K$1&"|"&$B28,'Data Annex'!$K$1:$K$6264,0),MATCH(K$2,'Data Annex'!$K$1:$AS$1,0)),"") -> 1279.542129 | L28: =IFERROR(INDEX('Data Annex'!$K$1:$AS$6264,MATCH(L$1&"|"&$B28,'Data Annex'!$K$1:$K$6264,0),MATCH(L$2,'Data Annex'!$K$1:$AS$1,0)),"") -> 1447.232824 | M28: =IFERROR(INDEX('Data Annex'!$K$1:$AS$6264,MATCH(M$1&"|"&$B28,'Data Annex'!$K$1:$K$6264,0),MATCH(M$2,'Data Annex'!$K$1:$AS$1,0)),"") -> 1156.549129 | N28: =IFERROR(INDEX('Data Annex'!$K$1:$AS$6264,MATCH(N$1&"|"&$B28,'Data Annex'!$K$1:$K$6264,0),MATCH(N$2,'Data Annex'!$K$1:$AS$1,0)),"") -> 19282.61894 | O28: =IFERROR(INDEX('Data Annex'!$K$1:$AS$6264,MATCH(O$1&"|"&$B28,'Data Annex'!$K$1:$K$6264,0),MATCH(O$2,'Data Annex'!$K$1:$AS$1,0)),"") -> 20111.88252 | P28: =IFERROR(INDEX('Data Annex'!$K$1:$AS$6264,MATCH(P$1&"|"&$B28,'Data Annex'!$K$1:$K$6264,0),MATCH(P$2,'Data Annex'!$K$1:$AS$1,0)),"") -> 2402.683151 | Q28: =IFERROR(INDEX('Data Annex'!$K$1:$AS$6264,MATCH(Q$1&"|"&$B28,'Data Annex'!$K$1:$K$6264,0),MATCH(Q$2,'Data Annex'!$K$1:$AS$1,0)),"") -> 2385.594485 | R28: =IFERROR(INDEX('Data Annex'!$K$1:$AS$6264,MATCH(R$1&"|"&$B28,'Data Annex'!$K$1:$K$6264,0),MATCH(R$2,'Data Annex'!$K$1:$AS$1,0)),"") -> 14890.30014 | S28: =IFERROR(INDEX('Data Annex'!$K$1:$AS$6264,MATCH(S$1&"|"&$B28,'Data Annex'!$K$1:$K$6264,0),MATCH(S$2,'Data Annex'!$K$1:$AS$1,0)),"") -> 15564.21606 | T28: =IFERROR(INDEX('Data Annex'!$K$1:$AS$6264,MATCH(T$1&"|"&$B28,'Data Annex'!$K$1:$K$6264,0),MATCH(T$2,'Data Annex'!$K$1:$AS$1,0)),"") -> 1958.484058 | U28: =IFERROR(INDEX('Data Annex'!$K$1:$AS$6264,MATCH(U$1&"|"&$B28,'Data Annex'!$K$1:$K$6264,0),MATCH(U$2,'Data Annex'!$K$1:$AS$1,0)),"") -> 1980.257399
A29: 19 | B29: LT | D29: LT | F29: =IFERROR(INDEX('Data Annex'!$K$1:$AS$6264,MATCH(F$1&"|"&$B29,'Data Annex'!$K$1:$K$6264,0),MATCH(F$2,'Data Annex'!$K$1:$AS$1,0)),"") -> 5.762 | G29: =IFERROR(INDEX('Data Annex'!$K$1:$AS$6264,MATCH(G$1&"|"&$B29,'Data Annex'!$K$1:$K$6264,0),MATCH(G$2,'Data Annex'!$K$1:$AS$1,0)),"") -> 5.123 | H29: =IFERROR(INDEX('Data Annex'!$K$1:$AS$6264,MATCH(H$1&"|"&$B29,'Data Annex'!$K$1:$K$6264,0),MATCH(H$2,'Data Annex'!$K$1:$AS$1,0)),"") -> 4.935 | I29: =IFERROR(INDEX('Data Annex'!$K$1:$AS$6264,MATCH(I$1&"|"&$B29,'Data Annex'!$K$1:$K$6264,0),MATCH(I$2,'Data Annex'!$K$1:$AS$1,0)),"") -> 3.468 | J29: =IFERROR(INDEX('Data Annex'!$K$1:$AS$6264,MATCH(J$1&"|"&$B29,'Data Annex'!$K$1:$K$6264,0),MATCH(J$2,'Data Annex'!$K$1:$AS$1,0)),"") ->  | K29: =IFERROR(INDEX('Data Annex'!$K$1:$AS$6264,MATCH(K$1&"|"&$B29,'Data Annex'!$K$1:$K$6264,0),MATCH(K$2,'Data Annex'!$K$1:$AS$1,0)),"") ->  | L29: =IFERROR(INDEX('Data Annex'!$K$1:$AS$6264,MATCH(L$1&"|"&$B29,'Data Annex'!$K$1:$K$6264,0),MATCH(L$2,'Data Annex'!$K$1:$AS$1,0)),"") ->  | M29: =IFERROR(INDEX('Data Annex'!$K$1:$AS$6264,MATCH(M$1&"|"&$B29,'Data Annex'!$K$1:$K$6264,0),MATCH(M$2,'Data Annex'!$K$1:$AS$1,0)),"") ->  | N29: =IFERROR(INDEX('Data Annex'!$K$1:$AS$6264,MATCH(N$1&"|"&$B29,'Data Annex'!$K$1:$K$6264,0),MATCH(N$2,'Data Annex'!$K$1:$AS$1,0)),"") -> 0.827 | O29: =IFERROR(INDEX('Data Annex'!$K$1:$AS$6264,MATCH(O$1&"|"&$B29,'Data Annex'!$K$1:$K$6264,0),MATCH(O$2,'Data Annex'!$K$1:$AS$1,0)),"") -> 1.655 | P29: =IFERROR(INDEX('Data Annex'!$K$1:$AS$6264,MATCH(P$1&"|"&$B29,'Data Annex'!$K$1:$K$6264,0),MATCH(P$2,'Data Annex'!$K$1:$AS$1,0)),"") -> 0 | Q29: =IFERROR(INDEX('Data Annex'!$K$1:$AS$6264,MATCH(Q$1&"|"&$B29,'Data Annex'!$K$1:$K$6264,0),MATCH(Q$2,'Data Annex'!$K$1:$AS$1,0)),"") -> 0 | R29: =IFERROR(INDEX('Data Annex'!$K$1:$AS$6264,MATCH(R$1&"|"&$B29,'Data Annex'!$K$1:$K$6264,0),MATCH(R$2,'Data Annex'!$K$1:$AS$1,0)),"") ->  | S29: =IFERROR(INDEX('Data Annex'!$K$1:$AS$6264,MATCH(S$1&"|"&$B29,'Data Annex'!$K$1:$K$6264,0),MATCH(S$2,'Data Annex'!$K$1:$AS$1,0)),"") ->  | T29: =IFERROR(INDEX('Data Annex'!$K$1:$AS$6264,MATCH(T$1&"|"&$B29,'Data Annex'!$K$1:$K$6264,0),MATCH(T$2,'Data Annex'!$K$1:$AS$1,0)),"") -> 0.827 | U29: =IFERROR(INDEX('Data Annex'!$K$1:$AS$6264,MATCH(U$1&"|"&$B29,'Data Annex'!$K$1:$K$6264,0),MATCH(U$2,'Data Annex'!$K$1:$AS$1,0)),"") -> 1.655
A30: 20 | B30: LU | D30: LU | F30: =IFERROR(INDEX('Data Annex'!$K$1:$AS$6264,MATCH(F$1&"|"&$B30,'Data Annex'!$K$1:$K$6264,0),MATCH(F$2,'Data Annex'!$K$1:$AS$1,0)),"") -> 795.3577943 | G30: =IFERROR(INDEX('Data Annex'!$K$1:$AS$6264,MATCH(G$1&"|"&$B30,'Data Annex'!$K$1:$K$6264,0),MATCH(G$2,'Data Annex'!$K$1:$AS$1,0)),"") -> 686.0828404 | H30: =IFERROR(INDEX('Data Annex'!$K$1:$AS$6264,MATCH(H$1&"|"&$B30,'Data Annex'!$K$1:$K$6264,0),MATCH(H$2,'Data Annex'!$K$1:$AS$1,0)),"") -> 1.17930931 | I30: =IFERROR(INDEX('Data Annex'!$K$1:$AS$6264,MATCH(I$1&"|"&$B30,'Data Annex'!$K$1:$K$6264,0),MATCH(I$2,'Data Annex'!$K$1:$AS$1,0)),"") -> 16.86859069 | J30: =IFERROR(INDEX('Data Annex'!$K$1:$AS$6264,MATCH(J$1&"|"&$B30,'Data Annex'!$K$1:$K$6264,0),MATCH(J$2,'Data Annex'!$K$1:$AS$1,0)),"") -> 0 | K30: =IFERROR(INDEX('Data Annex'!$K$1:$AS$6264,MATCH(K$1&"|"&$B30,'Data Annex'!$K$1:$K$6264,0),MATCH(K$2,'Data Annex'!$K$1:$AS$1,0)),"") -> 0 | L30: =IFERROR(INDEX('Data Annex'!$K$1:$AS$6264,MATCH(L$1&"|"&$B30,'Data Annex'!$K$1:$K$6264,0),MATCH(L$2,'Data Annex'!$K$1:$AS$1,0)),"") -> 0 | M30: =IFERROR(INDEX('Data Annex'!$K$1:$AS$6264,MATCH(M$1&"|"&$B30,'Data Annex'!$K$1:$K$6264,0),MATCH(M$2,'Data Annex'!$K$1:$AS$1,0)),"") -> 0 | N30: =IFERROR(INDEX('Data Annex'!$K$1:$AS$6264,MATCH(N$1&"|"&$B30,'Data Annex'!$K$1:$K$6264,0),MATCH(N$2,'Data Annex'!$K$1:$AS$1,0)),"") -> 794.1784849 | O30: =IFERROR(INDEX('Data Annex'!$K$1:$AS$6264,MATCH(O$1&"|"&$B30,'Data Annex'!$K$1:$K$6264,0),MATCH(O$2,'Data Annex'!$K$1:$AS$1,0)),"") -> 669.2142497 | P30: =IFERROR(INDEX('Data Annex'!$K$1:$AS$6264,MATCH(P$1&"|"&$B30,'Data Annex'!$K$1:$K$6264,0),MATCH(P$2,'Data Annex'!$K$1:$AS$1,0)),"") -> 0.69162202 | Q30: =IFERROR(INDEX('Data Annex'!$K$1:$AS$6264,MATCH(Q$1&"|"&$B30,'Data Annex'!$K$1:$K$6264,0),MATCH(Q$2,'Data Annex'!$K$1:$AS$1,0)),"") -> 1.04379323 | R30: =IFERROR(INDEX('Data Annex'!$K$1:$AS$6264,MATCH(R$1&"|"&$B30,'Data Annex'!$K$1:$K$6264,0),MATCH(R$2,'Data Annex'!$K$1:$AS$1,0)),"") -> 723.7804585 | S30: =IFERROR(INDEX('Data Annex'!$K$1:$AS$6264,MATCH(S$1&"|"&$B30,'Data Annex'!$K$1:$K$6264,0),MATCH(S$2,'Data Annex'!$K$1:$AS$1,0)),"") -> 617.9458619 | T30: =IFERROR(INDEX('Data Annex'!$K$1:$AS$6264,MATCH(T$1&"|"&$B30,'Data Annex'!$K$1:$K$6264,0),MATCH(T$2,'Data Annex'!$K$1:$AS$1,0)),"") -> 69.70640438 | U30: =IFERROR(INDEX('Data Annex'!$K$1:$AS$6264,MATCH(U$1&"|"&$B30,'Data Annex'!$K$1:$K$6264,0),MATCH(U$2,'Data Annex'!$K$1:$AS$1,0)),"") -> 50.22459451
A31: 21 | B31: LV | D31: LV | F31: =IFERROR(INDEX('Data Annex'!$K$1:$AS$6264,MATCH(F$1&"|"&$B31,'Data Annex'!$K$1:$K$6264,0),MATCH(F$2,'Data Annex'!$K$1:$AS$1,0)),"") -> 10.640738 | G31: =IFERROR(INDEX('Data Annex'!$K$1:$AS$6264,MATCH(G$1&"|"&$B31,'Data Annex'!$K$1:$K$6264,0),MATCH(G$2,'Data Annex'!$K$1:$AS$1,0)),"") -> 9.81841566 | H31: =IFERROR(INDEX('Data Annex'!$K$1:$AS$6264,MATCH(H$1&"|"&$B31,'Data Annex'!$K$1:$K$6264,0),MATCH(H$2,'Data Annex'!$K$1:$AS$1,0)),"") -> 1.292535 | I31: =IFERROR(INDEX('Data Annex'!$K$1:$AS$6264,MATCH(I$1&"|"&$B31,'Data Annex'!$K$1:$K$6264,0),MATCH(I$2,'Data Annex'!$K$1:$AS$1,0)),"") -> 1.20615237 | J31: =IFERROR(INDEX('Data Annex'!$K$1:$AS$6264,MATCH(J$1&"|"&$B31,'Data Annex'!$K$1:$K$6264,0),MATCH(J$2,'Data Annex'!$K$1:$AS$1,0)),"") -> 0 | K31: =IFERROR(INDEX('Data Annex'!$K$1:$AS$6264,MATCH(K$1&"|"&$B31,'Data Annex'!$K$1:$K$6264,0),MATCH(K$2,'Data Annex'!$K$1:$AS$1,0)),"") -> 0 | L31: =IFERROR(INDEX('Data Annex'!$K$1:$AS$6264,MATCH(L$1&"|"&$B31,'Data Annex'!$K$1:$K$6264,0),MATCH(L$2,'Data Annex'!$K$1:$AS$1,0)),"") ->  | M31: =IFERROR(INDEX('Data Annex'!$K$1:$AS$6264,MATCH(M$1&"|"&$B31,'Data Annex'!$K$1:$K$6264,0),MATCH(M$2,'Data Annex'!$K$1:$AS$1,0)),"") ->  | N31: =IFERROR(INDEX('Data Annex'!$K$1:$AS$6264,MATCH(N$1&"|"&$B31,'Data Annex'!$K$1:$K$6264,0),MATCH(N$2,'Data Annex'!$K$1:$AS$1,0)),"") -> 9.348203 | O31: =IFERROR(INDEX('Data Annex'!$K$1:$AS$6264,MATCH(O$1&"|"&$B31,'Data Annex'!$K$1:$K$6264,0),MATCH(O$2,'Data Annex'!$K$1:$AS$1,0)),"") -> 8.61226329 | P31: =IFERROR(INDEX('Data Annex'!$K$1:$AS$6264,MATCH(P$1&"|"&$B31,'Data Annex'!$K$1:$K$6264,0),MATCH(P$2,'Data Annex'!$K$1:$AS$1,0)),"") -> 0 | Q31: =IFERROR(INDEX('Data Annex'!$K$1:$AS$6264,MATCH(Q$1&"|"&$B31,'Data Annex'!$K$1:$K$6264,0),MATCH(Q$2,'Data Annex'!$K$1:$AS$1,0)),"") -> 0 | R31: =IFERROR(INDEX('Data Annex'!$K$1:$AS$6264,MATCH(R$1&"|"&$B31,'Data Annex'!$K$1:$K$6264,0),MATCH(R$2,'Data Annex'!$K$1:$AS$1,0)),"") -> 2.164073 | S31: =IFERROR(INDEX('Data Annex'!$K$1:$AS$6264,MATCH(S$1&"|"&$B31,'Data Annex'!$K$1:$K$6264,0),MATCH(S$2,'Data Annex'!$K$1:$AS$1,0)),"") -> 0.27165298 | T31: =IFERROR(INDEX('Data Annex'!$K$1:$AS$6264,MATCH(T$1&"|"&$B31,'Data Annex'!$K$1:$K$6264,0),MATCH(T$2,'Data Annex'!$K$1:$AS$1,0)),"") -> 7.18413 | U31: =IFERROR(INDEX('Data Annex'!$K$1:$AS$6264,MATCH(U$1&"|"&$B31,'Data Annex'!$K$1:$K$6264,0),MATCH(U$2,'Data Annex'!$K$1:$AS$1,0)),"") -> 8.34061031
A32: 22 | B32: MT | D32: MT | F32: =IFERROR(INDEX('Data Annex'!$K$1:$AS$6264,MATCH(F$1&"|"&$B32,'Data Annex'!$K$1:$K$6264,0),MATCH(F$2,'Data Annex'!$K$1:$AS$1,0)),"") -> 2.60225332 | G32: =IFERROR(INDEX('Data Annex'!$K$1:$AS$6264,MATCH(G$1&"|"&$B32,'Data Annex'!$K$1:$K$6264,0),MATCH(G$2,'Data Annex'!$K$1:$AS$1,0)),"") -> 2.56565023 | H32: =IFERROR(INDEX('Data Annex'!$K$1:$AS$6264,MATCH(H$1&"|"&$B32,'Data Annex'!$K$1:$K$6264,0),MATCH(H$2,'Data Annex'!$K$1:$AS$1,0)),"") -> 0 | I32: =IFERROR(INDEX('Data Annex'!$K$1:$AS$6264,MATCH(I$1&"|"&$B32,'Data Annex'!$K$1:$K$6264,0),MATCH(I$2,'Data Annex'!$K$1:$AS$1,0)),"") -> 0 | J32: =IFERROR(INDEX('Data Annex'!$K$1:$AS$6264,MATCH(J$1&"|"&$B32,'Data Annex'!$K$1:$K$6264,0),MATCH(J$2,'Data Annex'!$K$1:$AS$1,0)),"") -> 0 | K32: =IFERROR(INDEX('Data Annex'!$K$1:$AS$6264,MATCH(K$1&"|"&$B32,'Data Annex'!$K$1:$K$6264,0),MATCH(K$2,'Data Annex'!$K$1:$AS$1,0)),"") -> 0 | L32: =IFERROR(INDEX('Data Annex'!$K$1:$AS$6264,MATCH(L$1&"|"&$B32,'Data Annex'!$K$1:$K$6264,0),MATCH(L$2,'Data Annex'!$K$1:$AS$1,0)),"") -> 0 | M32: =IFERROR(INDEX('Data Annex'!$K$1:$AS$6264,MATCH(M$1&"|"&$B32,'Data Annex'!$K$1:$K$6264,0),MATCH(M$2,'Data Annex'!$K$1:$AS$1,0)),"") -> 0 | N32: =IFERROR(INDEX('Data Annex'!$K$1:$AS$6264,MATCH(N$1&"|"&$B32,'Data Annex'!$K$1:$K$6264,0),MATCH(N$2,'Data Annex'!$K$1:$AS$1,0)),"") -> 2.60225332 | O32: =IFERROR(INDEX('Data Annex'!$K$1:$AS$6264,MATCH(O$1&"|"&$B32,'Data Annex'!$K$1:$K$6264,0),MATCH(O$2,'Data Annex'!$K$1:$AS$1,0)),"") -> 2.56565023 | P32: =IFERROR(INDEX('Data Annex'!$K$1:$AS$6264,MATCH(P$1&"|"&$B32,'Data Annex'!$K$1:$K$6264,0),MATCH(P$2,'Data Annex'!$K$1:$AS$1,0)),"") -> 0 | Q32: =IFERROR(INDEX('Data Annex'!$K$1:$AS$6264,MATCH(Q$1&"|"&$B32,'Data Annex'!$K$1:$K$6264,0),MATCH(Q$2,'Data Annex'!$K$1:$AS$1,0)),"") -> 0 | R32: =IFERROR(INDEX('Data Annex'!$K$1:$AS$6264,MATCH(R$1&"|"&$B32,'Data Annex'!$K$1:$K$6264,0),MATCH(R$2,'Data Annex'!$K$1:$AS$1,0)),"") -> 0 | S32: =IFERROR(INDEX('Data Annex'!$K$1:$AS$6264,MATCH(S$1&"|"&$B32,'Data Annex'!$K$1:$K$6264,0),MATCH(S$2,'Data Annex'!$K$1:$AS$1,0)),"") -> 0 | T32: =IFERROR(INDEX('Data Annex'!$K$1:$AS$6264,MATCH(T$1&"|"&$B32,'Data Annex'!$K$1:$K$6264,0),MATCH(T$2,'Data Annex'!$K$1:$AS$1,0)),"") -> 2.60225332 | U32: =IFERROR(INDEX('Data Annex'!$K$1:$AS$6264,MATCH(U$1&"|"&$B32,'Data Annex'!$K$1:$K$6264,0),MATCH(U$2,'Data Annex'!$K$1:$AS$1,0)),"") -> 2.56565023
A33: 23 | B33: NL | D33: NL | F33: =IFERROR(INDEX('Data Annex'!$K$1:$AS$6264,MATCH(F$1&"|"&$B33,'Data Annex'!$K$1:$K$6264,0),MATCH(F$2,'Data Annex'!$K$1:$AS$1,0)),"") -> 5442.358409 | G33: =IFERROR(INDEX('Data Annex'!$K$1:$AS$6264,MATCH(G$1&"|"&$B33,'Data Annex'!$K$1:$K$6264,0),MATCH(G$2,'Data Annex'!$K$1:$AS$1,0)),"") -> 4607.065959 | H33: =IFERROR(INDEX('Data Annex'!$K$1:$AS$6264,MATCH(H$1&"|"&$B33,'Data Annex'!$K$1:$K$6264,0),MATCH(H$2,'Data Annex'!$K$1:$AS$1,0)),"") -> 104.7787918 | I33: =IFERROR(INDEX('Data Annex'!$K$1:$AS$6264,MATCH(I$1&"|"&$B33,'Data Annex'!$K$1:$K$6264,0),MATCH(I$2,'Data Annex'!$K$1:$AS$1,0)),"") -> 45.29989684 | J33: =IFERROR(INDEX('Data Annex'!$K$1:$AS$6264,MATCH(J$1&"|"&$B33,'Data Annex'!$K$1:$K$6264,0),MATCH(J$2,'Data Annex'!$K$1:$AS$1,0)),"") -> 349.643 | K33: =IFERROR(INDEX('Data Annex'!$K$1:$AS$6264,MATCH(K$1&"|"&$B33,'Data Annex'!$K$1:$K$6264,0),MATCH(K$2,'Data Annex'!$K$1:$AS$1,0)),"") -> 182.443 | L33: =IFERROR(INDEX('Data Annex'!$K$1:$AS$6264,MATCH(L$1&"|"&$B33,'Data Annex'!$K$1:$K$6264,0),MATCH(L$2,'Data Annex'!$K$1:$AS$1,0)),"") -> 337.445 | M33: =IFERROR(INDEX('Data Annex'!$K$1:$AS$6264,MATCH(M$1&"|"&$B33,'Data Annex'!$K$1:$K$6264,0),MATCH(M$2,'Data Annex'!$K$1:$AS$1,0)),"") -> 180.059 | N33: =IFERROR(INDEX('Data Annex'!$K$1:$AS$6264,MATCH(N$1&"|"&$B33,'Data Annex'!$K$1:$K$6264,0),MATCH(N$2,'Data Annex'!$K$1:$AS$1,0)),"") -> 4533.227618 | O33: =IFERROR(INDEX('Data Annex'!$K$1:$AS$6264,MATCH(O$1&"|"&$B33,'Data Annex'!$K$1:$K$6264,0),MATCH(O$2,'Data Annex'!$K$1:$AS$1,0)),"") -> 4095.515062 | P33: =IFERROR(INDEX('Data Annex'!$K$1:$AS$6264,MATCH(P$1&"|"&$B33,'Data Annex'!$K$1:$K$6264,0),MATCH(P$2,'Data Annex'!$K$1:$AS$1,0)),"") -> 548.3498073 | Q33: =IFERROR(INDEX('Data Annex'!$K$1:$AS$6264,MATCH(Q$1&"|"&$B33,'Data Annex'!$K$1:$K$6264,0),MATCH(Q$2,'Data Annex'!$K$1:$AS$1,0)),"") -> 485.4555167 | R33: =IFERROR(INDEX('Data Annex'!$K$1:$AS$6264,MATCH(R$1&"|"&$B33,'Data Annex'!$K$1:$K$6264,0),MATCH(R$2,'Data Annex'!$K$1:$AS$1,0)),"") -> 3982.36149 | S33: =IFERROR(INDEX('Data Annex'!$K$1:$AS$6264,MATCH(S$1&"|"&$B33,'Data Annex'!$K$1:$K$6264,0),MATCH(S$2,'Data Annex'!$K$1:$AS$1,0)),"") -> 3604.284343 | T33: =IFERROR(INDEX('Data Annex'!$K$1:$AS$6264,MATCH(T$1&"|"&$B33,'Data Annex'!$K$1:$K$6264,0),MATCH(T$2,'Data Annex'!$K$1:$AS$1,0)),"") -> 2.50832 | U33: =IFERROR(INDEX('Data Annex'!$K$1:$AS$6264,MATCH(U$1&"|"&$B33,'Data Annex'!$K$1:$K$6264,0),MATCH(U$2,'Data Annex'!$K$1:$AS$1,0)),"") -> 5.767203
A34: 24 | B34: NO | D34: NO* | F34: =IFERROR(INDEX('Data Annex'!$K$1:$AS$6264,MATCH(F$1&"|"&$B34,'Data Annex'!$K$1:$K$6264,0),MATCH(F$2,'Data Annex'!$K$1:$AS$1,0)),"") -> n.a. | G34: =IFERROR(INDEX('Data Annex'!$K$1:$AS$6264,MATCH(G$1&"|"&$B34,'Data Annex'!$K$1:$K$6264,0),MATCH(G$2,'Data Annex'!$K$1:$AS$1,0)),"") -> n.a. | H34: n.a. | I34: n.a. | J34: n.a. | K34: n.a. | L34: n.a. | M34: n.a. | N34: =IFERROR(INDEX('Data Annex'!$K$1:$AS$6264,MATCH(N$1&"|"&$B34,'Data Annex'!$K$1:$K$6264,0),MATCH(N$2,'Data Annex'!$K$1:$AS$1,0)),"") -> n.a. | O34: =IFERROR(INDEX('Data Annex'!$K$1:$AS$6264,MATCH(O$1&"|"&$B34,'Data Annex'!$K$1:$K$6264,0),MATCH(O$2,'Data Annex'!$K$1:$AS$1,0)),"") -> n.a. | P34: =IFERROR(INDEX('Data Annex'!$K$1:$AS$6264,MATCH(P$1&"|"&$B34,'Data Annex'!$K$1:$K$6264,0),MATCH(P$2,'Data Annex'!$K$1:$AS$1,0)),"") -> n.a. | Q34: =IFERROR(INDEX('Data Annex'!$K$1:$AS$6264,MATCH(Q$1&"|"&$B34,'Data Annex'!$K$1:$K$6264,0),MATCH(Q$2,'Data Annex'!$K$1:$AS$1,0)),"") -> n.a. | R34: n.a. | S34: n.a. | T34: =IFERROR(INDEX('Data Annex'!$K$1:$AS$6264,MATCH(T$1&"|"&$B34,'Data Annex'!$K$1:$K$6264,0),MATCH(T$2,'Data Annex'!$K$1:$AS$1,0)),"") -> n.a. | U34: =IFERROR(INDEX('Data Annex'!$K$1:$AS$6264,MATCH(U$1&"|"&$B34,'Data Annex'!$K$1:$K$6264,0),MATCH(U$2,'Data Annex'!$K$1:$AS$1,0)),"") -> n.a.
A35: 25 | B35: PL | D35: PL | F35: =IFERROR(INDEX('Data Annex'!$K$1:$AS$6264,MATCH(F$1&"|"&$B35,'Data Annex'!$K$1:$K$6264,0),MATCH(F$2,'Data Annex'!$K$1:$AS$1,0)),"") ->  | G35: =IFERROR(INDEX('Data Annex'!$K$1:$AS$6264,MATCH(G$1&"|"&$B35,'Data Annex'!$K$1:$K$6264,0),MATCH(G$2,'Data Annex'!$K$1:$AS$1,0)),"") ->  | H35: =IFERROR(INDEX('Data Annex'!$K$1:$AS$6264,MATCH(H$1&"|"&$B35,'Data Annex'!$K$1:$K$6264,0),MATCH(H$2,'Data Annex'!$K$1:$AS$1,0)),"") ->  | I35: =IFERROR(INDEX('Data Annex'!$K$1:$AS$6264,MATCH(I$1&"|"&$B35,'Data Annex'!$K$1:$K$6264,0),MATCH(I$2,'Data Annex'!$K$1:$AS$1,0)),"") ->  | J35: =IFERROR(INDEX('Data Annex'!$K$1:$AS$6264,MATCH(J$1&"|"&$B35,'Data Annex'!$K$1:$K$6264,0),MATCH(J$2,'Data Annex'!$K$1:$AS$1,0)),"") ->  | K35: =IFERROR(INDEX('Data Annex'!$K$1:$AS$6264,MATCH(K$1&"|"&$B35,'Data Annex'!$K$1:$K$6264,0),MATCH(K$2,'Data Annex'!$K$1:$AS$1,0)),"") ->  | L35: =IFERROR(INDEX('Data Annex'!$K$1:$AS$6264,MATCH(L$1&"|"&$B35,'Data Annex'!$K$1:$K$6264,0),MATCH(L$2,'Data Annex'!$K$1:$AS$1,0)),"") ->  | M35: =IFERROR(INDEX('Data Annex'!$K$1:$AS$6264,MATCH(M$1&"|"&$B35,'Data Annex'!$K$1:$K$6264,0),MATCH(M$2,'Data Annex'!$K$1:$AS$1,0)),"") ->  | N35: =IFERROR(INDEX('Data Annex'!$K$1:$AS$6264,MATCH(N$1&"|"&$B35,'Data Annex'!$K$1:$K$6264,0),MATCH(N$2,'Data Annex'!$K$1:$AS$1,0)),"") ->  | O35: =IFERROR(INDEX('Data Annex'!$K$1:$AS$6264,MATCH(O$1&"|"&$B35,'Data Annex'!$K$1:$K$6264,0),MATCH(O$2,'Data Annex'!$K$1:$AS$1,0)),"") ->  | P35: =IFERROR(INDEX('Data Annex'!$K$1:$AS$6264,MATCH(P$1&"|"&$B35,'Data Annex'!$K$1:$K$6264,0),MATCH(P$2,'Data Annex'!$K$1:$AS$1,0)),"") ->  | Q35: =IFERROR(INDEX('Data Annex'!$K$1:$AS$6264,MATCH(Q$1&"|"&$B35,'Data Annex'!$K$1:$K$6264,0),MATCH(Q$2,'Data Annex'!$K$1:$AS$1,0)),"") ->  | R35: =IFERROR(INDEX('Data Annex'!$K$1:$AS$6264,MATCH(R$1&"|"&$B35,'Data Annex'!$K$1:$K$6264,0),MATCH(R$2,'Data Annex'!$K$1:$AS$1,0)),"") ->  | S35: =IFERROR(INDEX('Data Annex'!$K$1:$AS$6264,MATCH(S$1&"|"&$B35,'Data Annex'!$K$1:$K$6264,0),MATCH(S$2,'Data Annex'!$K$1:$AS$1,0)),"") ->  | T35: =IFERROR(INDEX('Data Annex'!$K$1:$AS$6264,MATCH(T$1&"|"&$B35,'Data Annex'!$K$1:$K$6264,0),MATCH(T$2,'Data Annex'!$K$1:$AS$1,0)),"") ->  | U35: =IFERROR(INDEX('Data Annex'!$K$1:$AS$6264,MATCH(U$1&"|"&$B35,'Data Annex'!$K$1:$K$6264,0),MATCH(U$2,'Data Annex'!$K$1:$AS$1,0)),"") -> 
A36: 26 | B36: PT | D36: PT | F36: =IFERROR(INDEX('Data Annex'!$K$1:$AS$6264,MATCH(F$1&"|"&$B36,'Data Annex'!$K$1:$K$6264,0),MATCH(F$2,'Data Annex'!$K$1:$AS$1,0)),"") -> 9.90932561 | G36: =IFERROR(INDEX('Data Annex'!$K$1:$AS$6264,MATCH(G$1&"|"&$B36,'Data Annex'!$K$1:$K$6264,0),MATCH(G$2,'Data Annex'!$K$1:$AS$1,0)),"") -> 12.12785604 | H36: =IFERROR(INDEX('Data Annex'!$K$1:$AS$6264,MATCH(H$1&"|"&$B36,'Data Annex'!$K$1:$K$6264,0),MATCH(H$2,'Data Annex'!$K$1:$AS$1,0)),"") -> 0.001 | I36: =IFERROR(INDEX('Data Annex'!$K$1:$AS$6264,MATCH(I$1&"|"&$B36,'Data Annex'!$K$1:$K$6264,0),MATCH(I$2,'Data Annex'!$K$1:$AS$1,0)),"") -> 0.149 | J36: =IFERROR(INDEX('Data Annex'!$K$1:$AS$6264,MATCH(J$1&"|"&$B36,'Data Annex'!$K$1:$K$6264,0),MATCH(J$2,'Data Annex'!$K$1:$AS$1,0)),"") ->  | K36: =IFERROR(INDEX('Data Annex'!$K$1:$AS$6264,MATCH(K$1&"|"&$B36,'Data Annex'!$K$1:$K$6264,0),MATCH(K$2,'Data Annex'!$K$1:$AS$1,0)),"") ->  | L36: =IFERROR(INDEX('Data Annex'!$K$1:$AS$6264,MATCH(L$1&"|"&$B36,'Data Annex'!$K$1:$K$6264,0),MATCH(L$2,'Data Annex'!$K$1:$AS$1,0)),"") ->  | M36: =IFERROR(INDEX('Data Annex'!$K$1:$AS$6264,MATCH(M$1&"|"&$B36,'Data Annex'!$K$1:$K$6264,0),MATCH(M$2,'Data Annex'!$K$1:$AS$1,0)),"") ->  | N36: =IFERROR(INDEX('Data Annex'!$K$1:$AS$6264,MATCH(N$1&"|"&$B36,'Data Annex'!$K$1:$K$6264,0),MATCH(N$2,'Data Annex'!$K$1:$AS$1,0)),"") -> 9.90832561 | O36: =IFERROR(INDEX('Data Annex'!$K$1:$AS$6264,MATCH(O$1&"|"&$B36,'Data Annex'!$K$1:$K$6264,0),MATCH(O$2,'Data Annex'!$K$1:$AS$1,0)),"") -> 11.97885604 | P36: =IFERROR(INDEX('Data Annex'!$K$1:$AS$6264,MATCH(P$1&"|"&$B36,'Data Annex'!$K$1:$K$6264,0),MATCH(P$2,'Data Annex'!$K$1:$AS$1,0)),"") -> 0 | Q36: =IFERROR(INDEX('Data Annex'!$K$1:$AS$6264,MATCH(Q$1&"|"&$B36,'Data Annex'!$K$1:$K$6264,0),MATCH(Q$2,'Data Annex'!$K$1:$AS$1,0)),"") -> 0 | R36: =IFERROR(INDEX('Data Annex'!$K$1:$AS$6264,MATCH(R$1&"|"&$B36,'Data Annex'!$K$1:$K$6264,0),MATCH(R$2,'Data Annex'!$K$1:$AS$1,0)),"") -> 0 | S36: =IFERROR(INDEX('Data Annex'!$K$1:$AS$6264,MATCH(S$1&"|"&$B36,'Data Annex'!$K$1:$K$6264,0),MATCH(S$2,'Data Annex'!$K$1:$AS$1,0)),"") -> 1.127568 | T36: =IFERROR(INDEX('Data Annex'!$K$1:$AS$6264,MATCH(T$1&"|"&$B36,'Data Annex'!$K$1:$K$6264,0),MATCH(T$2,'Data Annex'!$K$1:$AS$1,0)),"") -> 9.90832561 | U36: =IFERROR(INDEX('Data Annex'!$K$1:$AS$6264,MATCH(U$1&"|"&$B36,'Data Annex'!$K$1:$K$6264,0),MATCH(U$2,'Data Annex'!$K$1:$AS$1,0)),"") -> 10.85128804
A37: 27 | B37: RO | D37: RO | F37: =IFERROR(INDEX('Data Annex'!$K$1:$AS$6264,MATCH(F$1&"|"&$B37,'Data Annex'!$K$1:$K$6264,0),MATCH(F$2,'Data Annex'!$K$1:$AS$1,0)),"") -> 4.799796672 | G37: =IFERROR(INDEX('Data Annex'!$K$1:$AS$6264,MATCH(G$1&"|"&$B37,'Data Annex'!$K$1:$K$6264,0),MATCH(G$2,'Data Annex'!$K$1:$AS$1,0)),"") -> 1.178861386 | H37: =IFERROR(INDEX('Data Annex'!$K$1:$AS$6264,MATCH(H$1&"|"&$B37,'Data Annex'!$K$1:$K$6264,0),MATCH(H$2,'Data Annex'!$K$1:$AS$1,0)),"") -> 0.371505276 | I37: =IFERROR(INDEX('Data Annex'!$K$1:$AS$6264,MATCH(I$1&"|"&$B37,'Data Annex'!$K$1:$K$6264,0),MATCH(I$2,'Data Annex'!$K$1:$AS$1,0)),"") -> 1.133254193 | J37: =IFERROR(INDEX('Data Annex'!$K$1:$AS$6264,MATCH(J$1&"|"&$B37,'Data Annex'!$K$1:$K$6264,0),MATCH(J$2,'Data Annex'!$K$1:$AS$1,0)),"") -> 0 | K37: =IFERROR(INDEX('Data Annex'!$K$1:$AS$6264,MATCH(K$1&"|"&$B37,'Data Annex'!$K$1:$K$6264,0),MATCH(K$2,'Data Annex'!$K$1:$AS$1,0)),"") -> 0 | L37: =IFERROR(INDEX('Data Annex'!$K$1:$AS$6264,MATCH(L$1&"|"&$B37,'Data Annex'!$K$1:$K$6264,0),MATCH(L$2,'Data Annex'!$K$1:$AS$1,0)),"") -> 0 | M37: =IFERROR(INDEX('Data Annex'!$K$1:$AS$6264,MATCH(M$1&"|"&$B37,'Data Annex'!$K$1:$K$6264,0),MATCH(M$2,'Data Annex'!$K$1:$AS$1,0)),"") -> 0 | N37: =IFERROR(INDEX('Data Annex'!$K$1:$AS$6264,MATCH(N$1&"|"&$B37,'Data Annex'!$K$1:$K$6264,0),MATCH(N$2,'Data Annex'!$K$1:$AS$1,0)),"") -> 4.428291396 | O37: =IFERROR(INDEX('Data Annex'!$K$1:$AS$6264,MATCH(O$1&"|"&$B37,'Data Annex'!$K$1:$K$6264,0),MATCH(O$2,'Data Annex'!$K$1:$AS$1,0)),"") -> 0.04560719337 | P37: =IFERROR(INDEX('Data Annex'!$K$1:$AS$6264,MATCH(P$1&"|"&$B37,'Data Annex'!$K$1:$K$6264,0),MATCH(P$2,'Data Annex'!$K$1:$AS$1,0)),"") -> 4.389825487 | Q37: =IFERROR(INDEX('Data Annex'!$K$1:$AS$6264,MATCH(Q$1&"|"&$B37,'Data Annex'!$K$1:$K$6264,0),MATCH(Q$2,'Data Annex'!$K$1:$AS$1,0)),"") -> 0 | R37: =IFERROR(INDEX('Data Annex'!$K$1:$AS$6264,MATCH(R$1&"|"&$B37,'Data Annex'!$K$1:$K$6264,0),MATCH(R$2,'Data Annex'!$K$1:$AS$1,0)),"") -> 0 | S37: =IFERROR(INDEX('Data Annex'!$K$1:$AS$6264,MATCH(S$1&"|"&$B37,'Data Annex'!$K$1:$K$6264,0),MATCH(S$2,'Data Annex'!$K$1:$AS$1,0)),"") -> 3.435037381e-06 | T37: =IFERROR(INDEX('Data Annex'!$K$1:$AS$6264,MATCH(T$1&"|"&$B37,'Data Annex'!$K$1:$K$6264,0),MATCH(T$2,'Data Annex'!$K$1:$AS$1,0)),"") -> 0.03846590909 | U37: =IFERROR(INDEX('Data Annex'!$K$1:$AS$6264,MATCH(U$1&"|"&$B37,'Data Annex'!$K$1:$K$6264,0),MATCH(U$2,'Data Annex'!$K$1:$AS$1,0)),"") -> 0.04559971711
A38: 28 | B38: SE | D38: SE | F38: =IFERROR(INDEX('Data Annex'!$K$1:$AS$6264,MATCH(F$1&"|"&$B38,'Data Annex'!$K$1:$K$6264,0),MATCH(F$2,'Data Annex'!$K$1:$AS$1,0)),"") -> 220.8261672 | G38: =IFERROR(INDEX('Data Annex'!$K$1:$AS$6264,MATCH(G$1&"|"&$B38,'Data Annex'!$K$1:$K$6264,0),MATCH(G$2,'Data Annex'!$K$1:$AS$1,0)),"") -> 726.7223646 | H38: =IFERROR(INDEX('Data Annex'!$K$1:$AS$6264,MATCH(H$1&"|"&$B38,'Data Annex'!$K$1:$K$6264,0),MATCH(H$2,'Data Annex'!$K$1:$AS$1,0)),"") -> 7.352790426 | I38: =IFERROR(INDEX('Data Annex'!$K$1:$AS$6264,MATCH(I$1&"|"&$B38,'Data Annex'!$K$1:$K$6264,0),MATCH(I$2,'Data Annex'!$K$1:$AS$1,0)),"") -> 4.070238725 | J38: =IFERROR(INDEX('Data Annex'!$K$1:$AS$6264,MATCH(J$1&"|"&$B38,'Data Annex'!$K$1:$K$6264,0),MATCH(J$2,'Data Annex'!$K$1:$AS$1,0)),"") -> 0.2322378598 | K38: =IFERROR(INDEX('Data Annex'!$K$1:$AS$6264,MATCH(K$1&"|"&$B38,'Data Annex'!$K$1:$K$6264,0),MATCH(K$2,'Data Annex'!$K$1:$AS$1,0)),"") -> 0 | L38: =IFERROR(INDEX('Data Annex'!$K$1:$AS$6264,MATCH(L$1&"|"&$B38,'Data Annex'!$K$1:$K$6264,0),MATCH(L$2,'Data Annex'!$K$1:$AS$1,0)),"") -> 0.2322378598 | M38: =IFERROR(INDEX('Data Annex'!$K$1:$AS$6264,MATCH(M$1&"|"&$B38,'Data Annex'!$K$1:$K$6264,0),MATCH(M$2,'Data Annex'!$K$1:$AS$1,0)),"") -> 0 | N38: =IFERROR(INDEX('Data Annex'!$K$1:$AS$6264,MATCH(N$1&"|"&$B38,'Data Annex'!$K$1:$K$6264,0),MATCH(N$2,'Data Annex'!$K$1:$AS$1,0)),"") -> 213.2411366 | O38: =IFERROR(INDEX('Data Annex'!$K$1:$AS$6264,MATCH(O$1&"|"&$B38,'Data Annex'!$K$1:$K$6264,0),MATCH(O$2,'Data Annex'!$K$1:$AS$1,0)),"") -> 722.6521239 | P38: =IFERROR(INDEX('Data Annex'!$K$1:$AS$6264,MATCH(P$1&"|"&$B38,'Data Annex'!$K$1:$K$6264,0),MATCH(P$2,'Data Annex'!$K$1:$AS$1,0)),"") -> 151.9887989 | Q38: =IFERROR(INDEX('Data Annex'!$K$1:$AS$6264,MATCH(Q$1&"|"&$B38,'Data Annex'!$K$1:$K$6264,0),MATCH(Q$2,'Data Annex'!$K$1:$AS$1,0)),"") -> 646.6745352 | R38: =IFERROR(INDEX('Data Annex'!$K$1:$AS$6264,MATCH(R$1&"|"&$B38,'Data Annex'!$K$1:$K$6264,0),MATCH(R$2,'Data Annex'!$K$1:$AS$1,0)),"") -> 35.55506636 | S38: =IFERROR(INDEX('Data Annex'!$K$1:$AS$6264,MATCH(S$1&"|"&$B38,'Data Annex'!$K$1:$K$6264,0),MATCH(S$2,'Data Annex'!$K$1:$AS$1,0)),"") -> 33.44661707 | T38: =IFERROR(INDEX('Data Annex'!$K$1:$AS$6264,MATCH(T$1&"|"&$B38,'Data Annex'!$K$1:$K$6264,0),MATCH(T$2,'Data Annex'!$K$1:$AS$1,0)),"") -> 20.10878231 | U38: =IFERROR(INDEX('Data Annex'!$K$1:$AS$6264,MATCH(U$1&"|"&$B38,'Data Annex'!$K$1:$K$6264,0),MATCH(U$2,'Data Annex'!$K$1:$AS$1,0)),"") -> 10.71108172
A39: 29 | B39: SI | D39: SI | F39: =IFERROR(INDEX('Data Annex'!$K$1:$AS$6264,MATCH(F$1&"|"&$B39,'Data Annex'!$K$1:$K$6264,0),MATCH(F$2,'Data Annex'!$K$1:$AS$1,0)),"") -> 19.85 | G39: =IFERROR(INDEX('Data Annex'!$K$1:$AS$6264,MATCH(G$1&"|"&$B39,'Data Annex'!$K$1:$K$6264,0),MATCH(G$2,'Data Annex'!$K$1:$AS$1,0)),"") -> 21.043 | H39: =IFERROR(INDEX('Data Annex'!$K$1:$AS$6264,MATCH(H$1&"|"&$B39,'Data Annex'!$K$1:$K$6264,0),MATCH(H$2,'Data Annex'!$K$1:$AS$1,0)),"") -> 0.179 | I39: =IFERROR(INDEX('Data Annex'!$K$1:$AS$6264,MATCH(I$1&"|"&$B39,'Data Annex'!$K$1:$K$6264,0),MATCH(I$2,'Data Annex'!$K$1:$AS$1,0)),"") -> 0.73 | J39: =IFERROR(INDEX('Data Annex'!$K$1:$AS$6264,MATCH(J$1&"|"&$B39,'Data Annex'!$K$1:$K$6264,0),MATCH(J$2,'Data Annex'!$K$1:$AS$1,0)),"") -> 19.564 | K39: =IFERROR(INDEX('Data Annex'!$K$1:$AS$6264,MATCH(K$1&"|"&$B39,'Data Annex'!$K$1:$K$6264,0),MATCH(K$2,'Data Annex'!$K$1:$AS$1,0)),"") -> 20.132 | L39: =IFERROR(INDEX('Data Annex'!$K$1:$AS$6264,MATCH(L$1&"|"&$B39,'Data Annex'!$K$1:$K$6264,0),MATCH(L$2,'Data Annex'!$K$1:$AS$1,0)),"") -> 19.564 | M39: =IFERROR(INDEX('Data Annex'!$K$1:$AS$6264,MATCH(M$1&"|"&$B39,'Data Annex'!$K$1:$K$6264,0),MATCH(M$2,'Data Annex'!$K$1:$AS$1,0)),"") -> 20.132 | N39: =IFERROR(INDEX('Data Annex'!$K$1:$AS$6264,MATCH(N$1&"|"&$B39,'Data Annex'!$K$1:$K$6264,0),MATCH(N$2,'Data Annex'!$K$1:$AS$1,0)),"") -> 0.107 | O39: =IFERROR(INDEX('Data Annex'!$K$1:$AS$6264,MATCH(O$1&"|"&$B39,'Data Annex'!$K$1:$K$6264,0),MATCH(O$2,'Data Annex'!$K$1:$AS$1,0)),"") -> 0.181 | P39: =IFERROR(INDEX('Data Annex'!$K$1:$AS$6264,MATCH(P$1&"|"&$B39,'Data Annex'!$K$1:$K$6264,0),MATCH(P$2,'Data Annex'!$K$1:$AS$1,0)),"") -> 0.001 | Q39: =IFERROR(INDEX('Data Annex'!$K$1:$AS$6264,MATCH(Q$1&"|"&$B39,'Data Annex'!$K$1:$K$6264,0),MATCH(Q$2,'Data Annex'!$K$1:$AS$1,0)),"") -> 0 | R39: =IFERROR(INDEX('Data Annex'!$K$1:$AS$6264,MATCH(R$1&"|"&$B39,'Data Annex'!$K$1:$K$6264,0),MATCH(R$2,'Data Annex'!$K$1:$AS$1,0)),"") ->  | S39: =IFERROR(INDEX('Data Annex'!$K$1:$AS$6264,MATCH(S$1&"|"&$B39,'Data Annex'!$K$1:$K$6264,0),MATCH(S$2,'Data Annex'!$K$1:$AS$1,0)),"") ->  | T39: =IFERROR(INDEX('Data Annex'!$K$1:$AS$6264,MATCH(T$1&"|"&$B39,'Data Annex'!$K$1:$K$6264,0),MATCH(T$2,'Data Annex'!$K$1:$AS$1,0)),"") -> 0.106 | U39: =IFERROR(INDEX('Data Annex'!$K$1:$AS$6264,MATCH(U$1&"|"&$B39,'Data Annex'!$K$1:$K$6264,0),MATCH(U$2,'Data Annex'!$K$1:$AS$1,0)),"") -> 0.181
A40: 30 | B40: SK | D40: SK | F40: =IFERROR(INDEX('Data Annex'!$K$1:$AS$6264,MATCH(F$1&"|"&$B40,'Data Annex'!$K$1:$K$6264,0),MATCH(F$2,'Data Annex'!$K$1:$AS$1,0)),"") -> 65.979834 | G40: =IFERROR(INDEX('Data Annex'!$K$1:$AS$6264,MATCH(G$1&"|"&$B40,'Data Annex'!$K$1:$K$6264,0),MATCH(G$2,'Data Annex'!$K$1:$AS$1,0)),"") -> 66.196284 | H40: =IFERROR(INDEX('Data Annex'!$K$1:$AS$6264,MATCH(H$1&"|"&$B40,'Data Annex'!$K$1:$K$6264,0),MATCH(H$2,'Data Annex'!$K$1:$AS$1,0)),"") -> 0.03344 | I40: =IFERROR(INDEX('Data Annex'!$K$1:$AS$6264,MATCH(I$1&"|"&$B40,'Data Annex'!$K$1:$K$6264,0),MATCH(I$2,'Data Annex'!$K$1:$AS$1,0)),"") -> 0.130752 | J40: =IFERROR(INDEX('Data Annex'!$K$1:$AS$6264,MATCH(J$1&"|"&$B40,'Data Annex'!$K$1:$K$6264,0),MATCH(J$2,'Data Annex'!$K$1:$AS$1,0)),"") -> 0 | K40: =IFERROR(INDEX('Data Annex'!$K$1:$AS$6264,MATCH(K$1&"|"&$B40,'Data Annex'!$K$1:$K$6264,0),MATCH(K$2,'Data Annex'!$K$1:$AS$1,0)),"") -> 0 | L40: =IFERROR(INDEX('Data Annex'!$K$1:$AS$6264,MATCH(L$1&"|"&$B40,'Data Annex'!$K$1:$K$6264,0),MATCH(L$2,'Data Annex'!$K$1:$AS$1,0)),"") -> 0 | M40: =IFERROR(INDEX('Data Annex'!$K$1:$AS$6264,MATCH(M$1&"|"&$B40,'Data Annex'!$K$1:$K$6264,0),MATCH(M$2,'Data Annex'!$K$1:$AS$1,0)),"") -> 0 | N40: =IFERROR(INDEX('Data Annex'!$K$1:$AS$6264,MATCH(N$1&"|"&$B40,'Data Annex'!$K$1:$K$6264,0),MATCH(N$2,'Data Annex'!$K$1:$AS$1,0)),"") -> 65.946394 | O40: =IFERROR(INDEX('Data Annex'!$K$1:$AS$6264,MATCH(O$1&"|"&$B40,'Data Annex'!$K$1:$K$6264,0),MATCH(O$2,'Data Annex'!$K$1:$AS$1,0)),"") -> 66.065532 | P40: =IFERROR(INDEX('Data Annex'!$K$1:$AS$6264,MATCH(P$1&"|"&$B40,'Data Annex'!$K$1:$K$6264,0),MATCH(P$2,'Data Annex'!$K$1:$AS$1,0)),"") -> 0 | Q40: =IFERROR(INDEX('Data Annex'!$K$1:$AS$6264,MATCH(Q$1&"|"&$B40,'Data Annex'!$K$1:$K$6264,0),MATCH(Q$2,'Data Annex'!$K$1:$AS$1,0)),"") -> 0 | R40: =IFERROR(INDEX('Data Annex'!$K$1:$AS$6264,MATCH(R$1&"|"&$B40,'Data Annex'!$K$1:$K$6264,0),MATCH(R$2,'Data Annex'!$K$1:$AS$1,0)),"") -> 59.308662 | S40: =IFERROR(INDEX('Data Annex'!$K$1:$AS$6264,MATCH(S$1&"|"&$B40,'Data Annex'!$K$1:$K$6264,0),MATCH(S$2,'Data Annex'!$K$1:$AS$1,0)),"") -> 58.838178 | T40: =IFERROR(INDEX('Data Annex'!$K$1:$AS$6264,MATCH(T$1&"|"&$B40,'Data Annex'!$K$1:$K$6264,0),MATCH(T$2,'Data Annex'!$K$1:$AS$1,0)),"") -> 6.637732 | U40: =IFERROR(INDEX('Data Annex'!$K$1:$AS$6264,MATCH(U$1&"|"&$B40,'Data Annex'!$K$1:$K$6264,0),MATCH(U$2,'Data Annex'!$K$1:$AS$1,0)),"") -> 7.227354
A41: 99 | B41: EU | D41: EU/EEA | F41: =IFERROR(INDEX('Data Annex'!$K$1:$AS$6264,MATCH(F$1&"|"&$B41,'Data Annex'!$K$1:$K$6264,0),MATCH(F$2,'Data Annex'!$K$1:$AS$1,0)),"") -> 70804.11007 | G41: =IFERROR(INDEX('Data Annex'!$K$1:$AS$6264,MATCH(G$1&"|"&$B41,'Data Annex'!$K$1:$K$6264,0),MATCH(G$2,'Data Annex'!$K$1:$AS$1,0)),"") -> 76187.88326 | H41: =IFERROR(INDEX('Data Annex'!$K$1:$AS$6264,MATCH(H$1&"|"&$B41,'Data Annex'!$K$1:$K$6264,0),MATCH(H$2,'Data Annex'!$K$1:$AS$1,0)),"") -> 3127.135318 | I41: =IFERROR(INDEX('Data Annex'!$K$1:$AS$6264,MATCH(I$1&"|"&$B41,'Data Annex'!$K$1:$K$6264,0),MATCH(I$2,'Data Annex'!$K$1:$AS$1,0)),"") -> 4913.702339 | J41: =IFERROR(INDEX('Data Annex'!$K$1:$AS$6264,MATCH(J$1&"|"&$B41,'Data Annex'!$K$1:$K$6264,0),MATCH(J$2,'Data Annex'!$K$1:$AS$1,0)),"") -> 6322.394146 | K41: =IFERROR(INDEX('Data Annex'!$K$1:$AS$6264,MATCH(K$1&"|"&$B41,'Data Annex'!$K$1:$K$6264,0),MATCH(K$2,'Data Annex'!$K$1:$AS$1,0)),"") -> 4453.966035 | L41: =IFERROR(INDEX('Data Annex'!$K$1:$AS$6264,MATCH(L$1&"|"&$B41,'Data Annex'!$K$1:$K$6264,0),MATCH(L$2,'Data Annex'!$K$1:$AS$1,0)),"") -> 5890.200969 | M41: =IFERROR(INDEX('Data Annex'!$K$1:$AS$6264,MATCH(M$1&"|"&$B41,'Data Annex'!$K$1:$K$6264,0),MATCH(M$2,'Data Annex'!$K$1:$AS$1,0)),"") -> 4053.413298 | N41: =IFERROR(INDEX('Data Annex'!$K$1:$AS$6264,MATCH(N$1&"|"&$B41,'Data Annex'!$K$1:$K$6264,0),MATCH(N$2,'Data Annex'!$K$1:$AS$1,0)),"") -> 59999.30483 | O41: =IFERROR(INDEX('Data Annex'!$K$1:$AS$6264,MATCH(O$1&"|"&$B41,'Data Annex'!$K$1:$K$6264,0),MATCH(O$2,'Data Annex'!$K$1:$AS$1,0)),"") -> 65849.67667 | P41: =IFERROR(INDEX('Data Annex'!$K$1:$AS$6264,MATCH(P$1&"|"&$B41,'Data Annex'!$K$1:$K$6264,0),MATCH(P$2,'Data Annex'!$K$1:$AS$1,0)),"") -> 6463.371983 | Q41: =IFERROR(INDEX('Data Annex'!$K$1:$AS$6264,MATCH(Q$1&"|"&$B41,'Data Annex'!$K$1:$K$6264,0),MATCH(Q$2,'Data Annex'!$K$1:$AS$1,0)),"") -> 7325.560532 | R41: =IFERROR(INDEX('Data Annex'!$K$1:$AS$6264,MATCH(R$1&"|"&$B41,'Data Annex'!$K$1:$K$6264,0),MATCH(R$2,'Data Annex'!$K$1:$AS$1,0)),"") -> 37222.38241 | S41: =IFERROR(INDEX('Data Annex'!$K$1:$AS$6264,MATCH(S$1&"|"&$B41,'Data Annex'!$K$1:$K$6264,0),MATCH(S$2,'Data Annex'!$K$1:$AS$1,0)),"") -> 40073.86744 | T41: =IFERROR(INDEX('Data Annex'!$K$1:$AS$6264,MATCH(T$1&"|"&$B41,'Data Annex'!$K$1:$K$6264,0),MATCH(T$2,'Data Annex'!$K$1:$AS$1,0)),"") -> 15173.59443 | U41: =IFERROR(INDEX('Data Annex'!$K$1:$AS$6264,MATCH(U$1&"|"&$B41,'Data Annex'!$K$1:$K$6264,0),MATCH(U$2,'Data Annex'!$K$1:$AS$1,0)),"") -> 15834.43721
D43: (1) footnote here if needed
F44: T51_1 | G44: T51_1 | H44: T51_2 | I44: T51_2 | J44: T51_3 | K44: T51_3 | L44: T51_4 | M44: T51_4 | N44: T51_5 | O44: T51_5 | P44: T51_6 | Q44: T51_6 | R44: T51_7 | S44: T51_7 | T44: T05_4 | U44: T05_4 | W44: T52_1 | X44: T52_1 | Y44: T52_2 | Z44: T52_2 | AA44: T52_3 | AB44: T52_3
F45: =TEXT(F50,"YYYYMM")+0 -> 202106 | G45: =TEXT(G50,"YYYYMM")+0 -> 202112 | H45: 202106 | I45: 202112 | J45: 202106 | K45: 202112 | L45: 202106 | M45: 202112 | N45: 202106 | O45: 202112 | P45: 202106 | Q45: 202112 | R45: 202106 | S45: 202112 | W45: =TEXT(W50,"YYYYMM")+0 -> 202106 | X45: =TEXT(X50,"YYYYMM")+0 -> 202112 | Y45: 202106 | Z45: 202112 | AA45: 202106 | AB45: 202112
D46: Breakdown of deposits from Russian counterparts | U46: Off balance sheet exposures towards Russian counterparts
D48: (million EUR) | F48: Deposits | H48: of which:
H49: Central banks | J49: General governments | L49: Credit institutions | N49: Other financial corporations | P49: Non-financial corporations | R49: Households | U49: (million EUR) | W49: Loan commitments | Y49: Financial guarantees | AA49: Other Commitments
F50: =IF(OR(MONTH($A$3)=9,MONTH($A$3)=3),EOMONTH($A$3,-9),EOMONTH($A$3,-6)) -> 2021-06-30 | G50: =EOMONTH(F$50,6) -> 2021-12-31 | H50: =IF(OR(MONTH($A$3)=9,MONTH($A$3)=3),EOMONTH($A$3,-9),EOMONTH($A$3,-6)) -> 2021-06-30 | I50: =EOMONTH(H$11,6) -> 2021-12-31 | J50: =IF(OR(MONTH($A$3)=9,MONTH($A$3)=3),EOMONTH($A$3,-9),EOMONTH($A$3,-6)) -> 2021-06-30 | K50: =EOMONTH(J$11,6) -> 2021-12-31 | L50: =IF(OR(MONTH($A$3)=9,MONTH($A$3)=3),EOMONTH($A$3,-9),EOMONTH($A$3,-6)) -> 2021-06-30 | M50: =EOMONTH(L$11,6) -> 2021-12-31 | N50: =IF(OR(MONTH($A$3)=9,MONTH($A$3)=3),EOMONTH($A$3,-9),EOMONTH($A$3,-6)) -> 2021-06-30 | O50: =EOMONTH(N$50,6) -> 2021-12-31 | P50: =IF(OR(MONTH($A$3)=9,MONTH($A$3)=3),EOMONTH($A$3,-9),EOMONTH($A$3,-6)) -> 2021-06-30 | Q50: =EOMONTH(P$11,6) -> 2021-12-31 | R50: =IF(OR(MONTH($A$3)=9,MONTH($A$3)=3),EOMONTH($A$3,-9),EOMONTH($A$3,-6)) -> 2021-06-30 | S50: =EOMONTH(R$11,6) -> 2021-12-31 | W50: =IF(OR(MONTH($A$3)=9,MONTH($A$3)=3),EOMONTH($A$3,-9),EOMONTH($A$3,-6)) -> 2021-06-30 | X50: =EOMONTH(W$50,6) -> 2021-12-31 | Y50: =IF(OR(MONTH($A$3)=9,MONTH($A$3)=3),EOMONTH($A$3,-9),EOMONTH($A$3,-6)) -> 2021-06-30 | Z50: =EOMONTH(Y$50,6) -> 2021-12-31 | AA50: =IF(OR(MONTH($A$3)=9,MONTH($A$3)=3),EOMONTH($A$3,-9),EOMONTH($A$3,-6)) -> 2021-06-30 | AB50: =EOMONTH(AA$50,6) -> 2021-12-31
A51: 1 | B51: AT | D51: =B51 -> AT | F51: =IFERROR(INDEX('Data Annex'!$K$1:$AS$6264,MATCH(F$44&"|"&$B51,'Data Annex'!$K$1:$K$6264,0),MATCH(F$45,'Data Annex'!$K$1:$AS$1,0)),"") -> 16212.84374 | G51: =IFERROR(INDEX('Data Annex'!$K$1:$AS$6264,MATCH(G$44&"|"&$B51,'Data Annex'!$K$1:$K$6264,0),MATCH(G$45,'Data Annex'!$K$1:$AS$1,0)),"") -> 17258.93735 | H51: =IFERROR(INDEX('Data Annex'!$K$1:$AS$6264,MATCH(H$44&"|"&$B51,'Data Annex'!$K$1:$K$6264,0),MATCH(H$45,'Data Annex'!$K$1:$AS$1,0)),"") -> 0.26063 | I51: =IFERROR(INDEX('Data Annex'!$K$1:$AS$6264,MATCH(I$44&"|"&$B51,'Data Annex'!$K$1:$K$6264,0),MATCH(I$45,'Data Annex'!$K$1:$AS$1,0)),"") -> 0 | J51: =IFERROR(INDEX('Data Annex'!$K$1:$AS$6264,MATCH(J$44&"|"&$B51,'Data Annex'!$K$1:$K$6264,0),MATCH(J$45,'Data Annex'!$K$1:$AS$1,0)),"") -> 1.66559978 | K51: =IFERROR(INDEX('Data Annex'!$K$1:$AS$6264,MATCH(K$44&"|"&$B51,'Data Annex'!$K$1:$K$6264,0),MATCH(K$45,'Data Annex'!$K$1:$AS$1,0)),"") -> 1.12322385 | L51: =IFERROR(INDEX('Data Annex'!$K$1:$AS$6264,MATCH(L$44&"|"&$B51,'Data Annex'!$K$1:$K$6264,0),MATCH(L$45,'Data Annex'!$K$1:$AS$1,0)),"") -> 1592.374052 | M51: =IFERROR(INDEX('Data Annex'!$K$1:$AS$6264,MATCH(M$44&"|"&$B51,'Data Annex'!$K$1:$K$6264,0),MATCH(M$45,'Data Annex'!$K$1:$AS$1,0)),"") -> 1492.790483 | N51: =IFERROR(INDEX('Data Annex'!$K$1:$AS$6264,MATCH(N$44&"|"&$B51,'Data Annex'!$K$1:$K$6264,0),MATCH(N$45,'Data Annex'!$K$1:$AS$1,0)),"") -> 708.2104264 | O51: =IFERROR(INDEX('Data Annex'!$K$1:$AS$6264,MATCH(O$44&"|"&$B51,'Data Annex'!$K$1:$K$6264,0),MATCH(O$45,'Data Annex'!$K$1:$AS$1,0)),"") -> 380.6055991 | P51: =IFERROR(INDEX('Data Annex'!$K$1:$AS$6264,MATCH(P$44&"|"&$B51,'Data Annex'!$K$1:$K$6264,0),MATCH(P$45,'Data Annex'!$K$1:$AS$1,0)),"") -> 5365.171305 | Q51: =IFERROR(INDEX('Data Annex'!$K$1:$AS$6264,MATCH(Q$44&"|"&$B51,'Data Annex'!$K$1:$K$6264,0),MATCH(Q$45,'Data Annex'!$K$1:$AS$1,0)),"") -> 6131.737157 | R51: =IFERROR(INDEX('Data Annex'!$K$1:$AS$6264,MATCH(R$44&"|"&$B51,'Data Annex'!$K$1:$K$6264,0),MATCH(R$45,'Data Annex'!$K$1:$AS$1,0)),"") -> 8545.161726 | S51: =IFERROR(INDEX('Data Annex'!$K$1:$AS$6264,MATCH(S$44&"|"&$B51,'Data Annex'!$K$1:$K$6264,0),MATCH(S$45,'Data Annex'!$K$1:$AS$1,0)),"") -> 9252.680889 | U51: =B51 -> AT | W51: =IFERROR(INDEX('Data Annex'!$K$1:$AS$6264,MATCH(W$44&"|"&$B51,'Data Annex'!$K$1:$K$6264,0),MATCH(W$45,'Data Annex'!$K$1:$AS$1,0)),"") -> 2407.379234 | X51: =IFERROR(INDEX('Data Annex'!$K$1:$AS$6264,MATCH(X$44&"|"&$B51,'Data Annex'!$K$1:$K$6264,0),MATCH(X$45,'Data Annex'!$K$1:$AS$1,0)),"") -> 7935.019683 | Y51: =IFERROR(INDEX('Data Annex'!$K$1:$AS$6264,MATCH(Y$44&"|"&$B51,'Data Annex'!$K$1:$K$6264,0),MATCH(Y$45,'Data Annex'!$K$1:$AS$1,0)),"") -> 1730.535749 | Z51: =IFERROR(INDEX('Data Annex'!$K$1:$AS$6264,MATCH(Z$44&"|"&$B51,'Data Annex'!$K$1:$K$6264,0),MATCH(Z$45,'Data Annex'!$K$1:$AS$1,0)),"") -> 1971.188571 | AA51: =IFERROR(INDEX('Data Annex'!$K$1:$AS$6264,MATCH(AA$44&"|"&$B51,'Data Annex'!$K$1:$K$6264,0),MATCH(AA$45,'Data Annex'!$K$1:$AS$1,0)),"") -> 1444.596241 | AB51: =IFERROR(INDEX('Data Annex'!$K$1:$AS$6264,MATCH(AB$44&"|"&$B51,'Data Annex'!$K$1:$K$6264,0),MATCH(AB$45,'Data Annex'!$K$1:$AS$1,0)),"") -> 1739.31402
A52: 2 | B52: BE | D52: =B52 -> BE | F52: =IFERROR(INDEX('Data Annex'!$K$1:$AS$6264,MATCH(F$44&"|"&$B52,'Data Annex'!$K$1:$K$6264,0),MATCH(F$45,'Data Annex'!$K$1:$AS$1,0)),"") -> 5402.243255 | G52: =IFERROR(INDEX('Data Annex'!$K$1:$AS$6264,MATCH(G$44&"|"&$B52,'Data Annex'!$K$1:$K$6264,0),MATCH(G$45,'Data Annex'!$K$1:$AS$1,0)),"") -> 2425.26549 | H52: =IFERROR(INDEX('Data Annex'!$K$1:$AS$6264,MATCH(H$44&"|"&$B52,'Data Annex'!$K$1:$K$6264,0),MATCH(H$45,'Data Annex'!$K$1:$AS$1,0)),"") -> 5035.761 | I52: =IFERROR(INDEX('Data Annex'!$K$1:$AS$6264,MATCH(I$44&"|"&$B52,'Data Annex'!$K$1:$K$6264,0),MATCH(I$45,'Data Annex'!$K$1:$AS$1,0)),"") -> 2045.778 | J52: =IFERROR(INDEX('Data Annex'!$K$1:$AS$6264,MATCH(J$44&"|"&$B52,'Data Annex'!$K$1:$K$6264,0),MATCH(J$45,'Data Annex'!$K$1:$AS$1,0)),"") -> 2.797764 | K52: =IFERROR(INDEX('Data Annex'!$K$1:$AS$6264,MATCH(K$44&"|"&$B52,'Data Annex'!$K$1:$K$6264,0),MATCH(K$45,'Data Annex'!$K$1:$AS$1,0)),"") -> 2.226179 | L52: =IFERROR(INDEX('Data Annex'!$K$1:$AS$6264,MATCH(L$44&"|"&$B52,'Data Annex'!$K$1:$K$6264,0),MATCH(L$45,'Data Annex'!$K$1:$AS$1,0)),"") -> 245.2504048 | M52: =IFERROR(INDEX('Data Annex'!$K$1:$AS$6264,MATCH(M$44&"|"&$B52,'Data Annex'!$K$1:$K$6264,0),MATCH(M$45,'Data Annex'!$K$1:$AS$1,0)),"") -> 230.5584068 | N52: =IFERROR(INDEX('Data Annex'!$K$1:$AS$6264,MATCH(N$44&"|"&$B52,'Data Annex'!$K$1:$K$6264,0),MATCH(N$45,'Data Annex'!$K$1:$AS$1,0)),"") -> 0.003 | O52: =IFERROR(INDEX('Data Annex'!$K$1:$AS$6264,MATCH(O$44&"|"&$B52,'Data Annex'!$K$1:$K$6264,0),MATCH(O$45,'Data Annex'!$K$1:$AS$1,0)),"") -> 0.003 | P52: =IFERROR(INDEX('Data Annex'!$K$1:$AS$6264,MATCH(P$44&"|"&$B52,'Data Annex'!$K$1:$K$6264,0),MATCH(P$45,'Data Annex'!$K$1:$AS$1,0)),"") -> 0.189081 | Q52: =IFERROR(INDEX('Data Annex'!$K$1:$AS$6264,MATCH(Q$44&"|"&$B52,'Data Annex'!$K$1:$K$6264,0),MATCH(Q$45,'Data Annex'!$K$1:$AS$1,0)),"") -> 0.210178 | R52: =IFERROR(INDEX('Data Annex'!$K$1:$AS$6264,MATCH(R$44&"|"&$B52,'Data Annex'!$K$1:$K$6264,0),MATCH(R$45,'Data Annex'!$K$1:$AS$1,0)),"") -> 118.2420045 | S52: =IFERROR(INDEX('Data Annex'!$K$1:$AS$6264,MATCH(S$44&"|"&$B52,'Data Annex'!$K$1:$K$6264,0),MATCH(S$45,'Data Annex'!$K$1:$AS$1,0)),"") -> 146.4897265 | U52: =B52 -> BE | W52: =IFERROR(INDEX('Data Annex'!$K$1:$AS$6264,MATCH(W$44&"|"&$B52,'Data Annex'!$K$1:$K$6264,0),MATCH(W$45,'Data Annex'!$K$1:$AS$1,0)),"") -> 6.365221 | X52: =IFERROR(INDEX('Data Annex'!$K$1:$AS$6264,MATCH(X$44&"|"&$B52,'Data Annex'!$K$1:$K$6264,0),MATCH(X$45,'Data Annex'!$K$1:$AS$1,0)),"") -> 2.039778 | Y52: =IFERROR(INDEX('Data Annex'!$K$1:$AS$6264,MATCH(Y$44&"|"&$B52,'Data Annex'!$K$1:$K$6264,0),MATCH(Y$45,'Data Annex'!$K$1:$AS$1,0)),"") -> 112.991885 | Z52: =IFERROR(INDEX('Data Annex'!$K$1:$AS$6264,MATCH(Z$44&"|"&$B52,'Data Annex'!$K$1:$K$6264,0),MATCH(Z$45,'Data Annex'!$K$1:$AS$1,0)),"") -> 111.54258 | AA52: =IFERROR(INDEX('Data Annex'!$K$1:$AS$6264,MATCH(AA$44&"|"&$B52,'Data Annex'!$K$1:$K$6264,0),MATCH(AA$45,'Data Annex'!$K$1:$AS$1,0)),"") -> 11.749757 | AB52: =IFERROR(INDEX('Data Annex'!$K$1:$AS$6264,MATCH(AB$44&"|"&$B52,'Data Annex'!$K$1:$K$6264,0),MATCH(AB$45,'Data Annex'!$K$1:$AS$1,0)),"") -> 12.061739
A53: 3 | B53: BG | D53: BG | F53: =IFERROR(INDEX('Data Annex'!$K$1:$AS$6264,MATCH(F$44&"|"&$B53,'Data Annex'!$K$1:$K$6264,0),MATCH(F$45,'Data Annex'!$K$1:$AS$1,0)),"") -> 93.6987422 | G53: =IFERROR(INDEX('Data Annex'!$K$1:$AS$6264,MATCH(G$44&"|"&$B53,'Data Annex'!$K$1:$K$6264,0),MATCH(G$45,'Data Annex'!$K$1:$AS$1,0)),"") -> 94.98824011 | H53: =IFERROR(INDEX('Data Annex'!$K$1:$AS$6264,MATCH(H$44&"|"&$B53,'Data Annex'!$K$1:$K$6264,0),MATCH(H$45,'Data Annex'!$K$1:$AS$1,0)),"") -> 0 | I53: =IFERROR(INDEX('Data Annex'!$K$1:$AS$6264,MATCH(I$44&"|"&$B53,'Data Annex'!$K$1:$K$6264,0),MATCH(I$45,'Data Annex'!$K$1:$AS$1,0)),"") -> 0 | J53: =IFERROR(INDEX('Data Annex'!$K$1:$AS$6264,MATCH(J$44&"|"&$B53,'Data Annex'!$K$1:$K$6264,0),MATCH(J$45,'Data Annex'!$K$1:$AS$1,0)),"") -> 0.5910624808 | K53: =IFERROR(INDEX('Data Annex'!$K$1:$AS$6264,MATCH(K$44&"|"&$B53,'Data Annex'!$K$1:$K$6264,0),MATCH(K$45,'Data Annex'!$K$1:$AS$1,0)),"") -> 0.3343900194 | L53: =IFERROR(INDEX('Data Annex'!$K$1:$AS$6264,MATCH(L$44&"|"&$B53,'Data Annex'!$K$1:$K$6264,0),MATCH(L$45,'Data Annex'!$K$1:$AS$1,0)),"") -> 1.284384906 | M53: =IFERROR(INDEX('Data Annex'!$K$1:$AS$6264,MATCH(M$44&"|"&$B53,'Data Annex'!$K$1:$K$6264,0),MATCH(M$45,'Data Annex'!$K$1:$AS$1,0)),"") -> 1.265978116 | N53: =IFERROR(INDEX('Data Annex'!$K$1:$AS$6264,MATCH(N$44&"|"&$B53,'Data Annex'!$K$1:$K$6264,0),MATCH(N$45,'Data Annex'!$K$1:$AS$1,0)),"") -> 0 | O53: =IFERROR(INDEX('Data Annex'!$K$1:$AS$6264,MATCH(O$44&"|"&$B53,'Data Annex'!$K$1:$K$6264,0),MATCH(O$45,'Data Annex'!$K$1:$AS$1,0)),"") -> 0 | P53: =IFERROR(INDEX('Data Annex'!$K$1:$AS$6264,MATCH(P$44&"|"&$B53,'Data Annex'!$K$1:$K$6264,0),MATCH(P$45,'Data Annex'!$K$1:$AS$1,0)),"") -> 0.2336639738 | Q53: =IFERROR(INDEX('Data Annex'!$K$1:$AS$6264,MATCH(Q$44&"|"&$B53,'Data Annex'!$K$1:$K$6264,0),MATCH(Q$45,'Data Annex'!$K$1:$AS$1,0)),"") -> 0.1533899172 | R53: =IFERROR(INDEX('Data Annex'!$K$1:$AS$6264,MATCH(R$44&"|"&$B53,'Data Annex'!$K$1:$K$6264,0),MATCH(R$45,'Data Annex'!$K$1:$AS$1,0)),"") -> 91.58963084 | S53: =IFERROR(INDEX('Data Annex'!$K$1:$AS$6264,MATCH(S$44&"|"&$B53,'Data Annex'!$K$1:$K$6264,0),MATCH(S$45,'Data Annex'!$K$1:$AS$1,0)),"") -> 93.23448205 | U53: BG | W53: =IFERROR(INDEX('Data Annex'!$K$1:$AS$6264,MATCH(W$44&"|"&$B53,'Data Annex'!$K$1:$K$6264,0),MATCH(W$45,'Data Annex'!$K$1:$AS$1,0)),"") -> 0.1585029144 | X53: =IFERROR(INDEX('Data Annex'!$K$1:$AS$6264,MATCH(X$44&"|"&$B53,'Data Annex'!$K$1:$K$6264,0),MATCH(X$45,'Data Annex'!$K$1:$AS$1,0)),"") -> 1.231721035 | Y53: =IFERROR(INDEX('Data Annex'!$K$1:$AS$6264,MATCH(Y$44&"|"&$B53,'Data Annex'!$K$1:$K$6264,0),MATCH(Y$45,'Data Annex'!$K$1:$AS$1,0)),"") -> 0 | Z53: =IFERROR(INDEX('Data Annex'!$K$1:$AS$6264,MATCH(Z$44&"|"&$B53,'Data Annex'!$K$1:$K$6264,0),MATCH(Z$45,'Data Annex'!$K$1:$AS$1,0)),"") -> 0 | AA53: =IFERROR(INDEX('Data Annex'!$K$1:$AS$6264,MATCH(AA$44&"|"&$B53,'Data Annex'!$K$1:$K$6264,0),MATCH(AA$45,'Data Annex'!$K$1:$AS$1,0)),"") -> 10.25564986 | AB53: =IFERROR(INDEX('Data Annex'!$K$1:$AS$6264,MATCH(AB$44&"|"&$B53,'Data Annex'!$K$1:$K$6264,0),MATCH(AB$45,'Data Annex'!$K$1:$AS$1,0)),"") -> 4.603742714
A54: 4 | B54: CY | D54: CY | F54: =IFERROR(INDEX('Data Annex'!$K$1:$AS$6264,MATCH(F$44&"|"&$B54,'Data Annex'!$K$1:$K$6264,0),MATCH(F$45,'Data Annex'!$K$1:$AS$1,0)),"") -> 419.326966 | G54: =IFERROR(INDEX('Data Annex'!$K$1:$AS$6264,MATCH(G$44&"|"&$B54,'Data Annex'!$K$1:$K$6264,0),MATCH(G$45,'Data Annex'!$K$1:$AS$1,0)),"") -> 399.384303 | H54: =IFERROR(INDEX('Data Annex'!$K$1:$AS$6264,MATCH(H$44&"|"&$B54,'Data Annex'!$K$1:$K$6264,0),MATCH(H$45,'Data Annex'!$K$1:$AS$1,0)),"") -> 0 | I54: =IFERROR(INDEX('Data Annex'!$K$1:$AS$6264,MATCH(I$44&"|"&$B54,'Data Annex'!$K$1:$K$6264,0),MATCH(I$45,'Data Annex'!$K$1:$AS$1,0)),"") -> 0 | J54: =IFERROR(INDEX('Data Annex'!$K$1:$AS$6264,MATCH(J$44&"|"&$B54,'Data Annex'!$K$1:$K$6264,0),MATCH(J$45,'Data Annex'!$K$1:$AS$1,0)),"") -> 0.365 | K54: =IFERROR(INDEX('Data Annex'!$K$1:$AS$6264,MATCH(K$44&"|"&$B54,'Data Annex'!$K$1:$K$6264,0),MATCH(K$45,'Data Annex'!$K$1:$AS$1,0)),"") -> 0.121 | L54: =IFERROR(INDEX('Data Annex'!$K$1:$AS$6264,MATCH(L$44&"|"&$B54,'Data Annex'!$K$1:$K$6264,0),MATCH(L$45,'Data Annex'!$K$1:$AS$1,0)),"") -> 0.992 | M54: =IFERROR(INDEX('Data Annex'!$K$1:$AS$6264,MATCH(M$44&"|"&$B54,'Data Annex'!$K$1:$K$6264,0),MATCH(M$45,'Data Annex'!$K$1:$AS$1,0)),"") -> 0.480634 | N54: =IFERROR(INDEX('Data Annex'!$K$1:$AS$6264,MATCH(N$44&"|"&$B54,'Data Annex'!$K$1:$K$6264,0),MATCH(N$45,'Data Annex'!$K$1:$AS$1,0)),"") -> 24.244347 | O54: =IFERROR(INDEX('Data Annex'!$K$1:$AS$6264,MATCH(O$44&"|"&$B54,'Data Annex'!$K$1:$K$6264,0),MATCH(O$45,'Data Annex'!$K$1:$AS$1,0)),"") -> 26.615924 | P54: =IFERROR(INDEX('Data Annex'!$K$1:$AS$6264,MATCH(P$44&"|"&$B54,'Data Annex'!$K$1:$K$6264,0),MATCH(P$45,'Data Annex'!$K$1:$AS$1,0)),"") -> 49.953353 | Q54: =IFERROR(INDEX('Data Annex'!$K$1:$AS$6264,MATCH(Q$44&"|"&$B54,'Data Annex'!$K$1:$K$6264,0),MATCH(Q$45,'Data Annex'!$K$1:$AS$1,0)),"") -> 38.313159 | R54: =IFERROR(INDEX('Data Annex'!$K$1:$AS$6264,MATCH(R$44&"|"&$B54,'Data Annex'!$K$1:$K$6264,0),MATCH(R$45,'Data Annex'!$K$1:$AS$1,0)),"") -> 343.772266 | S54: =IFERROR(INDEX('Data Annex'!$K$1:$AS$6264,MATCH(S$44&"|"&$B54,'Data Annex'!$K$1:$K$6264,0),MATCH(S$45,'Data Annex'!$K$1:$AS$1,0)),"") -> 333.853586 | U54: CY | W54: =IFERROR(INDEX('Data Annex'!$K$1:$AS$6264,MATCH(W$44&"|"&$B54,'Data Annex'!$K$1:$K$6264,0),MATCH(W$45,'Data Annex'!$K$1:$AS$1,0)),"") -> 1.503373 | X54: =IFERROR(INDEX('Data Annex'!$K$1:$AS$6264,MATCH(X$44&"|"&$B54,'Data Annex'!$K$1:$K$6264,0),MATCH(X$45,'Data Annex'!$K$1:$AS$1,0)),"") -> 1.234251 | Y54: =IFERROR(INDEX('Data Annex'!$K$1:$AS$6264,MATCH(Y$44&"|"&$B54,'Data Annex'!$K$1:$K$6264,0),MATCH(Y$45,'Data Annex'!$K$1:$AS$1,0)),"") -> 1.137239 | Z54: =IFERROR(INDEX('Data Annex'!$K$1:$AS$6264,MATCH(Z$44&"|"&$B54,'Data Annex'!$K$1:$K$6264,0),MATCH(Z$45,'Data Annex'!$K$1:$AS$1,0)),"") -> 1.272249 | AA54: =IFERROR(INDEX('Data Annex'!$K$1:$AS$6264,MATCH(AA$44&"|"&$B54,'Data Annex'!$K$1:$K$6264,0),MATCH(AA$45,'Data Annex'!$K$1:$AS$1,0)),"") -> 0.039 | AB54: =IFERROR(INDEX('Data Annex'!$K$1:$AS$6264,MATCH(AB$44&"|"&$B54,'Data Annex'!$K$1:$K$6264,0),MATCH(AB$45,'Data Annex'!$K$1:$AS$1,0)),"") -> 0.039
A55: 5 | B55: CZ | D55: CZ | F55: =IFERROR(INDEX('Data Annex'!$K$1:$AS$6264,MATCH(F$44&"|"&$B55,'Data Annex'!$K$1:$K$6264,0),MATCH(F$45,'Data Annex'!$K$1:$AS$1,0)),"") -> 119.1291515 | G55: =IFERROR(INDEX('Data Annex'!$K$1:$AS$6264,MATCH(G$44&"|"&$B55,'Data Annex'!$K$1:$K$6264,0),MATCH(G$45,'Data Annex'!$K$1:$AS$1,0)),"") -> 110.3038884 | H55: =IFERROR(INDEX('Data Annex'!$K$1:$AS$6264,MATCH(H$44&"|"&$B55,'Data Annex'!$K$1:$K$6264,0),MATCH(H$45,'Data Annex'!$K$1:$AS$1,0)),"") -> 0 | I55: =IFERROR(INDEX('Data Annex'!$K$1:$AS$6264,MATCH(I$44&"|"&$B55,'Data Annex'!$K$1:$K$6264,0),MATCH(I$45,'Data Annex'!$K$1:$AS$1,0)),"") -> 0 | J55: =IFERROR(INDEX('Data Annex'!$K$1:$AS$6264,MATCH(J$44&"|"&$B55,'Data Annex'!$K$1:$K$6264,0),MATCH(J$45,'Data Annex'!$K$1:$AS$1,0)),"") -> 1.546022952 | K55: =IFERROR(INDEX('Data Annex'!$K$1:$AS$6264,MATCH(K$44&"|"&$B55,'Data Annex'!$K$1:$K$6264,0),MATCH(K$45,'Data Annex'!$K$1:$AS$1,0)),"") -> 1.724195269 | L55: =IFERROR(INDEX('Data Annex'!$K$1:$AS$6264,MATCH(L$44&"|"&$B55,'Data Annex'!$K$1:$K$6264,0),MATCH(L$45,'Data Annex'!$K$1:$AS$1,0)),"") -> 1.316411409 | M55: =IFERROR(INDEX('Data Annex'!$K$1:$AS$6264,MATCH(M$44&"|"&$B55,'Data Annex'!$K$1:$K$6264,0),MATCH(M$45,'Data Annex'!$K$1:$AS$1,0)),"") -> 0.02692863464 | N55: =IFERROR(INDEX('Data Annex'!$K$1:$AS$6264,MATCH(N$44&"|"&$B55,'Data Annex'!$K$1:$K$6264,0),MATCH(N$45,'Data Annex'!$K$1:$AS$1,0)),"") -> 3.758631513e-05 | O55: =IFERROR(INDEX('Data Annex'!$K$1:$AS$6264,MATCH(O$44&"|"&$B55,'Data Annex'!$K$1:$K$6264,0),MATCH(O$45,'Data Annex'!$K$1:$AS$1,0)),"") -> 3.757341701e-05 | P55: =IFERROR(INDEX('Data Annex'!$K$1:$AS$6264,MATCH(P$44&"|"&$B55,'Data Annex'!$K$1:$K$6264,0),MATCH(P$45,'Data Annex'!$K$1:$AS$1,0)),"") -> 0.02827820935 | Q55: =IFERROR(INDEX('Data Annex'!$K$1:$AS$6264,MATCH(Q$44&"|"&$B55,'Data Annex'!$K$1:$K$6264,0),MATCH(Q$45,'Data Annex'!$K$1:$AS$1,0)),"") -> 0.05837673988 | R55: =IFERROR(INDEX('Data Annex'!$K$1:$AS$6264,MATCH(R$44&"|"&$B55,'Data Annex'!$K$1:$K$6264,0),MATCH(R$45,'Data Annex'!$K$1:$AS$1,0)),"") -> 116.2384012 | S55: =IFERROR(INDEX('Data Annex'!$K$1:$AS$6264,MATCH(S$44&"|"&$B55,'Data Annex'!$K$1:$K$6264,0),MATCH(S$45,'Data Annex'!$K$1:$AS$1,0)),"") -> 108.4943503 | U55: CZ | W55: =IFERROR(INDEX('Data Annex'!$K$1:$AS$6264,MATCH(W$44&"|"&$B55,'Data Annex'!$K$1:$K$6264,0),MATCH(W$45,'Data Annex'!$K$1:$AS$1,0)),"") -> 5.767267616 | X55: =IFERROR(INDEX('Data Annex'!$K$1:$AS$6264,MATCH(X$44&"|"&$B55,'Data Annex'!$K$1:$K$6264,0),MATCH(X$45,'Data Annex'!$K$1:$AS$1,0)),"") -> 6.433129938 | Y55: =IFERROR(INDEX('Data Annex'!$K$1:$AS$6264,MATCH(Y$44&"|"&$B55,'Data Annex'!$K$1:$K$6264,0),MATCH(Y$45,'Data Annex'!$K$1:$AS$1,0)),"") -> 0.1052905681 | Z55: =IFERROR(INDEX('Data Annex'!$K$1:$AS$6264,MATCH(Z$44&"|"&$B55,'Data Annex'!$K$1:$K$6264,0),MATCH(Z$45,'Data Annex'!$K$1:$AS$1,0)),"") -> 0.127749819 | AA55: =IFERROR(INDEX('Data Annex'!$K$1:$AS$6264,MATCH(AA$44&"|"&$B55,'Data Annex'!$K$1:$K$6264,0),MATCH(AA$45,'Data Annex'!$K$1:$AS$1,0)),"") -> 8.142017185 | AB55: =IFERROR(INDEX('Data Annex'!$K$1:$AS$6264,MATCH(AB$44&"|"&$B55,'Data Annex'!$K$1:$K$6264,0),MATCH(AB$45,'Data Annex'!$K$1:$AS$1,0)),"") -> 8.811734371
A56: 6 | B56: DE | D56: DE | F56: =IFERROR(INDEX('Data Annex'!$K$1:$AS$6264,MATCH(F$44&"|"&$B56,'Data Annex'!$K$1:$K$6264,0),MATCH(F$45,'Data Annex'!$K$1:$AS$1,0)),"") -> 3918.528415 | G56: =IFERROR(INDEX('Data Annex'!$K$1:$AS$6264,MATCH(G$44&"|"&$B56,'Data Annex'!$K$1:$K$6264,0),MATCH(G$45,'Data Annex'!$K$1:$AS$1,0)),"") -> 3078.304428 | H56: =IFERROR(INDEX('Data Annex'!$K$1:$AS$6264,MATCH(H$44&"|"&$B56,'Data Annex'!$K$1:$K$6264,0),MATCH(H$45,'Data Annex'!$K$1:$AS$1,0)),"") -> 831.7865249 | I56: =IFERROR(INDEX('Data Annex'!$K$1:$AS$6264,MATCH(I$44&"|"&$B56,'Data Annex'!$K$1:$K$6264,0),MATCH(I$45,'Data Annex'!$K$1:$AS$1,0)),"") -> 392.8540418 | J56: =IFERROR(INDEX('Data Annex'!$K$1:$AS$6264,MATCH(J$44&"|"&$B56,'Data Annex'!$K$1:$K$6264,0),MATCH(J$45,'Data Annex'!$K$1:$AS$1,0)),"") -> 6.3935547 | K56: =IFERROR(INDEX('Data Annex'!$K$1:$AS$6264,MATCH(K$44&"|"&$B56,'Data Annex'!$K$1:$K$6264,0),MATCH(K$45,'Data Annex'!$K$1:$AS$1,0)),"") -> 6.89523013 | L56: =IFERROR(INDEX('Data Annex'!$K$1:$AS$6264,MATCH(L$44&"|"&$B56,'Data Annex'!$K$1:$K$6264,0),MATCH(L$45,'Data Annex'!$K$1:$AS$1,0)),"") -> 489.2410384 | M56: =IFERROR(INDEX('Data Annex'!$K$1:$AS$6264,MATCH(M$44&"|"&$B56,'Data Annex'!$K$1:$K$6264,0),MATCH(M$45,'Data Annex'!$K$1:$AS$1,0)),"") -> 595.7999999 | N56: =IFERROR(INDEX('Data Annex'!$K$1:$AS$6264,MATCH(N$44&"|"&$B56,'Data Annex'!$K$1:$K$6264,0),MATCH(N$45,'Data Annex'!$K$1:$AS$1,0)),"") -> 419.0395397 | O56: =IFERROR(INDEX('Data Annex'!$K$1:$AS$6264,MATCH(O$44&"|"&$B56,'Data Annex'!$K$1:$K$6264,0),MATCH(O$45,'Data Annex'!$K$1:$AS$1,0)),"") -> 290.6877762 | P56: =IFERROR(INDEX('Data Annex'!$K$1:$AS$6264,MATCH(P$44&"|"&$B56,'Data Annex'!$K$1:$K$6264,0),MATCH(P$45,'Data Annex'!$K$1:$AS$1,0)),"") -> 1375.226533 | Q56: =IFERROR(INDEX('Data Annex'!$K$1:$AS$6264,MATCH(Q$44&"|"&$B56,'Data Annex'!$K$1:$K$6264,0),MATCH(Q$45,'Data Annex'!$K$1:$AS$1,0)),"") -> 993.7401633 | R56: =IFERROR(INDEX('Data Annex'!$K$1:$AS$6264,MATCH(R$44&"|"&$B56,'Data Annex'!$K$1:$K$6264,0),MATCH(R$45,'Data Annex'!$K$1:$AS$1,0)),"") -> 796.8412245 | S56: =IFERROR(INDEX('Data Annex'!$K$1:$AS$6264,MATCH(S$44&"|"&$B56,'Data Annex'!$K$1:$K$6264,0),MATCH(S$45,'Data Annex'!$K$1:$AS$1,0)),"") -> 798.3272171 | U56: DE | W56: =IFERROR(INDEX('Data Annex'!$K$1:$AS$6264,MATCH(W$44&"|"&$B56,'Data Annex'!$K$1:$K$6264,0),MATCH(W$45,'Data Annex'!$K$1:$AS$1,0)),"") -> 1244.661841 | X56: =IFERROR(INDEX('Data Annex'!$K$1:$AS$6264,MATCH(X$44&"|"&$B56,'Data Annex'!$K$1:$K$6264,0),MATCH(X$45,'Data Annex'!$K$1:$AS$1,0)),"") -> 1425.444388 | Y56: =IFERROR(INDEX('Data Annex'!$K$1:$AS$6264,MATCH(Y$44&"|"&$B56,'Data Annex'!$K$1:$K$6264,0),MATCH(Y$45,'Data Annex'!$K$1:$AS$1,0)),"") -> 422.6522643 | Z56: =IFERROR(INDEX('Data Annex'!$K$1:$AS$6264,MATCH(Z$44&"|"&$B56,'Data Annex'!$K$1:$K$6264,0),MATCH(Z$45,'Data Annex'!$K$1:$AS$1,0)),"") -> 365.869427 | AA56: =IFERROR(INDEX('Data Annex'!$K$1:$AS$6264,MATCH(AA$44&"|"&$B56,'Data Annex'!$K$1:$K$6264,0),MATCH(AA$45,'Data Annex'!$K$1:$AS$1,0)),"") -> 914.3568991 | AB56: =IFERROR(INDEX('Data Annex'!$K$1:$AS$6264,MATCH(AB$44&"|"&$B56,'Data Annex'!$K$1:$K$6264,0),MATCH(AB$45,'Data Annex'!$K$1:$AS$1,0)),"") -> 1002.299541
A57: 7 | B57: DK | D57: DK | F57: =IFERROR(INDEX('Data Annex'!$K$1:$AS$6264,MATCH(F$44&"|"&$B57,'Data Annex'!$K$1:$K$6264,0),MATCH(F$45,'Data Annex'!$K$1:$AS$1,0)),"") -> 22.21322691 | G57: =IFERROR(INDEX('Data Annex'!$K$1:$AS$6264,MATCH(G$44&"|"&$B57,'Data Annex'!$K$1:$K$6264,0),MATCH(G$45,'Data Annex'!$K$1:$AS$1,0)),"") -> 20.10747199 | H57: =IFERROR(INDEX('Data Annex'!$K$1:$AS$6264,MATCH(H$44&"|"&$B57,'Data Annex'!$K$1:$K$6264,0),MATCH(H$45,'Data Annex'!$K$1:$AS$1,0)),"") ->  | I57: =IFERROR(INDEX('Data Annex'!$K$1:$AS$6264,MATCH(I$44&"|"&$B57,'Data Annex'!$K$1:$K$6264,0),MATCH(I$45,'Data Annex'!$K$1:$AS$1,0)),"") ->  | J57: =IFERROR(INDEX('Data Annex'!$K$1:$AS$6264,MATCH(J$44&"|"&$B57,'Data Annex'!$K$1:$K$6264,0),MATCH(J$45,'Data Annex'!$K$1:$AS$1,0)),"") -> 1.159781219 | K57: =IFERROR(INDEX('Data Annex'!$K$1:$AS$6264,MATCH(K$44&"|"&$B57,'Data Annex'!$K$1:$K$6264,0),MATCH(K$45,'Data Annex'!$K$1:$AS$1,0)),"") -> 1.154095125 | L57: =IFERROR(INDEX('Data Annex'!$K$1:$AS$6264,MATCH(L$44&"|"&$B57,'Data Annex'!$K$1:$K$6264,0),MATCH(L$45,'Data Annex'!$K$1:$AS$1,0)),"") -> 0 | M57: =IFERROR(INDEX('Data Annex'!$K$1:$AS$6264,MATCH(M$44&"|"&$B57,'Data Annex'!$K$1:$K$6264,0),MATCH(M$45,'Data Annex'!$K$1:$AS$1,0)),"") -> 0 | N57: =IFERROR(INDEX('Data Annex'!$K$1:$AS$6264,MATCH(N$44&"|"&$B57,'Data Annex'!$K$1:$K$6264,0),MATCH(N$45,'Data Annex'!$K$1:$AS$1,0)),"") ->  | O57: =IFERROR(INDEX('Data Annex'!$K$1:$AS$6264,MATCH(O$44&"|"&$B57,'Data Annex'!$K$1:$K$6264,0),MATCH(O$45,'Data Annex'!$K$1:$AS$1,0)),"") ->  | P57: =IFERROR(INDEX('Data Annex'!$K$1:$AS$6264,MATCH(P$44&"|"&$B57,'Data Annex'!$K$1:$K$6264,0),MATCH(P$45,'Data Annex'!$K$1:$AS$1,0)),"") -> 0.1240521032 | Q57: =IFERROR(INDEX('Data Annex'!$K$1:$AS$6264,MATCH(Q$44&"|"&$B57,'Data Annex'!$K$1:$K$6264,0),MATCH(Q$45,'Data Annex'!$K$1:$AS$1,0)),"") -> 0.2669508458 | R57: =IFERROR(INDEX('Data Annex'!$K$1:$AS$6264,MATCH(R$44&"|"&$B57,'Data Annex'!$K$1:$K$6264,0),MATCH(R$45,'Data Annex'!$K$1:$AS$1,0)),"") -> 20.92939359 | S57: =IFERROR(INDEX('Data Annex'!$K$1:$AS$6264,MATCH(S$44&"|"&$B57,'Data Annex'!$K$1:$K$6264,0),MATCH(S$45,'Data Annex'!$K$1:$AS$1,0)),"") -> 18.68642602 | U57: DK | W57: =IFERROR(INDEX('Data Annex'!$K$1:$AS$6264,MATCH(W$44&"|"&$B57,'Data Annex'!$K$1:$K$6264,0),MATCH(W$45,'Data Annex'!$K$1:$AS$1,0)),"") -> 98.55656301 | X57: =IFERROR(INDEX('Data Annex'!$K$1:$AS$6264,MATCH(X$44&"|"&$B57,'Data Annex'!$K$1:$K$6264,0),MATCH(X$45,'Data Annex'!$K$1:$AS$1,0)),"") -> 25.00151155 | Y57: =IFERROR(INDEX('Data Annex'!$K$1:$AS$6264,MATCH(Y$44&"|"&$B57,'Data Annex'!$K$1:$K$6264,0),MATCH(Y$45,'Data Annex'!$K$1:$AS$1,0)),"") -> 2.929937334 | Z57: =IFERROR(INDEX('Data Annex'!$K$1:$AS$6264,MATCH(Z$44&"|"&$B57,'Data Annex'!$K$1:$K$6264,0),MATCH(Z$45,'Data Annex'!$K$1:$AS$1,0)),"") -> 13.7840524 | AA57: =IFERROR(INDEX('Data Annex'!$K$1:$AS$6264,MATCH(AA$44&"|"&$B57,'Data Annex'!$K$1:$K$6264,0),MATCH(AA$45,'Data Annex'!$K$1:$AS$1,0)),"") -> 1.336031844 | AB57: =IFERROR(INDEX('Data Annex'!$K$1:$AS$6264,MATCH(AB$44&"|"&$B57,'Data Annex'!$K$1:$K$6264,0),MATCH(AB$45,'Data Annex'!$K$1:$AS$1,0)),"") -> 1.335995912
A58: 8 | B58: EE | D58: EE | F58: =IFERROR(INDEX('Data Annex'!$K$1:$AS$6264,MATCH(F$44&"|"&$B58,'Data Annex'!$K$1:$K$6264,0),MATCH(F$45,'Data Annex'!$K$1:$AS$1,0)),"") -> 45.40112218 | G58: =IFERROR(INDEX('Data Annex'!$K$1:$AS$6264,MATCH(G$44&"|"&$B58,'Data Annex'!$K$1:$K$6264,0),MATCH(G$45,'Data Annex'!$K$1:$AS$1,0)),"") -> 43.97951087 | H58: =IFERROR(INDEX('Data Annex'!$K$1:$AS$6264,MATCH(H$44&"|"&$B58,'Data Annex'!$K$1:$K$6264,0),MATCH(H$45,'Data Annex'!$K$1:$AS$1,0)),"") -> 0 | I58: =IFERROR(INDEX('Data Annex'!$K$1:$AS$6264,MATCH(I$44&"|"&$B58,'Data Annex'!$K$1:$K$6264,0),MATCH(I$45,'Data Annex'!$K$1:$AS$1,0)),"") -> 0 | J58: =IFERROR(INDEX('Data Annex'!$K$1:$AS$6264,MATCH(J$44&"|"&$B58,'Data Annex'!$K$1:$K$6264,0),MATCH(J$45,'Data Annex'!$K$1:$AS$1,0)),"") -> 0.92906943 | K58: =IFERROR(INDEX('Data Annex'!$K$1:$AS$6264,MATCH(K$44&"|"&$B58,'Data Annex'!$K$1:$K$6264,0),MATCH(K$45,'Data Annex'!$K$1:$AS$1,0)),"") -> 0.97216003 | L58: =IFERROR(INDEX('Data Annex'!$K$1:$AS$6264,MATCH(L$44&"|"&$B58,'Data Annex'!$K$1:$K$6264,0),MATCH(L$45,'Data Annex'!$K$1:$AS$1,0)),"") -> 0.312409 | M58: =IFERROR(INDEX('Data Annex'!$K$1:$AS$6264,MATCH(M$44&"|"&$B58,'Data Annex'!$K$1:$K$6264,0),MATCH(M$45,'Data Annex'!$K$1:$AS$1,0)),"") -> 0.28645 | N58: =IFERROR(INDEX('Data Annex'!$K$1:$AS$6264,MATCH(N$44&"|"&$B58,'Data Annex'!$K$1:$K$6264,0),MATCH(N$45,'Data Annex'!$K$1:$AS$1,0)),"") -> 0.00050276 | O58: =IFERROR(INDEX('Data Annex'!$K$1:$AS$6264,MATCH(O$44&"|"&$B58,'Data Annex'!$K$1:$K$6264,0),MATCH(O$45,'Data Annex'!$K$1:$AS$1,0)),"") -> 0.00201 | P58: =IFERROR(INDEX('Data Annex'!$K$1:$AS$6264,MATCH(P$44&"|"&$B58,'Data Annex'!$K$1:$K$6264,0),MATCH(P$45,'Data Annex'!$K$1:$AS$1,0)),"") -> 0.11000037 | Q58: =IFERROR(INDEX('Data Annex'!$K$1:$AS$6264,MATCH(Q$44&"|"&$B58,'Data Annex'!$K$1:$K$6264,0),MATCH(Q$45,'Data Annex'!$K$1:$AS$1,0)),"") -> 0.00017612 | R58: =IFERROR(INDEX('Data Annex'!$K$1:$AS$6264,MATCH(R$44&"|"&$B58,'Data Annex'!$K$1:$K$6264,0),MATCH(R$45,'Data Annex'!$K$1:$AS$1,0)),"") -> 44.04914062 | S58: =IFERROR(INDEX('Data Annex'!$K$1:$AS$6264,MATCH(S$44&"|"&$B58,'Data Annex'!$K$1:$K$6264,0),MATCH(S$45,'Data Annex'!$K$1:$AS$1,0)),"") -> 42.71871472 | U58: EE | W58: =IFERROR(INDEX('Data Annex'!$K$1:$AS$6264,MATCH(W$44&"|"&$B58,'Data Annex'!$K$1:$K$6264,0),MATCH(W$45,'Data Annex'!$K$1:$AS$1,0)),"") -> 0.26098444 | X58: =IFERROR(INDEX('Data Annex'!$K$1:$AS$6264,MATCH(X$44&"|"&$B58,'Data Annex'!$K$1:$K$6264,0),MATCH(X$45,'Data Annex'!$K$1:$AS$1,0)),"") -> 0.07806324 | Y58: =IFERROR(INDEX('Data Annex'!$K$1:$AS$6264,MATCH(Y$44&"|"&$B58,'Data Annex'!$K$1:$K$6264,0),MATCH(Y$45,'Data Annex'!$K$1:$AS$1,0)),"") -> 0 | Z58: =IFERROR(INDEX('Data Annex'!$K$1:$AS$6264,MATCH(Z$44&"|"&$B58,'Data Annex'!$K$1:$K$6264,0),MATCH(Z$45,'Data Annex'!$K$1:$AS$1,0)),"") -> 0 | AA58: =IFERROR(INDEX('Data Annex'!$K$1:$AS$6264,MATCH(AA$44&"|"&$B58,'Data Annex'!$K$1:$K$6264,0),MATCH(AA$45,'Data Annex'!$K$1:$AS$1,0)),"") -> 0 | AB58: =IFERROR(INDEX('Data Annex'!$K$1:$AS$6264,MATCH(AB$44&"|"&$B58,'Data Annex'!$K$1:$K$6264,0),MATCH(AB$45,'Data Annex'!$K$1:$AS$1,0)),"") -> 0
A59: 9 | B59: ES | D59: ES | F59: =IFERROR(INDEX('Data Annex'!$K$1:$AS$6264,MATCH(F$44&"|"&$B59,'Data Annex'!$K$1:$K$6264,0),MATCH(F$45,'Data Annex'!$K$1:$AS$1,0)),"") -> 923.748243 | G59: =IFERROR(INDEX('Data Annex'!$K$1:$AS$6264,MATCH(G$44&"|"&$B59,'Data Annex'!$K$1:$K$6264,0),MATCH(G$45,'Data Annex'!$K$1:$AS$1,0)),"") -> 954.4203104 | H59: =IFERROR(INDEX('Data Annex'!$K$1:$AS$6264,MATCH(H$44&"|"&$B59,'Data Annex'!$K$1:$K$6264,0),MATCH(H$45,'Data Annex'!$K$1:$AS$1,0)),"") ->  | I59: =IFERROR(INDEX('Data Annex'!$K$1:$AS$6264,MATCH(I$44&"|"&$B59,'Data Annex'!$K$1:$K$6264,0),MATCH(I$45,'Data Annex'!$K$1:$AS$1,0)),"") ->  | J59: =IFERROR(INDEX('Data Annex'!$K$1:$AS$6264,MATCH(J$44&"|"&$B59,'Data Annex'!$K$1:$K$6264,0),MATCH(J$45,'Data Annex'!$K$1:$AS$1,0)),"") -> 2.2 | K59: =IFERROR(INDEX('Data Annex'!$K$1:$AS$6264,MATCH(K$44&"|"&$B59,'Data Annex'!$K$1:$K$6264,0),MATCH(K$45,'Data Annex'!$K$1:$AS$1,0)),"") -> 1.672 | L59: =IFERROR(INDEX('Data Annex'!$K$1:$AS$6264,MATCH(L$44&"|"&$B59,'Data Annex'!$K$1:$K$6264,0),MATCH(L$45,'Data Annex'!$K$1:$AS$1,0)),"") -> 0.189 | M59: =IFERROR(INDEX('Data Annex'!$K$1:$AS$6264,MATCH(M$44&"|"&$B59,'Data Annex'!$K$1:$K$6264,0),MATCH(M$45,'Data Annex'!$K$1:$AS$1,0)),"") -> 0.178 | N59: =IFERROR(INDEX('Data Annex'!$K$1:$AS$6264,MATCH(N$44&"|"&$B59,'Data Annex'!$K$1:$K$6264,0),MATCH(N$45,'Data Annex'!$K$1:$AS$1,0)),"") -> 1.326 | O59: =IFERROR(INDEX('Data Annex'!$K$1:$AS$6264,MATCH(O$44&"|"&$B59,'Data Annex'!$K$1:$K$6264,0),MATCH(O$45,'Data Annex'!$K$1:$AS$1,0)),"") -> 4.414 | P59: =IFERROR(INDEX('Data Annex'!$K$1:$AS$6264,MATCH(P$44&"|"&$B59,'Data Annex'!$K$1:$K$6264,0),MATCH(P$45,'Data Annex'!$K$1:$AS$1,0)),"") -> 2.654781 | Q59: =IFERROR(INDEX('Data Annex'!$K$1:$AS$6264,MATCH(Q$44&"|"&$B59,'Data Annex'!$K$1:$K$6264,0),MATCH(Q$45,'Data Annex'!$K$1:$AS$1,0)),"") -> 4.193637 | R59: =IFERROR(INDEX('Data Annex'!$K$1:$AS$6264,MATCH(R$44&"|"&$B59,'Data Annex'!$K$1:$K$6264,0),MATCH(R$45,'Data Annex'!$K$1:$AS$1,0)),"") -> 917.378463 | S59: =IFERROR(INDEX('Data Annex'!$K$1:$AS$6264,MATCH(S$44&"|"&$B59,'Data Annex'!$K$1:$K$6264,0),MATCH(S$45,'Data Annex'!$K$1:$AS$1,0)),"") -> 943.9626734 | U59: ES | W59: =IFERROR(INDEX('Data Annex'!$K$1:$AS$6264,MATCH(W$44&"|"&$B59,'Data Annex'!$K$1:$K$6264,0),MATCH(W$45,'Data Annex'!$K$1:$AS$1,0)),"") -> 27.858273 | X59: =IFERROR(INDEX('Data Annex'!$K$1:$AS$6264,MATCH(X$44&"|"&$B59,'Data Annex'!$K$1:$K$6264,0),MATCH(X$45,'Data Annex'!$K$1:$AS$1,0)),"") -> 23.08006386 | Y59: =IFERROR(INDEX('Data Annex'!$K$1:$AS$6264,MATCH(Y$44&"|"&$B59,'Data Annex'!$K$1:$K$6264,0),MATCH(Y$45,'Data Annex'!$K$1:$AS$1,0)),"") -> 5.174 | Z59: =IFERROR(INDEX('Data Annex'!$K$1:$AS$6264,MATCH(Z$44&"|"&$B59,'Data Annex'!$K$1:$K$6264,0),MATCH(Z$45,'Data Annex'!$K$1:$AS$1,0)),"") -> 4.97382955 | AA59: =IFERROR(INDEX('Data Annex'!$K$1:$AS$6264,MATCH(AA$44&"|"&$B59,'Data Annex'!$K$1:$K$6264,0),MATCH(AA$45,'Data Annex'!$K$1:$AS$1,0)),"") -> 39.568 | AB59: =IFERROR(INDEX('Data Annex'!$K$1:$AS$6264,MATCH(AB$44&"|"&$B59,'Data Annex'!$K$1:$K$6264,0),MATCH(AB$45,'Data Annex'!$K$1:$AS$1,0)),"") -> 25.388
A60: 10 | B60: FI | D60: FI | F60: =IFERROR(INDEX('Data Annex'!$K$1:$AS$6264,MATCH(F$44&"|"&$B60,'Data Annex'!$K$1:$K$6264,0),MATCH(F$45,'Data Annex'!$K$1:$AS$1,0)),"") -> 87.126458 | G60: =IFERROR(INDEX('Data Annex'!$K$1:$AS$6264,MATCH(G$44&"|"&$B60,'Data Annex'!$K$1:$K$6264,0),MATCH(G$45,'Data Annex'!$K$1:$AS$1,0)),"") -> 182.2056331 | H60: =IFERROR(INDEX('Data Annex'!$K$1:$AS$6264,MATCH(H$44&"|"&$B60,'Data Annex'!$K$1:$K$6264,0),MATCH(H$45,'Data Annex'!$K$1:$AS$1,0)),"") -> 0.012024 | I60: =IFERROR(INDEX('Data Annex'!$K$1:$AS$6264,MATCH(I$44&"|"&$B60,'Data Annex'!$K$1:$K$6264,0),MATCH(I$45,'Data Annex'!$K$1:$AS$1,0)),"") -> 0.011783 | J60: =IFERROR(INDEX('Data Annex'!$K$1:$AS$6264,MATCH(J$44&"|"&$B60,'Data Annex'!$K$1:$K$6264,0),MATCH(J$45,'Data Annex'!$K$1:$AS$1,0)),"") -> 0.018464 | K60: =IFERROR(INDEX('Data Annex'!$K$1:$AS$6264,MATCH(K$44&"|"&$B60,'Data Annex'!$K$1:$K$6264,0),MATCH(K$45,'Data Annex'!$K$1:$AS$1,0)),"") -> 0.003115 | L60: =IFERROR(INDEX('Data Annex'!$K$1:$AS$6264,MATCH(L$44&"|"&$B60,'Data Annex'!$K$1:$K$6264,0),MATCH(L$45,'Data Annex'!$K$1:$AS$1,0)),"") -> 6.672963 | M60: =IFERROR(INDEX('Data Annex'!$K$1:$AS$6264,MATCH(M$44&"|"&$B60,'Data Annex'!$K$1:$K$6264,0),MATCH(M$45,'Data Annex'!$K$1:$AS$1,0)),"") -> 9.135692 | N60: =IFERROR(INDEX('Data Annex'!$K$1:$AS$6264,MATCH(N$44&"|"&$B60,'Data Annex'!$K$1:$K$6264,0),MATCH(N$45,'Data Annex'!$K$1:$AS$1,0)),"") -> 0.025167 | O60: =IFERROR(INDEX('Data Annex'!$K$1:$AS$6264,MATCH(O$44&"|"&$B60,'Data Annex'!$K$1:$K$6264,0),MATCH(O$45,'Data Annex'!$K$1:$AS$1,0)),"") -> 0 | P60: =IFERROR(INDEX('Data Annex'!$K$1:$AS$6264,MATCH(P$44&"|"&$B60,'Data Annex'!$K$1:$K$6264,0),MATCH(P$45,'Data Annex'!$K$1:$AS$1,0)),"") -> 1.19147984 | Q60: =IFERROR(INDEX('Data Annex'!$K$1:$AS$6264,MATCH(Q$44&"|"&$B60,'Data Annex'!$K$1:$K$6264,0),MATCH(Q$45,'Data Annex'!$K$1:$AS$1,0)),"") -> 103.5617083 | R60: =IFERROR(INDEX('Data Annex'!$K$1:$AS$6264,MATCH(R$44&"|"&$B60,'Data Annex'!$K$1:$K$6264,0),MATCH(R$45,'Data Annex'!$K$1:$AS$1,0)),"") -> 79.20636016 | S60: =IFERROR(INDEX('Data Annex'!$K$1:$AS$6264,MATCH(S$44&"|"&$B60,'Data Annex'!$K$1:$K$6264,0),MATCH(S$45,'Data Annex'!$K$1:$AS$1,0)),"") -> 69.4933348 | U60: FI | W60: =IFERROR(INDEX('Data Annex'!$K$1:$AS$6264,MATCH(W$44&"|"&$B60,'Data Annex'!$K$1:$K$6264,0),MATCH(W$45,'Data Annex'!$K$1:$AS$1,0)),"") -> 2.27257652 | X60: =IFERROR(INDEX('Data Annex'!$K$1:$AS$6264,MATCH(X$44&"|"&$B60,'Data Annex'!$K$1:$K$6264,0),MATCH(X$45,'Data Annex'!$K$1:$AS$1,0)),"") -> 2.78355796 | Y60: =IFERROR(INDEX('Data Annex'!$K$1:$AS$6264,MATCH(Y$44&"|"&$B60,'Data Annex'!$K$1:$K$6264,0),MATCH(Y$45,'Data Annex'!$K$1:$AS$1,0)),"") -> 9.546131 | Z60: =IFERROR(INDEX('Data Annex'!$K$1:$AS$6264,MATCH(Z$44&"|"&$B60,'Data Annex'!$K$1:$K$6264,0),MATCH(Z$45,'Data Annex'!$K$1:$AS$1,0)),"") -> 9.547131 | AA60: =IFERROR(INDEX('Data Annex'!$K$1:$AS$6264,MATCH(AA$44&"|"&$B60,'Data Annex'!$K$1:$K$6264,0),MATCH(AA$45,'Data Annex'!$K$1:$AS$1,0)),"") -> 26.08164591 | AB60: =IFERROR(INDEX('Data Annex'!$K$1:$AS$6264,MATCH(AB$44&"|"&$B60,'Data Annex'!$K$1:$K$6264,0),MATCH(AB$45,'Data Annex'!$K$1:$AS$1,0)),"") -> 79.28917151
A61: 11 | B61: FR | D61: FR | F61: =IFERROR(INDEX('Data Annex'!$K$1:$AS$6264,MATCH(F$44&"|"&$B61,'Data Annex'!$K$1:$K$6264,0),MATCH(F$45,'Data Annex'!$K$1:$AS$1,0)),"") -> 38458.85314 | G61: =IFERROR(INDEX('Data Annex'!$K$1:$AS$6264,MATCH(G$44&"|"&$B61,'Data Annex'!$K$1:$K$6264,0),MATCH(G$45,'Data Annex'!$K$1:$AS$1,0)),"") -> 31034.19809 | H61: =IFERROR(INDEX('Data Annex'!$K$1:$AS$6264,MATCH(H$44&"|"&$B61,'Data Annex'!$K$1:$K$6264,0),MATCH(H$45,'Data Annex'!$K$1:$AS$1,0)),"") -> 24699.00771 | I61: =IFERROR(INDEX('Data Annex'!$K$1:$AS$6264,MATCH(I$44&"|"&$B61,'Data Annex'!$K$1:$K$6264,0),MATCH(I$45,'Data Annex'!$K$1:$AS$1,0)),"") -> 14824.40596 | J61: =IFERROR(INDEX('Data Annex'!$K$1:$AS$6264,MATCH(J$44&"|"&$B61,'Data Annex'!$K$1:$K$6264,0),MATCH(J$45,'Data Annex'!$K$1:$AS$1,0)),"") -> 522.693211 | K61: =IFERROR(INDEX('Data Annex'!$K$1:$AS$6264,MATCH(K$44&"|"&$B61,'Data Annex'!$K$1:$K$6264,0),MATCH(K$45,'Data Annex'!$K$1:$AS$1,0)),"") -> 1116.28831 | L61: =IFERROR(INDEX('Data Annex'!$K$1:$AS$6264,MATCH(L$44&"|"&$B61,'Data Annex'!$K$1:$K$6264,0),MATCH(L$45,'Data Annex'!$K$1:$AS$1,0)),"") -> 445.284478 | M61: =IFERROR(INDEX('Data Annex'!$K$1:$AS$6264,MATCH(M$44&"|"&$B61,'Data Annex'!$K$1:$K$6264,0),MATCH(M$45,'Data Annex'!$K$1:$AS$1,0)),"") -> 930.53357 | N61: =IFERROR(INDEX('Data Annex'!$K$1:$AS$6264,MATCH(N$44&"|"&$B61,'Data Annex'!$K$1:$K$6264,0),MATCH(N$45,'Data Annex'!$K$1:$AS$1,0)),"") -> 1161.868377 | O61: =IFERROR(INDEX('Data Annex'!$K$1:$AS$6264,MATCH(O$44&"|"&$B61,'Data Annex'!$K$1:$K$6264,0),MATCH(O$45,'Data Annex'!$K$1:$AS$1,0)),"") -> 1406.684412 | P61: =IFERROR(INDEX('Data Annex'!$K$1:$AS$6264,MATCH(P$44&"|"&$B61,'Data Annex'!$K$1:$K$6264,0),MATCH(P$45,'Data Annex'!$K$1:$AS$1,0)),"") -> 7716.009709 | Q61: =IFERROR(INDEX('Data Annex'!$K$1:$AS$6264,MATCH(Q$44&"|"&$B61,'Data Annex'!$K$1:$K$6264,0),MATCH(Q$45,'Data Annex'!$K$1:$AS$1,0)),"") -> 8206.561974 | R61: =IFERROR(INDEX('Data Annex'!$K$1:$AS$6264,MATCH(R$44&"|"&$B61,'Data Annex'!$K$1:$K$6264,0),MATCH(R$45,'Data Annex'!$K$1:$AS$1,0)),"") -> 3913.989662 | S61: =IFERROR(INDEX('Data Annex'!$K$1:$AS$6264,MATCH(S$44&"|"&$B61,'Data Annex'!$K$1:$K$6264,0),MATCH(S$45,'Data Annex'!$K$1:$AS$1,0)),"") -> 4549.723872 | U61: FR | W61: =IFERROR(INDEX('Data Annex'!$K$1:$AS$6264,MATCH(W$44&"|"&$B61,'Data Annex'!$K$1:$K$6264,0),MATCH(W$45,'Data Annex'!$K$1:$AS$1,0)),"") -> 3103.522706 | X61: =IFERROR(INDEX('Data Annex'!$K$1:$AS$6264,MATCH(X$44&"|"&$B61,'Data Annex'!$K$1:$K$6264,0),MATCH(X$45,'Data Annex'!$K$1:$AS$1,0)),"") -> 3578.522274 | Y61: =IFERROR(INDEX('Data Annex'!$K$1:$AS$6264,MATCH(Y$44&"|"&$B61,'Data Annex'!$K$1:$K$6264,0),MATCH(Y$45,'Data Annex'!$K$1:$AS$1,0)),"") -> 2881.05042 | Z61: =IFERROR(INDEX('Data Annex'!$K$1:$AS$6264,MATCH(Z$44&"|"&$B61,'Data Annex'!$K$1:$K$6264,0),MATCH(Z$45,'Data Annex'!$K$1:$AS$1,0)),"") -> 3156.313138 | AA61: =IFERROR(INDEX('Data Annex'!$K$1:$AS$6264,MATCH(AA$44&"|"&$B61,'Data Annex'!$K$1:$K$6264,0),MATCH(AA$45,'Data Annex'!$K$1:$AS$1,0)),"") -> 143.9412451 | AB61: =IFERROR(INDEX('Data Annex'!$K$1:$AS$6264,MATCH(AB$44&"|"&$B61,'Data Annex'!$K$1:$K$6264,0),MATCH(AB$45,'Data Annex'!$K$1:$AS$1,0)),"") -> 189.3706216
A62: 12 | B62: GR | D62: GR | F62: =IFERROR(INDEX('Data Annex'!$K$1:$AS$6264,MATCH(F$44&"|"&$B62,'Data Annex'!$K$1:$K$6264,0),MATCH(F$45,'Data Annex'!$K$1:$AS$1,0)),"") ->  | G62: =IFERROR(INDEX('Data Annex'!$K$1:$AS$6264,MATCH(G$44&"|"&$B62,'Data Annex'!$K$1:$K$6264,0),MATCH(G$45,'Data Annex'!$K$1:$AS$1,0)),"") ->  | H62: =IFERROR(INDEX('Data Annex'!$K$1:$AS$6264,MATCH(H$44&"|"&$B62,'Data Annex'!$K$1:$K$6264,0),MATCH(H$45,'Data Annex'!$K$1:$AS$1,0)),"") ->  | I62: =IFERROR(INDEX('Data Annex'!$K$1:$AS$6264,MATCH(I$44&"|"&$B62,'Data Annex'!$K$1:$K$6264,0),MATCH(I$45,'Data Annex'!$K$1:$AS$1,0)),"") ->  | J62: =IFERROR(INDEX('Data Annex'!$K$1:$AS$6264,MATCH(J$44&"|"&$B62,'Data Annex'!$K$1:$K$6264,0),MATCH(J$45,'Data Annex'!$K$1:$AS$1,0)),"") ->  | K62: =IFERROR(INDEX('Data Annex'!$K$1:$AS$6264,MATCH(K$44&"|"&$B62,'Data Annex'!$K$1:$K$6264,0),MATCH(K$45,'Data Annex'!$K$1:$AS$1,0)),"") ->  | L62: =IFERROR(INDEX('Data Annex'!$K$1:$AS$6264,MATCH(L$44&"|"&$B62,'Data Annex'!$K$1:$K$6264,0),MATCH(L$45,'Data Annex'!$K$1:$AS$1,0)),"") ->  | M62: =IFERROR(INDEX('Data Annex'!$K$1:$AS$6264,MATCH(M$44&"|"&$B62,'Data Annex'!$K$1:$K$6264,0),MATCH(M$45,'Data Annex'!$K$1:$AS$1,0)),"") ->  | N62: =IFERROR(INDEX('Data Annex'!$K$1:$AS$6264,MATCH(N$44&"|"&$B62,'Data Annex'!$K$1:$K$6264,0),MATCH(N$45,'Data Annex'!$K$1:$AS$1,0)),"") ->  | O62: =IFERROR(INDEX('Data Annex'!$K$1:$AS$6264,MATCH(O$44&"|"&$B62,'Data Annex'!$K$1:$K$6264,0),MATCH(O$45,'Data Annex'!$K$1:$AS$1,0)),"") ->  | P62: =IFERROR(INDEX('Data Annex'!$K$1:$AS$6264,MATCH(P$44&"|"&$B62,'Data Annex'!$K$1:$K$6264,0),MATCH(P$45,'Data Annex'!$K$1:$AS$1,0)),"") ->  | Q62: =IFERROR(INDEX('Data Annex'!$K$1:$AS$6264,MATCH(Q$44&"|"&$B62,'Data Annex'!$K$1:$K$6264,0),MATCH(Q$45,'Data Annex'!$K$1:$AS$1,0)),"") ->  | R62: =IFERROR(INDEX('Data Annex'!$K$1:$AS$6264,MATCH(R$44&"|"&$B62,'Data Annex'!$K$1:$K$6264,0),MATCH(R$45,'Data Annex'!$K$1:$AS$1,0)),"") ->  | S62: =IFERROR(INDEX('Data Annex'!$K$1:$AS$6264,MATCH(S$44&"|"&$B62,'Data Annex'!$K$1:$K$6264,0),MATCH(S$45,'Data Annex'!$K$1:$AS$1,0)),"") ->  | U62: GR | W62: =IFERROR(INDEX('Data Annex'!$K$1:$AS$6264,MATCH(W$44&"|"&$B62,'Data Annex'!$K$1:$K$6264,0),MATCH(W$45,'Data Annex'!$K$1:$AS$1,0)),"") ->  | X62: =IFERROR(INDEX('Data Annex'!$K$1:$AS$6264,MATCH(X$44&"|"&$B62,'Data Annex'!$K$1:$K$6264,0),MATCH(X$45,'Data Annex'!$K$1:$AS$1,0)),"") ->  | Y62: =IFERROR(INDEX('Data Annex'!$K$1:$AS$6264,MATCH(Y$44&"|"&$B62,'Data Annex'!$K$1:$K$6264,0),MATCH(Y$45,'Data Annex'!$K$1:$AS$1,0)),"") ->  | Z62: =IFERROR(INDEX('Data Annex'!$K$1:$AS$6264,MATCH(Z$44&"|"&$B62,'Data Annex'!$K$1:$K$6264,0),MATCH(Z$45,'Data Annex'!$K$1:$AS$1,0)),"") ->  | AA62: =IFERROR(INDEX('Data Annex'!$K$1:$AS$6264,MATCH(AA$44&"|"&$B62,'Data Annex'!$K$1:$K$6264,0),MATCH(AA$45,'Data Annex'!$K$1:$AS$1,0)),"") ->  | AB62: =IFERROR(INDEX('Data Annex'!$K$1:$AS$6264,MATCH(AB$44&"|"&$B62,'Data Annex'!$K$1:$K$6264,0),MATCH(AB$45,'Data Annex'!$K$1:$AS$1,0)),"") -> 
A63: 13 | B63: HR | D63: HR | F63: =IFERROR(INDEX('Data Annex'!$K$1:$AS$6264,MATCH(F$44&"|"&$B63,'Data Annex'!$K$1:$K$6264,0),MATCH(F$45,'Data Annex'!$K$1:$AS$1,0)),"") -> 44.4318997 | G63: =IFERROR(INDEX('Data Annex'!$K$1:$AS$6264,MATCH(G$44&"|"&$B63,'Data Annex'!$K$1:$K$6264,0),MATCH(G$45,'Data Annex'!$K$1:$AS$1,0)),"") -> 40.50831383 | H63: =IFERROR(INDEX('Data Annex'!$K$1:$AS$6264,MATCH(H$44&"|"&$B63,'Data Annex'!$K$1:$K$6264,0),MATCH(H$45,'Data Annex'!$K$1:$AS$1,0)),"") ->  | I63: =IFERROR(INDEX('Data Annex'!$K$1:$AS$6264,MATCH(I$44&"|"&$B63,'Data Annex'!$K$1:$K$6264,0),MATCH(I$45,'Data Annex'!$K$1:$AS$1,0)),"") ->  | J63: =IFERROR(INDEX('Data Annex'!$K$1:$AS$6264,MATCH(J$44&"|"&$B63,'Data Annex'!$K$1:$K$6264,0),MATCH(J$45,'Data Annex'!$K$1:$AS$1,0)),"") -> 9.679494881e-05 | K63: =IFERROR(INDEX('Data Annex'!$K$1:$AS$6264,MATCH(K$44&"|"&$B63,'Data Annex'!$K$1:$K$6264,0),MATCH(K$45,'Data Annex'!$K$1:$AS$1,0)),"") -> 0.0008901511523 | L63: =IFERROR(INDEX('Data Annex'!$K$1:$AS$6264,MATCH(L$44&"|"&$B63,'Data Annex'!$K$1:$K$6264,0),MATCH(L$45,'Data Annex'!$K$1:$AS$1,0)),"") ->  | M63: =IFERROR(INDEX('Data Annex'!$K$1:$AS$6264,MATCH(M$44&"|"&$B63,'Data Annex'!$K$1:$K$6264,0),MATCH(M$45,'Data Annex'!$K$1:$AS$1,0)),"") ->  | N63: =IFERROR(INDEX('Data Annex'!$K$1:$AS$6264,MATCH(N$44&"|"&$B63,'Data Annex'!$K$1:$K$6264,0),MATCH(N$45,'Data Annex'!$K$1:$AS$1,0)),"") ->  | O63: =IFERROR(INDEX('Data Annex'!$K$1:$AS$6264,MATCH(O$44&"|"&$B63,'Data Annex'!$K$1:$K$6264,0),MATCH(O$45,'Data Annex'!$K$1:$AS$1,0)),"") ->  | P63: =IFERROR(INDEX('Data Annex'!$K$1:$AS$6264,MATCH(P$44&"|"&$B63,'Data Annex'!$K$1:$K$6264,0),MATCH(P$45,'Data Annex'!$K$1:$AS$1,0)),"") -> 0.03338021839 | Q63: =IFERROR(INDEX('Data Annex'!$K$1:$AS$6264,MATCH(Q$44&"|"&$B63,'Data Annex'!$K$1:$K$6264,0),MATCH(Q$45,'Data Annex'!$K$1:$AS$1,0)),"") -> 0.01844670951 | R63: =IFERROR(INDEX('Data Annex'!$K$1:$AS$6264,MATCH(R$44&"|"&$B63,'Data Annex'!$K$1:$K$6264,0),MATCH(R$45,'Data Annex'!$K$1:$AS$1,0)),"") -> 44.39842269 | S63: =IFERROR(INDEX('Data Annex'!$K$1:$AS$6264,MATCH(S$44&"|"&$B63,'Data Annex'!$K$1:$K$6264,0),MATCH(S$45,'Data Annex'!$K$1:$AS$1,0)),"") -> 40.48897697 | U63: HR | W63: =IFERROR(INDEX('Data Annex'!$K$1:$AS$6264,MATCH(W$44&"|"&$B63,'Data Annex'!$K$1:$K$6264,0),MATCH(W$45,'Data Annex'!$K$1:$AS$1,0)),"") -> 0.04832356333 | X63: =IFERROR(INDEX('Data Annex'!$K$1:$AS$6264,MATCH(X$44&"|"&$B63,'Data Annex'!$K$1:$K$6264,0),MATCH(X$45,'Data Annex'!$K$1:$AS$1,0)),"") -> 0.03946067513 | Y63: =IFERROR(INDEX('Data Annex'!$K$1:$AS$6264,MATCH(Y$44&"|"&$B63,'Data Annex'!$K$1:$K$6264,0),MATCH(Y$45,'Data Annex'!$K$1:$AS$1,0)),"") -> 1.20000944 | Z63: =IFERROR(INDEX('Data Annex'!$K$1:$AS$6264,MATCH(Z$44&"|"&$B63,'Data Annex'!$K$1:$K$6264,0),MATCH(Z$45,'Data Annex'!$K$1:$AS$1,0)),"") -> 1.440319994 | AA63: =IFERROR(INDEX('Data Annex'!$K$1:$AS$6264,MATCH(AA$44&"|"&$B63,'Data Annex'!$K$1:$K$6264,0),MATCH(AA$45,'Data Annex'!$K$1:$AS$1,0)),"") ->  | AB63: =IFERROR(INDEX('Data Annex'!$K$1:$AS$6264,MATCH(AB$44&"|"&$B63,'Data Annex'!$K$1:$K$6264,0),MATCH(AB$45,'Data Annex'!$K$1:$AS$1,0)),"") -> 
A64: 14 | B64: HU | D64: HU | F64: =IFERROR(INDEX('Data Annex'!$K$1:$AS$6264,MATCH(F$44&"|"&$B64,'Data Annex'!$K$1:$K$6264,0),MATCH(F$45,'Data Annex'!$K$1:$AS$1,0)),"") -> 1251.713631 | G64: =IFERROR(INDEX('Data Annex'!$K$1:$AS$6264,MATCH(G$44&"|"&$B64,'Data Annex'!$K$1:$K$6264,0),MATCH(G$45,'Data Annex'!$K$1:$AS$1,0)),"") -> 1381.689844 | H64: =IFERROR(INDEX('Data Annex'!$K$1:$AS$6264,MATCH(H$44&"|"&$B64,'Data Annex'!$K$1:$K$6264,0),MATCH(H$45,'Data Annex'!$K$1:$AS$1,0)),"") -> 0 | I64: =IFERROR(INDEX('Data Annex'!$K$1:$AS$6264,MATCH(I$44&"|"&$B64,'Data Annex'!$K$1:$K$6264,0),MATCH(I$45,'Data Annex'!$K$1:$AS$1,0)),"") -> 0 | J64: =IFERROR(INDEX('Data Annex'!$K$1:$AS$6264,MATCH(J$44&"|"&$B64,'Data Annex'!$K$1:$K$6264,0),MATCH(J$45,'Data Annex'!$K$1:$AS$1,0)),"") -> 22.97864248 | K64: =IFERROR(INDEX('Data Annex'!$K$1:$AS$6264,MATCH(K$44&"|"&$B64,'Data Annex'!$K$1:$K$6264,0),MATCH(K$45,'Data Annex'!$K$1:$AS$1,0)),"") -> 0 | L64: =IFERROR(INDEX('Data Annex'!$K$1:$AS$6264,MATCH(L$44&"|"&$B64,'Data Annex'!$K$1:$K$6264,0),MATCH(L$45,'Data Annex'!$K$1:$AS$1,0)),"") -> 255.287432 | M64: =IFERROR(INDEX('Data Annex'!$K$1:$AS$6264,MATCH(M$44&"|"&$B64,'Data Annex'!$K$1:$K$6264,0),MATCH(M$45,'Data Annex'!$K$1:$AS$1,0)),"") -> 236.5844146 | N64: =IFERROR(INDEX('Data Annex'!$K$1:$AS$6264,MATCH(N$44&"|"&$B64,'Data Annex'!$K$1:$K$6264,0),MATCH(N$45,'Data Annex'!$K$1:$AS$1,0)),"") -> 0 | O64: =IFERROR(INDEX('Data Annex'!$K$1:$AS$6264,MATCH(O$44&"|"&$B64,'Data Annex'!$K$1:$K$6264,0),MATCH(O$45,'Data Annex'!$K$1:$AS$1,0)),"") -> 0 | P64: =IFERROR(INDEX('Data Annex'!$K$1:$AS$6264,MATCH(P$44&"|"&$B64,'Data Annex'!$K$1:$K$6264,0),MATCH(P$45,'Data Annex'!$K$1:$AS$1,0)),"") -> 246.893961 | Q64: =IFERROR(INDEX('Data Annex'!$K$1:$AS$6264,MATCH(Q$44&"|"&$B64,'Data Annex'!$K$1:$K$6264,0),MATCH(Q$45,'Data Annex'!$K$1:$AS$1,0)),"") -> 382.3956873 | R64: =IFERROR(INDEX('Data Annex'!$K$1:$AS$6264,MATCH(R$44&"|"&$B64,'Data Annex'!$K$1:$K$6264,0),MATCH(R$45,'Data Annex'!$K$1:$AS$1,0)),"") -> 726.5535958 | S64: =IFERROR(INDEX('Data Annex'!$K$1:$AS$6264,MATCH(S$44&"|"&$B64,'Data Annex'!$K$1:$K$6264,0),MATCH(S$45,'Data Annex'!$K$1:$AS$1,0)),"") -> 762.709742 | U64: HU | W64: =IFERROR(INDEX('Data Annex'!$K$1:$AS$6264,MATCH(W$44&"|"&$B64,'Data Annex'!$K$1:$K$6264,0),MATCH(W$45,'Data Annex'!$K$1:$AS$1,0)),"") -> 537.4112195 | X64: =IFERROR(INDEX('Data Annex'!$K$1:$AS$6264,MATCH(X$44&"|"&$B64,'Data Annex'!$K$1:$K$6264,0),MATCH(X$45,'Data Annex'!$K$1:$AS$1,0)),"") -> 679.5075192 | Y64: =IFERROR(INDEX('Data Annex'!$K$1:$AS$6264,MATCH(Y$44&"|"&$B64,'Data Annex'!$K$1:$K$6264,0),MATCH(Y$45,'Data Annex'!$K$1:$AS$1,0)),"") -> 270.2862565 | Z64: =IFERROR(INDEX('Data Annex'!$K$1:$AS$6264,MATCH(Z$44&"|"&$B64,'Data Annex'!$K$1:$K$6264,0),MATCH(Z$45,'Data Annex'!$K$1:$AS$1,0)),"") -> 352.9522892 | AA64: =IFERROR(INDEX('Data Annex'!$K$1:$AS$6264,MATCH(AA$44&"|"&$B64,'Data Annex'!$K$1:$K$6264,0),MATCH(AA$45,'Data Annex'!$K$1:$AS$1,0)),"") -> 0.693189698 | AB64: =IFERROR(INDEX('Data Annex'!$K$1:$AS$6264,MATCH(AB$44&"|"&$B64,'Data Annex'!$K$1:$K$6264,0),MATCH(AB$45,'Data Annex'!$K$1:$AS$1,0)),"") -> 1.495679116
A65: 15 | B65: IE | D65: IE | F65: =IFERROR(INDEX('Data Annex'!$K$1:$AS$6264,MATCH(F$44&"|"&$B65,'Data Annex'!$K$1:$K$6264,0),MATCH(F$45,'Data Annex'!$K$1:$AS$1,0)),"") -> 174.3732989 | G65: =IFERROR(INDEX('Data Annex'!$K$1:$AS$6264,MATCH(G$44&"|"&$B65,'Data Annex'!$K$1:$K$6264,0),MATCH(G$45,'Data Annex'!$K$1:$AS$1,0)),"") -> 219.8701061 | H65: =IFERROR(INDEX('Data Annex'!$K$1:$AS$6264,MATCH(H$44&"|"&$B65,'Data Annex'!$K$1:$K$6264,0),MATCH(H$45,'Data Annex'!$K$1:$AS$1,0)),"") ->  | I65: =IFERROR(INDEX('Data Annex'!$K$1:$AS$6264,MATCH(I$44&"|"&$B65,'Data Annex'!$K$1:$K$6264,0),MATCH(I$45,'Data Annex'!$K$1:$AS$1,0)),"") ->  | J65: =IFERROR(INDEX('Data Annex'!$K$1:$AS$6264,MATCH(J$44&"|"&$B65,'Data Annex'!$K$1:$K$6264,0),MATCH(J$45,'Data Annex'!$K$1:$AS$1,0)),"") ->  | K65: =IFERROR(INDEX('Data Annex'!$K$1:$AS$6264,MATCH(K$44&"|"&$B65,'Data Annex'!$K$1:$K$6264,0),MATCH(K$45,'Data Annex'!$K$1:$AS$1,0)),"") ->  | L65: =IFERROR(INDEX('Data Annex'!$K$1:$AS$6264,MATCH(L$44&"|"&$B65,'Data Annex'!$K$1:$K$6264,0),MATCH(L$45,'Data Annex'!$K$1:$AS$1,0)),"") -> 118.2014113 | M65: =IFERROR(INDEX('Data Annex'!$K$1:$AS$6264,MATCH(M$44&"|"&$B65,'Data Annex'!$K$1:$K$6264,0),MATCH(M$45,'Data Annex'!$K$1:$AS$1,0)),"") -> 184.2803383 | N65: =IFERROR(INDEX('Data Annex'!$K$1:$AS$6264,MATCH(N$44&"|"&$B65,'Data Annex'!$K$1:$K$6264,0),MATCH(N$45,'Data Annex'!$K$1:$AS$1,0)),"") -> 4.718839228e-05 | O65: =IFERROR(INDEX('Data Annex'!$K$1:$AS$6264,MATCH(O$44&"|"&$B65,'Data Annex'!$K$1:$K$6264,0),MATCH(O$45,'Data Annex'!$K$1:$AS$1,0)),"") -> 4.951920786e-05 | P65: =IFERROR(INDEX('Data Annex'!$K$1:$AS$6264,MATCH(P$44&"|"&$B65,'Data Annex'!$K$1:$K$6264,0),MATCH(P$45,'Data Annex'!$K$1:$AS$1,0)),"") -> 0.22109036 | Q65: =IFERROR(INDEX('Data Annex'!$K$1:$AS$6264,MATCH(Q$44&"|"&$B65,'Data Annex'!$K$1:$K$6264,0),MATCH(Q$45,'Data Annex'!$K$1:$AS$1,0)),"") -> 0.21179754 | R65: =IFERROR(INDEX('Data Annex'!$K$1:$AS$6264,MATCH(R$44&"|"&$B65,'Data Annex'!$K$1:$K$6264,0),MATCH(R$45,'Data Annex'!$K$1:$AS$1,0)),"") -> 55.95075005 | S65: =IFERROR(INDEX('Data Annex'!$K$1:$AS$6264,MATCH(S$44&"|"&$B65,'Data Annex'!$K$1:$K$6264,0),MATCH(S$45,'Data Annex'!$K$1:$AS$1,0)),"") -> 35.37792077 | U65: IE | W65: =IFERROR(INDEX('Data Annex'!$K$1:$AS$6264,MATCH(W$44&"|"&$B65,'Data Annex'!$K$1:$K$6264,0),MATCH(W$45,'Data Annex'!$K$1:$AS$1,0)),"") -> 1.54144312 | X65: =IFERROR(INDEX('Data Annex'!$K$1:$AS$6264,MATCH(X$44&"|"&$B65,'Data Annex'!$K$1:$K$6264,0),MATCH(X$45,'Data Annex'!$K$1:$AS$1,0)),"") -> 1.53850462 | Y65: =IFERROR(INDEX('Data Annex'!$K$1:$AS$6264,MATCH(Y$44&"|"&$B65,'Data Annex'!$K$1:$K$6264,0),MATCH(Y$45,'Data Annex'!$K$1:$AS$1,0)),"") -> 2.15450223 | Z65: =IFERROR(INDEX('Data Annex'!$K$1:$AS$6264,MATCH(Z$44&"|"&$B65,'Data Annex'!$K$1:$K$6264,0),MATCH(Z$45,'Data Annex'!$K$1:$AS$1,0)),"") -> 4.98610661 | AA65: =IFERROR(INDEX('Data Annex'!$K$1:$AS$6264,MATCH(AA$44&"|"&$B65,'Data Annex'!$K$1:$K$6264,0),MATCH(AA$45,'Data Annex'!$K$1:$AS$1,0)),"") -> 144.4160956 | AB65: =IFERROR(INDEX('Data Annex'!$K$1:$AS$6264,MATCH(AB$44&"|"&$B65,'Data Annex'!$K$1:$K$6264,0),MATCH(AB$45,'Data Annex'!$K$1:$AS$1,0)),"") -> 180.6379475
A66: 16 | B66: IS | D66: IS | F66: =IFERROR(INDEX('Data Annex'!$K$1:$AS$6264,MATCH(F$44&"|"&$B66,'Data Annex'!$K$1:$K$6264,0),MATCH(F$45,'Data Annex'!$K$1:$AS$1,0)),"") ->  | G66: =IFERROR(INDEX('Data Annex'!$K$1:$AS$6264,MATCH(G$44&"|"&$B66,'Data Annex'!$K$1:$K$6264,0),MATCH(G$45,'Data Annex'!$K$1:$AS$1,0)),"") ->  | H66: =IFERROR(INDEX('Data Annex'!$K$1:$AS$6264,MATCH(H$44&"|"&$B66,'Data Annex'!$K$1:$K$6264,0),MATCH(H$45,'Data Annex'!$K$1:$AS$1,0)),"") ->  | I66: =IFERROR(INDEX('Data Annex'!$K$1:$AS$6264,MATCH(I$44&"|"&$B66,'Data Annex'!$K$1:$K$6264,0),MATCH(I$45,'Data Annex'!$K$1:$AS$1,0)),"") ->  | J66: =IFERROR(INDEX('Data Annex'!$K$1:$AS$6264,MATCH(J$44&"|"&$B66,'Data Annex'!$K$1:$K$6264,0),MATCH(J$45,'Data Annex'!$K$1:$AS$1,0)),"") ->  | K66: =IFERROR(INDEX('Data Annex'!$K$1:$AS$6264,MATCH(K$44&"|"&$B66,'Data Annex'!$K$1:$K$6264,0),MATCH(K$45,'Data Annex'!$K$1:$AS$1,0)),"") ->  | L66: =IFERROR(INDEX('Data Annex'!$K$1:$AS$6264,MATCH(L$44&"|"&$B66,'Data Annex'!$K$1:$K$6264,0),MATCH(L$45,'Data Annex'!$K$1:$AS$1,0)),"") ->  | M66: =IFERROR(INDEX('Data Annex'!$K$1:$AS$6264,MATCH(M$44&"|"&$B66,'Data Annex'!$K$1:$K$6264,0),MATCH(M$45,'Data Annex'!$K$1:$AS$1,0)),"") ->  | N66: =IFERROR(INDEX('Data Annex'!$K$1:$AS$6264,MATCH(N$44&"|"&$B66,'Data Annex'!$K$1:$K$6264,0),MATCH(N$45,'Data Annex'!$K$1:$AS$1,0)),"") ->  | O66: =IFERROR(INDEX('Data Annex'!$K$1:$AS$6264,MATCH(O$44&"|"&$B66,'Data Annex'!$K$1:$K$6264,0),MATCH(O$45,'Data Annex'!$K$1:$AS$1,0)),"") ->  | P66: =IFERROR(INDEX('Data Annex'!$K$1:$AS$6264,MATCH(P$44&"|"&$B66,'Data Annex'!$K$1:$K$6264,0),MATCH(P$45,'Data Annex'!$K$1:$AS$1,0)),"") ->  | Q66: =IFERROR(INDEX('Data Annex'!$K$1:$AS$6264,MATCH(Q$44&"|"&$B66,'Data Annex'!$K$1:$K$6264,0),MATCH(Q$45,'Data Annex'!$K$1:$AS$1,0)),"") ->  | R66: =IFERROR(INDEX('Data Annex'!$K$1:$AS$6264,MATCH(R$44&"|"&$B66,'Data Annex'!$K$1:$K$6264,0),MATCH(R$45,'Data Annex'!$K$1:$AS$1,0)),"") ->  | S66: =IFERROR(INDEX('Data Annex'!$K$1:$AS$6264,MATCH(S$44&"|"&$B66,'Data Annex'!$K$1:$K$6264,0),MATCH(S$45,'Data Annex'!$K$1:$AS$1,0)),"") ->  | U66: IS | W66: =IFERROR(INDEX('Data Annex'!$K$1:$AS$6264,MATCH(W$44&"|"&$B66,'Data Annex'!$K$1:$K$6264,0),MATCH(W$45,'Data Annex'!$K$1:$AS$1,0)),"") -> 0 | X66: =IFERROR(INDEX('Data Annex'!$K$1:$AS$6264,MATCH(X$44&"|"&$B66,'Data Annex'!$K$1:$K$6264,0),MATCH(X$45,'Data Annex'!$K$1:$AS$1,0)),"") -> 0 | Y66: =IFERROR(INDEX('Data Annex'!$K$1:$AS$6264,MATCH(Y$44&"|"&$B66,'Data Annex'!$K$1:$K$6264,0),MATCH(Y$45,'Data Annex'!$K$1:$AS$1,0)),"") -> 0 | Z66: =IFERROR(INDEX('Data Annex'!$K$1:$AS$6264,MATCH(Z$44&"|"&$B66,'Data Annex'!$K$1:$K$6264,0),MATCH(Z$45,'Data Annex'!$K$1:$AS$1,0)),"") -> 0 | AA66: =IFERROR(INDEX('Data Annex'!$K$1:$AS$6264,MATCH(AA$44&"|"&$B66,'Data Annex'!$K$1:$K$6264,0),MATCH(AA$45,'Data Annex'!$K$1:$AS$1,0)),"") -> 0.006850914676 | AB66: =IFERROR(INDEX('Data Annex'!$K$1:$AS$6264,MATCH(AB$44&"|"&$B66,'Data Annex'!$K$1:$K$6264,0),MATCH(AB$45,'Data Annex'!$K$1:$AS$1,0)),"") -> 0.001544661247
A67: 17 | B67: IT | D67: IT | F67: =IFERROR(INDEX('Data Annex'!$K$1:$AS$6264,MATCH(F$44&"|"&$B67,'Data Annex'!$K$1:$K$6264,0),MATCH(F$45,'Data Annex'!$K$1:$AS$1,0)),"") -> 11968.29331 | G67: =IFERROR(INDEX('Data Annex'!$K$1:$AS$6264,MATCH(G$44&"|"&$B67,'Data Annex'!$K$1:$K$6264,0),MATCH(G$45,'Data Annex'!$K$1:$AS$1,0)),"") -> 12036.49144 | H67: =IFERROR(INDEX('Data Annex'!$K$1:$AS$6264,MATCH(H$44&"|"&$B67,'Data Annex'!$K$1:$K$6264,0),MATCH(H$45,'Data Annex'!$K$1:$AS$1,0)),"") -> 46.385269 | I67: =IFERROR(INDEX('Data Annex'!$K$1:$AS$6264,MATCH(I$44&"|"&$B67,'Data Annex'!$K$1:$K$6264,0),MATCH(I$45,'Data Annex'!$K$1:$AS$1,0)),"") -> 73.503049 | J67: =IFERROR(INDEX('Data Annex'!$K$1:$AS$6264,MATCH(J$44&"|"&$B67,'Data Annex'!$K$1:$K$6264,0),MATCH(J$45,'Data Annex'!$K$1:$AS$1,0)),"") -> 331.911217 | K67: =IFERROR(INDEX('Data Annex'!$K$1:$AS$6264,MATCH(K$44&"|"&$B67,'Data Annex'!$K$1:$K$6264,0),MATCH(K$45,'Data Annex'!$K$1:$AS$1,0)),"") -> 414.885273 | L67: =IFERROR(INDEX('Data Annex'!$K$1:$AS$6264,MATCH(L$44&"|"&$B67,'Data Annex'!$K$1:$K$6264,0),MATCH(L$45,'Data Annex'!$K$1:$AS$1,0)),"") -> 200.918483 | M67: =IFERROR(INDEX('Data Annex'!$K$1:$AS$6264,MATCH(M$44&"|"&$B67,'Data Annex'!$K$1:$K$6264,0),MATCH(M$45,'Data Annex'!$K$1:$AS$1,0)),"") -> 183.575964 | N67: =IFERROR(INDEX('Data Annex'!$K$1:$AS$6264,MATCH(N$44&"|"&$B67,'Data Annex'!$K$1:$K$6264,0),MATCH(N$45,'Data Annex'!$K$1:$AS$1,0)),"") -> 201.585417 | O67: =IFERROR(INDEX('Data Annex'!$K$1:$AS$6264,MATCH(O$44&"|"&$B67,'Data Annex'!$K$1:$K$6264,0),MATCH(O$45,'Data Annex'!$K$1:$AS$1,0)),"") -> 451.067086 | P67: =IFERROR(INDEX('Data Annex'!$K$1:$AS$6264,MATCH(P$44&"|"&$B67,'Data Annex'!$K$1:$K$6264,0),MATCH(P$45,'Data Annex'!$K$1:$AS$1,0)),"") -> 7451.275571 | Q67: =IFERROR(INDEX('Data Annex'!$K$1:$AS$6264,MATCH(Q$44&"|"&$B67,'Data Annex'!$K$1:$K$6264,0),MATCH(Q$45,'Data Annex'!$K$1:$AS$1,0)),"") -> 6761.584819 | R67: =IFERROR(INDEX('Data Annex'!$K$1:$AS$6264,MATCH(R$44&"|"&$B67,'Data Annex'!$K$1:$K$6264,0),MATCH(R$45,'Data Annex'!$K$1:$AS$1,0)),"") -> 3736.217355 | S67: =IFERROR(INDEX('Data Annex'!$K$1:$AS$6264,MATCH(S$44&"|"&$B67,'Data Annex'!$K$1:$K$6264,0),MATCH(S$45,'Data Annex'!$K$1:$AS$1,0)),"") -> 4151.87525 | U67: IT | W67: =IFERROR(INDEX('Data Annex'!$K$1:$AS$6264,MATCH(W$44&"|"&$B67,'Data Annex'!$K$1:$K$6264,0),MATCH(W$45,'Data Annex'!$K$1:$AS$1,0)),"") -> 5861.449227 | X67: =IFERROR(INDEX('Data Annex'!$K$1:$AS$6264,MATCH(X$44&"|"&$B67,'Data Annex'!$K$1:$K$6264,0),MATCH(X$45,'Data Annex'!$K$1:$AS$1,0)),"") -> 5595.831046 | Y67: =IFERROR(INDEX('Data Annex'!$K$1:$AS$6264,MATCH(Y$44&"|"&$B67,'Data Annex'!$K$1:$K$6264,0),MATCH(Y$45,'Data Annex'!$K$1:$AS$1,0)),"") -> 1443.508732 | Z67: =IFERROR(INDEX('Data Annex'!$K$1:$AS$6264,MATCH(Z$44&"|"&$B67,'Data Annex'!$K$1:$K$6264,0),MATCH(Z$45,'Data Annex'!$K$1:$AS$1,0)),"") -> 1664.960352 | AA67: =IFERROR(INDEX('Data Annex'!$K$1:$AS$6264,MATCH(AA$44&"|"&$B67,'Data Annex'!$K$1:$K$6264,0),MATCH(AA$45,'Data Annex'!$K$1:$AS$1,0)),"") -> 6181.550677 | AB67: =IFERROR(INDEX('Data Annex'!$K$1:$AS$6264,MATCH(AB$44&"|"&$B67,'Data Annex'!$K$1:$K$6264,0),MATCH(AB$45,'Data Annex'!$K$1:$AS$1,0)),"") -> 6984.290162
A68: 19 | B68: LT | D68: LT | F68: =IFERROR(INDEX('Data Annex'!$K$1:$AS$6264,MATCH(F$44&"|"&$B68,'Data Annex'!$K$1:$K$6264,0),MATCH(F$45,'Data Annex'!$K$1:$AS$1,0)),"") -> 21.964 | G68: =IFERROR(INDEX('Data Annex'!$K$1:$AS$6264,MATCH(G$44&"|"&$B68,'Data Annex'!$K$1:$K$6264,0),MATCH(G$45,'Data Annex'!$K$1:$AS$1,0)),"") -> 21.081 | H68: =IFERROR(INDEX('Data Annex'!$K$1:$AS$6264,MATCH(H$44&"|"&$B68,'Data Annex'!$K$1:$K$6264,0),MATCH(H$45,'Data Annex'!$K$1:$AS$1,0)),"") ->  | I68: =IFERROR(INDEX('Data Annex'!$K$1:$AS$6264,MATCH(I$44&"|"&$B68,'Data Annex'!$K$1:$K$6264,0),MATCH(I$45,'Data Annex'!$K$1:$AS$1,0)),"") ->  | J68: =IFERROR(INDEX('Data Annex'!$K$1:$AS$6264,MATCH(J$44&"|"&$B68,'Data Annex'!$K$1:$K$6264,0),MATCH(J$45,'Data Annex'!$K$1:$AS$1,0)),"") -> 0.539 | K68: =IFERROR(INDEX('Data Annex'!$K$1:$AS$6264,MATCH(K$44&"|"&$B68,'Data Annex'!$K$1:$K$6264,0),MATCH(K$45,'Data Annex'!$K$1:$AS$1,0)),"") -> 0.899 | L68: =IFERROR(INDEX('Data Annex'!$K$1:$AS$6264,MATCH(L$44&"|"&$B68,'Data Annex'!$K$1:$K$6264,0),MATCH(L$45,'Data Annex'!$K$1:$AS$1,0)),"") -> 0.254 | M68: =IFERROR(INDEX('Data Annex'!$K$1:$AS$6264,MATCH(M$44&"|"&$B68,'Data Annex'!$K$1:$K$6264,0),MATCH(M$45,'Data Annex'!$K$1:$AS$1,0)),"") -> 0.524 | N68: =IFERROR(INDEX('Data Annex'!$K$1:$AS$6264,MATCH(N$44&"|"&$B68,'Data Annex'!$K$1:$K$6264,0),MATCH(N$45,'Data Annex'!$K$1:$AS$1,0)),"") ->  | O68: =IFERROR(INDEX('Data Annex'!$K$1:$AS$6264,MATCH(O$44&"|"&$B68,'Data Annex'!$K$1:$K$6264,0),MATCH(O$45,'Data Annex'!$K$1:$AS$1,0)),"") ->  | P68: =IFERROR(INDEX('Data Annex'!$K$1:$AS$6264,MATCH(P$44&"|"&$B68,'Data Annex'!$K$1:$K$6264,0),MATCH(P$45,'Data Annex'!$K$1:$AS$1,0)),"") -> 0.006 | Q68: =IFERROR(INDEX('Data Annex'!$K$1:$AS$6264,MATCH(Q$44&"|"&$B68,'Data Annex'!$K$1:$K$6264,0),MATCH(Q$45,'Data Annex'!$K$1:$AS$1,0)),"") -> 0.004 | R68: =IFERROR(INDEX('Data Annex'!$K$1:$AS$6264,MATCH(R$44&"|"&$B68,'Data Annex'!$K$1:$K$6264,0),MATCH(R$45,'Data Annex'!$K$1:$AS$1,0)),"") -> 21.165 | S68: =IFERROR(INDEX('Data Annex'!$K$1:$AS$6264,MATCH(S$44&"|"&$B68,'Data Annex'!$K$1:$K$6264,0),MATCH(S$45,'Data Annex'!$K$1:$AS$1,0)),"") -> 19.654 | U68: LT | W68: =IFERROR(INDEX('Data Annex'!$K$1:$AS$6264,MATCH(W$44&"|"&$B68,'Data Annex'!$K$1:$K$6264,0),MATCH(W$45,'Data Annex'!$K$1:$AS$1,0)),"") -> 0.028 | X68: =IFERROR(INDEX('Data Annex'!$K$1:$AS$6264,MATCH(X$44&"|"&$B68,'Data Annex'!$K$1:$K$6264,0),MATCH(X$45,'Data Annex'!$K$1:$AS$1,0)),"") -> 0.011 | Y68: =IFERROR(INDEX('Data Annex'!$K$1:$AS$6264,MATCH(Y$44&"|"&$B68,'Data Annex'!$K$1:$K$6264,0),MATCH(Y$45,'Data Annex'!$K$1:$AS$1,0)),"") ->  | Z68: =IFERROR(INDEX('Data Annex'!$K$1:$AS$6264,MATCH(Z$44&"|"&$B68,'Data Annex'!$K$1:$K$6264,0),MATCH(Z$45,'Data Annex'!$K$1:$AS$1,0)),"") ->  | AA68: =IFERROR(INDEX('Data Annex'!$K$1:$AS$6264,MATCH(AA$44&"|"&$B68,'Data Annex'!$K$1:$K$6264,0),MATCH(AA$45,'Data Annex'!$K$1:$AS$1,0)),"") ->  | AB68: =IFERROR(INDEX('Data Annex'!$K$1:$AS$6264,MATCH(AB$44&"|"&$B68,'Data Annex'!$K$1:$K$6264,0),MATCH(AB$45,'Data Annex'!$K$1:$AS$1,0)),"") -> 
A69: 20 | B69: LU | D69: LU | F69: =IFERROR(INDEX('Data Annex'!$K$1:$AS$6264,MATCH(F$44&"|"&$B69,'Data Annex'!$K$1:$K$6264,0),MATCH(F$45,'Data Annex'!$K$1:$AS$1,0)),"") -> 279.3253886 | G69: =IFERROR(INDEX('Data Annex'!$K$1:$AS$6264,MATCH(G$44&"|"&$B69,'Data Annex'!$K$1:$K$6264,0),MATCH(G$45,'Data Annex'!$K$1:$AS$1,0)),"") -> 322.5698956 | H69: =IFERROR(INDEX('Data Annex'!$K$1:$AS$6264,MATCH(H$44&"|"&$B69,'Data Annex'!$K$1:$K$6264,0),MATCH(H$45,'Data Annex'!$K$1:$AS$1,0)),"") -> 0 | I69: =IFERROR(INDEX('Data Annex'!$K$1:$AS$6264,MATCH(I$44&"|"&$B69,'Data Annex'!$K$1:$K$6264,0),MATCH(I$45,'Data Annex'!$K$1:$AS$1,0)),"") -> 0 | J69: =IFERROR(INDEX('Data Annex'!$K$1:$AS$6264,MATCH(J$44&"|"&$B69,'Data Annex'!$K$1:$K$6264,0),MATCH(J$45,'Data Annex'!$K$1:$AS$1,0)),"") -> 0 | K69: =IFERROR(INDEX('Data Annex'!$K$1:$AS$6264,MATCH(K$44&"|"&$B69,'Data Annex'!$K$1:$K$6264,0),MATCH(K$45,'Data Annex'!$K$1:$AS$1,0)),"") -> 0 | L69: =IFERROR(INDEX('Data Annex'!$K$1:$AS$6264,MATCH(L$44&"|"&$B69,'Data Annex'!$K$1:$K$6264,0),MATCH(L$45,'Data Annex'!$K$1:$AS$1,0)),"") -> 0.109316 | M69: =IFERROR(INDEX('Data Annex'!$K$1:$AS$6264,MATCH(M$44&"|"&$B69,'Data Annex'!$K$1:$K$6264,0),MATCH(M$45,'Data Annex'!$K$1:$AS$1,0)),"") -> 0 | N69: =IFERROR(INDEX('Data Annex'!$K$1:$AS$6264,MATCH(N$44&"|"&$B69,'Data Annex'!$K$1:$K$6264,0),MATCH(N$45,'Data Annex'!$K$1:$AS$1,0)),"") -> 0.003 | O69: =IFERROR(INDEX('Data Annex'!$K$1:$AS$6264,MATCH(O$44&"|"&$B69,'Data Annex'!$K$1:$K$6264,0),MATCH(O$45,'Data Annex'!$K$1:$AS$1,0)),"") -> 0.003 | P69: =IFERROR(INDEX('Data Annex'!$K$1:$AS$6264,MATCH(P$44&"|"&$B69,'Data Annex'!$K$1:$K$6264,0),MATCH(P$45,'Data Annex'!$K$1:$AS$1,0)),"") -> 0.001 | Q69: =IFERROR(INDEX('Data Annex'!$K$1:$AS$6264,MATCH(Q$44&"|"&$B69,'Data Annex'!$K$1:$K$6264,0),MATCH(Q$45,'Data Annex'!$K$1:$AS$1,0)),"") -> 0.001 | R69: =IFERROR(INDEX('Data Annex'!$K$1:$AS$6264,MATCH(R$44&"|"&$B69,'Data Annex'!$K$1:$K$6264,0),MATCH(R$45,'Data Annex'!$K$1:$AS$1,0)),"") -> 279.2120726 | S69: =IFERROR(INDEX('Data Annex'!$K$1:$AS$6264,MATCH(S$44&"|"&$B69,'Data Annex'!$K$1:$K$6264,0),MATCH(S$45,'Data Annex'!$K$1:$AS$1,0)),"") -> 322.5658956 | U69: LU | W69: =IFERROR(INDEX('Data Annex'!$K$1:$AS$6264,MATCH(W$44&"|"&$B69,'Data Annex'!$K$1:$K$6264,0),MATCH(W$45,'Data Annex'!$K$1:$AS$1,0)),"") -> 131.456772 | X69: =IFERROR(INDEX('Data Annex'!$K$1:$AS$6264,MATCH(X$44&"|"&$B69,'Data Annex'!$K$1:$K$6264,0),MATCH(X$45,'Data Annex'!$K$1:$AS$1,0)),"") -> 21.4342452 | Y69: =IFERROR(INDEX('Data Annex'!$K$1:$AS$6264,MATCH(Y$44&"|"&$B69,'Data Annex'!$K$1:$K$6264,0),MATCH(Y$45,'Data Annex'!$K$1:$AS$1,0)),"") -> 2.7666754 | Z69: =IFERROR(INDEX('Data Annex'!$K$1:$AS$6264,MATCH(Z$44&"|"&$B69,'Data Annex'!$K$1:$K$6264,0),MATCH(Z$45,'Data Annex'!$K$1:$AS$1,0)),"") -> 3.54546977 | AA69: =IFERROR(INDEX('Data Annex'!$K$1:$AS$6264,MATCH(AA$44&"|"&$B69,'Data Annex'!$K$1:$K$6264,0),MATCH(AA$45,'Data Annex'!$K$1:$AS$1,0)),"") -> 0 | AB69: =IFERROR(INDEX('Data Annex'!$K$1:$AS$6264,MATCH(AB$44&"|"&$B69,'Data Annex'!$K$1:$K$6264,0),MATCH(AB$45,'Data Annex'!$K$1:$AS$1,0)),"") -> 0.181
A70: 21 | B70: LV | D70: LV | F70: =IFERROR(INDEX('Data Annex'!$K$1:$AS$6264,MATCH(F$44&"|"&$B70,'Data Annex'!$K$1:$K$6264,0),MATCH(F$45,'Data Annex'!$K$1:$AS$1,0)),"") -> 104.58193 | G70: =IFERROR(INDEX('Data Annex'!$K$1:$AS$6264,MATCH(G$44&"|"&$B70,'Data Annex'!$K$1:$K$6264,0),MATCH(G$45,'Data Annex'!$K$1:$AS$1,0)),"") -> 132.6818858 | H70: =IFERROR(INDEX('Data Annex'!$K$1:$AS$6264,MATCH(H$44&"|"&$B70,'Data Annex'!$K$1:$K$6264,0),MATCH(H$45,'Data Annex'!$K$1:$AS$1,0)),"") ->  | I70: =IFERROR(INDEX('Data Annex'!$K$1:$AS$6264,MATCH(I$44&"|"&$B70,'Data Annex'!$K$1:$K$6264,0),MATCH(I$45,'Data Annex'!$K$1:$AS$1,0)),"") ->  | J70: =IFERROR(INDEX('Data Annex'!$K$1:$AS$6264,MATCH(J$44&"|"&$B70,'Data Annex'!$K$1:$K$6264,0),MATCH(J$45,'Data Annex'!$K$1:$AS$1,0)),"") -> 0.064258 | K70: =IFERROR(INDEX('Data Annex'!$K$1:$AS$6264,MATCH(K$44&"|"&$B70,'Data Annex'!$K$1:$K$6264,0),MATCH(K$45,'Data Annex'!$K$1:$AS$1,0)),"") -> 3.182089 | L70: =IFERROR(INDEX('Data Annex'!$K$1:$AS$6264,MATCH(L$44&"|"&$B70,'Data Annex'!$K$1:$K$6264,0),MATCH(L$45,'Data Annex'!$K$1:$AS$1,0)),"") -> 0.027715 | M70: =IFERROR(INDEX('Data Annex'!$K$1:$AS$6264,MATCH(M$44&"|"&$B70,'Data Annex'!$K$1:$K$6264,0),MATCH(M$45,'Data Annex'!$K$1:$AS$1,0)),"") -> 0.01137434 | N70: =IFERROR(INDEX('Data Annex'!$K$1:$AS$6264,MATCH(N$44&"|"&$B70,'Data Annex'!$K$1:$K$6264,0),MATCH(N$45,'Data Annex'!$K$1:$AS$1,0)),"") ->  | O70: =IFERROR(INDEX('Data Annex'!$K$1:$AS$6264,MATCH(O$44&"|"&$B70,'Data Annex'!$K$1:$K$6264,0),MATCH(O$45,'Data Annex'!$K$1:$AS$1,0)),"") ->  | P70: =IFERROR(INDEX('Data Annex'!$K$1:$AS$6264,MATCH(P$44&"|"&$B70,'Data Annex'!$K$1:$K$6264,0),MATCH(P$45,'Data Annex'!$K$1:$AS$1,0)),"") -> 0.399457 | Q70: =IFERROR(INDEX('Data Annex'!$K$1:$AS$6264,MATCH(Q$44&"|"&$B70,'Data Annex'!$K$1:$K$6264,0),MATCH(Q$45,'Data Annex'!$K$1:$AS$1,0)),"") -> 0.04965672 | R70: =IFERROR(INDEX('Data Annex'!$K$1:$AS$6264,MATCH(R$44&"|"&$B70,'Data Annex'!$K$1:$K$6264,0),MATCH(R$45,'Data Annex'!$K$1:$AS$1,0)),"") -> 104.0905 | S70: =IFERROR(INDEX('Data Annex'!$K$1:$AS$6264,MATCH(S$44&"|"&$B70,'Data Annex'!$K$1:$K$6264,0),MATCH(S$45,'Data Annex'!$K$1:$AS$1,0)),"") -> 129.4387657 | U70: LV | W70: =IFERROR(INDEX('Data Annex'!$K$1:$AS$6264,MATCH(W$44&"|"&$B70,'Data Annex'!$K$1:$K$6264,0),MATCH(W$45,'Data Annex'!$K$1:$AS$1,0)),"") -> 0.159732 | X70: =IFERROR(INDEX('Data Annex'!$K$1:$AS$6264,MATCH(X$44&"|"&$B70,'Data Annex'!$K$1:$K$6264,0),MATCH(X$45,'Data Annex'!$K$1:$AS$1,0)),"") -> 0.16038328 | Y70: =IFERROR(INDEX('Data Annex'!$K$1:$AS$6264,MATCH(Y$44&"|"&$B70,'Data Annex'!$K$1:$K$6264,0),MATCH(Y$45,'Data Annex'!$K$1:$AS$1,0)),"") -> 0.148 | Z70: =IFERROR(INDEX('Data Annex'!$K$1:$AS$6264,MATCH(Z$44&"|"&$B70,'Data Annex'!$K$1:$K$6264,0),MATCH(Z$45,'Data Annex'!$K$1:$AS$1,0)),"") -> 0.11199888 | AA70: =IFERROR(INDEX('Data Annex'!$K$1:$AS$6264,MATCH(AA$44&"|"&$B70,'Data Annex'!$K$1:$K$6264,0),MATCH(AA$45,'Data Annex'!$K$1:$AS$1,0)),"") ->  | AB70: =IFERROR(INDEX('Data Annex'!$K$1:$AS$6264,MATCH(AB$44&"|"&$B70,'Data Annex'!$K$1:$K$6264,0),MATCH(AB$45,'Data Annex'!$K$1:$AS$1,0)),"") -> 
A71: 22 | B71: MT | D71: MT | F71: =IFERROR(INDEX('Data Annex'!$K$1:$AS$6264,MATCH(F$44&"|"&$B71,'Data Annex'!$K$1:$K$6264,0),MATCH(F$45,'Data Annex'!$K$1:$AS$1,0)),"") -> 10.27677998 | G71: =IFERROR(INDEX('Data Annex'!$K$1:$AS$6264,MATCH(G$44&"|"&$B71,'Data Annex'!$K$1:$K$6264,0),MATCH(G$45,'Data Annex'!$K$1:$AS$1,0)),"") -> 9.38683812 | H71: =IFERROR(INDEX('Data Annex'!$K$1:$AS$6264,MATCH(H$44&"|"&$B71,'Data Annex'!$K$1:$K$6264,0),MATCH(H$45,'Data Annex'!$K$1:$AS$1,0)),"") -> 0 | I71: =IFERROR(INDEX('Data Annex'!$K$1:$AS$6264,MATCH(I$44&"|"&$B71,'Data Annex'!$K$1:$K$6264,0),MATCH(I$45,'Data Annex'!$K$1:$AS$1,0)),"") -> 0 | J71: =IFERROR(INDEX('Data Annex'!$K$1:$AS$6264,MATCH(J$44&"|"&$B71,'Data Annex'!$K$1:$K$6264,0),MATCH(J$45,'Data Annex'!$K$1:$AS$1,0)),"") -> 0 | K71: =IFERROR(INDEX('Data Annex'!$K$1:$AS$6264,MATCH(K$44&"|"&$B71,'Data Annex'!$K$1:$K$6264,0),MATCH(K$45,'Data Annex'!$K$1:$AS$1,0)),"") -> 0 | L71: =IFERROR(INDEX('Data Annex'!$K$1:$AS$6264,MATCH(L$44&"|"&$B71,'Data Annex'!$K$1:$K$6264,0),MATCH(L$45,'Data Annex'!$K$1:$AS$1,0)),"") -> 0 | M71: =IFERROR(INDEX('Data Annex'!$K$1:$AS$6264,MATCH(M$44&"|"&$B71,'Data Annex'!$K$1:$K$6264,0),MATCH(M$45,'Data Annex'!$K$1:$AS$1,0)),"") -> 0 | N71: =IFERROR(INDEX('Data Annex'!$K$1:$AS$6264,MATCH(N$44&"|"&$B71,'Data Annex'!$K$1:$K$6264,0),MATCH(N$45,'Data Annex'!$K$1:$AS$1,0)),"") -> 0.16811672 | O71: =IFERROR(INDEX('Data Annex'!$K$1:$AS$6264,MATCH(O$44&"|"&$B71,'Data Annex'!$K$1:$K$6264,0),MATCH(O$45,'Data Annex'!$K$1:$AS$1,0)),"") -> 0.165796 | P71: =IFERROR(INDEX('Data Annex'!$K$1:$AS$6264,MATCH(P$44&"|"&$B71,'Data Annex'!$K$1:$K$6264,0),MATCH(P$45,'Data Annex'!$K$1:$AS$1,0)),"") -> 0.00020483 | Q71: =IFERROR(INDEX('Data Annex'!$K$1:$AS$6264,MATCH(Q$44&"|"&$B71,'Data Annex'!$K$1:$K$6264,0),MATCH(Q$45,'Data Annex'!$K$1:$AS$1,0)),"") -> 0.00020732 | R71: =IFERROR(INDEX('Data Annex'!$K$1:$AS$6264,MATCH(R$44&"|"&$B71,'Data Annex'!$K$1:$K$6264,0),MATCH(R$45,'Data Annex'!$K$1:$AS$1,0)),"") -> 10.10845843 | S71: =IFERROR(INDEX('Data Annex'!$K$1:$AS$6264,MATCH(S$44&"|"&$B71,'Data Annex'!$K$1:$K$6264,0),MATCH(S$45,'Data Annex'!$K$1:$AS$1,0)),"") -> 9.2208348 | U71: MT | W71: =IFERROR(INDEX('Data Annex'!$K$1:$AS$6264,MATCH(W$44&"|"&$B71,'Data Annex'!$K$1:$K$6264,0),MATCH(W$45,'Data Annex'!$K$1:$AS$1,0)),"") -> 0.10191572 | X71: =IFERROR(INDEX('Data Annex'!$K$1:$AS$6264,MATCH(X$44&"|"&$B71,'Data Annex'!$K$1:$K$6264,0),MATCH(X$45,'Data Annex'!$K$1:$AS$1,0)),"") -> 0.08984617 | Y71: =IFERROR(INDEX('Data Annex'!$K$1:$AS$6264,MATCH(Y$44&"|"&$B71,'Data Annex'!$K$1:$K$6264,0),MATCH(Y$45,'Data Annex'!$K$1:$AS$1,0)),"") -> 0.002 | Z71: =IFERROR(INDEX('Data Annex'!$K$1:$AS$6264,MATCH(Z$44&"|"&$B71,'Data Annex'!$K$1:$K$6264,0),MATCH(Z$45,'Data Annex'!$K$1:$AS$1,0)),"") -> 0.001 | AA71: =IFERROR(INDEX('Data Annex'!$K$1:$AS$6264,MATCH(AA$44&"|"&$B71,'Data Annex'!$K$1:$K$6264,0),MATCH(AA$45,'Data Annex'!$K$1:$AS$1,0)),"") -> 1.15e-06 | AB71: =IFERROR(INDEX('Data Annex'!$K$1:$AS$6264,MATCH(AB$44&"|"&$B71,'Data Annex'!$K$1:$K$6264,0),MATCH(AB$45,'Data Annex'!$K$1:$AS$1,0)),"") -> 1.15e-06
A72: 23 | B72: NL | D72: NL | F72: =IFERROR(INDEX('Data Annex'!$K$1:$AS$6264,MATCH(F$44&"|"&$B72,'Data Annex'!$K$1:$K$6264,0),MATCH(F$45,'Data Annex'!$K$1:$AS$1,0)),"") -> 2137.209935 | G72: =IFERROR(INDEX('Data Annex'!$K$1:$AS$6264,MATCH(G$44&"|"&$B72,'Data Annex'!$K$1:$K$6264,0),MATCH(G$45,'Data Annex'!$K$1:$AS$1,0)),"") -> 1357.206752 | H72: =IFERROR(INDEX('Data Annex'!$K$1:$AS$6264,MATCH(H$44&"|"&$B72,'Data Annex'!$K$1:$K$6264,0),MATCH(H$45,'Data Annex'!$K$1:$AS$1,0)),"") ->  | I72: =IFERROR(INDEX('Data Annex'!$K$1:$AS$6264,MATCH(I$44&"|"&$B72,'Data Annex'!$K$1:$K$6264,0),MATCH(I$45,'Data Annex'!$K$1:$AS$1,0)),"") ->  | J72: =IFERROR(INDEX('Data Annex'!$K$1:$AS$6264,MATCH(J$44&"|"&$B72,'Data Annex'!$K$1:$K$6264,0),MATCH(J$45,'Data Annex'!$K$1:$AS$1,0)),"") -> 1.143 | K72: =IFERROR(INDEX('Data Annex'!$K$1:$AS$6264,MATCH(K$44&"|"&$B72,'Data Annex'!$K$1:$K$6264,0),MATCH(K$45,'Data Annex'!$K$1:$AS$1,0)),"") -> 0.673 | L72: =IFERROR(INDEX('Data Annex'!$K$1:$AS$6264,MATCH(L$44&"|"&$B72,'Data Annex'!$K$1:$K$6264,0),MATCH(L$45,'Data Annex'!$K$1:$AS$1,0)),"") -> 926.5023367 | M72: =IFERROR(INDEX('Data Annex'!$K$1:$AS$6264,MATCH(M$44&"|"&$B72,'Data Annex'!$K$1:$K$6264,0),MATCH(M$45,'Data Annex'!$K$1:$AS$1,0)),"") -> 456.8970647 | N72: =IFERROR(INDEX('Data Annex'!$K$1:$AS$6264,MATCH(N$44&"|"&$B72,'Data Annex'!$K$1:$K$6264,0),MATCH(N$45,'Data Annex'!$K$1:$AS$1,0)),"") -> 30.453 | O72: =IFERROR(INDEX('Data Annex'!$K$1:$AS$6264,MATCH(O$44&"|"&$B72,'Data Annex'!$K$1:$K$6264,0),MATCH(O$45,'Data Annex'!$K$1:$AS$1,0)),"") -> 22.835 | P72: =IFERROR(INDEX('Data Annex'!$K$1:$AS$6264,MATCH(P$44&"|"&$B72,'Data Annex'!$K$1:$K$6264,0),MATCH(P$45,'Data Annex'!$K$1:$AS$1,0)),"") -> 1054.717088 | Q72: =IFERROR(INDEX('Data Annex'!$K$1:$AS$6264,MATCH(Q$44&"|"&$B72,'Data Annex'!$K$1:$K$6264,0),MATCH(Q$45,'Data Annex'!$K$1:$AS$1,0)),"") -> 757.232394 | R72: =IFERROR(INDEX('Data Annex'!$K$1:$AS$6264,MATCH(R$44&"|"&$B72,'Data Annex'!$K$1:$K$6264,0),MATCH(R$45,'Data Annex'!$K$1:$AS$1,0)),"") -> 124.39451 | S72: =IFERROR(INDEX('Data Annex'!$K$1:$AS$6264,MATCH(S$44&"|"&$B72,'Data Annex'!$K$1:$K$6264,0),MATCH(S$45,'Data Annex'!$K$1:$AS$1,0)),"") -> 119.569293 | U72: NL | W72: =IFERROR(INDEX('Data Annex'!$K$1:$AS$6264,MATCH(W$44&"|"&$B72,'Data Annex'!$K$1:$K$6264,0),MATCH(W$45,'Data Annex'!$K$1:$AS$1,0)),"") -> 1900.359874 | X72: =IFERROR(INDEX('Data Annex'!$K$1:$AS$6264,MATCH(X$44&"|"&$B72,'Data Annex'!$K$1:$K$6264,0),MATCH(X$45,'Data Annex'!$K$1:$AS$1,0)),"") -> 1831.909554 | Y72: =IFERROR(INDEX('Data Annex'!$K$1:$AS$6264,MATCH(Y$44&"|"&$B72,'Data Annex'!$K$1:$K$6264,0),MATCH(Y$45,'Data Annex'!$K$1:$AS$1,0)),"") -> 70.940571 | Z72: =IFERROR(INDEX('Data Annex'!$K$1:$AS$6264,MATCH(Z$44&"|"&$B72,'Data Annex'!$K$1:$K$6264,0),MATCH(Z$45,'Data Annex'!$K$1:$AS$1,0)),"") -> 54.917 | AA72: =IFERROR(INDEX('Data Annex'!$K$1:$AS$6264,MATCH(AA$44&"|"&$B72,'Data Annex'!$K$1:$K$6264,0),MATCH(AA$45,'Data Annex'!$K$1:$AS$1,0)),"") -> 609.9685075 | AB72: =IFERROR(INDEX('Data Annex'!$K$1:$AS$6264,MATCH(AB$44&"|"&$B72,'Data Annex'!$K$1:$K$6264,0),MATCH(AB$45,'Data Annex'!$K$1:$AS$1,0)),"") -> 649.9952542
A73: 24 | B73: NO | D73: NO* | F73: =IFERROR(INDEX('Data Annex'!$K$1:$AS$6264,MATCH(F$44&"|"&$B73,'Data Annex'!$K$1:$K$6264,0),MATCH(F$45,'Data Annex'!$K$1:$AS$1,0)),"") -> n.a. | G73: =IFERROR(INDEX('Data Annex'!$K$1:$AS$6264,MATCH(G$44&"|"&$B73,'Data Annex'!$K$1:$K$6264,0),MATCH(G$45,'Data Annex'!$K$1:$AS$1,0)),"") -> n.a. | H73: n.a. | I73: n.a. | J73: =IFERROR(INDEX('Data Annex'!$K$1:$AS$6264,MATCH(J$44&"|"&$B73,'Data Annex'!$K$1:$K$6264,0),MATCH(J$45,'Data Annex'!$K$1:$AS$1,0)),"") -> n.a. | K73: =IFERROR(INDEX('Data Annex'!$K$1:$AS$6264,MATCH(K$44&"|"&$B73,'Data Annex'!$K$1:$K$6264,0),MATCH(K$45,'Data Annex'!$K$1:$AS$1,0)),"") -> n.a. | L73: =IFERROR(INDEX('Data Annex'!$K$1:$AS$6264,MATCH(L$44&"|"&$B73,'Data Annex'!$K$1:$K$6264,0),MATCH(L$45,'Data Annex'!$K$1:$AS$1,0)),"") -> n.a. | M73: =IFERROR(INDEX('Data Annex'!$K$1:$AS$6264,MATCH(M$44&"|"&$B73,'Data Annex'!$K$1:$K$6264,0),MATCH(M$45,'Data Annex'!$K$1:$AS$1,0)),"") -> n.a. | N73: =IFERROR(INDEX('Data Annex'!$K$1:$AS$6264,MATCH(N$44&"|"&$B73,'Data Annex'!$K$1:$K$6264,0),MATCH(N$45,'Data Annex'!$K$1:$AS$1,0)),"") -> n.a. | O73: =IFERROR(INDEX('Data Annex'!$K$1:$AS$6264,MATCH(O$44&"|"&$B73,'Data Annex'!$K$1:$K$6264,0),MATCH(O$45,'Data Annex'!$K$1:$AS$1,0)),"") -> n.a. | P73: =IFERROR(INDEX('Data Annex'!$K$1:$AS$6264,MATCH(P$44&"|"&$B73,'Data Annex'!$K$1:$K$6264,0),MATCH(P$45,'Data Annex'!$K$1:$AS$1,0)),"") -> n.a. | Q73: =IFERROR(INDEX('Data Annex'!$K$1:$AS$6264,MATCH(Q$44&"|"&$B73,'Data Annex'!$K$1:$K$6264,0),MATCH(Q$45,'Data Annex'!$K$1:$AS$1,0)),"") -> n.a. | R73: =IFERROR(INDEX('Data Annex'!$K$1:$AS$6264,MATCH(R$44&"|"&$B73,'Data Annex'!$K$1:$K$6264,0),MATCH(R$45,'Data Annex'!$K$1:$AS$1,0)),"") -> n.a. | S73: =IFERROR(INDEX('Data Annex'!$K$1:$AS$6264,MATCH(S$44&"|"&$B73,'Data Annex'!$K$1:$K$6264,0),MATCH(S$45,'Data Annex'!$K$1:$AS$1,0)),"") -> n.a. | U73: NO* | W73: =IFERROR(INDEX('Data Annex'!$K$1:$AS$6264,MATCH(W$44&"|"&$B73,'Data Annex'!$K$1:$K$6264,0),MATCH(W$45,'Data Annex'!$K$1:$AS$1,0)),"") -> n.a. | X73: =IFERROR(INDEX('Data Annex'!$K$1:$AS$6264,MATCH(X$44&"|"&$B73,'Data Annex'!$K$1:$K$6264,0),MATCH(X$45,'Data Annex'!$K$1:$AS$1,0)),"") -> n.a. | Y73: n.a. | Z73: n.a. | AA73: n.a. | AB73: n.a.
A74: 25 | B74: PL | D74: =B74 -> PL | F74: =IFERROR(INDEX('Data Annex'!$K$1:$AS$6264,MATCH(F$44&"|"&$B74,'Data Annex'!$K$1:$K$6264,0),MATCH(F$45,'Data Annex'!$K$1:$AS$1,0)),"") ->  | G74: =IFERROR(INDEX('Data Annex'!$K$1:$AS$6264,MATCH(G$44&"|"&$B74,'Data Annex'!$K$1:$K$6264,0),MATCH(G$45,'Data Annex'!$K$1:$AS$1,0)),"") ->  | H74: =IFERROR(INDEX('Data Annex'!$K$1:$AS$6264,MATCH(H$44&"|"&$B74,'Data Annex'!$K$1:$K$6264,0),MATCH(H$45,'Data Annex'!$K$1:$AS$1,0)),"") ->  | I74: =IFERROR(INDEX('Data Annex'!$K$1:$AS$6264,MATCH(I$44&"|"&$B74,'Data Annex'!$K$1:$K$6264,0),MATCH(I$45,'Data Annex'!$K$1:$AS$1,0)),"") ->  | J74: =IFERROR(INDEX('Data Annex'!$K$1:$AS$6264,MATCH(J$44&"|"&$B74,'Data Annex'!$K$1:$K$6264,0),MATCH(J$45,'Data Annex'!$K$1:$AS$1,0)),"") ->  | K74: =IFERROR(INDEX('Data Annex'!$K$1:$AS$6264,MATCH(K$44&"|"&$B74,'Data Annex'!$K$1:$K$6264,0),MATCH(K$45,'Data Annex'!$K$1:$AS$1,0)),"") ->  | L74: =IFERROR(INDEX('Data Annex'!$K$1:$AS$6264,MATCH(L$44&"|"&$B74,'Data Annex'!$K$1:$K$6264,0),MATCH(L$45,'Data Annex'!$K$1:$AS$1,0)),"") ->  | M74: =IFERROR(INDEX('Data Annex'!$K$1:$AS$6264,MATCH(M$44&"|"&$B74,'Data Annex'!$K$1:$K$6264,0),MATCH(M$45,'Data Annex'!$K$1:$AS$1,0)),"") ->  | N74: =IFERROR(INDEX('Data Annex'!$K$1:$AS$6264,MATCH(N$44&"|"&$B74,'Data Annex'!$K$1:$K$6264,0),MATCH(N$45,'Data Annex'!$K$1:$AS$1,0)),"") ->  | O74: =IFERROR(INDEX('Data Annex'!$K$1:$AS$6264,MATCH(O$44&"|"&$B74,'Data Annex'!$K$1:$K$6264,0),MATCH(O$45,'Data Annex'!$K$1:$AS$1,0)),"") ->  | P74: =IFERROR(INDEX('Data Annex'!$K$1:$AS$6264,MATCH(P$44&"|"&$B74,'Data Annex'!$K$1:$K$6264,0),MATCH(P$45,'Data Annex'!$K$1:$AS$1,0)),"") ->  | Q74: =IFERROR(INDEX('Data Annex'!$K$1:$AS$6264,MATCH(Q$44&"|"&$B74,'Data Annex'!$K$1:$K$6264,0),MATCH(Q$45,'Data Annex'!$K$1:$AS$1,0)),"") ->  | R74: =IFERROR(INDEX('Data Annex'!$K$1:$AS$6264,MATCH(R$44&"|"&$B74,'Data Annex'!$K$1:$K$6264,0),MATCH(R$45,'Data Annex'!$K$1:$AS$1,0)),"") ->  | S74: =IFERROR(INDEX('Data Annex'!$K$1:$AS$6264,MATCH(S$44&"|"&$B74,'Data Annex'!$K$1:$K$6264,0),MATCH(S$45,'Data Annex'!$K$1:$AS$1,0)),"") ->  | U74: PL | W74: =IFERROR(INDEX('Data Annex'!$K$1:$AS$6264,MATCH(W$44&"|"&$B74,'Data Annex'!$K$1:$K$6264,0),MATCH(W$45,'Data Annex'!$K$1:$AS$1,0)),"") ->  | X74: =IFERROR(INDEX('Data Annex'!$K$1:$AS$6264,MATCH(X$44&"|"&$B74,'Data Annex'!$K$1:$K$6264,0),MATCH(X$45,'Data Annex'!$K$1:$AS$1,0)),"") ->  | Y74: =IFERROR(INDEX('Data Annex'!$K$1:$AS$6264,MATCH(Y$44&"|"&$B74,'Data Annex'!$K$1:$K$6264,0),MATCH(Y$45,'Data Annex'!$K$1:$AS$1,0)),"") ->  | Z74: =IFERROR(INDEX('Data Annex'!$K$1:$AS$6264,MATCH(Z$44&"|"&$B74,'Data Annex'!$K$1:$K$6264,0),MATCH(Z$45,'Data Annex'!$K$1:$AS$1,0)),"") ->  | AA74: =IFERROR(INDEX('Data Annex'!$K$1:$AS$6264,MATCH(AA$44&"|"&$B74,'Data Annex'!$K$1:$K$6264,0),MATCH(AA$45,'Data Annex'!$K$1:$AS$1,0)),"") ->  | AB74: =IFERROR(INDEX('Data Annex'!$K$1:$AS$6264,MATCH(AB$44&"|"&$B74,'Data Annex'!$K$1:$K$6264,0),MATCH(AB$45,'Data Annex'!$K$1:$AS$1,0)),"") -> 
A75: 26 | B75: PT | D75: PT | F75: =IFERROR(INDEX('Data Annex'!$K$1:$AS$6264,MATCH(F$44&"|"&$B75,'Data Annex'!$K$1:$K$6264,0),MATCH(F$45,'Data Annex'!$K$1:$AS$1,0)),"") -> 90.6017523 | G75: =IFERROR(INDEX('Data Annex'!$K$1:$AS$6264,MATCH(G$44&"|"&$B75,'Data Annex'!$K$1:$K$6264,0),MATCH(G$45,'Data Annex'!$K$1:$AS$1,0)),"") -> 105.9202982 | H75: =IFERROR(INDEX('Data Annex'!$K$1:$AS$6264,MATCH(H$44&"|"&$B75,'Data Annex'!$K$1:$K$6264,0),MATCH(H$45,'Data Annex'!$K$1:$AS$1,0)),"") ->  | I75: =IFERROR(INDEX('Data Annex'!$K$1:$AS$6264,MATCH(I$44&"|"&$B75,'Data Annex'!$K$1:$K$6264,0),MATCH(I$45,'Data Annex'!$K$1:$AS$1,0)),"") ->  | J75: =IFERROR(INDEX('Data Annex'!$K$1:$AS$6264,MATCH(J$44&"|"&$B75,'Data Annex'!$K$1:$K$6264,0),MATCH(J$45,'Data Annex'!$K$1:$AS$1,0)),"") -> 0.93267232 | K75: =IFERROR(INDEX('Data Annex'!$K$1:$AS$6264,MATCH(K$44&"|"&$B75,'Data Annex'!$K$1:$K$6264,0),MATCH(K$45,'Data Annex'!$K$1:$AS$1,0)),"") -> 0.42567649 | L75: =IFERROR(INDEX('Data Annex'!$K$1:$AS$6264,MATCH(L$44&"|"&$B75,'Data Annex'!$K$1:$K$6264,0),MATCH(L$45,'Data Annex'!$K$1:$AS$1,0)),"") -> 0 | M75: =IFERROR(INDEX('Data Annex'!$K$1:$AS$6264,MATCH(M$44&"|"&$B75,'Data Annex'!$K$1:$K$6264,0),MATCH(M$45,'Data Annex'!$K$1:$AS$1,0)),"") -> 0 | N75: =IFERROR(INDEX('Data Annex'!$K$1:$AS$6264,MATCH(N$44&"|"&$B75,'Data Annex'!$K$1:$K$6264,0),MATCH(N$45,'Data Annex'!$K$1:$AS$1,0)),"") ->  | O75: =IFERROR(INDEX('Data Annex'!$K$1:$AS$6264,MATCH(O$44&"|"&$B75,'Data Annex'!$K$1:$K$6264,0),MATCH(O$45,'Data Annex'!$K$1:$AS$1,0)),"") ->  | P75: =IFERROR(INDEX('Data Annex'!$K$1:$AS$6264,MATCH(P$44&"|"&$B75,'Data Annex'!$K$1:$K$6264,0),MATCH(P$45,'Data Annex'!$K$1:$AS$1,0)),"") -> 0.83270138 | Q75: =IFERROR(INDEX('Data Annex'!$K$1:$AS$6264,MATCH(Q$44&"|"&$B75,'Data Annex'!$K$1:$K$6264,0),MATCH(Q$45,'Data Annex'!$K$1:$AS$1,0)),"") -> 0.4767745 | R75: =IFERROR(INDEX('Data Annex'!$K$1:$AS$6264,MATCH(R$44&"|"&$B75,'Data Annex'!$K$1:$K$6264,0),MATCH(R$45,'Data Annex'!$K$1:$AS$1,0)),"") -> 88.8363786 | S75: =IFERROR(INDEX('Data Annex'!$K$1:$AS$6264,MATCH(S$44&"|"&$B75,'Data Annex'!$K$1:$K$6264,0),MATCH(S$45,'Data Annex'!$K$1:$AS$1,0)),"") -> 105.0178472 | U75: PT | W75: =IFERROR(INDEX('Data Annex'!$K$1:$AS$6264,MATCH(W$44&"|"&$B75,'Data Annex'!$K$1:$K$6264,0),MATCH(W$45,'Data Annex'!$K$1:$AS$1,0)),"") -> 0.20439891 | X75: =IFERROR(INDEX('Data Annex'!$K$1:$AS$6264,MATCH(X$44&"|"&$B75,'Data Annex'!$K$1:$K$6264,0),MATCH(X$45,'Data Annex'!$K$1:$AS$1,0)),"") -> 0.22347182 | Y75: =IFERROR(INDEX('Data Annex'!$K$1:$AS$6264,MATCH(Y$44&"|"&$B75,'Data Annex'!$K$1:$K$6264,0),MATCH(Y$45,'Data Annex'!$K$1:$AS$1,0)),"") ->  | Z75: =IFERROR(INDEX('Data Annex'!$K$1:$AS$6264,MATCH(Z$44&"|"&$B75,'Data Annex'!$K$1:$K$6264,0),MATCH(Z$45,'Data Annex'!$K$1:$AS$1,0)),"") ->  | AA75: =IFERROR(INDEX('Data Annex'!$K$1:$AS$6264,MATCH(AA$44&"|"&$B75,'Data Annex'!$K$1:$K$6264,0),MATCH(AA$45,'Data Annex'!$K$1:$AS$1,0)),"") -> 0.6654042 | AB75: =IFERROR(INDEX('Data Annex'!$K$1:$AS$6264,MATCH(AB$44&"|"&$B75,'Data Annex'!$K$1:$K$6264,0),MATCH(AB$45,'Data Annex'!$K$1:$AS$1,0)),"") -> 0.77345027
A76: 27 | B76: RO | D76: RO | F76: =IFERROR(INDEX('Data Annex'!$K$1:$AS$6264,MATCH(F$44&"|"&$B76,'Data Annex'!$K$1:$K$6264,0),MATCH(F$45,'Data Annex'!$K$1:$AS$1,0)),"") -> 1.468350041 | G76: =IFERROR(INDEX('Data Annex'!$K$1:$AS$6264,MATCH(G$44&"|"&$B76,'Data Annex'!$K$1:$K$6264,0),MATCH(G$45,'Data Annex'!$K$1:$AS$1,0)),"") -> 1.617311174 | H76: =IFERROR(INDEX('Data Annex'!$K$1:$AS$6264,MATCH(H$44&"|"&$B76,'Data Annex'!$K$1:$K$6264,0),MATCH(H$45,'Data Annex'!$K$1:$AS$1,0)),"") -> 0 | I76: =IFERROR(INDEX('Data Annex'!$K$1:$AS$6264,MATCH(I$44&"|"&$B76,'Data Annex'!$K$1:$K$6264,0),MATCH(I$45,'Data Annex'!$K$1:$AS$1,0)),"") -> 0 | J76: =IFERROR(INDEX('Data Annex'!$K$1:$AS$6264,MATCH(J$44&"|"&$B76,'Data Annex'!$K$1:$K$6264,0),MATCH(J$45,'Data Annex'!$K$1:$AS$1,0)),"") -> 0 | K76: =IFERROR(INDEX('Data Annex'!$K$1:$AS$6264,MATCH(K$44&"|"&$B76,'Data Annex'!$K$1:$K$6264,0),MATCH(K$45,'Data Annex'!$K$1:$AS$1,0)),"") -> 0 | L76: =IFERROR(INDEX('Data Annex'!$K$1:$AS$6264,MATCH(L$44&"|"&$B76,'Data Annex'!$K$1:$K$6264,0),MATCH(L$45,'Data Annex'!$K$1:$AS$1,0)),"") -> 0.1315253653 | M76: =IFERROR(INDEX('Data Annex'!$K$1:$AS$6264,MATCH(M$44&"|"&$B76,'Data Annex'!$K$1:$K$6264,0),MATCH(M$45,'Data Annex'!$K$1:$AS$1,0)),"") -> 0.1440838553 | N76: =IFERROR(INDEX('Data Annex'!$K$1:$AS$6264,MATCH(N$44&"|"&$B76,'Data Annex'!$K$1:$K$6264,0),MATCH(N$45,'Data Annex'!$K$1:$AS$1,0)),"") -> 0 | O76: =IFERROR(INDEX('Data Annex'!$K$1:$AS$6264,MATCH(O$44&"|"&$B76,'Data Annex'!$K$1:$K$6264,0),MATCH(O$45,'Data Annex'!$K$1:$AS$1,0)),"") -> 0 | P76: =IFERROR(INDEX('Data Annex'!$K$1:$AS$6264,MATCH(P$44&"|"&$B76,'Data Annex'!$K$1:$K$6264,0),MATCH(P$45,'Data Annex'!$K$1:$AS$1,0)),"") -> 0.09073417208 | Q76: =IFERROR(INDEX('Data Annex'!$K$1:$AS$6264,MATCH(Q$44&"|"&$B76,'Data Annex'!$K$1:$K$6264,0),MATCH(Q$45,'Data Annex'!$K$1:$AS$1,0)),"") -> 0.01934996969 | R76: =IFERROR(INDEX('Data Annex'!$K$1:$AS$6264,MATCH(R$44&"|"&$B76,'Data Annex'!$K$1:$K$6264,0),MATCH(R$45,'Data Annex'!$K$1:$AS$1,0)),"") -> 1.246090503 | S76: =IFERROR(INDEX('Data Annex'!$K$1:$AS$6264,MATCH(S$44&"|"&$B76,'Data Annex'!$K$1:$K$6264,0),MATCH(S$45,'Data Annex'!$K$1:$AS$1,0)),"") -> 1.453877349 | U76: RO | W76: =IFERROR(INDEX('Data Annex'!$K$1:$AS$6264,MATCH(W$44&"|"&$B76,'Data Annex'!$K$1:$K$6264,0),MATCH(W$45,'Data Annex'!$K$1:$AS$1,0)),"") -> 0.0006921672078 | X76: =IFERROR(INDEX('Data Annex'!$K$1:$AS$6264,MATCH(X$44&"|"&$B76,'Data Annex'!$K$1:$K$6264,0),MATCH(X$45,'Data Annex'!$K$1:$AS$1,0)),"") -> 0.0006009294807 | Y76: =IFERROR(INDEX('Data Annex'!$K$1:$AS$6264,MATCH(Y$44&"|"&$B76,'Data Annex'!$K$1:$K$6264,0),MATCH(Y$45,'Data Annex'!$K$1:$AS$1,0)),"") ->  | Z76: =IFERROR(INDEX('Data Annex'!$K$1:$AS$6264,MATCH(Z$44&"|"&$B76,'Data Annex'!$K$1:$K$6264,0),MATCH(Z$45,'Data Annex'!$K$1:$AS$1,0)),"") ->  | AA76: =IFERROR(INDEX('Data Annex'!$K$1:$AS$6264,MATCH(AA$44&"|"&$B76,'Data Annex'!$K$1:$K$6264,0),MATCH(AA$45,'Data Annex'!$K$1:$AS$1,0)),"") ->  | AB76: =IFERROR(INDEX('Data Annex'!$K$1:$AS$6264,MATCH(AB$44&"|"&$B76,'Data Annex'!$K$1:$K$6264,0),MATCH(AB$45,'Data Annex'!$K$1:$AS$1,0)),"") -> 
A77: 28 | B77: SE | D77: SE | F77: =IFERROR(INDEX('Data Annex'!$K$1:$AS$6264,MATCH(F$44&"|"&$B77,'Data Annex'!$K$1:$K$6264,0),MATCH(F$45,'Data Annex'!$K$1:$AS$1,0)),"") -> 593.8667655 | G77: =IFERROR(INDEX('Data Annex'!$K$1:$AS$6264,MATCH(G$44&"|"&$B77,'Data Annex'!$K$1:$K$6264,0),MATCH(G$45,'Data Annex'!$K$1:$AS$1,0)),"") -> 663.3711457 | H77: =IFERROR(INDEX('Data Annex'!$K$1:$AS$6264,MATCH(H$44&"|"&$B77,'Data Annex'!$K$1:$K$6264,0),MATCH(H$45,'Data Annex'!$K$1:$AS$1,0)),"") ->  | I77: =IFERROR(INDEX('Data Annex'!$K$1:$AS$6264,MATCH(I$44&"|"&$B77,'Data Annex'!$K$1:$K$6264,0),MATCH(I$45,'Data Annex'!$K$1:$AS$1,0)),"") ->  | J77: =IFERROR(INDEX('Data Annex'!$K$1:$AS$6264,MATCH(J$44&"|"&$B77,'Data Annex'!$K$1:$K$6264,0),MATCH(J$45,'Data Annex'!$K$1:$AS$1,0)),"") -> 2.786690931 | K77: =IFERROR(INDEX('Data Annex'!$K$1:$AS$6264,MATCH(K$44&"|"&$B77,'Data Annex'!$K$1:$K$6264,0),MATCH(K$45,'Data Annex'!$K$1:$AS$1,0)),"") -> 4.267372077 | L77: =IFERROR(INDEX('Data Annex'!$K$1:$AS$6264,MATCH(L$44&"|"&$B77,'Data Annex'!$K$1:$K$6264,0),MATCH(L$45,'Data Annex'!$K$1:$AS$1,0)),"") -> 6.238423796 | M77: =IFERROR(INDEX('Data Annex'!$K$1:$AS$6264,MATCH(M$44&"|"&$B77,'Data Annex'!$K$1:$K$6264,0),MATCH(M$45,'Data Annex'!$K$1:$AS$1,0)),"") -> 86.92117675 | N77: =IFERROR(INDEX('Data Annex'!$K$1:$AS$6264,MATCH(N$44&"|"&$B77,'Data Annex'!$K$1:$K$6264,0),MATCH(N$45,'Data Annex'!$K$1:$AS$1,0)),"") -> 5.546744041 | O77: =IFERROR(INDEX('Data Annex'!$K$1:$AS$6264,MATCH(O$44&"|"&$B77,'Data Annex'!$K$1:$K$6264,0),MATCH(O$45,'Data Annex'!$K$1:$AS$1,0)),"") -> 9.18519858 | P77: =IFERROR(INDEX('Data Annex'!$K$1:$AS$6264,MATCH(P$44&"|"&$B77,'Data Annex'!$K$1:$K$6264,0),MATCH(P$45,'Data Annex'!$K$1:$AS$1,0)),"") -> 463.180033 | Q77: =IFERROR(INDEX('Data Annex'!$K$1:$AS$6264,MATCH(Q$44&"|"&$B77,'Data Annex'!$K$1:$K$6264,0),MATCH(Q$45,'Data Annex'!$K$1:$AS$1,0)),"") -> 456.6894053 | R77: =IFERROR(INDEX('Data Annex'!$K$1:$AS$6264,MATCH(R$44&"|"&$B77,'Data Annex'!$K$1:$K$6264,0),MATCH(R$45,'Data Annex'!$K$1:$AS$1,0)),"") -> 116.1148737 | S77: =IFERROR(INDEX('Data Annex'!$K$1:$AS$6264,MATCH(S$44&"|"&$B77,'Data Annex'!$K$1:$K$6264,0),MATCH(S$45,'Data Annex'!$K$1:$AS$1,0)),"") -> 106.3079931 | U77: SE | W77: =IFERROR(INDEX('Data Annex'!$K$1:$AS$6264,MATCH(W$44&"|"&$B77,'Data Annex'!$K$1:$K$6264,0),MATCH(W$45,'Data Annex'!$K$1:$AS$1,0)),"") -> 109.6728144 | X77: =IFERROR(INDEX('Data Annex'!$K$1:$AS$6264,MATCH(X$44&"|"&$B77,'Data Annex'!$K$1:$K$6264,0),MATCH(X$45,'Data Annex'!$K$1:$AS$1,0)),"") -> 78.12561545 | Y77: =IFERROR(INDEX('Data Annex'!$K$1:$AS$6264,MATCH(Y$44&"|"&$B77,'Data Annex'!$K$1:$K$6264,0),MATCH(Y$45,'Data Annex'!$K$1:$AS$1,0)),"") -> 8.398908911 | Z77: =IFERROR(INDEX('Data Annex'!$K$1:$AS$6264,MATCH(Z$44&"|"&$B77,'Data Annex'!$K$1:$K$6264,0),MATCH(Z$45,'Data Annex'!$K$1:$AS$1,0)),"") -> 43.8076388 | AA77: =IFERROR(INDEX('Data Annex'!$K$1:$AS$6264,MATCH(AA$44&"|"&$B77,'Data Annex'!$K$1:$K$6264,0),MATCH(AA$45,'Data Annex'!$K$1:$AS$1,0)),"") -> 120.9942061 | AB77: =IFERROR(INDEX('Data Annex'!$K$1:$AS$6264,MATCH(AB$44&"|"&$B77,'Data Annex'!$K$1:$K$6264,0),MATCH(AB$45,'Data Annex'!$K$1:$AS$1,0)),"") -> 131.5522593
A78: 29 | B78: SI | D78: SI | F78: =IFERROR(INDEX('Data Annex'!$K$1:$AS$6264,MATCH(F$44&"|"&$B78,'Data Annex'!$K$1:$K$6264,0),MATCH(F$45,'Data Annex'!$K$1:$AS$1,0)),"") -> 37.93 | G78: =IFERROR(INDEX('Data Annex'!$K$1:$AS$6264,MATCH(G$44&"|"&$B78,'Data Annex'!$K$1:$K$6264,0),MATCH(G$45,'Data Annex'!$K$1:$AS$1,0)),"") -> 40.109 | H78: =IFERROR(INDEX('Data Annex'!$K$1:$AS$6264,MATCH(H$44&"|"&$B78,'Data Annex'!$K$1:$K$6264,0),MATCH(H$45,'Data Annex'!$K$1:$AS$1,0)),"") ->  | I78: =IFERROR(INDEX('Data Annex'!$K$1:$AS$6264,MATCH(I$44&"|"&$B78,'Data Annex'!$K$1:$K$6264,0),MATCH(I$45,'Data Annex'!$K$1:$AS$1,0)),"") ->  | J78: =IFERROR(INDEX('Data Annex'!$K$1:$AS$6264,MATCH(J$44&"|"&$B78,'Data Annex'!$K$1:$K$6264,0),MATCH(J$45,'Data Annex'!$K$1:$AS$1,0)),"") -> 0 | K78: =IFERROR(INDEX('Data Annex'!$K$1:$AS$6264,MATCH(K$44&"|"&$B78,'Data Annex'!$K$1:$K$6264,0),MATCH(K$45,'Data Annex'!$K$1:$AS$1,0)),"") -> 0 | L78: =IFERROR(INDEX('Data Annex'!$K$1:$AS$6264,MATCH(L$44&"|"&$B78,'Data Annex'!$K$1:$K$6264,0),MATCH(L$45,'Data Annex'!$K$1:$AS$1,0)),"") -> 0.013 | M78: =IFERROR(INDEX('Data Annex'!$K$1:$AS$6264,MATCH(M$44&"|"&$B78,'Data Annex'!$K$1:$K$6264,0),MATCH(M$45,'Data Annex'!$K$1:$AS$1,0)),"") -> 0 | N78: =IFERROR(INDEX('Data Annex'!$K$1:$AS$6264,MATCH(N$44&"|"&$B78,'Data Annex'!$K$1:$K$6264,0),MATCH(N$45,'Data Annex'!$K$1:$AS$1,0)),"") ->  | O78: =IFERROR(INDEX('Data Annex'!$K$1:$AS$6264,MATCH(O$44&"|"&$B78,'Data Annex'!$K$1:$K$6264,0),MATCH(O$45,'Data Annex'!$K$1:$AS$1,0)),"") ->  | P78: =IFERROR(INDEX('Data Annex'!$K$1:$AS$6264,MATCH(P$44&"|"&$B78,'Data Annex'!$K$1:$K$6264,0),MATCH(P$45,'Data Annex'!$K$1:$AS$1,0)),"") -> 0.001 | Q78: =IFERROR(INDEX('Data Annex'!$K$1:$AS$6264,MATCH(Q$44&"|"&$B78,'Data Annex'!$K$1:$K$6264,0),MATCH(Q$45,'Data Annex'!$K$1:$AS$1,0)),"") -> 0.013 | R78: =IFERROR(INDEX('Data Annex'!$K$1:$AS$6264,MATCH(R$44&"|"&$B78,'Data Annex'!$K$1:$K$6264,0),MATCH(R$45,'Data Annex'!$K$1:$AS$1,0)),"") -> 37.916 | S78: =IFERROR(INDEX('Data Annex'!$K$1:$AS$6264,MATCH(S$44&"|"&$B78,'Data Annex'!$K$1:$K$6264,0),MATCH(S$45,'Data Annex'!$K$1:$AS$1,0)),"") -> 40.096 | U78: SI | W78: =IFERROR(INDEX('Data Annex'!$K$1:$AS$6264,MATCH(W$44&"|"&$B78,'Data Annex'!$K$1:$K$6264,0),MATCH(W$45,'Data Annex'!$K$1:$AS$1,0)),"") -> 0.135 | X78: =IFERROR(INDEX('Data Annex'!$K$1:$AS$6264,MATCH(X$44&"|"&$B78,'Data Annex'!$K$1:$K$6264,0),MATCH(X$45,'Data Annex'!$K$1:$AS$1,0)),"") -> 0.137 | Y78: =IFERROR(INDEX('Data Annex'!$K$1:$AS$6264,MATCH(Y$44&"|"&$B78,'Data Annex'!$K$1:$K$6264,0),MATCH(Y$45,'Data Annex'!$K$1:$AS$1,0)),"") ->  | Z78: =IFERROR(INDEX('Data Annex'!$K$1:$AS$6264,MATCH(Z$44&"|"&$B78,'Data Annex'!$K$1:$K$6264,0),MATCH(Z$45,'Data Annex'!$K$1:$AS$1,0)),"") ->  | AA78: =IFERROR(INDEX('Data Annex'!$K$1:$AS$6264,MATCH(AA$44&"|"&$B78,'Data Annex'!$K$1:$K$6264,0),MATCH(AA$45,'Data Annex'!$K$1:$AS$1,0)),"") ->  | AB78: =IFERROR(INDEX('Data Annex'!$K$1:$AS$6264,MATCH(AB$44&"|"&$B78,'Data Annex'!$K$1:$K$6264,0),MATCH(AB$45,'Data Annex'!$K$1:$AS$1,0)),"") -> 
A79: 30 | B79: SK | D79: SK | F79: =IFERROR(INDEX('Data Annex'!$K$1:$AS$6264,MATCH(F$44&"|"&$B79,'Data Annex'!$K$1:$K$6264,0),MATCH(F$45,'Data Annex'!$K$1:$AS$1,0)),"") -> 2.523232 | G79: =IFERROR(INDEX('Data Annex'!$K$1:$AS$6264,MATCH(G$44&"|"&$B79,'Data Annex'!$K$1:$K$6264,0),MATCH(G$45,'Data Annex'!$K$1:$AS$1,0)),"") -> 2.873534 | H79: =IFERROR(INDEX('Data Annex'!$K$1:$AS$6264,MATCH(H$44&"|"&$B79,'Data Annex'!$K$1:$K$6264,0),MATCH(H$45,'Data Annex'!$K$1:$AS$1,0)),"") -> 0 | I79: =IFERROR(INDEX('Data Annex'!$K$1:$AS$6264,MATCH(I$44&"|"&$B79,'Data Annex'!$K$1:$K$6264,0),MATCH(I$45,'Data Annex'!$K$1:$AS$1,0)),"") -> 0 | J79: =IFERROR(INDEX('Data Annex'!$K$1:$AS$6264,MATCH(J$44&"|"&$B79,'Data Annex'!$K$1:$K$6264,0),MATCH(J$45,'Data Annex'!$K$1:$AS$1,0)),"") -> 0 | K79: =IFERROR(INDEX('Data Annex'!$K$1:$AS$6264,MATCH(K$44&"|"&$B79,'Data Annex'!$K$1:$K$6264,0),MATCH(K$45,'Data Annex'!$K$1:$AS$1,0)),"") -> 0 | L79: =IFERROR(INDEX('Data Annex'!$K$1:$AS$6264,MATCH(L$44&"|"&$B79,'Data Annex'!$K$1:$K$6264,0),MATCH(L$45,'Data Annex'!$K$1:$AS$1,0)),"") -> 0 | M79: =IFERROR(INDEX('Data Annex'!$K$1:$AS$6264,MATCH(M$44&"|"&$B79,'Data Annex'!$K$1:$K$6264,0),MATCH(M$45,'Data Annex'!$K$1:$AS$1,0)),"") -> 0 | N79: =IFERROR(INDEX('Data Annex'!$K$1:$AS$6264,MATCH(N$44&"|"&$B79,'Data Annex'!$K$1:$K$6264,0),MATCH(N$45,'Data Annex'!$K$1:$AS$1,0)),"") -> 0 | O79: =IFERROR(INDEX('Data Annex'!$K$1:$AS$6264,MATCH(O$44&"|"&$B79,'Data Annex'!$K$1:$K$6264,0),MATCH(O$45,'Data Annex'!$K$1:$AS$1,0)),"") -> 0 | P79: =IFERROR(INDEX('Data Annex'!$K$1:$AS$6264,MATCH(P$44&"|"&$B79,'Data Annex'!$K$1:$K$6264,0),MATCH(P$45,'Data Annex'!$K$1:$AS$1,0)),"") -> 0 | Q79: =IFERROR(INDEX('Data Annex'!$K$1:$AS$6264,MATCH(Q$44&"|"&$B79,'Data Annex'!$K$1:$K$6264,0),MATCH(Q$45,'Data Annex'!$K$1:$AS$1,0)),"") -> 0 | R79: =IFERROR(INDEX('Data Annex'!$K$1:$AS$6264,MATCH(R$44&"|"&$B79,'Data Annex'!$K$1:$K$6264,0),MATCH(R$45,'Data Annex'!$K$1:$AS$1,0)),"") -> 2.523232 | S79: =IFERROR(INDEX('Data Annex'!$K$1:$AS$6264,MATCH(S$44&"|"&$B79,'Data Annex'!$K$1:$K$6264,0),MATCH(S$45,'Data Annex'!$K$1:$AS$1,0)),"") -> 2.873534 | U79: SK | W79: =IFERROR(INDEX('Data Annex'!$K$1:$AS$6264,MATCH(W$44&"|"&$B79,'Data Annex'!$K$1:$K$6264,0),MATCH(W$45,'Data Annex'!$K$1:$AS$1,0)),"") -> 0.131718 | X79: =IFERROR(INDEX('Data Annex'!$K$1:$AS$6264,MATCH(X$44&"|"&$B79,'Data Annex'!$K$1:$K$6264,0),MATCH(X$45,'Data Annex'!$K$1:$AS$1,0)),"") -> 0.168489 | Y79: =IFERROR(INDEX('Data Annex'!$K$1:$AS$6264,MATCH(Y$44&"|"&$B79,'Data Annex'!$K$1:$K$6264,0),MATCH(Y$45,'Data Annex'!$K$1:$AS$1,0)),"") -> 0 | Z79: =IFERROR(INDEX('Data Annex'!$K$1:$AS$6264,MATCH(Z$44&"|"&$B79,'Data Annex'!$K$1:$K$6264,0),MATCH(Z$45,'Data Annex'!$K$1:$AS$1,0)),"") -> 0 | AA79: =IFERROR(INDEX('Data Annex'!$K$1:$AS$6264,MATCH(AA$44&"|"&$B79,'Data Annex'!$K$1:$K$6264,0),MATCH(AA$45,'Data Annex'!$K$1:$AS$1,0)),"") -> 0 | AB79: =IFERROR(INDEX('Data Annex'!$K$1:$AS$6264,MATCH(AB$44&"|"&$B79,'Data Annex'!$K$1:$K$6264,0),MATCH(AB$45,'Data Annex'!$K$1:$AS$1,0)),"") -> 0
A80: 99 | B80: EU | D80: EU/EEA | F80: =IFERROR(INDEX('Data Annex'!$K$1:$AS$6264,MATCH(F$44&"|"&$B80,'Data Annex'!$K$1:$K$6264,0),MATCH(F$45,'Data Annex'!$K$1:$AS$1,0)),"") -> 76093.72829 | G80: =IFERROR(INDEX('Data Annex'!$K$1:$AS$6264,MATCH(G$44&"|"&$B80,'Data Annex'!$K$1:$K$6264,0),MATCH(G$45,'Data Annex'!$K$1:$AS$1,0)),"") -> 68557.12401 | H80: =IFERROR(INDEX('Data Annex'!$K$1:$AS$6264,MATCH(H$44&"|"&$B80,'Data Annex'!$K$1:$K$6264,0),MATCH(H$45,'Data Annex'!$K$1:$AS$1,0)),"") -> 25577.45215 | I80: =IFERROR(INDEX('Data Annex'!$K$1:$AS$6264,MATCH(I$44&"|"&$B80,'Data Annex'!$K$1:$K$6264,0),MATCH(I$45,'Data Annex'!$K$1:$AS$1,0)),"") -> 15290.77483 | J80: =IFERROR(INDEX('Data Annex'!$K$1:$AS$6264,MATCH(J$44&"|"&$B80,'Data Annex'!$K$1:$K$6264,0),MATCH(J$45,'Data Annex'!$K$1:$AS$1,0)),"") -> 895.1648704 | K80: =IFERROR(INDEX('Data Annex'!$K$1:$AS$6264,MATCH(K$44&"|"&$B80,'Data Annex'!$K$1:$K$6264,0),MATCH(K$45,'Data Annex'!$K$1:$AS$1,0)),"") -> 1548.860776 | L80: =IFERROR(INDEX('Data Annex'!$K$1:$AS$6264,MATCH(L$44&"|"&$B80,'Data Annex'!$K$1:$K$6264,0),MATCH(L$45,'Data Annex'!$K$1:$AS$1,0)),"") -> 4018.805403 | M80: =IFERROR(INDEX('Data Annex'!$K$1:$AS$6264,MATCH(M$44&"|"&$B80,'Data Annex'!$K$1:$K$6264,0),MATCH(M$45,'Data Annex'!$K$1:$AS$1,0)),"") -> 4176.356989 | N80: =IFERROR(INDEX('Data Annex'!$K$1:$AS$6264,MATCH(N$44&"|"&$B80,'Data Annex'!$K$1:$K$6264,0),MATCH(N$45,'Data Annex'!$K$1:$AS$1,0)),"") -> 2552.467182 | O80: =IFERROR(INDEX('Data Annex'!$K$1:$AS$6264,MATCH(O$44&"|"&$B80,'Data Annex'!$K$1:$K$6264,0),MATCH(O$45,'Data Annex'!$K$1:$AS$1,0)),"") -> 2592.260841 | P80: =IFERROR(INDEX('Data Annex'!$K$1:$AS$6264,MATCH(P$44&"|"&$B80,'Data Annex'!$K$1:$K$6264,0),MATCH(P$45,'Data Annex'!$K$1:$AS$1,0)),"") -> 23682.94527 | Q80: =IFERROR(INDEX('Data Annex'!$K$1:$AS$6264,MATCH(Q$44&"|"&$B80,'Data Annex'!$K$1:$K$6264,0),MATCH(Q$45,'Data Annex'!$K$1:$AS$1,0)),"") -> 23792.26393 | R80: =IFERROR(INDEX('Data Annex'!$K$1:$AS$6264,MATCH(R$44&"|"&$B80,'Data Annex'!$K$1:$K$6264,0),MATCH(R$45,'Data Annex'!$K$1:$AS$1,0)),"") -> 19366.89341 | S80: =IFERROR(INDEX('Data Annex'!$K$1:$AS$6264,MATCH(S$44&"|"&$B80,'Data Annex'!$K$1:$K$6264,0),MATCH(S$45,'Data Annex'!$K$1:$AS$1,0)),"") -> 21156.60664 | U80: EU | W80: =IFERROR(INDEX('Data Annex'!$K$1:$AS$6264,MATCH(W$44&"|"&$B80,'Data Annex'!$K$1:$K$6264,0),MATCH(W$45,'Data Annex'!$K$1:$AS$1,0)),"") -> 15298.38145 | X80: =IFERROR(INDEX('Data Annex'!$K$1:$AS$6264,MATCH(X$44&"|"&$B80,'Data Annex'!$K$1:$K$6264,0),MATCH(X$45,'Data Annex'!$K$1:$AS$1,0)),"") -> 21180.48501 | Y80: =IFERROR(INDEX('Data Annex'!$K$1:$AS$6264,MATCH(Y$44&"|"&$B80,'Data Annex'!$K$1:$K$6264,0),MATCH(Y$45,'Data Annex'!$K$1:$AS$1,0)),"") -> 6853.959769 | Z80: =IFERROR(INDEX('Data Annex'!$K$1:$AS$6264,MATCH(Z$44&"|"&$B80,'Data Annex'!$K$1:$K$6264,0),MATCH(Z$45,'Data Annex'!$K$1:$AS$1,0)),"") -> 7650.201696 | AA80: =IFERROR(INDEX('Data Annex'!$K$1:$AS$6264,MATCH(AA$44&"|"&$B80,'Data Annex'!$K$1:$K$6264,0),MATCH(AA$45,'Data Annex'!$K$1:$AS$1,0)),"") -> 9552.886257 | AB80: =IFERROR(INDEX('Data Annex'!$K$1:$AS$6264,MATCH(AB$44&"|"&$B80,'Data Annex'!$K$1:$K$6264,0),MATCH(AB$45,'Data Annex'!$K$1:$AS$1,0)),"") -> 10915.10995
D82: Individual country data includes subsidiaries, which are excluded from EU aggregate. For example, at country level the subsidiary in country X of a bank domiciled in country Y is included both in data for countries X and Y (for the latter as part of the consolidated entity). In the EU aggregate, only the consolidated entity domiciled in country Y is considered. The sample of banks is unbalanced and reviewed annually. Being an unbalanced sample, the number of reporting banks per country can display minor variations between quarters, which might accordingly affect quarterly changes in absolute and relative figures. As of Q1 2020 onwards UK banks are removed from the EU/EEA aggregate and subsidiaries of UK banks in EU member states are used instead.
D83: * Norwegian banks have not implemented yet the reporting framework based on CRR2/CRD5. Therefore, Norwegian figures are included in the EBA Risk dashboard only until March 2021.
D84: * To ensure confidentiality, figures by country are only disclosed if there are at least 3 institutions potentially reporting data, unless institutions provide explicit consent for the publication of country aggregates with less than 3 institutions.

Sheet UA Exposures (hidden)
F1: T53_1 | G1: T53_1 | H1: T53_2 | I1: T53_2 | J1: T53_3 | K1: T53_3 | L1: T53_4 | M1: T53_4 | N1: T53_5 | O1: T53_5 | P1: T53_6 | Q1: T53_6 | R1: T53_7 | S1: T53_7 | T1: T53_8 | U1: T53_8
A2: ='Reference Dates'!$C$8 -> 202112 | F2: =TEXT(F11,"YYYYMM")+0 -> 202106 | G2: 202112 | H2: 202106 | I2: 202112 | J2: 202106 | K2: 202112 | L2: =TEXT(J11,"YYYYMM")+0 -> 202106 | M2: =TEXT(K11,"YYYYMM")+0 -> 202112 | N2: =TEXT(J11,"YYYYMM")+0 -> 202106 | O2: =TEXT(K11,"YYYYMM")+0 -> 202112 | P2: =TEXT(L11,"YYYYMM")+0 -> 202106 | Q2: 202112 | R2: 202106 | S2: 202112 | T2: 202106 | U2: 202112
A3: =DATE(LEFT(A2,4),RIGHT(A2,2),1) -> 2021-12-01 | D3: Statistical Annex
D4: Exposures to Ukrainian counterparts
B7: CH_1 | D7: Breakdown of exposures towards Ukrainian counterparts
D9: (million EUR) | F9: Exposures towards Ukrainian counterparts | H9: Cash balances at central banks and other demand deposits | J9: Debt securities | L9: of which: | N9: Loans and advances | P9: of which:
L10: Central banks and general governments | P10: Credit institutions and other financial corporations | R10: Non-financial corporations | T10: Households
F11: =IF(OR(MONTH($A$3)=9,MONTH($A$3)=3),EOMONTH($A$3,-9),EOMONTH($A$3,-6)) -> 2021-06-30 | G11: =EOMONTH(F$11,6) -> 2021-12-31 | H11: =IF(OR(MONTH($A$3)=9,MONTH($A$3)=3),EOMONTH($A$3,-9),EOMONTH($A$3,-6)) -> 2021-06-30 | I11: =EOMONTH(H$11,6) -> 2021-12-31 | J11: =IF(OR(MONTH($A$3)=9,MONTH($A$3)=3),EOMONTH($A$3,-9),EOMONTH($A$3,-6)) -> 2021-06-30 | K11: =EOMONTH(J$11,6) -> 2021-12-31 | L11: =IF(OR(MONTH($A$3)=9,MONTH($A$3)=3),EOMONTH($A$3,-9),EOMONTH($A$3,-6)) -> 2021-06-30 | M11: =EOMONTH(L$11,6) -> 2021-12-31 | N11: =IF(OR(MONTH($A$3)=9,MONTH($A$3)=3),EOMONTH($A$3,-9),EOMONTH($A$3,-6)) -> 2021-06-30 | O11: =EOMONTH(N$11,6) -> 2021-12-31 | P11: =IF(OR(MONTH($A$3)=9,MONTH($A$3)=3),EOMONTH($A$3,-9),EOMONTH($A$3,-6)) -> 2021-06-30 | Q11: =EOMONTH(P$11,6) -> 2021-12-31 | R11: =IF(OR(MONTH($A$3)=9,MONTH($A$3)=3),EOMONTH($A$3,-9),EOMONTH($A$3,-6)) -> 2021-06-30 | S11: =EOMONTH(R$11,6) -> 2021-12-31 | T11: =IF(OR(MONTH($A$3)=9,MONTH($A$3)=3),EOMONTH($A$3,-9),EOMONTH($A$3,-6)) -> 2021-06-30 | U11: =EOMONTH(T$11,6) -> 2021-12-31
A12: 1 | B12: AT | D12: =B12 -> AT | F12: =IFERROR(INDEX('Data Annex'!$K$1:$AS$6264,MATCH(F$1&"|"&$B12,'Data Annex'!$K$1:$K$6264,0),MATCH(F$2,'Data Annex'!$K$1:$AS$1,0)),"") -> 3052.841308 | G12: =IFERROR(INDEX('Data Annex'!$K$1:$AS$6264,MATCH(G$1&"|"&$B12,'Data Annex'!$K$1:$K$6264,0),MATCH(G$2,'Data Annex'!$K$1:$AS$1,0)),"") -> 3708.47476 | H12: =IFERROR(INDEX('Data Annex'!$K$1:$AS$6264,MATCH(H$1&"|"&$B12,'Data Annex'!$K$1:$K$6264,0),MATCH(H$2,'Data Annex'!$K$1:$AS$1,0)),"") -> 100.4182798 | I12: =IFERROR(INDEX('Data Annex'!$K$1:$AS$6264,MATCH(I$1&"|"&$B12,'Data Annex'!$K$1:$K$6264,0),MATCH(I$2,'Data Annex'!$K$1:$AS$1,0)),"") -> 115.1175839 | J12: =IFERROR(INDEX('Data Annex'!$K$1:$AS$6264,MATCH(J$1&"|"&$B12,'Data Annex'!$K$1:$K$6264,0),MATCH(J$2,'Data Annex'!$K$1:$AS$1,0)),"") -> 389.2435563 | K12: =IFERROR(INDEX('Data Annex'!$K$1:$AS$6264,MATCH(K$1&"|"&$B12,'Data Annex'!$K$1:$K$6264,0),MATCH(K$2,'Data Annex'!$K$1:$AS$1,0)),"") -> 520.199601 | L12: =IFERROR(INDEX('Data Annex'!$K$1:$AS$6264,MATCH(L$1&"|"&$B12,'Data Annex'!$K$1:$K$6264,0),MATCH(L$2,'Data Annex'!$K$1:$AS$1,0)),"") -> 389.2435563 | M12: =IFERROR(INDEX('Data Annex'!$K$1:$AS$6264,MATCH(M$1&"|"&$B12,'Data Annex'!$K$1:$K$6264,0),MATCH(M$2,'Data Annex'!$K$1:$AS$1,0)),"") -> 520.199601 | N12: =IFERROR(INDEX('Data Annex'!$K$1:$AS$6264,MATCH(N$1&"|"&$B12,'Data Annex'!$K$1:$K$6264,0),MATCH(N$2,'Data Annex'!$K$1:$AS$1,0)),"") -> 2563.061232 | O12: =IFERROR(INDEX('Data Annex'!$K$1:$AS$6264,MATCH(O$1&"|"&$B12,'Data Annex'!$K$1:$K$6264,0),MATCH(O$2,'Data Annex'!$K$1:$AS$1,0)),"") -> 3073.028849 | P12: =IFERROR(INDEX('Data Annex'!$K$1:$AS$6264,MATCH(P$1&"|"&$B12,'Data Annex'!$K$1:$K$6264,0),MATCH(P$2,'Data Annex'!$K$1:$AS$1,0)),"") -> 26.04057006 | Q12: =IFERROR(INDEX('Data Annex'!$K$1:$AS$6264,MATCH(Q$1&"|"&$B12,'Data Annex'!$K$1:$K$6264,0),MATCH(Q$2,'Data Annex'!$K$1:$AS$1,0)),"") -> 101.6805095 | R12: =IFERROR(INDEX('Data Annex'!$K$1:$AS$6264,MATCH(R$1&"|"&$B12,'Data Annex'!$K$1:$K$6264,0),MATCH(R$2,'Data Annex'!$K$1:$AS$1,0)),"") -> 1734.412223 | S12: =IFERROR(INDEX('Data Annex'!$K$1:$AS$6264,MATCH(S$1&"|"&$B12,'Data Annex'!$K$1:$K$6264,0),MATCH(S$2,'Data Annex'!$K$1:$AS$1,0)),"") -> 2294.225557 | T12: =IFERROR(INDEX('Data Annex'!$K$1:$AS$6264,MATCH(T$1&"|"&$B12,'Data Annex'!$K$1:$K$6264,0),MATCH(T$2,'Data Annex'!$K$1:$AS$1,0)),"") -> 334.1006933 | U12: =IFERROR(INDEX('Data Annex'!$K$1:$AS$6264,MATCH(U$1&"|"&$B12,'Data Annex'!$K$1:$K$6264,0),MATCH(U$2,'Data Annex'!$K$1:$AS$1,0)),"") -> 392.8403552
A13: 2 | B13: BE | D13: =B13 -> BE | F13: =IFERROR(INDEX('Data Annex'!$K$1:$AS$6264,MATCH(F$1&"|"&$B13,'Data Annex'!$K$1:$K$6264,0),MATCH(F$2,'Data Annex'!$K$1:$AS$1,0)),"") -> 12.19997618 | G13: =IFERROR(INDEX('Data Annex'!$K$1:$AS$6264,MATCH(G$1&"|"&$B13,'Data Annex'!$K$1:$K$6264,0),MATCH(G$2,'Data Annex'!$K$1:$AS$1,0)),"") -> 13.9678732 | H13: =IFERROR(INDEX('Data Annex'!$K$1:$AS$6264,MATCH(H$1&"|"&$B13,'Data Annex'!$K$1:$K$6264,0),MATCH(H$2,'Data Annex'!$K$1:$AS$1,0)),"") -> 1.868209984e-05 | I13: =IFERROR(INDEX('Data Annex'!$K$1:$AS$6264,MATCH(I$1&"|"&$B13,'Data Annex'!$K$1:$K$6264,0),MATCH(I$2,'Data Annex'!$K$1:$AS$1,0)),"") -> 1.947796876e-05 | J13: =IFERROR(INDEX('Data Annex'!$K$1:$AS$6264,MATCH(J$1&"|"&$B13,'Data Annex'!$K$1:$K$6264,0),MATCH(J$2,'Data Annex'!$K$1:$AS$1,0)),"") ->  | K13: =IFERROR(INDEX('Data Annex'!$K$1:$AS$6264,MATCH(K$1&"|"&$B13,'Data Annex'!$K$1:$K$6264,0),MATCH(K$2,'Data Annex'!$K$1:$AS$1,0)),"") ->  | L13: =IFERROR(INDEX('Data Annex'!$K$1:$AS$6264,MATCH(L$1&"|"&$B13,'Data Annex'!$K$1:$K$6264,0),MATCH(L$2,'Data Annex'!$K$1:$AS$1,0)),"") ->  | M13: =IFERROR(INDEX('Data Annex'!$K$1:$AS$6264,MATCH(M$1&"|"&$B13,'Data Annex'!$K$1:$K$6264,0),MATCH(M$2,'Data Annex'!$K$1:$AS$1,0)),"") ->  | N13: =IFERROR(INDEX('Data Annex'!$K$1:$AS$6264,MATCH(N$1&"|"&$B13,'Data Annex'!$K$1:$K$6264,0),MATCH(N$2,'Data Annex'!$K$1:$AS$1,0)),"") -> 12.1999575 | O13: =IFERROR(INDEX('Data Annex'!$K$1:$AS$6264,MATCH(O$1&"|"&$B13,'Data Annex'!$K$1:$K$6264,0),MATCH(O$2,'Data Annex'!$K$1:$AS$1,0)),"") -> 13.96785372 | P13: =IFERROR(INDEX('Data Annex'!$K$1:$AS$6264,MATCH(P$1&"|"&$B13,'Data Annex'!$K$1:$K$6264,0),MATCH(P$2,'Data Annex'!$K$1:$AS$1,0)),"") -> 0 | Q13: =IFERROR(INDEX('Data Annex'!$K$1:$AS$6264,MATCH(Q$1&"|"&$B13,'Data Annex'!$K$1:$K$6264,0),MATCH(Q$2,'Data Annex'!$K$1:$AS$1,0)),"") -> 0 | R13: =IFERROR(INDEX('Data Annex'!$K$1:$AS$6264,MATCH(R$1&"|"&$B13,'Data Annex'!$K$1:$K$6264,0),MATCH(R$2,'Data Annex'!$K$1:$AS$1,0)),"") -> 3.562766 | S13: =IFERROR(INDEX('Data Annex'!$K$1:$AS$6264,MATCH(S$1&"|"&$B13,'Data Annex'!$K$1:$K$6264,0),MATCH(S$2,'Data Annex'!$K$1:$AS$1,0)),"") -> 4.176861 | T13: =IFERROR(INDEX('Data Annex'!$K$1:$AS$6264,MATCH(T$1&"|"&$B13,'Data Annex'!$K$1:$K$6264,0),MATCH(T$2,'Data Annex'!$K$1:$AS$1,0)),"") -> 8.6371915 | U13: =IFERROR(INDEX('Data Annex'!$K$1:$AS$6264,MATCH(U$1&"|"&$B13,'Data Annex'!$K$1:$K$6264,0),MATCH(U$2,'Data Annex'!$K$1:$AS$1,0)),"") -> 9.79099272
A14: 3 | B14: BG | D14: BG | F14: =IFERROR(INDEX('Data Annex'!$K$1:$AS$6264,MATCH(F$1&"|"&$B14,'Data Annex'!$K$1:$K$6264,0),MATCH(F$2,'Data Annex'!$K$1:$AS$1,0)),"") -> 0.9525513856 | G14: =IFERROR(INDEX('Data Annex'!$K$1:$AS$6264,MATCH(G$1&"|"&$B14,'Data Annex'!$K$1:$K$6264,0),MATCH(G$2,'Data Annex'!$K$1:$AS$1,0)),"") -> 1.118212496 | H14: =IFERROR(INDEX('Data Annex'!$K$1:$AS$6264,MATCH(H$1&"|"&$B14,'Data Annex'!$K$1:$K$6264,0),MATCH(H$2,'Data Annex'!$K$1:$AS$1,0)),"") -> 0 | I14: =IFERROR(INDEX('Data Annex'!$K$1:$AS$6264,MATCH(I$1&"|"&$B14,'Data Annex'!$K$1:$K$6264,0),MATCH(I$2,'Data Annex'!$K$1:$AS$1,0)),"") -> 0 | J14: =IFERROR(INDEX('Data Annex'!$K$1:$AS$6264,MATCH(J$1&"|"&$B14,'Data Annex'!$K$1:$K$6264,0),MATCH(J$2,'Data Annex'!$K$1:$AS$1,0)),"") -> 0 | K14: =IFERROR(INDEX('Data Annex'!$K$1:$AS$6264,MATCH(K$1&"|"&$B14,'Data Annex'!$K$1:$K$6264,0),MATCH(K$2,'Data Annex'!$K$1:$AS$1,0)),"") -> 0 | L14: =IFERROR(INDEX('Data Annex'!$K$1:$AS$6264,MATCH(L$1&"|"&$B14,'Data Annex'!$K$1:$K$6264,0),MATCH(L$2,'Data Annex'!$K$1:$AS$1,0)),"") -> 0 | M14: =IFERROR(INDEX('Data Annex'!$K$1:$AS$6264,MATCH(M$1&"|"&$B14,'Data Annex'!$K$1:$K$6264,0),MATCH(M$2,'Data Annex'!$K$1:$AS$1,0)),"") -> 0 | N14: =IFERROR(INDEX('Data Annex'!$K$1:$AS$6264,MATCH(N$1&"|"&$B14,'Data Annex'!$K$1:$K$6264,0),MATCH(N$2,'Data Annex'!$K$1:$AS$1,0)),"") -> 0.9525513856 | O14: =IFERROR(INDEX('Data Annex'!$K$1:$AS$6264,MATCH(O$1&"|"&$B14,'Data Annex'!$K$1:$K$6264,0),MATCH(O$2,'Data Annex'!$K$1:$AS$1,0)),"") -> 1.118212496 | P14: =IFERROR(INDEX('Data Annex'!$K$1:$AS$6264,MATCH(P$1&"|"&$B14,'Data Annex'!$K$1:$K$6264,0),MATCH(P$2,'Data Annex'!$K$1:$AS$1,0)),"") -> 0 | Q14: =IFERROR(INDEX('Data Annex'!$K$1:$AS$6264,MATCH(Q$1&"|"&$B14,'Data Annex'!$K$1:$K$6264,0),MATCH(Q$2,'Data Annex'!$K$1:$AS$1,0)),"") -> 0 | R14: =IFERROR(INDEX('Data Annex'!$K$1:$AS$6264,MATCH(R$1&"|"&$B14,'Data Annex'!$K$1:$K$6264,0),MATCH(R$2,'Data Annex'!$K$1:$AS$1,0)),"") -> 0 | S14: =IFERROR(INDEX('Data Annex'!$K$1:$AS$6264,MATCH(S$1&"|"&$B14,'Data Annex'!$K$1:$K$6264,0),MATCH(S$2,'Data Annex'!$K$1:$AS$1,0)),"") -> 0 | T14: =IFERROR(INDEX('Data Annex'!$K$1:$AS$6264,MATCH(T$1&"|"&$B14,'Data Annex'!$K$1:$K$6264,0),MATCH(T$2,'Data Annex'!$K$1:$AS$1,0)),"") -> 0.9525513856 | U14: =IFERROR(INDEX('Data Annex'!$K$1:$AS$6264,MATCH(U$1&"|"&$B14,'Data Annex'!$K$1:$K$6264,0),MATCH(U$2,'Data Annex'!$K$1:$AS$1,0)),"") -> 1.118212496
A15: 4 | B15: CY | D15: CY | F15: =IFERROR(INDEX('Data Annex'!$K$1:$AS$6264,MATCH(F$1&"|"&$B15,'Data Annex'!$K$1:$K$6264,0),MATCH(F$2,'Data Annex'!$K$1:$AS$1,0)),"") -> 4.826554 | G15: =IFERROR(INDEX('Data Annex'!$K$1:$AS$6264,MATCH(G$1&"|"&$B15,'Data Annex'!$K$1:$K$6264,0),MATCH(G$2,'Data Annex'!$K$1:$AS$1,0)),"") -> 6.815932 | H15: =IFERROR(INDEX('Data Annex'!$K$1:$AS$6264,MATCH(H$1&"|"&$B15,'Data Annex'!$K$1:$K$6264,0),MATCH(H$2,'Data Annex'!$K$1:$AS$1,0)),"") -> 0 | I15: =IFERROR(INDEX('Data Annex'!$K$1:$AS$6264,MATCH(I$1&"|"&$B15,'Data Annex'!$K$1:$K$6264,0),MATCH(I$2,'Data Annex'!$K$1:$AS$1,0)),"") -> 0 | J15: =IFERROR(INDEX('Data Annex'!$K$1:$AS$6264,MATCH(J$1&"|"&$B15,'Data Annex'!$K$1:$K$6264,0),MATCH(J$2,'Data Annex'!$K$1:$AS$1,0)),"") -> 0 | K15: =IFERROR(INDEX('Data Annex'!$K$1:$AS$6264,MATCH(K$1&"|"&$B15,'Data Annex'!$K$1:$K$6264,0),MATCH(K$2,'Data Annex'!$K$1:$AS$1,0)),"") -> 0 | L15: =IFERROR(INDEX('Data Annex'!$K$1:$AS$6264,MATCH(L$1&"|"&$B15,'Data Annex'!$K$1:$K$6264,0),MATCH(L$2,'Data Annex'!$K$1:$AS$1,0)),"") -> 0 | M15: =IFERROR(INDEX('Data Annex'!$K$1:$AS$6264,MATCH(M$1&"|"&$B15,'Data Annex'!$K$1:$K$6264,0),MATCH(M$2,'Data Annex'!$K$1:$AS$1,0)),"") -> 0 | N15: =IFERROR(INDEX('Data Annex'!$K$1:$AS$6264,MATCH(N$1&"|"&$B15,'Data Annex'!$K$1:$K$6264,0),MATCH(N$2,'Data Annex'!$K$1:$AS$1,0)),"") -> 4.826554 | O15: =IFERROR(INDEX('Data Annex'!$K$1:$AS$6264,MATCH(O$1&"|"&$B15,'Data Annex'!$K$1:$K$6264,0),MATCH(O$2,'Data Annex'!$K$1:$AS$1,0)),"") -> 6.815932 | P15: =IFERROR(INDEX('Data Annex'!$K$1:$AS$6264,MATCH(P$1&"|"&$B15,'Data Annex'!$K$1:$K$6264,0),MATCH(P$2,'Data Annex'!$K$1:$AS$1,0)),"") -> 9.9e-05 | Q15: =IFERROR(INDEX('Data Annex'!$K$1:$AS$6264,MATCH(Q$1&"|"&$B15,'Data Annex'!$K$1:$K$6264,0),MATCH(Q$2,'Data Annex'!$K$1:$AS$1,0)),"") -> 4e-05 | R15: =IFERROR(INDEX('Data Annex'!$K$1:$AS$6264,MATCH(R$1&"|"&$B15,'Data Annex'!$K$1:$K$6264,0),MATCH(R$2,'Data Annex'!$K$1:$AS$1,0)),"") -> 4.212185 | S15: =IFERROR(INDEX('Data Annex'!$K$1:$AS$6264,MATCH(S$1&"|"&$B15,'Data Annex'!$K$1:$K$6264,0),MATCH(S$2,'Data Annex'!$K$1:$AS$1,0)),"") -> 2.946915 | T15: =IFERROR(INDEX('Data Annex'!$K$1:$AS$6264,MATCH(T$1&"|"&$B15,'Data Annex'!$K$1:$K$6264,0),MATCH(T$2,'Data Annex'!$K$1:$AS$1,0)),"") -> 0.61427 | U15: =IFERROR(INDEX('Data Annex'!$K$1:$AS$6264,MATCH(U$1&"|"&$B15,'Data Annex'!$K$1:$K$6264,0),MATCH(U$2,'Data Annex'!$K$1:$AS$1,0)),"") -> 3.868977
A16: 5 | B16: CZ | D16: CZ | F16: =IFERROR(INDEX('Data Annex'!$K$1:$AS$6264,MATCH(F$1&"|"&$B16,'Data Annex'!$K$1:$K$6264,0),MATCH(F$2,'Data Annex'!$K$1:$AS$1,0)),"") -> 25.94359962 | G16: =IFERROR(INDEX('Data Annex'!$K$1:$AS$6264,MATCH(G$1&"|"&$B16,'Data Annex'!$K$1:$K$6264,0),MATCH(G$2,'Data Annex'!$K$1:$AS$1,0)),"") -> 29.16933309 | H16: =IFERROR(INDEX('Data Annex'!$K$1:$AS$6264,MATCH(H$1&"|"&$B16,'Data Annex'!$K$1:$K$6264,0),MATCH(H$2,'Data Annex'!$K$1:$AS$1,0)),"") -> 0 | I16: =IFERROR(INDEX('Data Annex'!$K$1:$AS$6264,MATCH(I$1&"|"&$B16,'Data Annex'!$K$1:$K$6264,0),MATCH(I$2,'Data Annex'!$K$1:$AS$1,0)),"") -> 0 | J16: =IFERROR(INDEX('Data Annex'!$K$1:$AS$6264,MATCH(J$1&"|"&$B16,'Data Annex'!$K$1:$K$6264,0),MATCH(J$2,'Data Annex'!$K$1:$AS$1,0)),"") -> 0 | K16: =IFERROR(INDEX('Data Annex'!$K$1:$AS$6264,MATCH(K$1&"|"&$B16,'Data Annex'!$K$1:$K$6264,0),MATCH(K$2,'Data Annex'!$K$1:$AS$1,0)),"") -> 0 | L16: =IFERROR(INDEX('Data Annex'!$K$1:$AS$6264,MATCH(L$1&"|"&$B16,'Data Annex'!$K$1:$K$6264,0),MATCH(L$2,'Data Annex'!$K$1:$AS$1,0)),"") -> 0 | M16: =IFERROR(INDEX('Data Annex'!$K$1:$AS$6264,MATCH(M$1&"|"&$B16,'Data Annex'!$K$1:$K$6264,0),MATCH(M$2,'Data Annex'!$K$1:$AS$1,0)),"") -> 0 | N16: =IFERROR(INDEX('Data Annex'!$K$1:$AS$6264,MATCH(N$1&"|"&$B16,'Data Annex'!$K$1:$K$6264,0),MATCH(N$2,'Data Annex'!$K$1:$AS$1,0)),"") -> 25.94359962 | O16: =IFERROR(INDEX('Data Annex'!$K$1:$AS$6264,MATCH(O$1&"|"&$B16,'Data Annex'!$K$1:$K$6264,0),MATCH(O$2,'Data Annex'!$K$1:$AS$1,0)),"") -> 29.16933309 | P16: =IFERROR(INDEX('Data Annex'!$K$1:$AS$6264,MATCH(P$1&"|"&$B16,'Data Annex'!$K$1:$K$6264,0),MATCH(P$2,'Data Annex'!$K$1:$AS$1,0)),"") -> 0 | Q16: =IFERROR(INDEX('Data Annex'!$K$1:$AS$6264,MATCH(Q$1&"|"&$B16,'Data Annex'!$K$1:$K$6264,0),MATCH(Q$2,'Data Annex'!$K$1:$AS$1,0)),"") -> 0 | R16: =IFERROR(INDEX('Data Annex'!$K$1:$AS$6264,MATCH(R$1&"|"&$B16,'Data Annex'!$K$1:$K$6264,0),MATCH(R$2,'Data Annex'!$K$1:$AS$1,0)),"") -> 3.569046336 | S16: =IFERROR(INDEX('Data Annex'!$K$1:$AS$6264,MATCH(S$1&"|"&$B16,'Data Annex'!$K$1:$K$6264,0),MATCH(S$2,'Data Annex'!$K$1:$AS$1,0)),"") -> 4.131838523 | T16: =IFERROR(INDEX('Data Annex'!$K$1:$AS$6264,MATCH(T$1&"|"&$B16,'Data Annex'!$K$1:$K$6264,0),MATCH(T$2,'Data Annex'!$K$1:$AS$1,0)),"") -> 22.37455328 | U16: =IFERROR(INDEX('Data Annex'!$K$1:$AS$6264,MATCH(U$1&"|"&$B16,'Data Annex'!$K$1:$K$6264,0),MATCH(U$2,'Data Annex'!$K$1:$AS$1,0)),"") -> 25.03749461
A17: 6 | B17: DE | D17: DE | F17: =IFERROR(INDEX('Data Annex'!$K$1:$AS$6264,MATCH(F$1&"|"&$B17,'Data Annex'!$K$1:$K$6264,0),MATCH(F$2,'Data Annex'!$K$1:$AS$1,0)),"") -> 735.811912 | G17: =IFERROR(INDEX('Data Annex'!$K$1:$AS$6264,MATCH(G$1&"|"&$B17,'Data Annex'!$K$1:$K$6264,0),MATCH(G$2,'Data Annex'!$K$1:$AS$1,0)),"") -> 779.2310636 | H17: =IFERROR(INDEX('Data Annex'!$K$1:$AS$6264,MATCH(H$1&"|"&$B17,'Data Annex'!$K$1:$K$6264,0),MATCH(H$2,'Data Annex'!$K$1:$AS$1,0)),"") -> 54.2360485 | I17: =IFERROR(INDEX('Data Annex'!$K$1:$AS$6264,MATCH(I$1&"|"&$B17,'Data Annex'!$K$1:$K$6264,0),MATCH(I$2,'Data Annex'!$K$1:$AS$1,0)),"") -> 64.18578431 | J17: =IFERROR(INDEX('Data Annex'!$K$1:$AS$6264,MATCH(J$1&"|"&$B17,'Data Annex'!$K$1:$K$6264,0),MATCH(J$2,'Data Annex'!$K$1:$AS$1,0)),"") -> 45.7098017 | K17: =IFERROR(INDEX('Data Annex'!$K$1:$AS$6264,MATCH(K$1&"|"&$B17,'Data Annex'!$K$1:$K$6264,0),MATCH(K$2,'Data Annex'!$K$1:$AS$1,0)),"") -> 31.16596281 | L17: =IFERROR(INDEX('Data Annex'!$K$1:$AS$6264,MATCH(L$1&"|"&$B17,'Data Annex'!$K$1:$K$6264,0),MATCH(L$2,'Data Annex'!$K$1:$AS$1,0)),"") -> 7.697944504 | M17: =IFERROR(INDEX('Data Annex'!$K$1:$AS$6264,MATCH(M$1&"|"&$B17,'Data Annex'!$K$1:$K$6264,0),MATCH(M$2,'Data Annex'!$K$1:$AS$1,0)),"") -> 31.16596281 | N17: =IFERROR(INDEX('Data Annex'!$K$1:$AS$6264,MATCH(N$1&"|"&$B17,'Data Annex'!$K$1:$K$6264,0),MATCH(N$2,'Data Annex'!$K$1:$AS$1,0)),"") -> 635.8660616 | O17: =IFERROR(INDEX('Data Annex'!$K$1:$AS$6264,MATCH(O$1&"|"&$B17,'Data Annex'!$K$1:$K$6264,0),MATCH(O$2,'Data Annex'!$K$1:$AS$1,0)),"") -> 683.8793163 | P17: =IFERROR(INDEX('Data Annex'!$K$1:$AS$6264,MATCH(P$1&"|"&$B17,'Data Annex'!$K$1:$K$6264,0),MATCH(P$2,'Data Annex'!$K$1:$AS$1,0)),"") -> 10.06178215 | Q17: =IFERROR(INDEX('Data Annex'!$K$1:$AS$6264,MATCH(Q$1&"|"&$B17,'Data Annex'!$K$1:$K$6264,0),MATCH(Q$2,'Data Annex'!$K$1:$AS$1,0)),"") -> 43.02406119 | R17: =IFERROR(INDEX('Data Annex'!$K$1:$AS$6264,MATCH(R$1&"|"&$B17,'Data Annex'!$K$1:$K$6264,0),MATCH(R$2,'Data Annex'!$K$1:$AS$1,0)),"") -> 154.0893455 | S17: =IFERROR(INDEX('Data Annex'!$K$1:$AS$6264,MATCH(S$1&"|"&$B17,'Data Annex'!$K$1:$K$6264,0),MATCH(S$2,'Data Annex'!$K$1:$AS$1,0)),"") -> 142.3318173 | T17: =IFERROR(INDEX('Data Annex'!$K$1:$AS$6264,MATCH(T$1&"|"&$B17,'Data Annex'!$K$1:$K$6264,0),MATCH(T$2,'Data Annex'!$K$1:$AS$1,0)),"") -> 4.459223858 | U17: =IFERROR(INDEX('Data Annex'!$K$1:$AS$6264,MATCH(U$1&"|"&$B17,'Data Annex'!$K$1:$K$6264,0),MATCH(U$2,'Data Annex'!$K$1:$AS$1,0)),"") -> 4.016539582
A18: 7 | B18: DK | D18: DK | F18: =IFERROR(INDEX('Data Annex'!$K$1:$AS$6264,MATCH(F$1&"|"&$B18,'Data Annex'!$K$1:$K$6264,0),MATCH(F$2,'Data Annex'!$K$1:$AS$1,0)),"") -> 6.076964068 | G18: =IFERROR(INDEX('Data Annex'!$K$1:$AS$6264,MATCH(G$1&"|"&$B18,'Data Annex'!$K$1:$K$6264,0),MATCH(G$2,'Data Annex'!$K$1:$AS$1,0)),"") -> 5.721458477 | H18: =IFERROR(INDEX('Data Annex'!$K$1:$AS$6264,MATCH(H$1&"|"&$B18,'Data Annex'!$K$1:$K$6264,0),MATCH(H$2,'Data Annex'!$K$1:$AS$1,0)),"") ->  | I18: =IFERROR(INDEX('Data Annex'!$K$1:$AS$6264,MATCH(I$1&"|"&$B18,'Data Annex'!$K$1:$K$6264,0),MATCH(I$2,'Data Annex'!$K$1:$AS$1,0)),"") ->  | J18: =IFERROR(INDEX('Data Annex'!$K$1:$AS$6264,MATCH(J$1&"|"&$B18,'Data Annex'!$K$1:$K$6264,0),MATCH(J$2,'Data Annex'!$K$1:$AS$1,0)),"") ->  | K18: =IFERROR(INDEX('Data Annex'!$K$1:$AS$6264,MATCH(K$1&"|"&$B18,'Data Annex'!$K$1:$K$6264,0),MATCH(K$2,'Data Annex'!$K$1:$AS$1,0)),"") ->  | L18: =IFERROR(INDEX('Data Annex'!$K$1:$AS$6264,MATCH(L$1&"|"&$B18,'Data Annex'!$K$1:$K$6264,0),MATCH(L$2,'Data Annex'!$K$1:$AS$1,0)),"") ->  | M18: =IFERROR(INDEX('Data Annex'!$K$1:$AS$6264,MATCH(M$1&"|"&$B18,'Data Annex'!$K$1:$K$6264,0),MATCH(M$2,'Data Annex'!$K$1:$AS$1,0)),"") ->  | N18: =IFERROR(INDEX('Data Annex'!$K$1:$AS$6264,MATCH(N$1&"|"&$B18,'Data Annex'!$K$1:$K$6264,0),MATCH(N$2,'Data Annex'!$K$1:$AS$1,0)),"") -> 6.076964068 | O18: =IFERROR(INDEX('Data Annex'!$K$1:$AS$6264,MATCH(O$1&"|"&$B18,'Data Annex'!$K$1:$K$6264,0),MATCH(O$2,'Data Annex'!$K$1:$AS$1,0)),"") -> 5.721458477 | P18: =IFERROR(INDEX('Data Annex'!$K$1:$AS$6264,MATCH(P$1&"|"&$B18,'Data Annex'!$K$1:$K$6264,0),MATCH(P$2,'Data Annex'!$K$1:$AS$1,0)),"") -> 2.396143191 | Q18: =IFERROR(INDEX('Data Annex'!$K$1:$AS$6264,MATCH(Q$1&"|"&$B18,'Data Annex'!$K$1:$K$6264,0),MATCH(Q$2,'Data Annex'!$K$1:$AS$1,0)),"") -> 2.513123285 | R18: =IFERROR(INDEX('Data Annex'!$K$1:$AS$6264,MATCH(R$1&"|"&$B18,'Data Annex'!$K$1:$K$6264,0),MATCH(R$2,'Data Annex'!$K$1:$AS$1,0)),"") ->  | S18: =IFERROR(INDEX('Data Annex'!$K$1:$AS$6264,MATCH(S$1&"|"&$B18,'Data Annex'!$K$1:$K$6264,0),MATCH(S$2,'Data Annex'!$K$1:$AS$1,0)),"") ->  | T18: =IFERROR(INDEX('Data Annex'!$K$1:$AS$6264,MATCH(T$1&"|"&$B18,'Data Annex'!$K$1:$K$6264,0),MATCH(T$2,'Data Annex'!$K$1:$AS$1,0)),"") -> 3.680820876 | U18: =IFERROR(INDEX('Data Annex'!$K$1:$AS$6264,MATCH(U$1&"|"&$B18,'Data Annex'!$K$1:$K$6264,0),MATCH(U$2,'Data Annex'!$K$1:$AS$1,0)),"") -> 3.208335192
A19: 8 | B19: EE | D19: EE | F19: =IFERROR(INDEX('Data Annex'!$K$1:$AS$6264,MATCH(F$1&"|"&$B19,'Data Annex'!$K$1:$K$6264,0),MATCH(F$2,'Data Annex'!$K$1:$AS$1,0)),"") -> 0.61772257 | G19: =IFERROR(INDEX('Data Annex'!$K$1:$AS$6264,MATCH(G$1&"|"&$B19,'Data Annex'!$K$1:$K$6264,0),MATCH(G$2,'Data Annex'!$K$1:$AS$1,0)),"") -> 0.514767128 | H19: =IFERROR(INDEX('Data Annex'!$K$1:$AS$6264,MATCH(H$1&"|"&$B19,'Data Annex'!$K$1:$K$6264,0),MATCH(H$2,'Data Annex'!$K$1:$AS$1,0)),"") ->  | I19: =IFERROR(INDEX('Data Annex'!$K$1:$AS$6264,MATCH(I$1&"|"&$B19,'Data Annex'!$K$1:$K$6264,0),MATCH(I$2,'Data Annex'!$K$1:$AS$1,0)),"") ->  | J19: =IFERROR(INDEX('Data Annex'!$K$1:$AS$6264,MATCH(J$1&"|"&$B19,'Data Annex'!$K$1:$K$6264,0),MATCH(J$2,'Data Annex'!$K$1:$AS$1,0)),"") ->  | K19: =IFERROR(INDEX('Data Annex'!$K$1:$AS$6264,MATCH(K$1&"|"&$B19,'Data Annex'!$K$1:$K$6264,0),MATCH(K$2,'Data Annex'!$K$1:$AS$1,0)),"") ->  | L19: =IFERROR(INDEX('Data Annex'!$K$1:$AS$6264,MATCH(L$1&"|"&$B19,'Data Annex'!$K$1:$K$6264,0),MATCH(L$2,'Data Annex'!$K$1:$AS$1,0)),"") ->  | M19: =IFERROR(INDEX('Data Annex'!$K$1:$AS$6264,MATCH(M$1&"|"&$B19,'Data Annex'!$K$1:$K$6264,0),MATCH(M$2,'Data Annex'!$K$1:$AS$1,0)),"") ->  | N19: =IFERROR(INDEX('Data Annex'!$K$1:$AS$6264,MATCH(N$1&"|"&$B19,'Data Annex'!$K$1:$K$6264,0),MATCH(N$2,'Data Annex'!$K$1:$AS$1,0)),"") -> 0.61772257 | O19: =IFERROR(INDEX('Data Annex'!$K$1:$AS$6264,MATCH(O$1&"|"&$B19,'Data Annex'!$K$1:$K$6264,0),MATCH(O$2,'Data Annex'!$K$1:$AS$1,0)),"") -> 0.514767128 | P19: =IFERROR(INDEX('Data Annex'!$K$1:$AS$6264,MATCH(P$1&"|"&$B19,'Data Annex'!$K$1:$K$6264,0),MATCH(P$2,'Data Annex'!$K$1:$AS$1,0)),"") ->  | Q19: =IFERROR(INDEX('Data Annex'!$K$1:$AS$6264,MATCH(Q$1&"|"&$B19,'Data Annex'!$K$1:$K$6264,0),MATCH(Q$2,'Data Annex'!$K$1:$AS$1,0)),"") ->  | R19: =IFERROR(INDEX('Data Annex'!$K$1:$AS$6264,MATCH(R$1&"|"&$B19,'Data Annex'!$K$1:$K$6264,0),MATCH(R$2,'Data Annex'!$K$1:$AS$1,0)),"") -> 0 | S19: =IFERROR(INDEX('Data Annex'!$K$1:$AS$6264,MATCH(S$1&"|"&$B19,'Data Annex'!$K$1:$K$6264,0),MATCH(S$2,'Data Annex'!$K$1:$AS$1,0)),"") -> 0 | T19: =IFERROR(INDEX('Data Annex'!$K$1:$AS$6264,MATCH(T$1&"|"&$B19,'Data Annex'!$K$1:$K$6264,0),MATCH(T$2,'Data Annex'!$K$1:$AS$1,0)),"") -> 0.61772257 | U19: =IFERROR(INDEX('Data Annex'!$K$1:$AS$6264,MATCH(U$1&"|"&$B19,'Data Annex'!$K$1:$K$6264,0),MATCH(U$2,'Data Annex'!$K$1:$AS$1,0)),"") -> 0.514767128
A20: 9 | B20: ES | D20: ES | F20: =IFERROR(INDEX('Data Annex'!$K$1:$AS$6264,MATCH(F$1&"|"&$B20,'Data Annex'!$K$1:$K$6264,0),MATCH(F$2,'Data Annex'!$K$1:$AS$1,0)),"") -> 47.803916 | G20: =IFERROR(INDEX('Data Annex'!$K$1:$AS$6264,MATCH(G$1&"|"&$B20,'Data Annex'!$K$1:$K$6264,0),MATCH(G$2,'Data Annex'!$K$1:$AS$1,0)),"") -> 48.52608774 | H20: =IFERROR(INDEX('Data Annex'!$K$1:$AS$6264,MATCH(H$1&"|"&$B20,'Data Annex'!$K$1:$K$6264,0),MATCH(H$2,'Data Annex'!$K$1:$AS$1,0)),"") ->  | I20: =IFERROR(INDEX('Data Annex'!$K$1:$AS$6264,MATCH(I$1&"|"&$B20,'Data Annex'!$K$1:$K$6264,0),MATCH(I$2,'Data Annex'!$K$1:$AS$1,0)),"") ->  | J20: =IFERROR(INDEX('Data Annex'!$K$1:$AS$6264,MATCH(J$1&"|"&$B20,'Data Annex'!$K$1:$K$6264,0),MATCH(J$2,'Data Annex'!$K$1:$AS$1,0)),"") ->  | K20: =IFERROR(INDEX('Data Annex'!$K$1:$AS$6264,MATCH(K$1&"|"&$B20,'Data Annex'!$K$1:$K$6264,0),MATCH(K$2,'Data Annex'!$K$1:$AS$1,0)),"") ->  | L20: =IFERROR(INDEX('Data Annex'!$K$1:$AS$6264,MATCH(L$1&"|"&$B20,'Data Annex'!$K$1:$K$6264,0),MATCH(L$2,'Data Annex'!$K$1:$AS$1,0)),"") ->  | M20: =IFERROR(INDEX('Data Annex'!$K$1:$AS$6264,MATCH(M$1&"|"&$B20,'Data Annex'!$K$1:$K$6264,0),MATCH(M$2,'Data Annex'!$K$1:$AS$1,0)),"") ->  | N20: =IFERROR(INDEX('Data Annex'!$K$1:$AS$6264,MATCH(N$1&"|"&$B20,'Data Annex'!$K$1:$K$6264,0),MATCH(N$2,'Data Annex'!$K$1:$AS$1,0)),"") -> 47.803916 | O20: =IFERROR(INDEX('Data Annex'!$K$1:$AS$6264,MATCH(O$1&"|"&$B20,'Data Annex'!$K$1:$K$6264,0),MATCH(O$2,'Data Annex'!$K$1:$AS$1,0)),"") -> 48.52608774 | P20: =IFERROR(INDEX('Data Annex'!$K$1:$AS$6264,MATCH(P$1&"|"&$B20,'Data Annex'!$K$1:$K$6264,0),MATCH(P$2,'Data Annex'!$K$1:$AS$1,0)),"") -> 0.001 | Q20: =IFERROR(INDEX('Data Annex'!$K$1:$AS$6264,MATCH(Q$1&"|"&$B20,'Data Annex'!$K$1:$K$6264,0),MATCH(Q$2,'Data Annex'!$K$1:$AS$1,0)),"") -> 0 | R20: =IFERROR(INDEX('Data Annex'!$K$1:$AS$6264,MATCH(R$1&"|"&$B20,'Data Annex'!$K$1:$K$6264,0),MATCH(R$2,'Data Annex'!$K$1:$AS$1,0)),"") -> 0.496 | S20: =IFERROR(INDEX('Data Annex'!$K$1:$AS$6264,MATCH(S$1&"|"&$B20,'Data Annex'!$K$1:$K$6264,0),MATCH(S$2,'Data Annex'!$K$1:$AS$1,0)),"") -> 1.42 | T20: =IFERROR(INDEX('Data Annex'!$K$1:$AS$6264,MATCH(T$1&"|"&$B20,'Data Annex'!$K$1:$K$6264,0),MATCH(T$2,'Data Annex'!$K$1:$AS$1,0)),"") -> 47.306916 | U20: =IFERROR(INDEX('Data Annex'!$K$1:$AS$6264,MATCH(U$1&"|"&$B20,'Data Annex'!$K$1:$K$6264,0),MATCH(U$2,'Data Annex'!$K$1:$AS$1,0)),"") -> 47.10608774
A21: 10 | B21: FI | D21: FI | F21: =IFERROR(INDEX('Data Annex'!$K$1:$AS$6264,MATCH(F$1&"|"&$B21,'Data Annex'!$K$1:$K$6264,0),MATCH(F$2,'Data Annex'!$K$1:$AS$1,0)),"") -> 0.21818654 | G21: =IFERROR(INDEX('Data Annex'!$K$1:$AS$6264,MATCH(G$1&"|"&$B21,'Data Annex'!$K$1:$K$6264,0),MATCH(G$2,'Data Annex'!$K$1:$AS$1,0)),"") -> 0.68431155 | H21: =IFERROR(INDEX('Data Annex'!$K$1:$AS$6264,MATCH(H$1&"|"&$B21,'Data Annex'!$K$1:$K$6264,0),MATCH(H$2,'Data Annex'!$K$1:$AS$1,0)),"") ->  | I21: =IFERROR(INDEX('Data Annex'!$K$1:$AS$6264,MATCH(I$1&"|"&$B21,'Data Annex'!$K$1:$K$6264,0),MATCH(I$2,'Data Annex'!$K$1:$AS$1,0)),"") ->  | J21: =IFERROR(INDEX('Data Annex'!$K$1:$AS$6264,MATCH(J$1&"|"&$B21,'Data Annex'!$K$1:$K$6264,0),MATCH(J$2,'Data Annex'!$K$1:$AS$1,0)),"") ->  | K21: =IFERROR(INDEX('Data Annex'!$K$1:$AS$6264,MATCH(K$1&"|"&$B21,'Data Annex'!$K$1:$K$6264,0),MATCH(K$2,'Data Annex'!$K$1:$AS$1,0)),"") ->  | L21: =IFERROR(INDEX('Data Annex'!$K$1:$AS$6264,MATCH(L$1&"|"&$B21,'Data Annex'!$K$1:$K$6264,0),MATCH(L$2,'Data Annex'!$K$1:$AS$1,0)),"") ->  | M21: =IFERROR(INDEX('Data Annex'!$K$1:$AS$6264,MATCH(M$1&"|"&$B21,'Data Annex'!$K$1:$K$6264,0),MATCH(M$2,'Data Annex'!$K$1:$AS$1,0)),"") ->  | N21: =IFERROR(INDEX('Data Annex'!$K$1:$AS$6264,MATCH(N$1&"|"&$B21,'Data Annex'!$K$1:$K$6264,0),MATCH(N$2,'Data Annex'!$K$1:$AS$1,0)),"") -> 0.21818654 | O21: =IFERROR(INDEX('Data Annex'!$K$1:$AS$6264,MATCH(O$1&"|"&$B21,'Data Annex'!$K$1:$K$6264,0),MATCH(O$2,'Data Annex'!$K$1:$AS$1,0)),"") -> 0.68431155 | P21: =IFERROR(INDEX('Data Annex'!$K$1:$AS$6264,MATCH(P$1&"|"&$B21,'Data Annex'!$K$1:$K$6264,0),MATCH(P$2,'Data Annex'!$K$1:$AS$1,0)),"") ->  | Q21: =IFERROR(INDEX('Data Annex'!$K$1:$AS$6264,MATCH(Q$1&"|"&$B21,'Data Annex'!$K$1:$K$6264,0),MATCH(Q$2,'Data Annex'!$K$1:$AS$1,0)),"") ->  | R21: =IFERROR(INDEX('Data Annex'!$K$1:$AS$6264,MATCH(R$1&"|"&$B21,'Data Annex'!$K$1:$K$6264,0),MATCH(R$2,'Data Annex'!$K$1:$AS$1,0)),"") ->  | S21: =IFERROR(INDEX('Data Annex'!$K$1:$AS$6264,MATCH(S$1&"|"&$B21,'Data Annex'!$K$1:$K$6264,0),MATCH(S$2,'Data Annex'!$K$1:$AS$1,0)),"") ->  | T21: =IFERROR(INDEX('Data Annex'!$K$1:$AS$6264,MATCH(T$1&"|"&$B21,'Data Annex'!$K$1:$K$6264,0),MATCH(T$2,'Data Annex'!$K$1:$AS$1,0)),"") -> 0.21818654 | U21: =IFERROR(INDEX('Data Annex'!$K$1:$AS$6264,MATCH(U$1&"|"&$B21,'Data Annex'!$K$1:$K$6264,0),MATCH(U$2,'Data Annex'!$K$1:$AS$1,0)),"") -> 0.68431155
A22: 11 | B22: FR | D22: FR | F22: =IFERROR(INDEX('Data Annex'!$K$1:$AS$6264,MATCH(F$1&"|"&$B22,'Data Annex'!$K$1:$K$6264,0),MATCH(F$2,'Data Annex'!$K$1:$AS$1,0)),"") -> 2639.976797 | G22: =IFERROR(INDEX('Data Annex'!$K$1:$AS$6264,MATCH(G$1&"|"&$B22,'Data Annex'!$K$1:$K$6264,0),MATCH(G$2,'Data Annex'!$K$1:$AS$1,0)),"") -> 3282.080497 | H22: =IFERROR(INDEX('Data Annex'!$K$1:$AS$6264,MATCH(H$1&"|"&$B22,'Data Annex'!$K$1:$K$6264,0),MATCH(H$2,'Data Annex'!$K$1:$AS$1,0)),"") -> 171.75025 | I22: =IFERROR(INDEX('Data Annex'!$K$1:$AS$6264,MATCH(I$1&"|"&$B22,'Data Annex'!$K$1:$K$6264,0),MATCH(I$2,'Data Annex'!$K$1:$AS$1,0)),"") -> 139.3355422 | J22: =IFERROR(INDEX('Data Annex'!$K$1:$AS$6264,MATCH(J$1&"|"&$B22,'Data Annex'!$K$1:$K$6264,0),MATCH(J$2,'Data Annex'!$K$1:$AS$1,0)),"") -> 740.1493381 | K22: =IFERROR(INDEX('Data Annex'!$K$1:$AS$6264,MATCH(K$1&"|"&$B22,'Data Annex'!$K$1:$K$6264,0),MATCH(K$2,'Data Annex'!$K$1:$AS$1,0)),"") -> 734.6154722 | L22: =IFERROR(INDEX('Data Annex'!$K$1:$AS$6264,MATCH(L$1&"|"&$B22,'Data Annex'!$K$1:$K$6264,0),MATCH(L$2,'Data Annex'!$K$1:$AS$1,0)),"") -> 739.6043381 | M22: =IFERROR(INDEX('Data Annex'!$K$1:$AS$6264,MATCH(M$1&"|"&$B22,'Data Annex'!$K$1:$K$6264,0),MATCH(M$2,'Data Annex'!$K$1:$AS$1,0)),"") -> 733.8457432 | N22: =IFERROR(INDEX('Data Annex'!$K$1:$AS$6264,MATCH(N$1&"|"&$B22,'Data Annex'!$K$1:$K$6264,0),MATCH(N$2,'Data Annex'!$K$1:$AS$1,0)),"") -> 1712.11496 | O22: =IFERROR(INDEX('Data Annex'!$K$1:$AS$6264,MATCH(O$1&"|"&$B22,'Data Annex'!$K$1:$K$6264,0),MATCH(O$2,'Data Annex'!$K$1:$AS$1,0)),"") -> 2407.715783 | P22: =IFERROR(INDEX('Data Annex'!$K$1:$AS$6264,MATCH(P$1&"|"&$B22,'Data Annex'!$K$1:$K$6264,0),MATCH(P$2,'Data Annex'!$K$1:$AS$1,0)),"") -> 28.75509272 | Q22: =IFERROR(INDEX('Data Annex'!$K$1:$AS$6264,MATCH(Q$1&"|"&$B22,'Data Annex'!$K$1:$K$6264,0),MATCH(Q$2,'Data Annex'!$K$1:$AS$1,0)),"") -> 39.53640303 | R22: =IFERROR(INDEX('Data Annex'!$K$1:$AS$6264,MATCH(R$1&"|"&$B22,'Data Annex'!$K$1:$K$6264,0),MATCH(R$2,'Data Annex'!$K$1:$AS$1,0)),"") -> 1200.661626 | S22: =IFERROR(INDEX('Data Annex'!$K$1:$AS$6264,MATCH(S$1&"|"&$B22,'Data Annex'!$K$1:$K$6264,0),MATCH(S$2,'Data Annex'!$K$1:$AS$1,0)),"") -> 1778.849965 | T22: =IFERROR(INDEX('Data Annex'!$K$1:$AS$6264,MATCH(T$1&"|"&$B22,'Data Annex'!$K$1:$K$6264,0),MATCH(T$2,'Data Annex'!$K$1:$AS$1,0)),"") -> 385.5550808 | U22: =IFERROR(INDEX('Data Annex'!$K$1:$AS$6264,MATCH(U$1&"|"&$B22,'Data Annex'!$K$1:$K$6264,0),MATCH(U$2,'Data Annex'!$K$1:$AS$1,0)),"") -> 448.113826
A23: 12 | B23: GR | D23: GR | F23: =IFERROR(INDEX('Data Annex'!$K$1:$AS$6264,MATCH(F$1&"|"&$B23,'Data Annex'!$K$1:$K$6264,0),MATCH(F$2,'Data Annex'!$K$1:$AS$1,0)),"") ->  | G23: =IFERROR(INDEX('Data Annex'!$K$1:$AS$6264,MATCH(G$1&"|"&$B23,'Data Annex'!$K$1:$K$6264,0),MATCH(G$2,'Data Annex'!$K$1:$AS$1,0)),"") ->  | H23: =IFERROR(INDEX('Data Annex'!$K$1:$AS$6264,MATCH(H$1&"|"&$B23,'Data Annex'!$K$1:$K$6264,0),MATCH(H$2,'Data Annex'!$K$1:$AS$1,0)),"") ->  | I23: =IFERROR(INDEX('Data Annex'!$K$1:$AS$6264,MATCH(I$1&"|"&$B23,'Data Annex'!$K$1:$K$6264,0),MATCH(I$2,'Data Annex'!$K$1:$AS$1,0)),"") ->  | J23: =IFERROR(INDEX('Data Annex'!$K$1:$AS$6264,MATCH(J$1&"|"&$B23,'Data Annex'!$K$1:$K$6264,0),MATCH(J$2,'Data Annex'!$K$1:$AS$1,0)),"") ->  | K23: =IFERROR(INDEX('Data Annex'!$K$1:$AS$6264,MATCH(K$1&"|"&$B23,'Data Annex'!$K$1:$K$6264,0),MATCH(K$2,'Data Annex'!$K$1:$AS$1,0)),"") ->  | L23: =IFERROR(INDEX('Data Annex'!$K$1:$AS$6264,MATCH(L$1&"|"&$B23,'Data Annex'!$K$1:$K$6264,0),MATCH(L$2,'Data Annex'!$K$1:$AS$1,0)),"") ->  | M23: =IFERROR(INDEX('Data Annex'!$K$1:$AS$6264,MATCH(M$1&"|"&$B23,'Data Annex'!$K$1:$K$6264,0),MATCH(M$2,'Data Annex'!$K$1:$AS$1,0)),"") ->  | N23: =IFERROR(INDEX('Data Annex'!$K$1:$AS$6264,MATCH(N$1&"|"&$B23,'Data Annex'!$K$1:$K$6264,0),MATCH(N$2,'Data Annex'!$K$1:$AS$1,0)),"") ->  | O23: =IFERROR(INDEX('Data Annex'!$K$1:$AS$6264,MATCH(O$1&"|"&$B23,'Data Annex'!$K$1:$K$6264,0),MATCH(O$2,'Data Annex'!$K$1:$AS$1,0)),"") ->  | P23: =IFERROR(INDEX('Data Annex'!$K$1:$AS$6264,MATCH(P$1&"|"&$B23,'Data Annex'!$K$1:$K$6264,0),MATCH(P$2,'Data Annex'!$K$1:$AS$1,0)),"") ->  | Q23: =IFERROR(INDEX('Data Annex'!$K$1:$AS$6264,MATCH(Q$1&"|"&$B23,'Data Annex'!$K$1:$K$6264,0),MATCH(Q$2,'Data Annex'!$K$1:$AS$1,0)),"") ->  | R23: =IFERROR(INDEX('Data Annex'!$K$1:$AS$6264,MATCH(R$1&"|"&$B23,'Data Annex'!$K$1:$K$6264,0),MATCH(R$2,'Data Annex'!$K$1:$AS$1,0)),"") ->  | S23: =IFERROR(INDEX('Data Annex'!$K$1:$AS$6264,MATCH(S$1&"|"&$B23,'Data Annex'!$K$1:$K$6264,0),MATCH(S$2,'Data Annex'!$K$1:$AS$1,0)),"") ->  | T23: =IFERROR(INDEX('Data Annex'!$K$1:$AS$6264,MATCH(T$1&"|"&$B23,'Data Annex'!$K$1:$K$6264,0),MATCH(T$2,'Data Annex'!$K$1:$AS$1,0)),"") ->  | U23: =IFERROR(INDEX('Data Annex'!$K$1:$AS$6264,MATCH(U$1&"|"&$B23,'Data Annex'!$K$1:$K$6264,0),MATCH(U$2,'Data Annex'!$K$1:$AS$1,0)),"") -> 
A24: 13 | B24: HR | D24: HR | F24: =IFERROR(INDEX('Data Annex'!$K$1:$AS$6264,MATCH(F$1&"|"&$B24,'Data Annex'!$K$1:$K$6264,0),MATCH(F$2,'Data Annex'!$K$1:$AS$1,0)),"") -> 0.04201124504 | G24: =IFERROR(INDEX('Data Annex'!$K$1:$AS$6264,MATCH(G$1&"|"&$B24,'Data Annex'!$K$1:$K$6264,0),MATCH(G$2,'Data Annex'!$K$1:$AS$1,0)),"") -> 0.1422592009 | H24: =IFERROR(INDEX('Data Annex'!$K$1:$AS$6264,MATCH(H$1&"|"&$B24,'Data Annex'!$K$1:$K$6264,0),MATCH(H$2,'Data Annex'!$K$1:$AS$1,0)),"") ->  | I24: =IFERROR(INDEX('Data Annex'!$K$1:$AS$6264,MATCH(I$1&"|"&$B24,'Data Annex'!$K$1:$K$6264,0),MATCH(I$2,'Data Annex'!$K$1:$AS$1,0)),"") ->  | J24: =IFERROR(INDEX('Data Annex'!$K$1:$AS$6264,MATCH(J$1&"|"&$B24,'Data Annex'!$K$1:$K$6264,0),MATCH(J$2,'Data Annex'!$K$1:$AS$1,0)),"") ->  | K24: =IFERROR(INDEX('Data Annex'!$K$1:$AS$6264,MATCH(K$1&"|"&$B24,'Data Annex'!$K$1:$K$6264,0),MATCH(K$2,'Data Annex'!$K$1:$AS$1,0)),"") ->  | L24: =IFERROR(INDEX('Data Annex'!$K$1:$AS$6264,MATCH(L$1&"|"&$B24,'Data Annex'!$K$1:$K$6264,0),MATCH(L$2,'Data Annex'!$K$1:$AS$1,0)),"") ->  | M24: =IFERROR(INDEX('Data Annex'!$K$1:$AS$6264,MATCH(M$1&"|"&$B24,'Data Annex'!$K$1:$K$6264,0),MATCH(M$2,'Data Annex'!$K$1:$AS$1,0)),"") ->  | N24: =IFERROR(INDEX('Data Annex'!$K$1:$AS$6264,MATCH(N$1&"|"&$B24,'Data Annex'!$K$1:$K$6264,0),MATCH(N$2,'Data Annex'!$K$1:$AS$1,0)),"") -> 0.04201124504 | O24: =IFERROR(INDEX('Data Annex'!$K$1:$AS$6264,MATCH(O$1&"|"&$B24,'Data Annex'!$K$1:$K$6264,0),MATCH(O$2,'Data Annex'!$K$1:$AS$1,0)),"") -> 0.1422592009 | P24: =IFERROR(INDEX('Data Annex'!$K$1:$AS$6264,MATCH(P$1&"|"&$B24,'Data Annex'!$K$1:$K$6264,0),MATCH(P$2,'Data Annex'!$K$1:$AS$1,0)),"") -> 0 | Q24: =IFERROR(INDEX('Data Annex'!$K$1:$AS$6264,MATCH(Q$1&"|"&$B24,'Data Annex'!$K$1:$K$6264,0),MATCH(Q$2,'Data Annex'!$K$1:$AS$1,0)),"") -> 0.0001200050562 | R24: =IFERROR(INDEX('Data Annex'!$K$1:$AS$6264,MATCH(R$1&"|"&$B24,'Data Annex'!$K$1:$K$6264,0),MATCH(R$2,'Data Annex'!$K$1:$AS$1,0)),"") ->  | S24: =IFERROR(INDEX('Data Annex'!$K$1:$AS$6264,MATCH(S$1&"|"&$B24,'Data Annex'!$K$1:$K$6264,0),MATCH(S$2,'Data Annex'!$K$1:$AS$1,0)),"") ->  | T24: =IFERROR(INDEX('Data Annex'!$K$1:$AS$6264,MATCH(T$1&"|"&$B24,'Data Annex'!$K$1:$K$6264,0),MATCH(T$2,'Data Annex'!$K$1:$AS$1,0)),"") -> 0.04198891781 | U24: =IFERROR(INDEX('Data Annex'!$K$1:$AS$6264,MATCH(U$1&"|"&$B24,'Data Annex'!$K$1:$K$6264,0),MATCH(U$2,'Data Annex'!$K$1:$AS$1,0)),"") -> 0.142108022
A25: 14 | B25: HU | D25: HU | F25: =IFERROR(INDEX('Data Annex'!$K$1:$AS$6264,MATCH(F$1&"|"&$B25,'Data Annex'!$K$1:$K$6264,0),MATCH(F$2,'Data Annex'!$K$1:$AS$1,0)),"") -> 1881.577519 | G25: =IFERROR(INDEX('Data Annex'!$K$1:$AS$6264,MATCH(G$1&"|"&$B25,'Data Annex'!$K$1:$K$6264,0),MATCH(G$2,'Data Annex'!$K$1:$AS$1,0)),"") -> 2434.755671 | H25: =IFERROR(INDEX('Data Annex'!$K$1:$AS$6264,MATCH(H$1&"|"&$B25,'Data Annex'!$K$1:$K$6264,0),MATCH(H$2,'Data Annex'!$K$1:$AS$1,0)),"") -> 78.506586 | I25: =IFERROR(INDEX('Data Annex'!$K$1:$AS$6264,MATCH(I$1&"|"&$B25,'Data Annex'!$K$1:$K$6264,0),MATCH(I$2,'Data Annex'!$K$1:$AS$1,0)),"") -> 84.32326597 | J25: =IFERROR(INDEX('Data Annex'!$K$1:$AS$6264,MATCH(J$1&"|"&$B25,'Data Annex'!$K$1:$K$6264,0),MATCH(J$2,'Data Annex'!$K$1:$AS$1,0)),"") -> 266.5438594 | K25: =IFERROR(INDEX('Data Annex'!$K$1:$AS$6264,MATCH(K$1&"|"&$B25,'Data Annex'!$K$1:$K$6264,0),MATCH(K$2,'Data Annex'!$K$1:$AS$1,0)),"") -> 475.7227328 | L25: =IFERROR(INDEX('Data Annex'!$K$1:$AS$6264,MATCH(L$1&"|"&$B25,'Data Annex'!$K$1:$K$6264,0),MATCH(L$2,'Data Annex'!$K$1:$AS$1,0)),"") -> 265.9830578 | M25: =IFERROR(INDEX('Data Annex'!$K$1:$AS$6264,MATCH(M$1&"|"&$B25,'Data Annex'!$K$1:$K$6264,0),MATCH(M$2,'Data Annex'!$K$1:$AS$1,0)),"") -> 473.5263833 | N25: =IFERROR(INDEX('Data Annex'!$K$1:$AS$6264,MATCH(N$1&"|"&$B25,'Data Annex'!$K$1:$K$6264,0),MATCH(N$2,'Data Annex'!$K$1:$AS$1,0)),"") -> 1536.515946 | O25: =IFERROR(INDEX('Data Annex'!$K$1:$AS$6264,MATCH(O$1&"|"&$B25,'Data Annex'!$K$1:$K$6264,0),MATCH(O$2,'Data Annex'!$K$1:$AS$1,0)),"") -> 1874.698039 | P25: =IFERROR(INDEX('Data Annex'!$K$1:$AS$6264,MATCH(P$1&"|"&$B25,'Data Annex'!$K$1:$K$6264,0),MATCH(P$2,'Data Annex'!$K$1:$AS$1,0)),"") -> 31.9658696 | Q25: =IFERROR(INDEX('Data Annex'!$K$1:$AS$6264,MATCH(Q$1&"|"&$B25,'Data Annex'!$K$1:$K$6264,0),MATCH(Q$2,'Data Annex'!$K$1:$AS$1,0)),"") -> 46.32021676 | R25: =IFERROR(INDEX('Data Annex'!$K$1:$AS$6264,MATCH(R$1&"|"&$B25,'Data Annex'!$K$1:$K$6264,0),MATCH(R$2,'Data Annex'!$K$1:$AS$1,0)),"") -> 1177.864301 | S25: =IFERROR(INDEX('Data Annex'!$K$1:$AS$6264,MATCH(S$1&"|"&$B25,'Data Annex'!$K$1:$K$6264,0),MATCH(S$2,'Data Annex'!$K$1:$AS$1,0)),"") -> 1447.933096 | T25: =IFERROR(INDEX('Data Annex'!$K$1:$AS$6264,MATCH(T$1&"|"&$B25,'Data Annex'!$K$1:$K$6264,0),MATCH(T$2,'Data Annex'!$K$1:$AS$1,0)),"") -> 326.6857752 | U25: =IFERROR(INDEX('Data Annex'!$K$1:$AS$6264,MATCH(U$1&"|"&$B25,'Data Annex'!$K$1:$K$6264,0),MATCH(U$2,'Data Annex'!$K$1:$AS$1,0)),"") -> 380.4447246
A26: 15 | B26: IE | D26: IE | F26: =IFERROR(INDEX('Data Annex'!$K$1:$AS$6264,MATCH(F$1&"|"&$B26,'Data Annex'!$K$1:$K$6264,0),MATCH(F$2,'Data Annex'!$K$1:$AS$1,0)),"") -> 3.31781259 | G26: =IFERROR(INDEX('Data Annex'!$K$1:$AS$6264,MATCH(G$1&"|"&$B26,'Data Annex'!$K$1:$K$6264,0),MATCH(G$2,'Data Annex'!$K$1:$AS$1,0)),"") -> 5.00054225 | H26: =IFERROR(INDEX('Data Annex'!$K$1:$AS$6264,MATCH(H$1&"|"&$B26,'Data Annex'!$K$1:$K$6264,0),MATCH(H$2,'Data Annex'!$K$1:$AS$1,0)),"") ->  | I26: =IFERROR(INDEX('Data Annex'!$K$1:$AS$6264,MATCH(I$1&"|"&$B26,'Data Annex'!$K$1:$K$6264,0),MATCH(I$2,'Data Annex'!$K$1:$AS$1,0)),"") ->  | J26: =IFERROR(INDEX('Data Annex'!$K$1:$AS$6264,MATCH(J$1&"|"&$B26,'Data Annex'!$K$1:$K$6264,0),MATCH(J$2,'Data Annex'!$K$1:$AS$1,0)),"") ->  | K26: =IFERROR(INDEX('Data Annex'!$K$1:$AS$6264,MATCH(K$1&"|"&$B26,'Data Annex'!$K$1:$K$6264,0),MATCH(K$2,'Data Annex'!$K$1:$AS$1,0)),"") ->  | L26: =IFERROR(INDEX('Data Annex'!$K$1:$AS$6264,MATCH(L$1&"|"&$B26,'Data Annex'!$K$1:$K$6264,0),MATCH(L$2,'Data Annex'!$K$1:$AS$1,0)),"") ->  | M26: =IFERROR(INDEX('Data Annex'!$K$1:$AS$6264,MATCH(M$1&"|"&$B26,'Data Annex'!$K$1:$K$6264,0),MATCH(M$2,'Data Annex'!$K$1:$AS$1,0)),"") ->  | N26: =IFERROR(INDEX('Data Annex'!$K$1:$AS$6264,MATCH(N$1&"|"&$B26,'Data Annex'!$K$1:$K$6264,0),MATCH(N$2,'Data Annex'!$K$1:$AS$1,0)),"") -> 3.31781259 | O26: =IFERROR(INDEX('Data Annex'!$K$1:$AS$6264,MATCH(O$1&"|"&$B26,'Data Annex'!$K$1:$K$6264,0),MATCH(O$2,'Data Annex'!$K$1:$AS$1,0)),"") -> 5.00054225 | P26: =IFERROR(INDEX('Data Annex'!$K$1:$AS$6264,MATCH(P$1&"|"&$B26,'Data Annex'!$K$1:$K$6264,0),MATCH(P$2,'Data Annex'!$K$1:$AS$1,0)),"") -> 0 | Q26: =IFERROR(INDEX('Data Annex'!$K$1:$AS$6264,MATCH(Q$1&"|"&$B26,'Data Annex'!$K$1:$K$6264,0),MATCH(Q$2,'Data Annex'!$K$1:$AS$1,0)),"") -> 0 | R26: =IFERROR(INDEX('Data Annex'!$K$1:$AS$6264,MATCH(R$1&"|"&$B26,'Data Annex'!$K$1:$K$6264,0),MATCH(R$2,'Data Annex'!$K$1:$AS$1,0)),"") -> 2.98026058 | S26: =IFERROR(INDEX('Data Annex'!$K$1:$AS$6264,MATCH(S$1&"|"&$B26,'Data Annex'!$K$1:$K$6264,0),MATCH(S$2,'Data Annex'!$K$1:$AS$1,0)),"") -> 4.5560168 | T26: =IFERROR(INDEX('Data Annex'!$K$1:$AS$6264,MATCH(T$1&"|"&$B26,'Data Annex'!$K$1:$K$6264,0),MATCH(T$2,'Data Annex'!$K$1:$AS$1,0)),"") -> 0.33755201 | U26: =IFERROR(INDEX('Data Annex'!$K$1:$AS$6264,MATCH(U$1&"|"&$B26,'Data Annex'!$K$1:$K$6264,0),MATCH(U$2,'Data Annex'!$K$1:$AS$1,0)),"") -> 0.44452545
A27: 16 | B27: IS | D27: IS | F27: =IFERROR(INDEX('Data Annex'!$K$1:$AS$6264,MATCH(F$1&"|"&$B27,'Data Annex'!$K$1:$K$6264,0),MATCH(F$2,'Data Annex'!$K$1:$AS$1,0)),"") -> 7.867576792e-05 | G27: =IFERROR(INDEX('Data Annex'!$K$1:$AS$6264,MATCH(G$1&"|"&$B27,'Data Annex'!$K$1:$K$6264,0),MATCH(G$2,'Data Annex'!$K$1:$AS$1,0)),"") -> 9.195799458e-05 | H27: =IFERROR(INDEX('Data Annex'!$K$1:$AS$6264,MATCH(H$1&"|"&$B27,'Data Annex'!$K$1:$K$6264,0),MATCH(H$2,'Data Annex'!$K$1:$AS$1,0)),"") ->  | I27: =IFERROR(INDEX('Data Annex'!$K$1:$AS$6264,MATCH(I$1&"|"&$B27,'Data Annex'!$K$1:$K$6264,0),MATCH(I$2,'Data Annex'!$K$1:$AS$1,0)),"") ->  | J27: =IFERROR(INDEX('Data Annex'!$K$1:$AS$6264,MATCH(J$1&"|"&$B27,'Data Annex'!$K$1:$K$6264,0),MATCH(J$2,'Data Annex'!$K$1:$AS$1,0)),"") ->  | K27: =IFERROR(INDEX('Data Annex'!$K$1:$AS$6264,MATCH(K$1&"|"&$B27,'Data Annex'!$K$1:$K$6264,0),MATCH(K$2,'Data Annex'!$K$1:$AS$1,0)),"") ->  | L27: =IFERROR(INDEX('Data Annex'!$K$1:$AS$6264,MATCH(L$1&"|"&$B27,'Data Annex'!$K$1:$K$6264,0),MATCH(L$2,'Data Annex'!$K$1:$AS$1,0)),"") ->  | M27: =IFERROR(INDEX('Data Annex'!$K$1:$AS$6264,MATCH(M$1&"|"&$B27,'Data Annex'!$K$1:$K$6264,0),MATCH(M$2,'Data Annex'!$K$1:$AS$1,0)),"") ->  | N27: =IFERROR(INDEX('Data Annex'!$K$1:$AS$6264,MATCH(N$1&"|"&$B27,'Data Annex'!$K$1:$K$6264,0),MATCH(N$2,'Data Annex'!$K$1:$AS$1,0)),"") -> 7.867576792e-05 | O27: =IFERROR(INDEX('Data Annex'!$K$1:$AS$6264,MATCH(O$1&"|"&$B27,'Data Annex'!$K$1:$K$6264,0),MATCH(O$2,'Data Annex'!$K$1:$AS$1,0)),"") -> 9.195799458e-05 | P27: =IFERROR(INDEX('Data Annex'!$K$1:$AS$6264,MATCH(P$1&"|"&$B27,'Data Annex'!$K$1:$K$6264,0),MATCH(P$2,'Data Annex'!$K$1:$AS$1,0)),"") -> 0 | Q27: =IFERROR(INDEX('Data Annex'!$K$1:$AS$6264,MATCH(Q$1&"|"&$B27,'Data Annex'!$K$1:$K$6264,0),MATCH(Q$2,'Data Annex'!$K$1:$AS$1,0)),"") -> 0 | R27: =IFERROR(INDEX('Data Annex'!$K$1:$AS$6264,MATCH(R$1&"|"&$B27,'Data Annex'!$K$1:$K$6264,0),MATCH(R$2,'Data Annex'!$K$1:$AS$1,0)),"") -> 0 | S27: =IFERROR(INDEX('Data Annex'!$K$1:$AS$6264,MATCH(S$1&"|"&$B27,'Data Annex'!$K$1:$K$6264,0),MATCH(S$2,'Data Annex'!$K$1:$AS$1,0)),"") -> 0 | T27: =IFERROR(INDEX('Data Annex'!$K$1:$AS$6264,MATCH(T$1&"|"&$B27,'Data Annex'!$K$1:$K$6264,0),MATCH(T$2,'Data Annex'!$K$1:$AS$1,0)),"") -> 7.867576792e-05 | U27: =IFERROR(INDEX('Data Annex'!$K$1:$AS$6264,MATCH(U$1&"|"&$B27,'Data Annex'!$K$1:$K$6264,0),MATCH(U$2,'Data Annex'!$K$1:$AS$1,0)),"") -> 9.195799458e-05
A28: 17 | B28: IT | D28: IT | F28: =IFERROR(INDEX('Data Annex'!$K$1:$AS$6264,MATCH(F$1&"|"&$B28,'Data Annex'!$K$1:$K$6264,0),MATCH(F$2,'Data Annex'!$K$1:$AS$1,0)),"") -> 289.092335 | G28: =IFERROR(INDEX('Data Annex'!$K$1:$AS$6264,MATCH(G$1&"|"&$B28,'Data Annex'!$K$1:$K$6264,0),MATCH(G$2,'Data Annex'!$K$1:$AS$1,0)),"") -> 389.616737 | H28: =IFERROR(INDEX('Data Annex'!$K$1:$AS$6264,MATCH(H$1&"|"&$B28,'Data Annex'!$K$1:$K$6264,0),MATCH(H$2,'Data Annex'!$K$1:$AS$1,0)),"") -> 30.765066 | I28: =IFERROR(INDEX('Data Annex'!$K$1:$AS$6264,MATCH(I$1&"|"&$B28,'Data Annex'!$K$1:$K$6264,0),MATCH(I$2,'Data Annex'!$K$1:$AS$1,0)),"") -> 3.832963 | J28: =IFERROR(INDEX('Data Annex'!$K$1:$AS$6264,MATCH(J$1&"|"&$B28,'Data Annex'!$K$1:$K$6264,0),MATCH(J$2,'Data Annex'!$K$1:$AS$1,0)),"") -> 51.151681 | K28: =IFERROR(INDEX('Data Annex'!$K$1:$AS$6264,MATCH(K$1&"|"&$B28,'Data Annex'!$K$1:$K$6264,0),MATCH(K$2,'Data Annex'!$K$1:$AS$1,0)),"") -> 47.464099 | L28: =IFERROR(INDEX('Data Annex'!$K$1:$AS$6264,MATCH(L$1&"|"&$B28,'Data Annex'!$K$1:$K$6264,0),MATCH(L$2,'Data Annex'!$K$1:$AS$1,0)),"") -> 51.151681 | M28: =IFERROR(INDEX('Data Annex'!$K$1:$AS$6264,MATCH(M$1&"|"&$B28,'Data Annex'!$K$1:$K$6264,0),MATCH(M$2,'Data Annex'!$K$1:$AS$1,0)),"") -> 47.464099 | N28: =IFERROR(INDEX('Data Annex'!$K$1:$AS$6264,MATCH(N$1&"|"&$B28,'Data Annex'!$K$1:$K$6264,0),MATCH(N$2,'Data Annex'!$K$1:$AS$1,0)),"") -> 207.174588 | O28: =IFERROR(INDEX('Data Annex'!$K$1:$AS$6264,MATCH(O$1&"|"&$B28,'Data Annex'!$K$1:$K$6264,0),MATCH(O$2,'Data Annex'!$K$1:$AS$1,0)),"") -> 338.319675 | P28: =IFERROR(INDEX('Data Annex'!$K$1:$AS$6264,MATCH(P$1&"|"&$B28,'Data Annex'!$K$1:$K$6264,0),MATCH(P$2,'Data Annex'!$K$1:$AS$1,0)),"") -> 5.885915 | Q28: =IFERROR(INDEX('Data Annex'!$K$1:$AS$6264,MATCH(Q$1&"|"&$B28,'Data Annex'!$K$1:$K$6264,0),MATCH(Q$2,'Data Annex'!$K$1:$AS$1,0)),"") -> 27.822915 | R28: =IFERROR(INDEX('Data Annex'!$K$1:$AS$6264,MATCH(R$1&"|"&$B28,'Data Annex'!$K$1:$K$6264,0),MATCH(R$2,'Data Annex'!$K$1:$AS$1,0)),"") -> 101.038995 | S28: =IFERROR(INDEX('Data Annex'!$K$1:$AS$6264,MATCH(S$1&"|"&$B28,'Data Annex'!$K$1:$K$6264,0),MATCH(S$2,'Data Annex'!$K$1:$AS$1,0)),"") -> 143.338709 | T28: =IFERROR(INDEX('Data Annex'!$K$1:$AS$6264,MATCH(T$1&"|"&$B28,'Data Annex'!$K$1:$K$6264,0),MATCH(T$2,'Data Annex'!$K$1:$AS$1,0)),"") -> 81.685826 | U28: =IFERROR(INDEX('Data Annex'!$K$1:$AS$6264,MATCH(U$1&"|"&$B28,'Data Annex'!$K$1:$K$6264,0),MATCH(U$2,'Data Annex'!$K$1:$AS$1,0)),"") -> 110.542675
A29: 19 | B29: LT | D29: LT | F29: =IFERROR(INDEX('Data Annex'!$K$1:$AS$6264,MATCH(F$1&"|"&$B29,'Data Annex'!$K$1:$K$6264,0),MATCH(F$2,'Data Annex'!$K$1:$AS$1,0)),"") -> 0.561 | G29: =IFERROR(INDEX('Data Annex'!$K$1:$AS$6264,MATCH(G$1&"|"&$B29,'Data Annex'!$K$1:$K$6264,0),MATCH(G$2,'Data Annex'!$K$1:$AS$1,0)),"") -> 0.939 | H29: =IFERROR(INDEX('Data Annex'!$K$1:$AS$6264,MATCH(H$1&"|"&$B29,'Data Annex'!$K$1:$K$6264,0),MATCH(H$2,'Data Annex'!$K$1:$AS$1,0)),"") -> 0.023 | I29: =IFERROR(INDEX('Data Annex'!$K$1:$AS$6264,MATCH(I$1&"|"&$B29,'Data Annex'!$K$1:$K$6264,0),MATCH(I$2,'Data Annex'!$K$1:$AS$1,0)),"") -> 0.31 | J29: =IFERROR(INDEX('Data Annex'!$K$1:$AS$6264,MATCH(J$1&"|"&$B29,'Data Annex'!$K$1:$K$6264,0),MATCH(J$2,'Data Annex'!$K$1:$AS$1,0)),"") ->  | K29: =IFERROR(INDEX('Data Annex'!$K$1:$AS$6264,MATCH(K$1&"|"&$B29,'Data Annex'!$K$1:$K$6264,0),MATCH(K$2,'Data Annex'!$K$1:$AS$1,0)),"") ->  | L29: =IFERROR(INDEX('Data Annex'!$K$1:$AS$6264,MATCH(L$1&"|"&$B29,'Data Annex'!$K$1:$K$6264,0),MATCH(L$2,'Data Annex'!$K$1:$AS$1,0)),"") ->  | M29: =IFERROR(INDEX('Data Annex'!$K$1:$AS$6264,MATCH(M$1&"|"&$B29,'Data Annex'!$K$1:$K$6264,0),MATCH(M$2,'Data Annex'!$K$1:$AS$1,0)),"") ->  | N29: =IFERROR(INDEX('Data Annex'!$K$1:$AS$6264,MATCH(N$1&"|"&$B29,'Data Annex'!$K$1:$K$6264,0),MATCH(N$2,'Data Annex'!$K$1:$AS$1,0)),"") -> 0.538 | O29: =IFERROR(INDEX('Data Annex'!$K$1:$AS$6264,MATCH(O$1&"|"&$B29,'Data Annex'!$K$1:$K$6264,0),MATCH(O$2,'Data Annex'!$K$1:$AS$1,0)),"") -> 0.629 | P29: =IFERROR(INDEX('Data Annex'!$K$1:$AS$6264,MATCH(P$1&"|"&$B29,'Data Annex'!$K$1:$K$6264,0),MATCH(P$2,'Data Annex'!$K$1:$AS$1,0)),"") -> 0 | Q29: =IFERROR(INDEX('Data Annex'!$K$1:$AS$6264,MATCH(Q$1&"|"&$B29,'Data Annex'!$K$1:$K$6264,0),MATCH(Q$2,'Data Annex'!$K$1:$AS$1,0)),"") -> 0 | R29: =IFERROR(INDEX('Data Annex'!$K$1:$AS$6264,MATCH(R$1&"|"&$B29,'Data Annex'!$K$1:$K$6264,0),MATCH(R$2,'Data Annex'!$K$1:$AS$1,0)),"") ->  | S29: =IFERROR(INDEX('Data Annex'!$K$1:$AS$6264,MATCH(S$1&"|"&$B29,'Data Annex'!$K$1:$K$6264,0),MATCH(S$2,'Data Annex'!$K$1:$AS$1,0)),"") ->  | T29: =IFERROR(INDEX('Data Annex'!$K$1:$AS$6264,MATCH(T$1&"|"&$B29,'Data Annex'!$K$1:$K$6264,0),MATCH(T$2,'Data Annex'!$K$1:$AS$1,0)),"") -> 0.538 | U29: =IFERROR(INDEX('Data Annex'!$K$1:$AS$6264,MATCH(U$1&"|"&$B29,'Data Annex'!$K$1:$K$6264,0),MATCH(U$2,'Data Annex'!$K$1:$AS$1,0)),"") -> 0.629
A30: 20 | B30: LU | D30: LU | F30: =IFERROR(INDEX('Data Annex'!$K$1:$AS$6264,MATCH(F$1&"|"&$B30,'Data Annex'!$K$1:$K$6264,0),MATCH(F$2,'Data Annex'!$K$1:$AS$1,0)),"") -> 4.59245703 | G30: =IFERROR(INDEX('Data Annex'!$K$1:$AS$6264,MATCH(G$1&"|"&$B30,'Data Annex'!$K$1:$K$6264,0),MATCH(G$2,'Data Annex'!$K$1:$AS$1,0)),"") -> 15.63518564 | H30: =IFERROR(INDEX('Data Annex'!$K$1:$AS$6264,MATCH(H$1&"|"&$B30,'Data Annex'!$K$1:$K$6264,0),MATCH(H$2,'Data Annex'!$K$1:$AS$1,0)),"") -> 0 | I30: =IFERROR(INDEX('Data Annex'!$K$1:$AS$6264,MATCH(I$1&"|"&$B30,'Data Annex'!$K$1:$K$6264,0),MATCH(I$2,'Data Annex'!$K$1:$AS$1,0)),"") -> 2.47441111 | J30: =IFERROR(INDEX('Data Annex'!$K$1:$AS$6264,MATCH(J$1&"|"&$B30,'Data Annex'!$K$1:$K$6264,0),MATCH(J$2,'Data Annex'!$K$1:$AS$1,0)),"") -> 0 | K30: =IFERROR(INDEX('Data Annex'!$K$1:$AS$6264,MATCH(K$1&"|"&$B30,'Data Annex'!$K$1:$K$6264,0),MATCH(K$2,'Data Annex'!$K$1:$AS$1,0)),"") -> 0 | L30: =IFERROR(INDEX('Data Annex'!$K$1:$AS$6264,MATCH(L$1&"|"&$B30,'Data Annex'!$K$1:$K$6264,0),MATCH(L$2,'Data Annex'!$K$1:$AS$1,0)),"") -> 0 | M30: =IFERROR(INDEX('Data Annex'!$K$1:$AS$6264,MATCH(M$1&"|"&$B30,'Data Annex'!$K$1:$K$6264,0),MATCH(M$2,'Data Annex'!$K$1:$AS$1,0)),"") -> 0 | N30: =IFERROR(INDEX('Data Annex'!$K$1:$AS$6264,MATCH(N$1&"|"&$B30,'Data Annex'!$K$1:$K$6264,0),MATCH(N$2,'Data Annex'!$K$1:$AS$1,0)),"") -> 4.59245703 | O30: =IFERROR(INDEX('Data Annex'!$K$1:$AS$6264,MATCH(O$1&"|"&$B30,'Data Annex'!$K$1:$K$6264,0),MATCH(O$2,'Data Annex'!$K$1:$AS$1,0)),"") -> 13.16077453 | P30: =IFERROR(INDEX('Data Annex'!$K$1:$AS$6264,MATCH(P$1&"|"&$B30,'Data Annex'!$K$1:$K$6264,0),MATCH(P$2,'Data Annex'!$K$1:$AS$1,0)),"") -> 0 | Q30: =IFERROR(INDEX('Data Annex'!$K$1:$AS$6264,MATCH(Q$1&"|"&$B30,'Data Annex'!$K$1:$K$6264,0),MATCH(Q$2,'Data Annex'!$K$1:$AS$1,0)),"") -> 0 | R30: =IFERROR(INDEX('Data Annex'!$K$1:$AS$6264,MATCH(R$1&"|"&$B30,'Data Annex'!$K$1:$K$6264,0),MATCH(R$2,'Data Annex'!$K$1:$AS$1,0)),"") -> 0 | S30: =IFERROR(INDEX('Data Annex'!$K$1:$AS$6264,MATCH(S$1&"|"&$B30,'Data Annex'!$K$1:$K$6264,0),MATCH(S$2,'Data Annex'!$K$1:$AS$1,0)),"") -> 0 | T30: =IFERROR(INDEX('Data Annex'!$K$1:$AS$6264,MATCH(T$1&"|"&$B30,'Data Annex'!$K$1:$K$6264,0),MATCH(T$2,'Data Annex'!$K$1:$AS$1,0)),"") -> 4.59245703 | U30: =IFERROR(INDEX('Data Annex'!$K$1:$AS$6264,MATCH(U$1&"|"&$B30,'Data Annex'!$K$1:$K$6264,0),MATCH(U$2,'Data Annex'!$K$1:$AS$1,0)),"") -> 13.16077453
A31: 21 | B31: LV | D31: LV | F31: =IFERROR(INDEX('Data Annex'!$K$1:$AS$6264,MATCH(F$1&"|"&$B31,'Data Annex'!$K$1:$K$6264,0),MATCH(F$2,'Data Annex'!$K$1:$AS$1,0)),"") -> 0.805032 | G31: =IFERROR(INDEX('Data Annex'!$K$1:$AS$6264,MATCH(G$1&"|"&$B31,'Data Annex'!$K$1:$K$6264,0),MATCH(G$2,'Data Annex'!$K$1:$AS$1,0)),"") -> 2.14433171 | H31: =IFERROR(INDEX('Data Annex'!$K$1:$AS$6264,MATCH(H$1&"|"&$B31,'Data Annex'!$K$1:$K$6264,0),MATCH(H$2,'Data Annex'!$K$1:$AS$1,0)),"") -> 1e-05 | I31: =IFERROR(INDEX('Data Annex'!$K$1:$AS$6264,MATCH(I$1&"|"&$B31,'Data Annex'!$K$1:$K$6264,0),MATCH(I$2,'Data Annex'!$K$1:$AS$1,0)),"") -> 0 | J31: =IFERROR(INDEX('Data Annex'!$K$1:$AS$6264,MATCH(J$1&"|"&$B31,'Data Annex'!$K$1:$K$6264,0),MATCH(J$2,'Data Annex'!$K$1:$AS$1,0)),"") -> 0 | K31: =IFERROR(INDEX('Data Annex'!$K$1:$AS$6264,MATCH(K$1&"|"&$B31,'Data Annex'!$K$1:$K$6264,0),MATCH(K$2,'Data Annex'!$K$1:$AS$1,0)),"") -> 1.02572751 | L31: =IFERROR(INDEX('Data Annex'!$K$1:$AS$6264,MATCH(L$1&"|"&$B31,'Data Annex'!$K$1:$K$6264,0),MATCH(L$2,'Data Annex'!$K$1:$AS$1,0)),"") ->  | M31: =IFERROR(INDEX('Data Annex'!$K$1:$AS$6264,MATCH(M$1&"|"&$B31,'Data Annex'!$K$1:$K$6264,0),MATCH(M$2,'Data Annex'!$K$1:$AS$1,0)),"") ->  | N31: =IFERROR(INDEX('Data Annex'!$K$1:$AS$6264,MATCH(N$1&"|"&$B31,'Data Annex'!$K$1:$K$6264,0),MATCH(N$2,'Data Annex'!$K$1:$AS$1,0)),"") -> 0.805022 | O31: =IFERROR(INDEX('Data Annex'!$K$1:$AS$6264,MATCH(O$1&"|"&$B31,'Data Annex'!$K$1:$K$6264,0),MATCH(O$2,'Data Annex'!$K$1:$AS$1,0)),"") -> 1.1186042 | P31: =IFERROR(INDEX('Data Annex'!$K$1:$AS$6264,MATCH(P$1&"|"&$B31,'Data Annex'!$K$1:$K$6264,0),MATCH(P$2,'Data Annex'!$K$1:$AS$1,0)),"") -> 0 | Q31: =IFERROR(INDEX('Data Annex'!$K$1:$AS$6264,MATCH(Q$1&"|"&$B31,'Data Annex'!$K$1:$K$6264,0),MATCH(Q$2,'Data Annex'!$K$1:$AS$1,0)),"") -> 0 | R31: =IFERROR(INDEX('Data Annex'!$K$1:$AS$6264,MATCH(R$1&"|"&$B31,'Data Annex'!$K$1:$K$6264,0),MATCH(R$2,'Data Annex'!$K$1:$AS$1,0)),"") ->  | S31: =IFERROR(INDEX('Data Annex'!$K$1:$AS$6264,MATCH(S$1&"|"&$B31,'Data Annex'!$K$1:$K$6264,0),MATCH(S$2,'Data Annex'!$K$1:$AS$1,0)),"") ->  | T31: =IFERROR(INDEX('Data Annex'!$K$1:$AS$6264,MATCH(T$1&"|"&$B31,'Data Annex'!$K$1:$K$6264,0),MATCH(T$2,'Data Annex'!$K$1:$AS$1,0)),"") -> 0.805022 | U31: =IFERROR(INDEX('Data Annex'!$K$1:$AS$6264,MATCH(U$1&"|"&$B31,'Data Annex'!$K$1:$K$6264,0),MATCH(U$2,'Data Annex'!$K$1:$AS$1,0)),"") -> 1.1186042
A32: 22 | B32: MT | D32: MT | F32: =IFERROR(INDEX('Data Annex'!$K$1:$AS$6264,MATCH(F$1&"|"&$B32,'Data Annex'!$K$1:$K$6264,0),MATCH(F$2,'Data Annex'!$K$1:$AS$1,0)),"") -> 0.00113258 | G32: =IFERROR(INDEX('Data Annex'!$K$1:$AS$6264,MATCH(G$1&"|"&$B32,'Data Annex'!$K$1:$K$6264,0),MATCH(G$2,'Data Annex'!$K$1:$AS$1,0)),"") -> 0 | H32: =IFERROR(INDEX('Data Annex'!$K$1:$AS$6264,MATCH(H$1&"|"&$B32,'Data Annex'!$K$1:$K$6264,0),MATCH(H$2,'Data Annex'!$K$1:$AS$1,0)),"") -> 0 | I32: =IFERROR(INDEX('Data Annex'!$K$1:$AS$6264,MATCH(I$1&"|"&$B32,'Data Annex'!$K$1:$K$6264,0),MATCH(I$2,'Data Annex'!$K$1:$AS$1,0)),"") -> 0 | J32: =IFERROR(INDEX('Data Annex'!$K$1:$AS$6264,MATCH(J$1&"|"&$B32,'Data Annex'!$K$1:$K$6264,0),MATCH(J$2,'Data Annex'!$K$1:$AS$1,0)),"") -> 0 | K32: =IFERROR(INDEX('Data Annex'!$K$1:$AS$6264,MATCH(K$1&"|"&$B32,'Data Annex'!$K$1:$K$6264,0),MATCH(K$2,'Data Annex'!$K$1:$AS$1,0)),"") -> 0 | L32: =IFERROR(INDEX('Data Annex'!$K$1:$AS$6264,MATCH(L$1&"|"&$B32,'Data Annex'!$K$1:$K$6264,0),MATCH(L$2,'Data Annex'!$K$1:$AS$1,0)),"") -> 0 | M32: =IFERROR(INDEX('Data Annex'!$K$1:$AS$6264,MATCH(M$1&"|"&$B32,'Data Annex'!$K$1:$K$6264,0),MATCH(M$2,'Data Annex'!$K$1:$AS$1,0)),"") -> 0 | N32: =IFERROR(INDEX('Data Annex'!$K$1:$AS$6264,MATCH(N$1&"|"&$B32,'Data Annex'!$K$1:$K$6264,0),MATCH(N$2,'Data Annex'!$K$1:$AS$1,0)),"") -> 0.00113258 | O32: =IFERROR(INDEX('Data Annex'!$K$1:$AS$6264,MATCH(O$1&"|"&$B32,'Data Annex'!$K$1:$K$6264,0),MATCH(O$2,'Data Annex'!$K$1:$AS$1,0)),"") -> 0 | P32: =IFERROR(INDEX('Data Annex'!$K$1:$AS$6264,MATCH(P$1&"|"&$B32,'Data Annex'!$K$1:$K$6264,0),MATCH(P$2,'Data Annex'!$K$1:$AS$1,0)),"") -> 0 | Q32: =IFERROR(INDEX('Data Annex'!$K$1:$AS$6264,MATCH(Q$1&"|"&$B32,'Data Annex'!$K$1:$K$6264,0),MATCH(Q$2,'Data Annex'!$K$1:$AS$1,0)),"") -> 0 | R32: =IFERROR(INDEX('Data Annex'!$K$1:$AS$6264,MATCH(R$1&"|"&$B32,'Data Annex'!$K$1:$K$6264,0),MATCH(R$2,'Data Annex'!$K$1:$AS$1,0)),"") -> 0 | S32: =IFERROR(INDEX('Data Annex'!$K$1:$AS$6264,MATCH(S$1&"|"&$B32,'Data Annex'!$K$1:$K$6264,0),MATCH(S$2,'Data Annex'!$K$1:$AS$1,0)),"") -> 0 | T32: =IFERROR(INDEX('Data Annex'!$K$1:$AS$6264,MATCH(T$1&"|"&$B32,'Data Annex'!$K$1:$K$6264,0),MATCH(T$2,'Data Annex'!$K$1:$AS$1,0)),"") -> 0.00113258 | U32: =IFERROR(INDEX('Data Annex'!$K$1:$AS$6264,MATCH(U$1&"|"&$B32,'Data Annex'!$K$1:$K$6264,0),MATCH(U$2,'Data Annex'!$K$1:$AS$1,0)),"") -> 0
A33: 23 | B33: NL | D33: NL | F33: =IFERROR(INDEX('Data Annex'!$K$1:$AS$6264,MATCH(F$1&"|"&$B33,'Data Annex'!$K$1:$K$6264,0),MATCH(F$2,'Data Annex'!$K$1:$AS$1,0)),"") -> 394.057423 | G33: =IFERROR(INDEX('Data Annex'!$K$1:$AS$6264,MATCH(G$1&"|"&$B33,'Data Annex'!$K$1:$K$6264,0),MATCH(G$2,'Data Annex'!$K$1:$AS$1,0)),"") -> 706.118408 | H33: =IFERROR(INDEX('Data Annex'!$K$1:$AS$6264,MATCH(H$1&"|"&$B33,'Data Annex'!$K$1:$K$6264,0),MATCH(H$2,'Data Annex'!$K$1:$AS$1,0)),"") -> 29.512 | I33: =IFERROR(INDEX('Data Annex'!$K$1:$AS$6264,MATCH(I$1&"|"&$B33,'Data Annex'!$K$1:$K$6264,0),MATCH(I$2,'Data Annex'!$K$1:$AS$1,0)),"") -> 34.738 | J33: =IFERROR(INDEX('Data Annex'!$K$1:$AS$6264,MATCH(J$1&"|"&$B33,'Data Annex'!$K$1:$K$6264,0),MATCH(J$2,'Data Annex'!$K$1:$AS$1,0)),"") -> 17.697 | K33: =IFERROR(INDEX('Data Annex'!$K$1:$AS$6264,MATCH(K$1&"|"&$B33,'Data Annex'!$K$1:$K$6264,0),MATCH(K$2,'Data Annex'!$K$1:$AS$1,0)),"") -> 22.58 | L33: =IFERROR(INDEX('Data Annex'!$K$1:$AS$6264,MATCH(L$1&"|"&$B33,'Data Annex'!$K$1:$K$6264,0),MATCH(L$2,'Data Annex'!$K$1:$AS$1,0)),"") -> 17.351 | M33: =IFERROR(INDEX('Data Annex'!$K$1:$AS$6264,MATCH(M$1&"|"&$B33,'Data Annex'!$K$1:$K$6264,0),MATCH(M$2,'Data Annex'!$K$1:$AS$1,0)),"") -> 21.36 | N33: =IFERROR(INDEX('Data Annex'!$K$1:$AS$6264,MATCH(N$1&"|"&$B33,'Data Annex'!$K$1:$K$6264,0),MATCH(N$2,'Data Annex'!$K$1:$AS$1,0)),"") -> 346.848423 | O33: =IFERROR(INDEX('Data Annex'!$K$1:$AS$6264,MATCH(O$1&"|"&$B33,'Data Annex'!$K$1:$K$6264,0),MATCH(O$2,'Data Annex'!$K$1:$AS$1,0)),"") -> 648.800408 | P33: =IFERROR(INDEX('Data Annex'!$K$1:$AS$6264,MATCH(P$1&"|"&$B33,'Data Annex'!$K$1:$K$6264,0),MATCH(P$2,'Data Annex'!$K$1:$AS$1,0)),"") -> 0 | Q33: =IFERROR(INDEX('Data Annex'!$K$1:$AS$6264,MATCH(Q$1&"|"&$B33,'Data Annex'!$K$1:$K$6264,0),MATCH(Q$2,'Data Annex'!$K$1:$AS$1,0)),"") -> 0 | R33: =IFERROR(INDEX('Data Annex'!$K$1:$AS$6264,MATCH(R$1&"|"&$B33,'Data Annex'!$K$1:$K$6264,0),MATCH(R$2,'Data Annex'!$K$1:$AS$1,0)),"") -> 221.063189 | S33: =IFERROR(INDEX('Data Annex'!$K$1:$AS$6264,MATCH(S$1&"|"&$B33,'Data Annex'!$K$1:$K$6264,0),MATCH(S$2,'Data Annex'!$K$1:$AS$1,0)),"") -> 519.685294 | T33: =IFERROR(INDEX('Data Annex'!$K$1:$AS$6264,MATCH(T$1&"|"&$B33,'Data Annex'!$K$1:$K$6264,0),MATCH(T$2,'Data Annex'!$K$1:$AS$1,0)),"") -> 2.279234 | U33: =IFERROR(INDEX('Data Annex'!$K$1:$AS$6264,MATCH(U$1&"|"&$B33,'Data Annex'!$K$1:$K$6264,0),MATCH(U$2,'Data Annex'!$K$1:$AS$1,0)),"") -> 2.797114
A34: 24 | B34: NO | D34: NO* | F34: =IFERROR(INDEX('Data Annex'!$K$1:$AS$6264,MATCH(F$1&"|"&$B34,'Data Annex'!$K$1:$K$6264,0),MATCH(F$2,'Data Annex'!$K$1:$AS$1,0)),"") -> n.a. | G34: =IFERROR(INDEX('Data Annex'!$K$1:$AS$6264,MATCH(G$1&"|"&$B34,'Data Annex'!$K$1:$K$6264,0),MATCH(G$2,'Data Annex'!$K$1:$AS$1,0)),"") -> n.a. | H34: n.a. | I34: n.a. | J34: n.a. | K34: n.a. | L34: n.a. | M34: n.a. | N34: =IFERROR(INDEX('Data Annex'!$K$1:$AS$6264,MATCH(N$1&"|"&$B34,'Data Annex'!$K$1:$K$6264,0),MATCH(N$2,'Data Annex'!$K$1:$AS$1,0)),"") -> n.a. | O34: =IFERROR(INDEX('Data Annex'!$K$1:$AS$6264,MATCH(O$1&"|"&$B34,'Data Annex'!$K$1:$K$6264,0),MATCH(O$2,'Data Annex'!$K$1:$AS$1,0)),"") -> n.a. | P34: n.a. | Q34: n.a. | R34: n.a. | S34: n.a. | T34: =IFERROR(INDEX('Data Annex'!$K$1:$AS$6264,MATCH(T$1&"|"&$B34,'Data Annex'!$K$1:$K$6264,0),MATCH(T$2,'Data Annex'!$K$1:$AS$1,0)),"") -> n.a. | U34: =IFERROR(INDEX('Data Annex'!$K$1:$AS$6264,MATCH(U$1&"|"&$B34,'Data Annex'!$K$1:$K$6264,0),MATCH(U$2,'Data Annex'!$K$1:$AS$1,0)),"") -> n.a.
A35: 25 | B35: PL | D35: PL | F35: =IFERROR(INDEX('Data Annex'!$K$1:$AS$6264,MATCH(F$1&"|"&$B35,'Data Annex'!$K$1:$K$6264,0),MATCH(F$2,'Data Annex'!$K$1:$AS$1,0)),"") ->  | G35: =IFERROR(INDEX('Data Annex'!$K$1:$AS$6264,MATCH(G$1&"|"&$B35,'Data Annex'!$K$1:$K$6264,0),MATCH(G$2,'Data Annex'!$K$1:$AS$1,0)),"") ->  | H35: =IFERROR(INDEX('Data Annex'!$K$1:$AS$6264,MATCH(H$1&"|"&$B35,'Data Annex'!$K$1:$K$6264,0),MATCH(H$2,'Data Annex'!$K$1:$AS$1,0)),"") ->  | I35: =IFERROR(INDEX('Data Annex'!$K$1:$AS$6264,MATCH(I$1&"|"&$B35,'Data Annex'!$K$1:$K$6264,0),MATCH(I$2,'Data Annex'!$K$1:$AS$1,0)),"") ->  | J35: =IFERROR(INDEX('Data Annex'!$K$1:$AS$6264,MATCH(J$1&"|"&$B35,'Data Annex'!$K$1:$K$6264,0),MATCH(J$2,'Data Annex'!$K$1:$AS$1,0)),"") ->  | K35: =IFERROR(INDEX('Data Annex'!$K$1:$AS$6264,MATCH(K$1&"|"&$B35,'Data Annex'!$K$1:$K$6264,0),MATCH(K$2,'Data Annex'!$K$1:$AS$1,0)),"") ->  | L35: =IFERROR(INDEX('Data Annex'!$K$1:$AS$6264,MATCH(L$1&"|"&$B35,'Data Annex'!$K$1:$K$6264,0),MATCH(L$2,'Data Annex'!$K$1:$AS$1,0)),"") ->  | M35: =IFERROR(INDEX('Data Annex'!$K$1:$AS$6264,MATCH(M$1&"|"&$B35,'Data Annex'!$K$1:$K$6264,0),MATCH(M$2,'Data Annex'!$K$1:$AS$1,0)),"") ->  | N35: =IFERROR(INDEX('Data Annex'!$K$1:$AS$6264,MATCH(N$1&"|"&$B35,'Data Annex'!$K$1:$K$6264,0),MATCH(N$2,'Data Annex'!$K$1:$AS$1,0)),"") ->  | O35: =IFERROR(INDEX('Data Annex'!$K$1:$AS$6264,MATCH(O$1&"|"&$B35,'Data Annex'!$K$1:$K$6264,0),MATCH(O$2,'Data Annex'!$K$1:$AS$1,0)),"") ->  | P35: =IFERROR(INDEX('Data Annex'!$K$1:$AS$6264,MATCH(P$1&"|"&$B35,'Data Annex'!$K$1:$K$6264,0),MATCH(P$2,'Data Annex'!$K$1:$AS$1,0)),"") ->  | Q35: =IFERROR(INDEX('Data Annex'!$K$1:$AS$6264,MATCH(Q$1&"|"&$B35,'Data Annex'!$K$1:$K$6264,0),MATCH(Q$2,'Data Annex'!$K$1:$AS$1,0)),"") ->  | R35: =IFERROR(INDEX('Data Annex'!$K$1:$AS$6264,MATCH(R$1&"|"&$B35,'Data Annex'!$K$1:$K$6264,0),MATCH(R$2,'Data Annex'!$K$1:$AS$1,0)),"") ->  | S35: =IFERROR(INDEX('Data Annex'!$K$1:$AS$6264,MATCH(S$1&"|"&$B35,'Data Annex'!$K$1:$K$6264,0),MATCH(S$2,'Data Annex'!$K$1:$AS$1,0)),"") ->  | T35: =IFERROR(INDEX('Data Annex'!$K$1:$AS$6264,MATCH(T$1&"|"&$B35,'Data Annex'!$K$1:$K$6264,0),MATCH(T$2,'Data Annex'!$K$1:$AS$1,0)),"") ->  | U35: =IFERROR(INDEX('Data Annex'!$K$1:$AS$6264,MATCH(U$1&"|"&$B35,'Data Annex'!$K$1:$K$6264,0),MATCH(U$2,'Data Annex'!$K$1:$AS$1,0)),"") -> 
A36: 26 | B36: PT | D36: PT | F36: =IFERROR(INDEX('Data Annex'!$K$1:$AS$6264,MATCH(F$1&"|"&$B36,'Data Annex'!$K$1:$K$6264,0),MATCH(F$2,'Data Annex'!$K$1:$AS$1,0)),"") -> 6.82926058 | G36: =IFERROR(INDEX('Data Annex'!$K$1:$AS$6264,MATCH(G$1&"|"&$B36,'Data Annex'!$K$1:$K$6264,0),MATCH(G$2,'Data Annex'!$K$1:$AS$1,0)),"") -> 4.22851272 | H36: =IFERROR(INDEX('Data Annex'!$K$1:$AS$6264,MATCH(H$1&"|"&$B36,'Data Annex'!$K$1:$K$6264,0),MATCH(H$2,'Data Annex'!$K$1:$AS$1,0)),"") ->  | I36: =IFERROR(INDEX('Data Annex'!$K$1:$AS$6264,MATCH(I$1&"|"&$B36,'Data Annex'!$K$1:$K$6264,0),MATCH(I$2,'Data Annex'!$K$1:$AS$1,0)),"") ->  | J36: =IFERROR(INDEX('Data Annex'!$K$1:$AS$6264,MATCH(J$1&"|"&$B36,'Data Annex'!$K$1:$K$6264,0),MATCH(J$2,'Data Annex'!$K$1:$AS$1,0)),"") ->  | K36: =IFERROR(INDEX('Data Annex'!$K$1:$AS$6264,MATCH(K$1&"|"&$B36,'Data Annex'!$K$1:$K$6264,0),MATCH(K$2,'Data Annex'!$K$1:$AS$1,0)),"") ->  | L36: =IFERROR(INDEX('Data Annex'!$K$1:$AS$6264,MATCH(L$1&"|"&$B36,'Data Annex'!$K$1:$K$6264,0),MATCH(L$2,'Data Annex'!$K$1:$AS$1,0)),"") ->  | M36: =IFERROR(INDEX('Data Annex'!$K$1:$AS$6264,MATCH(M$1&"|"&$B36,'Data Annex'!$K$1:$K$6264,0),MATCH(M$2,'Data Annex'!$K$1:$AS$1,0)),"") ->  | N36: =IFERROR(INDEX('Data Annex'!$K$1:$AS$6264,MATCH(N$1&"|"&$B36,'Data Annex'!$K$1:$K$6264,0),MATCH(N$2,'Data Annex'!$K$1:$AS$1,0)),"") -> 6.82926058 | O36: =IFERROR(INDEX('Data Annex'!$K$1:$AS$6264,MATCH(O$1&"|"&$B36,'Data Annex'!$K$1:$K$6264,0),MATCH(O$2,'Data Annex'!$K$1:$AS$1,0)),"") -> 4.22851272 | P36: =IFERROR(INDEX('Data Annex'!$K$1:$AS$6264,MATCH(P$1&"|"&$B36,'Data Annex'!$K$1:$K$6264,0),MATCH(P$2,'Data Annex'!$K$1:$AS$1,0)),"") ->  | Q36: =IFERROR(INDEX('Data Annex'!$K$1:$AS$6264,MATCH(Q$1&"|"&$B36,'Data Annex'!$K$1:$K$6264,0),MATCH(Q$2,'Data Annex'!$K$1:$AS$1,0)),"") ->  | R36: =IFERROR(INDEX('Data Annex'!$K$1:$AS$6264,MATCH(R$1&"|"&$B36,'Data Annex'!$K$1:$K$6264,0),MATCH(R$2,'Data Annex'!$K$1:$AS$1,0)),"") ->  | S36: =IFERROR(INDEX('Data Annex'!$K$1:$AS$6264,MATCH(S$1&"|"&$B36,'Data Annex'!$K$1:$K$6264,0),MATCH(S$2,'Data Annex'!$K$1:$AS$1,0)),"") ->  | T36: =IFERROR(INDEX('Data Annex'!$K$1:$AS$6264,MATCH(T$1&"|"&$B36,'Data Annex'!$K$1:$K$6264,0),MATCH(T$2,'Data Annex'!$K$1:$AS$1,0)),"") -> 6.82926058 | U36: =IFERROR(INDEX('Data Annex'!$K$1:$AS$6264,MATCH(U$1&"|"&$B36,'Data Annex'!$K$1:$K$6264,0),MATCH(U$2,'Data Annex'!$K$1:$AS$1,0)),"") -> 4.22851272
A37: 27 | B37: RO | D37: RO | F37: =IFERROR(INDEX('Data Annex'!$K$1:$AS$6264,MATCH(F$1&"|"&$B37,'Data Annex'!$K$1:$K$6264,0),MATCH(F$2,'Data Annex'!$K$1:$AS$1,0)),"") -> 0.04382224026 | G37: =IFERROR(INDEX('Data Annex'!$K$1:$AS$6264,MATCH(G$1&"|"&$B37,'Data Annex'!$K$1:$K$6264,0),MATCH(G$2,'Data Annex'!$K$1:$AS$1,0)),"") -> 0.4688379471 | H37: =IFERROR(INDEX('Data Annex'!$K$1:$AS$6264,MATCH(H$1&"|"&$B37,'Data Annex'!$K$1:$K$6264,0),MATCH(H$2,'Data Annex'!$K$1:$AS$1,0)),"") -> 0.00478023539 | I37: =IFERROR(INDEX('Data Annex'!$K$1:$AS$6264,MATCH(I$1&"|"&$B37,'Data Annex'!$K$1:$K$6264,0),MATCH(I$2,'Data Annex'!$K$1:$AS$1,0)),"") -> 0 | J37: =IFERROR(INDEX('Data Annex'!$K$1:$AS$6264,MATCH(J$1&"|"&$B37,'Data Annex'!$K$1:$K$6264,0),MATCH(J$2,'Data Annex'!$K$1:$AS$1,0)),"") -> 0 | K37: =IFERROR(INDEX('Data Annex'!$K$1:$AS$6264,MATCH(K$1&"|"&$B37,'Data Annex'!$K$1:$K$6264,0),MATCH(K$2,'Data Annex'!$K$1:$AS$1,0)),"") -> 0 | L37: =IFERROR(INDEX('Data Annex'!$K$1:$AS$6264,MATCH(L$1&"|"&$B37,'Data Annex'!$K$1:$K$6264,0),MATCH(L$2,'Data Annex'!$K$1:$AS$1,0)),"") -> 0 | M37: =IFERROR(INDEX('Data Annex'!$K$1:$AS$6264,MATCH(M$1&"|"&$B37,'Data Annex'!$K$1:$K$6264,0),MATCH(M$2,'Data Annex'!$K$1:$AS$1,0)),"") -> 0 | N37: =IFERROR(INDEX('Data Annex'!$K$1:$AS$6264,MATCH(N$1&"|"&$B37,'Data Annex'!$K$1:$K$6264,0),MATCH(N$2,'Data Annex'!$K$1:$AS$1,0)),"") -> 0.03904200487 | O37: =IFERROR(INDEX('Data Annex'!$K$1:$AS$6264,MATCH(O$1&"|"&$B37,'Data Annex'!$K$1:$K$6264,0),MATCH(O$2,'Data Annex'!$K$1:$AS$1,0)),"") -> 0.4688379471 | P37: =IFERROR(INDEX('Data Annex'!$K$1:$AS$6264,MATCH(P$1&"|"&$B37,'Data Annex'!$K$1:$K$6264,0),MATCH(P$2,'Data Annex'!$K$1:$AS$1,0)),"") -> 0 | Q37: =IFERROR(INDEX('Data Annex'!$K$1:$AS$6264,MATCH(Q$1&"|"&$B37,'Data Annex'!$K$1:$K$6264,0),MATCH(Q$2,'Data Annex'!$K$1:$AS$1,0)),"") -> 0 | R37: =IFERROR(INDEX('Data Annex'!$K$1:$AS$6264,MATCH(R$1&"|"&$B37,'Data Annex'!$K$1:$K$6264,0),MATCH(R$2,'Data Annex'!$K$1:$AS$1,0)),"") -> 3.206168831e-05 | S37: =IFERROR(INDEX('Data Annex'!$K$1:$AS$6264,MATCH(S$1&"|"&$B37,'Data Annex'!$K$1:$K$6264,0),MATCH(S$2,'Data Annex'!$K$1:$AS$1,0)),"") -> 4.910082845e-05 | T37: =IFERROR(INDEX('Data Annex'!$K$1:$AS$6264,MATCH(T$1&"|"&$B37,'Data Annex'!$K$1:$K$6264,0),MATCH(T$2,'Data Annex'!$K$1:$AS$1,0)),"") -> 0.03900994318 | U37: =IFERROR(INDEX('Data Annex'!$K$1:$AS$6264,MATCH(U$1&"|"&$B37,'Data Annex'!$K$1:$K$6264,0),MATCH(U$2,'Data Annex'!$K$1:$AS$1,0)),"") -> 0.4687888462
A38: 28 | B38: SE | D38: SE | F38: =IFERROR(INDEX('Data Annex'!$K$1:$AS$6264,MATCH(F$1&"|"&$B38,'Data Annex'!$K$1:$K$6264,0),MATCH(F$2,'Data Annex'!$K$1:$AS$1,0)),"") -> 65.31538539 | G38: =IFERROR(INDEX('Data Annex'!$K$1:$AS$6264,MATCH(G$1&"|"&$B38,'Data Annex'!$K$1:$K$6264,0),MATCH(G$2,'Data Annex'!$K$1:$AS$1,0)),"") -> 91.94444771 | H38: =IFERROR(INDEX('Data Annex'!$K$1:$AS$6264,MATCH(H$1&"|"&$B38,'Data Annex'!$K$1:$K$6264,0),MATCH(H$2,'Data Annex'!$K$1:$AS$1,0)),"") -> 3.27715043 | I38: =IFERROR(INDEX('Data Annex'!$K$1:$AS$6264,MATCH(I$1&"|"&$B38,'Data Annex'!$K$1:$K$6264,0),MATCH(I$2,'Data Annex'!$K$1:$AS$1,0)),"") -> 1.703805059 | J38: =IFERROR(INDEX('Data Annex'!$K$1:$AS$6264,MATCH(J$1&"|"&$B38,'Data Annex'!$K$1:$K$6264,0),MATCH(J$2,'Data Annex'!$K$1:$AS$1,0)),"") -> 53.19525012 | K38: =IFERROR(INDEX('Data Annex'!$K$1:$AS$6264,MATCH(K$1&"|"&$B38,'Data Annex'!$K$1:$K$6264,0),MATCH(K$2,'Data Annex'!$K$1:$AS$1,0)),"") -> 74.56160151 | L38: =IFERROR(INDEX('Data Annex'!$K$1:$AS$6264,MATCH(L$1&"|"&$B38,'Data Annex'!$K$1:$K$6264,0),MATCH(L$2,'Data Annex'!$K$1:$AS$1,0)),"") -> 53.19525012 | M38: =IFERROR(INDEX('Data Annex'!$K$1:$AS$6264,MATCH(M$1&"|"&$B38,'Data Annex'!$K$1:$K$6264,0),MATCH(M$2,'Data Annex'!$K$1:$AS$1,0)),"") -> 74.56160151 | N38: =IFERROR(INDEX('Data Annex'!$K$1:$AS$6264,MATCH(N$1&"|"&$B38,'Data Annex'!$K$1:$K$6264,0),MATCH(N$2,'Data Annex'!$K$1:$AS$1,0)),"") -> 8.842984832 | O38: =IFERROR(INDEX('Data Annex'!$K$1:$AS$6264,MATCH(O$1&"|"&$B38,'Data Annex'!$K$1:$K$6264,0),MATCH(O$2,'Data Annex'!$K$1:$AS$1,0)),"") -> 15.67904113 | P38: =IFERROR(INDEX('Data Annex'!$K$1:$AS$6264,MATCH(P$1&"|"&$B38,'Data Annex'!$K$1:$K$6264,0),MATCH(P$2,'Data Annex'!$K$1:$AS$1,0)),"") -> 0.5584386312 | Q38: =IFERROR(INDEX('Data Annex'!$K$1:$AS$6264,MATCH(Q$1&"|"&$B38,'Data Annex'!$K$1:$K$6264,0),MATCH(Q$2,'Data Annex'!$K$1:$AS$1,0)),"") -> 0.1851390691 | R38: =IFERROR(INDEX('Data Annex'!$K$1:$AS$6264,MATCH(R$1&"|"&$B38,'Data Annex'!$K$1:$K$6264,0),MATCH(R$2,'Data Annex'!$K$1:$AS$1,0)),"") -> 6.645032044 | S38: =IFERROR(INDEX('Data Annex'!$K$1:$AS$6264,MATCH(S$1&"|"&$B38,'Data Annex'!$K$1:$K$6264,0),MATCH(S$2,'Data Annex'!$K$1:$AS$1,0)),"") -> 14.26591388 | T38: =IFERROR(INDEX('Data Annex'!$K$1:$AS$6264,MATCH(T$1&"|"&$B38,'Data Annex'!$K$1:$K$6264,0),MATCH(T$2,'Data Annex'!$K$1:$AS$1,0)),"") -> 1.639514157 | U38: =IFERROR(INDEX('Data Annex'!$K$1:$AS$6264,MATCH(U$1&"|"&$B38,'Data Annex'!$K$1:$K$6264,0),MATCH(U$2,'Data Annex'!$K$1:$AS$1,0)),"") -> 1.227988189
A39: 29 | B39: SI | D39: SI | F39: =IFERROR(INDEX('Data Annex'!$K$1:$AS$6264,MATCH(F$1&"|"&$B39,'Data Annex'!$K$1:$K$6264,0),MATCH(F$2,'Data Annex'!$K$1:$AS$1,0)),"") -> 0.122 | G39: =IFERROR(INDEX('Data Annex'!$K$1:$AS$6264,MATCH(G$1&"|"&$B39,'Data Annex'!$K$1:$K$6264,0),MATCH(G$2,'Data Annex'!$K$1:$AS$1,0)),"") -> 0.125 | H39: =IFERROR(INDEX('Data Annex'!$K$1:$AS$6264,MATCH(H$1&"|"&$B39,'Data Annex'!$K$1:$K$6264,0),MATCH(H$2,'Data Annex'!$K$1:$AS$1,0)),"") ->  | I39: =IFERROR(INDEX('Data Annex'!$K$1:$AS$6264,MATCH(I$1&"|"&$B39,'Data Annex'!$K$1:$K$6264,0),MATCH(I$2,'Data Annex'!$K$1:$AS$1,0)),"") ->  | J39: =IFERROR(INDEX('Data Annex'!$K$1:$AS$6264,MATCH(J$1&"|"&$B39,'Data Annex'!$K$1:$K$6264,0),MATCH(J$2,'Data Annex'!$K$1:$AS$1,0)),"") ->  | K39: =IFERROR(INDEX('Data Annex'!$K$1:$AS$6264,MATCH(K$1&"|"&$B39,'Data Annex'!$K$1:$K$6264,0),MATCH(K$2,'Data Annex'!$K$1:$AS$1,0)),"") ->  | L39: =IFERROR(INDEX('Data Annex'!$K$1:$AS$6264,MATCH(L$1&"|"&$B39,'Data Annex'!$K$1:$K$6264,0),MATCH(L$2,'Data Annex'!$K$1:$AS$1,0)),"") ->  | M39: =IFERROR(INDEX('Data Annex'!$K$1:$AS$6264,MATCH(M$1&"|"&$B39,'Data Annex'!$K$1:$K$6264,0),MATCH(M$2,'Data Annex'!$K$1:$AS$1,0)),"") ->  | N39: =IFERROR(INDEX('Data Annex'!$K$1:$AS$6264,MATCH(N$1&"|"&$B39,'Data Annex'!$K$1:$K$6264,0),MATCH(N$2,'Data Annex'!$K$1:$AS$1,0)),"") -> 0.122 | O39: =IFERROR(INDEX('Data Annex'!$K$1:$AS$6264,MATCH(O$1&"|"&$B39,'Data Annex'!$K$1:$K$6264,0),MATCH(O$2,'Data Annex'!$K$1:$AS$1,0)),"") -> 0.125 | P39: =IFERROR(INDEX('Data Annex'!$K$1:$AS$6264,MATCH(P$1&"|"&$B39,'Data Annex'!$K$1:$K$6264,0),MATCH(P$2,'Data Annex'!$K$1:$AS$1,0)),"") -> 0 | Q39: =IFERROR(INDEX('Data Annex'!$K$1:$AS$6264,MATCH(Q$1&"|"&$B39,'Data Annex'!$K$1:$K$6264,0),MATCH(Q$2,'Data Annex'!$K$1:$AS$1,0)),"") -> 0 | R39: =IFERROR(INDEX('Data Annex'!$K$1:$AS$6264,MATCH(R$1&"|"&$B39,'Data Annex'!$K$1:$K$6264,0),MATCH(R$2,'Data Annex'!$K$1:$AS$1,0)),"") ->  | S39: =IFERROR(INDEX('Data Annex'!$K$1:$AS$6264,MATCH(S$1&"|"&$B39,'Data Annex'!$K$1:$K$6264,0),MATCH(S$2,'Data Annex'!$K$1:$AS$1,0)),"") ->  | T39: =IFERROR(INDEX('Data Annex'!$K$1:$AS$6264,MATCH(T$1&"|"&$B39,'Data Annex'!$K$1:$K$6264,0),MATCH(T$2,'Data Annex'!$K$1:$AS$1,0)),"") -> 0.122 | U39: =IFERROR(INDEX('Data Annex'!$K$1:$AS$6264,MATCH(U$1&"|"&$B39,'Data Annex'!$K$1:$K$6264,0),MATCH(U$2,'Data Annex'!$K$1:$AS$1,0)),"") -> 0.125
A40: 30 | B40: SK | D40: SK | F40: =IFERROR(INDEX('Data Annex'!$K$1:$AS$6264,MATCH(F$1&"|"&$B40,'Data Annex'!$K$1:$K$6264,0),MATCH(F$2,'Data Annex'!$K$1:$AS$1,0)),"") -> 41.1157 | G40: =IFERROR(INDEX('Data Annex'!$K$1:$AS$6264,MATCH(G$1&"|"&$B40,'Data Annex'!$K$1:$K$6264,0),MATCH(G$2,'Data Annex'!$K$1:$AS$1,0)),"") -> 51.339115 | H40: =IFERROR(INDEX('Data Annex'!$K$1:$AS$6264,MATCH(H$1&"|"&$B40,'Data Annex'!$K$1:$K$6264,0),MATCH(H$2,'Data Annex'!$K$1:$AS$1,0)),"") -> 0 | I40: =IFERROR(INDEX('Data Annex'!$K$1:$AS$6264,MATCH(I$1&"|"&$B40,'Data Annex'!$K$1:$K$6264,0),MATCH(I$2,'Data Annex'!$K$1:$AS$1,0)),"") -> 0 | J40: =IFERROR(INDEX('Data Annex'!$K$1:$AS$6264,MATCH(J$1&"|"&$B40,'Data Annex'!$K$1:$K$6264,0),MATCH(J$2,'Data Annex'!$K$1:$AS$1,0)),"") -> 0 | K40: =IFERROR(INDEX('Data Annex'!$K$1:$AS$6264,MATCH(K$1&"|"&$B40,'Data Annex'!$K$1:$K$6264,0),MATCH(K$2,'Data Annex'!$K$1:$AS$1,0)),"") -> 0 | L40: =IFERROR(INDEX('Data Annex'!$K$1:$AS$6264,MATCH(L$1&"|"&$B40,'Data Annex'!$K$1:$K$6264,0),MATCH(L$2,'Data Annex'!$K$1:$AS$1,0)),"") -> 0 | M40: =IFERROR(INDEX('Data Annex'!$K$1:$AS$6264,MATCH(M$1&"|"&$B40,'Data Annex'!$K$1:$K$6264,0),MATCH(M$2,'Data Annex'!$K$1:$AS$1,0)),"") -> 0 | N40: =IFERROR(INDEX('Data Annex'!$K$1:$AS$6264,MATCH(N$1&"|"&$B40,'Data Annex'!$K$1:$K$6264,0),MATCH(N$2,'Data Annex'!$K$1:$AS$1,0)),"") -> 41.1157 | O40: =IFERROR(INDEX('Data Annex'!$K$1:$AS$6264,MATCH(O$1&"|"&$B40,'Data Annex'!$K$1:$K$6264,0),MATCH(O$2,'Data Annex'!$K$1:$AS$1,0)),"") -> 51.339115 | P40: =IFERROR(INDEX('Data Annex'!$K$1:$AS$6264,MATCH(P$1&"|"&$B40,'Data Annex'!$K$1:$K$6264,0),MATCH(P$2,'Data Annex'!$K$1:$AS$1,0)),"") -> 0 | Q40: =IFERROR(INDEX('Data Annex'!$K$1:$AS$6264,MATCH(Q$1&"|"&$B40,'Data Annex'!$K$1:$K$6264,0),MATCH(Q$2,'Data Annex'!$K$1:$AS$1,0)),"") -> 0 | R40: =IFERROR(INDEX('Data Annex'!$K$1:$AS$6264,MATCH(R$1&"|"&$B40,'Data Annex'!$K$1:$K$6264,0),MATCH(R$2,'Data Annex'!$K$1:$AS$1,0)),"") -> 0 | S40: =IFERROR(INDEX('Data Annex'!$K$1:$AS$6264,MATCH(S$1&"|"&$B40,'Data Annex'!$K$1:$K$6264,0),MATCH(S$2,'Data Annex'!$K$1:$AS$1,0)),"") -> 0 | T40: =IFERROR(INDEX('Data Annex'!$K$1:$AS$6264,MATCH(T$1&"|"&$B40,'Data Annex'!$K$1:$K$6264,0),MATCH(T$2,'Data Annex'!$K$1:$AS$1,0)),"") -> 41.1157 | U40: =IFERROR(INDEX('Data Annex'!$K$1:$AS$6264,MATCH(U$1&"|"&$B40,'Data Annex'!$K$1:$K$6264,0),MATCH(U$2,'Data Annex'!$K$1:$AS$1,0)),"") -> 51.339115
A41: 99 | B41: EU | D41: EU/EEA | F41: =IFERROR(INDEX('Data Annex'!$K$1:$AS$6264,MATCH(F$1&"|"&$B41,'Data Annex'!$K$1:$K$6264,0),MATCH(F$2,'Data Annex'!$K$1:$AS$1,0)),"") -> 9138.804815 | G41: =IFERROR(INDEX('Data Annex'!$K$1:$AS$6264,MATCH(G$1&"|"&$B41,'Data Annex'!$K$1:$K$6264,0),MATCH(G$2,'Data Annex'!$K$1:$AS$1,0)),"") -> 11479.14814 | H41: =IFERROR(INDEX('Data Annex'!$K$1:$AS$6264,MATCH(H$1&"|"&$B41,'Data Annex'!$K$1:$K$6264,0),MATCH(H$2,'Data Annex'!$K$1:$AS$1,0)),"") -> 467.6901896 | I41: =IFERROR(INDEX('Data Annex'!$K$1:$AS$6264,MATCH(I$1&"|"&$B41,'Data Annex'!$K$1:$K$6264,0),MATCH(I$2,'Data Annex'!$K$1:$AS$1,0)),"") -> 444.893375 | J41: =IFERROR(INDEX('Data Annex'!$K$1:$AS$6264,MATCH(J$1&"|"&$B41,'Data Annex'!$K$1:$K$6264,0),MATCH(J$2,'Data Annex'!$K$1:$AS$1,0)),"") -> 1563.690487 | K41: =IFERROR(INDEX('Data Annex'!$K$1:$AS$6264,MATCH(K$1&"|"&$B41,'Data Annex'!$K$1:$K$6264,0),MATCH(K$2,'Data Annex'!$K$1:$AS$1,0)),"") -> 1907.335197 | L41: =IFERROR(INDEX('Data Annex'!$K$1:$AS$6264,MATCH(L$1&"|"&$B41,'Data Annex'!$K$1:$K$6264,0),MATCH(L$2,'Data Annex'!$K$1:$AS$1,0)),"") -> 1524.226828 | M41: =IFERROR(INDEX('Data Annex'!$K$1:$AS$6264,MATCH(M$1&"|"&$B41,'Data Annex'!$K$1:$K$6264,0),MATCH(M$2,'Data Annex'!$K$1:$AS$1,0)),"") -> 1902.123391 | N41: =IFERROR(INDEX('Data Annex'!$K$1:$AS$6264,MATCH(N$1&"|"&$B41,'Data Annex'!$K$1:$K$6264,0),MATCH(N$2,'Data Annex'!$K$1:$AS$1,0)),"") -> 7091.331522 | O41: =IFERROR(INDEX('Data Annex'!$K$1:$AS$6264,MATCH(O$1&"|"&$B41,'Data Annex'!$K$1:$K$6264,0),MATCH(O$2,'Data Annex'!$K$1:$AS$1,0)),"") -> 9126.36551 | P41: =IFERROR(INDEX('Data Annex'!$K$1:$AS$6264,MATCH(P$1&"|"&$B41,'Data Annex'!$K$1:$K$6264,0),MATCH(P$2,'Data Annex'!$K$1:$AS$1,0)),"") -> 105.6649104 | Q41: =IFERROR(INDEX('Data Annex'!$K$1:$AS$6264,MATCH(Q$1&"|"&$B41,'Data Annex'!$K$1:$K$6264,0),MATCH(Q$2,'Data Annex'!$K$1:$AS$1,0)),"") -> 261.0824078 | R41: =IFERROR(INDEX('Data Annex'!$K$1:$AS$6264,MATCH(R$1&"|"&$B41,'Data Annex'!$K$1:$K$6264,0),MATCH(R$2,'Data Annex'!$K$1:$AS$1,0)),"") -> 4606.410523 | S41: =IFERROR(INDEX('Data Annex'!$K$1:$AS$6264,MATCH(S$1&"|"&$B41,'Data Annex'!$K$1:$K$6264,0),MATCH(S$2,'Data Annex'!$K$1:$AS$1,0)),"") -> 6353.272748 | T41: =IFERROR(INDEX('Data Annex'!$K$1:$AS$6264,MATCH(T$1&"|"&$B41,'Data Annex'!$K$1:$K$6264,0),MATCH(T$2,'Data Annex'!$K$1:$AS$1,0)),"") -> 1204.27962 | U41: =IFERROR(INDEX('Data Annex'!$K$1:$AS$6264,MATCH(U$1&"|"&$B41,'Data Annex'!$K$1:$K$6264,0),MATCH(U$2,'Data Annex'!$K$1:$AS$1,0)),"") -> 1409.072064
D43: (1) footnote here if needed
F44: T54_1 | G44: T54_1 | H44: T54_2 | I44: T54_2 | J44: T54_3 | K44: T54_3 | L44: T54_4 | M44: T54_4 | N44: T54_5 | O44: T54_5 | P44: T54_6 | Q44: T54_6 | R44: T54_7 | S44: T54_7 | U44: T05_4 | W44: T55_1 | X44: T55_1 | Y44: T55_2 | Z44: T55_2 | AA44: T55_3 | AB44: T55_3
F45: =TEXT(F50,"YYYYMM")+0 -> 202106 | G45: =TEXT(G50,"YYYYMM")+0 -> 202112 | H45: 202106 | I45: 202112 | J45: 202106 | K45: 202112 | L45: 202106 | M45: 202112 | N45: 202106 | O45: 202112 | P45: 202106 | Q45: 202112 | R45: 202106 | S45: 202112 | W45: =TEXT(W50,"YYYYMM")+0 -> 202106 | X45: =TEXT(X50,"YYYYMM")+0 -> 202112 | Y45: 202106 | Z45: 202112 | AA45: 202106 | AB45: 202112
D46: Breakdown of deposits from Ukrainian counterparts | U46: Off balance sheet exposures towards Ukrainian counterparts
D48: (million EUR) | F48: Deposits | H48: of which:
H49: Central banks | J49: General governments | L49: Credit institutions | N49: Other financial corporations | P49: Non-financial corporations | R49: Households | U49: (million EUR) | W49: Loan commitments | Y49: Financial guarantees | AA49: Other Commitments
F50: =IF(OR(MONTH($A$3)=9,MONTH($A$3)=3),EOMONTH($A$3,-9),EOMONTH($A$3,-6)) -> 2021-06-30 | G50: =EOMONTH(F$50,6) -> 2021-12-31 | H50: =IF(OR(MONTH($A$3)=9,MONTH($A$3)=3),EOMONTH($A$3,-9),EOMONTH($A$3,-6)) -> 2021-06-30 | I50: =EOMONTH(H$11,6) -> 2021-12-31 | J50: =IF(OR(MONTH($A$3)=9,MONTH($A$3)=3),EOMONTH($A$3,-9),EOMONTH($A$3,-6)) -> 2021-06-30 | K50: =EOMONTH(J$11,6) -> 2021-12-31 | L50: =IF(OR(MONTH($A$3)=9,MONTH($A$3)=3),EOMONTH($A$3,-9),EOMONTH($A$3,-6)) -> 2021-06-30 | M50: =EOMONTH(L$11,6) -> 2021-12-31 | N50: =IF(OR(MONTH($A$3)=9,MONTH($A$3)=3),EOMONTH($A$3,-9),EOMONTH($A$3,-6)) -> 2021-06-30 | O50: =EOMONTH(N$50,6) -> 2021-12-31 | P50: =IF(OR(MONTH($A$3)=9,MONTH($A$3)=3),EOMONTH($A$3,-9),EOMONTH($A$3,-6)) -> 2021-06-30 | Q50: =EOMONTH(P$11,6) -> 2021-12-31 | R50: =IF(OR(MONTH($A$3)=9,MONTH($A$3)=3),EOMONTH($A$3,-9),EOMONTH($A$3,-6)) -> 2021-06-30 | S50: =EOMONTH(R$11,6) -> 2021-12-31 | W50: =IF(OR(MONTH($A$3)=9,MONTH($A$3)=3),EOMONTH($A$3,-9),EOMONTH($A$3,-6)) -> 2021-06-30 | X50: =EOMONTH(W$50,6) -> 2021-12-31 | Y50: =IF(OR(MONTH($A$3)=9,MONTH($A$3)=3),EOMONTH($A$3,-9),EOMONTH($A$3,-6)) -> 2021-06-30 | Z50: =EOMONTH(Y$50,6) -> 2021-12-31 | AA50: =IF(OR(MONTH($A$3)=9,MONTH($A$3)=3),EOMONTH($A$3,-9),EOMONTH($A$3,-6)) -> 2021-06-30 | AB50: =EOMONTH(AA$50,6) -> 2021-12-31
A51: 1 | B51: AT | D51: =B51 -> AT | F51: =IFERROR(INDEX('Data Annex'!$K$1:$AS$6264,MATCH(F$44&"|"&$B51,'Data Annex'!$K$1:$K$6264,0),MATCH(F$45,'Data Annex'!$K$1:$AS$1,0)),"") -> 3886.281987 | G51: =IFERROR(INDEX('Data Annex'!$K$1:$AS$6264,MATCH(G$44&"|"&$B51,'Data Annex'!$K$1:$K$6264,0),MATCH(G$45,'Data Annex'!$K$1:$AS$1,0)),"") -> 4136.762075 | H51: =IFERROR(INDEX('Data Annex'!$K$1:$AS$6264,MATCH(H$44&"|"&$B51,'Data Annex'!$K$1:$K$6264,0),MATCH(H$45,'Data Annex'!$K$1:$AS$1,0)),"") -> 12.348787 | I51: =IFERROR(INDEX('Data Annex'!$K$1:$AS$6264,MATCH(I$44&"|"&$B51,'Data Annex'!$K$1:$K$6264,0),MATCH(I$45,'Data Annex'!$K$1:$AS$1,0)),"") -> 12.934332 | J51: =IFERROR(INDEX('Data Annex'!$K$1:$AS$6264,MATCH(J$44&"|"&$B51,'Data Annex'!$K$1:$K$6264,0),MATCH(J$45,'Data Annex'!$K$1:$AS$1,0)),"") -> 20.3873122 | K51: =IFERROR(INDEX('Data Annex'!$K$1:$AS$6264,MATCH(K$44&"|"&$B51,'Data Annex'!$K$1:$K$6264,0),MATCH(K$45,'Data Annex'!$K$1:$AS$1,0)),"") -> 25.3035606 | L51: =IFERROR(INDEX('Data Annex'!$K$1:$AS$6264,MATCH(L$44&"|"&$B51,'Data Annex'!$K$1:$K$6264,0),MATCH(L$45,'Data Annex'!$K$1:$AS$1,0)),"") -> 505.6092299 | M51: =IFERROR(INDEX('Data Annex'!$K$1:$AS$6264,MATCH(M$44&"|"&$B51,'Data Annex'!$K$1:$K$6264,0),MATCH(M$45,'Data Annex'!$K$1:$AS$1,0)),"") -> 279.5721559 | N51: =IFERROR(INDEX('Data Annex'!$K$1:$AS$6264,MATCH(N$44&"|"&$B51,'Data Annex'!$K$1:$K$6264,0),MATCH(N$45,'Data Annex'!$K$1:$AS$1,0)),"") -> 51.057638 | O51: =IFERROR(INDEX('Data Annex'!$K$1:$AS$6264,MATCH(O$44&"|"&$B51,'Data Annex'!$K$1:$K$6264,0),MATCH(O$45,'Data Annex'!$K$1:$AS$1,0)),"") -> 55.663107 | P51: =IFERROR(INDEX('Data Annex'!$K$1:$AS$6264,MATCH(P$44&"|"&$B51,'Data Annex'!$K$1:$K$6264,0),MATCH(P$45,'Data Annex'!$K$1:$AS$1,0)),"") -> 1656.391989 | Q51: =IFERROR(INDEX('Data Annex'!$K$1:$AS$6264,MATCH(Q$44&"|"&$B51,'Data Annex'!$K$1:$K$6264,0),MATCH(Q$45,'Data Annex'!$K$1:$AS$1,0)),"") -> 1853.053098 | R51: =IFERROR(INDEX('Data Annex'!$K$1:$AS$6264,MATCH(R$44&"|"&$B51,'Data Annex'!$K$1:$K$6264,0),MATCH(R$45,'Data Annex'!$K$1:$AS$1,0)),"") -> 1640.487031 | S51: =IFERROR(INDEX('Data Annex'!$K$1:$AS$6264,MATCH(S$44&"|"&$B51,'Data Annex'!$K$1:$K$6264,0),MATCH(S$45,'Data Annex'!$K$1:$AS$1,0)),"") -> 1910.235821 | U51: =B51 -> AT | W51: =IFERROR(INDEX('Data Annex'!$K$1:$AS$6264,MATCH(W$44&"|"&$B51,'Data Annex'!$K$1:$K$6264,0),MATCH(W$45,'Data Annex'!$K$1:$AS$1,0)),"") -> 832.5790648 | X51: =IFERROR(INDEX('Data Annex'!$K$1:$AS$6264,MATCH(X$44&"|"&$B51,'Data Annex'!$K$1:$K$6264,0),MATCH(X$45,'Data Annex'!$K$1:$AS$1,0)),"") -> 1038.575588 | Y51: =IFERROR(INDEX('Data Annex'!$K$1:$AS$6264,MATCH(Y$44&"|"&$B51,'Data Annex'!$K$1:$K$6264,0),MATCH(Y$45,'Data Annex'!$K$1:$AS$1,0)),"") -> 217.8133078 | Z51: =IFERROR(INDEX('Data Annex'!$K$1:$AS$6264,MATCH(Z$44&"|"&$B51,'Data Annex'!$K$1:$K$6264,0),MATCH(Z$45,'Data Annex'!$K$1:$AS$1,0)),"") -> 195.3416306 | AA51: =IFERROR(INDEX('Data Annex'!$K$1:$AS$6264,MATCH(AA$44&"|"&$B51,'Data Annex'!$K$1:$K$6264,0),MATCH(AA$45,'Data Annex'!$K$1:$AS$1,0)),"") -> 20.19359852 | AB51: =IFERROR(INDEX('Data Annex'!$K$1:$AS$6264,MATCH(AB$44&"|"&$B51,'Data Annex'!$K$1:$K$6264,0),MATCH(AB$45,'Data Annex'!$K$1:$AS$1,0)),"") -> 18.60818852
